Workbook

Sheet Introduction
C4: Joint Monitoring Programme for Water Supply, Sanitation and Hygiene
C6: Estimates on household water, sanitation and hygiene by wealth quintile and sub-national region in
C7: =+Water!B5 -> Madagascar
C9: Updated May 2021
C11: Follow the links below to find the following information:
C13: JMP Estimates
C14: WASH status and trends by wealth quintile (customized quintiles made without water and sanitation assets)
C15: Water
C16: Sanitation
C17: Hygiene
C19: Data inputs
C20: customized wealth quintiles and subnational data:
C21: =IF(INDIRECT(CONCATENATE("Water","!B105"))=0,"",INDIRECT(CONCATENATE("Water","!B105"))) -> DHS04
C22: =IF(INDIRECT(CONCATENATE("Water","!B106"))=0,"",INDIRECT(CONCATENATE("Water","!B106"))) -> DHS09
C23: =IF(INDIRECT(CONCATENATE("Water","!B107"))=0,"",INDIRECT(CONCATENATE("Water","!B107"))) -> MIS11
C24: =IF(INDIRECT(CONCATENATE("Water","!B108"))=0,"",INDIRECT(CONCATENATE("Water","!B108"))) -> AIS13
C25: =IF(INDIRECT(CONCATENATE("Water","!B109"))=0,"",INDIRECT(CONCATENATE("Water","!B109"))) -> MIS16
C26: =IF(INDIRECT(CONCATENATE("Water","!B110"))=0,"",INDIRECT(CONCATENATE("Water","!B110"))) -> MICS18
C27: =IF(INDIRECT(CONCATENATE("Water","!B111"))=0,"",INDIRECT(CONCATENATE("Water","!B111"))) -> 
C28: =IF(INDIRECT(CONCATENATE("Water","!B112"))=0,"",INDIRECT(CONCATENATE("Water","!B112"))) -> 
C29: =IF(INDIRECT(CONCATENATE("Water","!B113"))=0,"",INDIRECT(CONCATENATE("Water","!B113"))) -> 
C30: =IF(INDIRECT(CONCATENATE("Water","!B114"))=0,"",INDIRECT(CONCATENATE("Water","!B114"))) -> 
C31: =IF(INDIRECT(CONCATENATE("Water","!B115"))=0,"",INDIRECT(CONCATENATE("Water","!B115"))) -> 
C32: =IF(INDIRECT(CONCATENATE("Water","!B116"))=0,"",INDIRECT(CONCATENATE("Water","!B116"))) -> 
L55: =+IF(ISNUMBER(M48), "", "Insufficient data to estimate safely managed sanitation services at national level") -> Insufficient data to estimate safely managed sanitation services at national level

Sheet Water
A1: BGD
B4: Summary of trends in use of drinking water by wealth quintile (%)
B5: =IF(ISERROR(INDIRECT(CONCATENATE($B105,"!A2"))),"",INDIRECT(CONCATENATE($B105,"!A2"))) -> Madagascar
B7: =B118 -> National use of drinking water sources, 2000–2020 | J7: =B218 -> Urban use of drinking water sources, 2000–2020 | R7: =B318 -> Rural use of drinking water sources, 2000–2020
B31: =IF(ISERROR(INDIRECT(CONCATENATE($B105,"!A2"))),"",INDIRECT(CONCATENATE($B105,"!A2"))) -> Madagascar | F31: Poorest | J31: Poor | N31: Middle | R31: Rich | V31: Richest
F32: Basic | G32: Limited | H32: Unimproved | I32: Surface water | J32: Basic | K32: Limited | L32: Unimproved | M32: Surface water | N32: Basic | O32: Limited | P32: Unimproved | Q32: Surface water | R32: Basic | S32: Limited | T32: Unimproved | U32: Surface water | V32: Basic | W32: Limited | X32: Unimproved | Y32: Surface water
B33: NATIONAL | D33: Estimate | E33: =C99 -> 2000 | F33: =E99 -> 9.369360894 | G33: =F99 -> 0.9631540602 | H33: 30.84996783 | I33: 58.81751722 | J33: =J99 -> 11.93580597 | K33: =K99 -> 0.6810020447 | L33: 33.75472435 | M33: 53.62846764 | N33: =O99 -> 18.01705864 | O33: =P99 -> 0.6916343624 | P33: 48.80475424 | Q33: 32.48655276 | R33: =T99 -> 40.10934683 | S33: =U99 -> 1.188687472 | T33: 34.90104061 | U33: 23.80092508 | V33: =Y99 -> 86.32255371 | W33: =Z99 -> 2.181169454 | X33: 10.90166276 | Y33: 0.5946140804
E34: =C100 -> 2020 | F34: =E100 -> 20.32544504 | G34: 2.08942052 | H34: 54.12460377 | I34: 23.46053067 | J34: =J100 -> 27.29935242 | K34: 1.557575154 | L34: 51.53527857 | M34: 19.60779386 | N34: =O100 -> 35.23008548 | O34: 1.352403752 | P34: 43.13211298 | Q34: 20.28539779 | R34: =T100 -> 52.22638346 | S34: 1.547790044 | T34: 30.69611097 | U34: 15.52971552 | V34: =Y100 -> 82.63927231 | W34: 2.08810153 | X34: 11.94935099 | Y34: 3.323275173
B36: URBAN | D36: Estimate | E36: =C199 -> 2000 | F36: =E199 -> 41.67821663 | G36: =F199 -> 4.739990286 | H36: 42.28224696 | I36: 11.29954613 | J36: =J199 -> 64.12719172 | K36: =K199 -> 2.449114726 | L36: 23.95615214 | M36: 9.46754142 | N36: =O199 -> 85.9684498 | O36: =P199 -> 3.517367233 | P36: 9.00755738 | Q36: 1.506625588 | R36: =T199 -> 92.26144378 | S36: =U199 -> 2.707808816 | T36: 4.403326921 | U36: 0.6274204877 | V36: =Y199 -> 95.82101321 | W36: =Z199 -> 1.380644437 | X36: 2.53512874 | Y36: 0.2632136131
E37: =C200 -> 2020 | F37: =E200 -> 44.44719966 | G37: 5.054901858 | H37: 31.65007979 | I37: 18.84781868 | J37: =J200 -> 76.93144109 | K37: 2.938128432 | L37: 17.74967759 | M37: 2.380752892 | N37: =O200 -> 86.38418875 | O37: 3.534377038 | P37: 10.08143422 | Q37: 0 | R37: =T200 -> 90.91473747 | S37: 2.668283928 | T37: 6.416978597 | U37: 0 | V37: =Y200 -> 94.77067291 | W37: 1.365510528 | X37: 3.86381656 | Y37: 0
B39: RURAL | D39: Estimate | E39: =C299 -> 2000 | F39: =E299 -> 9.738778498 | G39: =F299 -> 0.9868860721 | H39: 21.91454257 | I39: 67.35979286 | J39: =J299 -> 10.44385385 | K39: =K299 -> 0.622734135 | L39: 31.32342489 | M39: 57.60998713 | N39: =O299 -> 12.59188197 | O39: =P299 -> 0.4709227242 | P39: 40.38630761 | Q39: 46.5508877 | R39: =T299 -> 19.66933254 | S39: =U299 -> 0.6294528393 | T39: 40.86954276 | U39: 38.83167186 | V39: =Y299 -> 56.70107993 | W39: =Z299 -> 1.126851915 | X39: 28.11762223 | Y39: 14.05444592
E40: =C300 -> 2020 | F40: =E300 -> 21.98464234 | G40: 2.227829428 | H40: 53.26567638 | I40: 22.52185185 | J40: =J300 -> 25.41308487 | K40: 1.515302268 | L40: 51.30451895 | M40: 21.76709391 | N40: =O300 -> 32.03601471 | O40: 1.198112193 | P40: 46.22105152 | Q40: 20.54482158 | R40: =T300 -> 40.85528866 | S40: 1.30744027 | T40: 37.26172402 | U40: 20.57554706 | V40: =Y300 -> 63.48878988 | W40: 1.261747829 | X40: 22.28702481 | Y40: 12.96243748
A97: NATIONAL | D97: Poorest | I97: Poor | N97: Middle | S97: Rich | X97: Richest
D98: Improved | E98: Basic | F98: Limited | G98: Unimproved | H98: Surface water | I98: Improved | J98: Basic | K98: Limited | L98: Unimproved | M98: Surface water | N98: Improved | O98: Basic | P98: Limited | Q98: Unimproved | R98: Surface water | S98: Improved | T98: Basic | U98: Limited | V98: Unimproved | W98: Surface water | X98: Improved | Y98: Basic | Z98: Limited | AA98: Unimproved | AB98: Surface water
A99: Forecast period: | C99: 2000 | D99: =IF((D101+H101)>100,D101*100/(D101+H101),D101) -> 10.33251495 | E99: =D99*AVERAGEIF(E105:E116,">0")/100 -> 9.369360894 | F99: =D99*(100-AVERAGEIF(E105:E116,">0"))/100 -> 0.9631540602 | G99: =100-(E99+F99+H99) -> 30.84996783 | H99: =IF((D101+H101)>100,H101*100/(D101+H101),H101) -> 58.81751722 | I99: =IF((I101+M101)>100,I101*100/(I101+M101),I101) -> 12.61680801 | J99: =I99*AVERAGEIF(J105:J116,">0")/100 -> 11.93580597 | K99: =I99*(100-AVERAGEIF(J105:J116,">0"))/100 -> 0.6810020447 | L99: =100-(J99+K99+M99) -> 33.75472435 | M99: =IF((I101+M101)>100,M101*100/(I101+M101),M101) -> 53.62846764 | N99: =IF((N101+R101)>100,N101*100/(N101+R101),N101) -> 18.708693 | O99: =N99*AVERAGEIF(O105:O116,">0")/100 -> 18.01705864 | P99: =N99*(100-AVERAGEIF(O105:O116,">0"))/100 -> 0.6916343624 | Q99: =100-(O99+P99+R99) -> 48.80475424 | R99: =IF((N101+R101)>100,R101*100/(N101+R101),R101) -> 32.48655276 | S99: =IF((S101+W101)>100,S101*100/(S101+W101),S101) -> 41.29803431 | T99: =S99*AVERAGEIF(T105:T116,">0")/100 -> 40.10934683 | U99: =S99*(100-AVERAGEIF(T105:T116,">0"))/100 -> 1.188687472 | V99: =100-(T99+U99+W99) -> 34.90104061 | W99: =IF((S101+W101)>100,W101*100/(S101+W101),W101) -> 23.80092508 | X99: =IF((X101+AB101)>100,X101*100/(X101+AB101),X101) -> 88.50372316 | Y99: =X99*AVERAGEIF(Y105:Y116,">0")/100 -> 86.32255371 | Z99: =X99*(100-AVERAGEIF(Y105:Y116,">0"))/100 -> 2.181169454 | AA99: =100-(Y99+Z99+AB99) -> 10.90166276 | AB99: =IF((X101+AB101)>100,AB101*100/(X101+AB101),AB101) -> 0.5946140804
C100: 2020 | D100: =IF((D102+H102)>100,D102*100/(D102+H102),D102) -> 22.41486556 | E100: =D100*AVERAGEIF(E105:E116,">0")/100 -> 20.32544504 | F100: =D100*(100-AVERAGEIF(E105:E116,">0"))/100 -> 2.08942052 | G100: =100-(E100+F100+H100) -> 54.12460377 | H100: =IF((D102+H102)>100,H102*100/(D102+H102),H102) -> 23.46053067 | I100: =IF((I102+M102)>100,I102*100/(I102+M102),I102) -> 28.85692757 | J100: =I100*AVERAGEIF(J105:J116,">0")/100 -> 27.29935242 | K100: =I100*(100-AVERAGEIF(J105:J116,">0"))/100 -> 1.557575154 | L100: =100-(J100+K100+M100) -> 51.53527857 | M100: =IF((I102+M102)>100,M102*100/(I102+M102),M102) -> 19.60779386 | N100: =IF((N102+R102)>100,N102*100/(N102+R102),N102) -> 36.58248923 | O100: =N100*AVERAGEIF(O105:O116,">0")/100 -> 35.23008548 | P100: =N100*(100-AVERAGEIF(O105:O116,">0"))/100 -> 1.352403752 | Q100: =100-(O100+P100+R100) -> 43.13211298 | R100: =IF((N102+R102)>100,R102*100/(N102+R102),R102) -> 20.28539779 | S100: =IF((S102+W102)>100,S102*100/(S102+W102),S102) -> 53.7741735 | T100: =S100*AVERAGEIF(T105:T116,">0")/100 -> 52.22638346 | U100: =S100*(100-AVERAGEIF(T105:T116,">0"))/100 -> 1.547790044 | V100: =100-(T100+U100+W100) -> 30.69611097 | W100: =IF((S102+W102)>100,W102*100/(S102+W102),W102) -> 15.52971552 | X100: =IF((X102+AB102)>100,X102*100/(X102+AB102),X102) -> 84.72737384 | Y100: =X100*AVERAGEIF(Y105:Y116,">0")/100 -> 82.63927231 | Z100: =X100*(100-AVERAGEIF(Y105:Y116,">0"))/100 -> 2.08810153 | AA100: =100-(Y100+Z100+AB100) -> 11.94935099 | AB100: =IF((X102+AB102)>100,AB102*100/(X102+AB102),AB102) -> 3.323275173
A101: Regression period: | C101: =MinRegYear(C99,C105:C116) -> 2002 | D101: =IF(MAX(C105:C116)-MIN(C105:C116)<5,AVERAGEIF(C105:C116,">0",D105:D116), IF(FORECAST($C101,D$105:D$116,$C$105:$C$116)<0,0, IF(FORECAST($C101,D$105:D$116,$C$105:$C$116)>100,100, FORECAST($C101,D$105:D$116,$C$105:$C$116)))) -> 10.33251495 | H101: =IF(MAX(C105:C116)-MIN(C105:C116)<5,AVERAGEIF(C105:C116,">0",H105:H116), IF(FORECAST($C101,H$105:H$116,$C$105:$C$116)<0,0, IF(FORECAST($C101,H$105:H$116,$C$105:$C$116)>100,100, FORECAST($C101,H$105:H$116,$C$105:$C$116)))) -> 58.81751722 | I101: =IF(MAX(C105:C116)-MIN(C105:C116)<5,AVERAGEIF(C105:C116,">0",I105:I116), IF(FORECAST($C101,I$105:I$116,$C$105:$C$116)<0,0, IF(FORECAST($C101,I$105:I$116,$C$105:$C$116)>100,100, FORECAST($C101,I$105:I$116,$C$105:$C$116)))) -> 12.61680801 | M101: =IF(MAX(C105:C116)-MIN(C105:C116)<5,AVERAGEIF(C105:C116,">0",M105:M116), IF(FORECAST($C101,M$105:M$116,$C$105:$C$116)<0,0, IF(FORECAST($C101,M$105:M$116,$C$105:$C$116)>100,100, FORECAST($C101,M$105:M$116,$C$105:$C$116)))) -> 53.62846764 | N101: =IF(MAX(C105:C116)-MIN(C105:C116)<5,AVERAGEIF(C105:C116,">0",N105:N116), IF(FORECAST($C101,N$105:N$116,$C$105:$C$116)<0,0, IF(FORECAST($C101,N$105:N$116,$C$105:$C$116)>100,100, FORECAST($C101,N$105:N$116,$C$105:$C$116)))) -> 18.708693 | R101: =IF(MAX(C105:C116)-MIN(C105:C116)<5,AVERAGEIF(C105:C116,">0",R105:R116), IF(FORECAST($C101,R$105:R$116,$C$105:$C$116)<0,0, IF(FORECAST($C101,R$105:R$116,$C$105:$C$116)>100,100, FORECAST($C101,R$105:R$116,$C$105:$C$116)))) -> 32.48655276 | S101: =IF(MAX(C105:C116)-MIN(C105:C116)<5,AVERAGEIF(C105:C116,">0",S105:S116), IF(FORECAST($C101,S$105:S$116,$C$105:$C$116)<0,0, IF(FORECAST($C101,S$105:S$116,$C$105:$C$116)>100,100, FORECAST($C101,S$105:S$116,$C$105:$C$116)))) -> 41.29803431 | W101: =IF(MAX(C105:C116)-MIN(C105:C116)<5,AVERAGEIF(C105:C116,">0",W105:W116), IF(FORECAST($C101,W$105:W$116,$C$105:$C$116)<0,0, IF(FORECAST($C101,W$105:W$116,$C$105:$C$116)>100,100, FORECAST($C101,W$105:W$116,$C$105:$C$116)))) -> 23.80092508 | X101: =IF(MAX(C105:C116)-MIN(C105:C116)<5,AVERAGEIF(C105:C116,">0",X105:X116), IF(FORECAST($C101,X$105:X$116,$C$105:$C$116)<0,0, IF(FORECAST($C101,X$105:X$116,$C$105:$C$116)>100,100, FORECAST($C101,X$105:X$116,$C$105:$C$116)))) -> 88.50372316 | AB101: =IF(MAX(C105:C116)-MIN(C105:C116)<5,AVERAGEIF(C105:C116,">0",AB105:AB116), IF(FORECAST($C101,AB$105:AB$116,$C$105:$C$116)<0,0, IF(FORECAST($C101,AB$105:AB$116,$C$105:$C$116)>100,100, FORECAST($C101,AB$105:AB$116,$C$105:$C$116)))) -> 0.5946140804
C102: =MaxRegYear(C100,C105:C116) -> 2020 | D102: =IF(MAX(C105:C116)-MIN(C105:C116)<5,AVERAGEIF(C105:C116,">0",D105:D116), IF(FORECAST($C102,D$105:D$116,$C$105:$C$116)<0,0, IF(FORECAST($C102,D$105:D$116,$C$105:$C$116)>100,100, FORECAST($C102,D$105:D$116,$C$105:$C$116)))) -> 22.41486556 | H102: =IF(MAX(C105:C116)-MIN(C105:C116)<5,AVERAGEIF(C105:C116,">0",H105:H116), IF(FORECAST($C102,H$105:H$116,$C$105:$C$116)<0,0, IF(FORECAST($C102,H$105:H$116,$C$105:$C$116)>100,100, FORECAST($C102,H$105:H$116,$C$105:$C$116)))) -> 23.46053067 | I102: =IF(MAX(C105:C116)-MIN(C105:C116)<5,AVERAGEIF(C105:C116,">0",I105:I116), IF(FORECAST($C102,I$105:I$116,$C$105:$C$116)<0,0, IF(FORECAST($C102,I$105:I$116,$C$105:$C$116)>100,100, FORECAST($C102,I$105:I$116,$C$105:$C$116)))) -> 28.85692757 | M102: =IF(MAX(C105:C116)-MIN(C105:C116)<5,AVERAGEIF(C105:C116,">0",M105:M116), IF(FORECAST($C102,M$105:M$116,$C$105:$C$116)<0,0, IF(FORECAST($C102,M$105:M$116,$C$105:$C$116)>100,100, FORECAST($C102,M$105:M$116,$C$105:$C$116)))) -> 19.60779386 | N102: =IF(MAX(C105:C116)-MIN(C105:C116)<5,AVERAGEIF(C105:C116,">0",N105:N116), IF(FORECAST($C102,N$105:N$116,$C$105:$C$116)<0,0, IF(FORECAST($C102,N$105:N$116,$C$105:$C$116)>100,100, FORECAST($C102,N$105:N$116,$C$105:$C$116)))) -> 36.58248923 | R102: =IF(MAX(C105:C116)-MIN(C105:C116)<5,AVERAGEIF(C105:C116,">0",R105:R116), IF(FORECAST($C102,R$105:R$116,$C$105:$C$116)<0,0, IF(FORECAST($C102,R$105:R$116,$C$105:$C$116)>100,100, FORECAST($C102,R$105:R$116,$C$105:$C$116)))) -> 20.28539779 | S102: =IF(MAX(C105:C116)-MIN(C105:C116)<5,AVERAGEIF(C105:C116,">0",S105:S116), IF(FORECAST($C102,S$105:S$116,$C$105:$C$116)<0,0, IF(FORECAST($C102,S$105:S$116,$C$105:$C$116)>100,100, FORECAST($C102,S$105:S$116,$C$105:$C$116)))) -> 53.7741735 | W102: =IF(MAX(C105:C116)-MIN(C105:C116)<5,AVERAGEIF(C105:C116,">0",W105:W116), IF(FORECAST($C102,W$105:W$116,$C$105:$C$116)<0,0, IF(FORECAST($C102,W$105:W$116,$C$105:$C$116)>100,100, FORECAST($C102,W$105:W$116,$C$105:$C$116)))) -> 15.52971552 | X102: =IF(MAX(C105:C116)-MIN(C105:C116)<5,AVERAGEIF(C105:C116,">0",X105:X116), IF(FORECAST($C102,X$105:X$116,$C$105:$C$116)<0,0, IF(FORECAST($C102,X$105:X$116,$C$105:$C$116)>100,100, FORECAST($C102,X$105:X$116,$C$105:$C$116)))) -> 84.72737384 | AB102: =IF(MAX(C105:C116)-MIN(C105:C116)<5,AVERAGEIF(C105:C116,">0",AB105:AB116), IF(FORECAST($C102,AB$105:AB$116,$C$105:$C$116)<0,0, IF(FORECAST($C102,AB$105:AB$116,$C$105:$C$116)>100,100, FORECAST($C102,AB$105:AB$116,$C$105:$C$116)))) -> 3.323275173
B104: Survey | C104: Year | D104: Improved | E104: % Improved < = 30min | H104: Surface water | I104: Improved | J104: % Improved < = 30min | M104: Surface water | N104: Improved | O104: % Improved < = 30min | R104: Surface water | S104: Improved | T104: % Improved < = 30min | W104: Surface water | X104: Improved | Y104: % Improved < = 30min | AB104: Surface water
B105: DHS04 | C105: 2004 | D105: =IF(ISERROR(INDIRECT(CONCATENATE($B105,"!C16"))),"",INDIRECT(CONCATENATE($B105,"!C16"))) -> 10.99713864 | E105: =IF(ISERROR(INDIRECT(CONCATENATE($B105,"!C23"))),"",INDIRECT(CONCATENATE($B105,"!C23"))) -> N/A | H105: =IF(ISERROR(INDIRECT(CONCATENATE($B105,"!C21"))),"",INDIRECT(CONCATENATE($B105,"!C21"))) -> 60.08566121 | I105: =IF(ISERROR(INDIRECT(CONCATENATE($B105,"!D16"))),"",INDIRECT(CONCATENATE($B105,"!D16"))) -> 12.6783264 | J105: =IF(ISERROR(INDIRECT(CONCATENATE($B105,"!D23"))),"",INDIRECT(CONCATENATE($B105,"!D23"))) -> N/A | M105: =IF(ISERROR(INDIRECT(CONCATENATE($B105,"!D21"))),"",INDIRECT(CONCATENATE($B105,"!D21"))) -> 56.5393124 | N105: =IF(ISERROR(INDIRECT(CONCATENATE($B105,"!E16"))),"",INDIRECT(CONCATENATE($B105,"!E16"))) -> 18.08130214 | O105: =IF(ISERROR(INDIRECT(CONCATENATE($B105,"!E23"))),"",INDIRECT(CONCATENATE($B105,"!E23"))) -> N/A | R105: =IF(ISERROR(INDIRECT(CONCATENATE($B105,"!E21"))),"",INDIRECT(CONCATENATE($B105,"!E21"))) -> 34.6262356 | S105: =IF(ISERROR(INDIRECT(CONCATENATE($B105,"!F16"))),"",INDIRECT(CONCATENATE($B105,"!F16"))) -> 41.35975656 | T105: =IF(ISERROR(INDIRECT(CONCATENATE($B105,"!F23"))),"",INDIRECT(CONCATENATE($B105,"!F23"))) -> N/A | W105: =IF(ISERROR(INDIRECT(CONCATENATE($B105,"!F21"))),"",INDIRECT(CONCATENATE($B105,"!F21"))) -> 25.40752178 | X105: =IF(ISERROR(INDIRECT(CONCATENATE($B105,"!G16"))),"",INDIRECT(CONCATENATE($B105,"!G16"))) -> 88.78447199 | Y105: =IF(ISERROR(INDIRECT(CONCATENATE($B105,"!G23"))),"",INDIRECT(CONCATENATE($B105,"!G23"))) -> N/A | AB105: =IF(ISERROR(INDIRECT(CONCATENATE($B105,"!G221"))),"",INDIRECT(CONCATENATE($B105,"!G21"))) -> 0.7887672535
B106: DHS09 | C106: 2009 | D106: 15.8 | E106: 95.8 | H106: 37 | I106: 21.1 | J106: 96.9 | M106: 30.5 | N106: 29.2 | O106: 99.1 | R106: 23 | S106: 48.5 | T106: 99 | W106: 16.7 | X106: 86.4 | Y106: 98.2 | AB106: 1.9
B107: MIS11 | D107: 23.58572268 | E107: N/A | H107: 41.69018561 | I107: 19.59542468 | J107: N/A | M107: 42.36621302 | N107: 27.58237036 | O107: N/A | R107: 34.31040243 | S107: 33.48213159 | T107: N/A | W107: 31.449927 | X107: 75.98811167 | Y107: N/A | AB107: 7.189222365
B108: AIS13 | D108: 20.51278262 | E108: N/A | H108: 39.2666602 | I108: 22.57895215 | J108: N/A | M108: 30.24048492 | N108: 27.9175932 | O108: N/A | R108: 31.54600972 | S108: 31.4573531 | T108: N/A | W108: 27.80200832 | X108: 72.34196609 | Y108: N/A | AB108: 6.357261591
B109: MIS16 | C109: 2016 | D109: 21.01534757 | E109: 88.49562218 | H109: 31.24485343 | I109: 27.69443281 | J109: 95.37050535 | M109: 24.87343146 | N109: 34.97237392 | O109: 95.85540575 | R109: 19.86666467 | S109: 49.69770411 | T109: 96.37684773 | W109: 17.16796839 | X109: 83.52230315 | Y109: 98.18455771 | AB109: 2.381046064
B110: MICS18 | C110: 2018 | D110: 19.6959999 | E110: 87.73962584 | H110: 30.33275005 | I110: 24.18139856 | J110: 91.53676086 | M110: 28.88966684 | N110: 31.30765443 | O110: 93.95401145 | R110: 26.017475 | S110: 52.66631148 | T110: 95.9882076 | W110: 18.00725612 | X110: 87.12602732 | Y110: 96.22195857 | AB110: 3.220742038
D111: =IF(ISERROR(INDIRECT(CONCATENATE($B111,"!C16"))),"",INDIRECT(CONCATENATE($B111,"!C16"))) ->  | E111: =IF(ISERROR(INDIRECT(CONCATENATE($B111,"!C23"))),"",INDIRECT(CONCATENATE($B111,"!C23"))) ->  | H111: =IF(ISERROR(INDIRECT(CONCATENATE($B111,"!C21"))),"",INDIRECT(CONCATENATE($B111,"!C21"))) ->  | I111: =IF(ISERROR(INDIRECT(CONCATENATE($B111,"!D16"))),"",INDIRECT(CONCATENATE($B111,"!D16"))) ->  | J111: =IF(ISERROR(INDIRECT(CONCATENATE($B111,"!D23"))),"",INDIRECT(CONCATENATE($B111,"!D23"))) ->  | M111: =IF(ISERROR(INDIRECT(CONCATENATE($B111,"!D21"))),"",INDIRECT(CONCATENATE($B111,"!D21"))) ->  | N111: =IF(ISERROR(INDIRECT(CONCATENATE($B111,"!E16"))),"",INDIRECT(CONCATENATE($B111,"!E16"))) ->  | O111: =IF(ISERROR(INDIRECT(CONCATENATE($B111,"!E23"))),"",INDIRECT(CONCATENATE($B111,"!E23"))) ->  | R111: =IF(ISERROR(INDIRECT(CONCATENATE($B111,"!E21"))),"",INDIRECT(CONCATENATE($B111,"!E21"))) ->  | S111: =IF(ISERROR(INDIRECT(CONCATENATE($B111,"!F16"))),"",INDIRECT(CONCATENATE($B111,"!F16"))) ->  | T111: =IF(ISERROR(INDIRECT(CONCATENATE($B111,"!F23"))),"",INDIRECT(CONCATENATE($B111,"!F23"))) ->  | W111: =IF(ISERROR(INDIRECT(CONCATENATE($B111,"!F21"))),"",INDIRECT(CONCATENATE($B111,"!F21"))) ->  | X111: =IF(ISERROR(INDIRECT(CONCATENATE($B111,"!G16"))),"",INDIRECT(CONCATENATE($B111,"!G16"))) ->  | Y111: =IF(ISERROR(INDIRECT(CONCATENATE($B111,"!G23"))),"",INDIRECT(CONCATENATE($B111,"!G23"))) ->  | AB111: =IF(ISERROR(INDIRECT(CONCATENATE($B111,"!G221"))),"",INDIRECT(CONCATENATE($B111,"!G21"))) -> 
D112: =IF(ISERROR(INDIRECT(CONCATENATE($B112,"!C16"))),"",INDIRECT(CONCATENATE($B112,"!C16"))) ->  | E112: =IF(ISERROR(INDIRECT(CONCATENATE($B112,"!C23"))),"",INDIRECT(CONCATENATE($B112,"!C23"))) ->  | H112: =IF(ISERROR(INDIRECT(CONCATENATE($B112,"!C21"))),"",INDIRECT(CONCATENATE($B112,"!C21"))) ->  | I112: =IF(ISERROR(INDIRECT(CONCATENATE($B112,"!D16"))),"",INDIRECT(CONCATENATE($B112,"!D16"))) ->  | J112: =IF(ISERROR(INDIRECT(CONCATENATE($B112,"!D23"))),"",INDIRECT(CONCATENATE($B112,"!D23"))) ->  | M112: =IF(ISERROR(INDIRECT(CONCATENATE($B112,"!D21"))),"",INDIRECT(CONCATENATE($B112,"!D21"))) ->  | N112: =IF(ISERROR(INDIRECT(CONCATENATE($B112,"!E16"))),"",INDIRECT(CONCATENATE($B112,"!E16"))) ->  | O112: =IF(ISERROR(INDIRECT(CONCATENATE($B112,"!E23"))),"",INDIRECT(CONCATENATE($B112,"!E23"))) ->  | R112: =IF(ISERROR(INDIRECT(CONCATENATE($B112,"!E21"))),"",INDIRECT(CONCATENATE($B112,"!E21"))) ->  | S112: =IF(ISERROR(INDIRECT(CONCATENATE($B112,"!F16"))),"",INDIRECT(CONCATENATE($B112,"!F16"))) ->  | T112: =IF(ISERROR(INDIRECT(CONCATENATE($B112,"!F23"))),"",INDIRECT(CONCATENATE($B112,"!F23"))) ->  | W112: =IF(ISERROR(INDIRECT(CONCATENATE($B112,"!F21"))),"",INDIRECT(CONCATENATE($B112,"!F21"))) ->  | X112: =IF(ISERROR(INDIRECT(CONCATENATE($B112,"!G16"))),"",INDIRECT(CONCATENATE($B112,"!G16"))) ->  | Y112: =IF(ISERROR(INDIRECT(CONCATENATE($B112,"!G23"))),"",INDIRECT(CONCATENATE($B112,"!G23"))) ->  | AB112: =IF(ISERROR(INDIRECT(CONCATENATE($B112,"!G221"))),"",INDIRECT(CONCATENATE($B112,"!G21"))) -> 
B118: =CONCATENATE("National use of drinking water sources, ",C99,"–",C100) -> National use of drinking water sources, 2000–2020 | S118: Data points used for regression
E153: =IF(ISERROR(INDIRECT(CONCATENATE($B153,"!M18"))),"",INDIRECT(CONCATENATE($B153,"!M18"))) ->  | F153: =IF(ISERROR(INDIRECT(CONCATENATE($B153,"!M19"))),"",INDIRECT(CONCATENATE($B153,"!M19"))) ->  | G153: =IF(ISERROR(INDIRECT(CONCATENATE($B153,"!M20"))),"",INDIRECT(CONCATENATE($B153,"!M20"))) ->  | H153: =IF(ISERROR(INDIRECT(CONCATENATE($B153,"!M21"))),"",INDIRECT(CONCATENATE($B153,"!M21"))) ->  | J153: =IF(ISERROR(INDIRECT(CONCATENATE($B153,"!N18"))),"",INDIRECT(CONCATENATE($B153,"!N18"))) ->  | K153: =IF(ISERROR(INDIRECT(CONCATENATE($B153,"!N19"))),"",INDIRECT(CONCATENATE($B153,"!N19"))) ->  | L153: =IF(ISERROR(INDIRECT(CONCATENATE($B153,"!N20"))),"",INDIRECT(CONCATENATE($B153,"!N20"))) ->  | M153: =IF(ISERROR(INDIRECT(CONCATENATE($B153,"!N21"))),"",INDIRECT(CONCATENATE($B153,"!N21"))) ->  | O153: =IF(ISERROR(INDIRECT(CONCATENATE($B153,"!O18"))),"",INDIRECT(CONCATENATE($B153,"!O18"))) ->  | P153: =IF(ISERROR(INDIRECT(CONCATENATE($B153,"!O19"))),"",INDIRECT(CONCATENATE($B153,"!O19"))) ->  | Q153: =IF(ISERROR(INDIRECT(CONCATENATE($B153,"!O20"))),"",INDIRECT(CONCATENATE($B153,"!O20"))) ->  | R153: =IF(ISERROR(INDIRECT(CONCATENATE($B153,"!O21"))),"",INDIRECT(CONCATENATE($B153,"!O21"))) ->  | T153: =IF(ISERROR(INDIRECT(CONCATENATE($B153,"!P18"))),"",INDIRECT(CONCATENATE($B153,"!P18"))) ->  | U153: =IF(ISERROR(INDIRECT(CONCATENATE($B153,"!P19"))),"",INDIRECT(CONCATENATE($B153,"!P19"))) ->  | V153: =IF(ISERROR(INDIRECT(CONCATENATE($B153,"!P20"))),"",INDIRECT(CONCATENATE($B153,"!P20"))) ->  | W153: =IF(ISERROR(INDIRECT(CONCATENATE($B153,"!P21"))),"",INDIRECT(CONCATENATE($B153,"!P21"))) ->  | Y153: =IF(ISERROR(INDIRECT(CONCATENATE($B153,"!Q18"))),"",INDIRECT(CONCATENATE($B153,"!Q18"))) ->  | Z153: =IF(ISERROR(INDIRECT(CONCATENATE($B153,"!Q19"))),"",INDIRECT(CONCATENATE($B153,"!Q19"))) ->  | AA153: =IF(ISERROR(INDIRECT(CONCATENATE($B153,"!Q20"))),"",INDIRECT(CONCATENATE($B153,"!Q20"))) ->  | AB153: =IF(ISERROR(INDIRECT(CONCATENATE($B153,"!Q21"))),"",INDIRECT(CONCATENATE($B153,"!Q1"))) -> 
A197: URBAN | D197: Poorest | I197: Poor | N197: Middle | S197: Rich | X197: Richest
D198: Improved | E198: Basic | F198: Limited | G198: Unimproved | H198: Surface water | I198: Improved | J198: Basic | K198: Limited | L198: Unimproved | M198: Surface water | N198: Improved | O198: Basic | P198: Limited | Q198: Unimproved | R198: Surface water | S198: Improved | T198: Basic | U198: Limited | V198: Unimproved | W198: Surface water | X198: Improved | Y198: Basic | Z198: Limited | AA198: Unimproved | AB198: Surface water
A199: Forecast period: | C199: =MinBase(C205:C216) -> 2000 | D199: =IF((D201+H201)>100,D201*100/(D201+H201),D201) -> 46.41820691 | E199: =D199*AVERAGEIF(E205:E216,">0")/100 -> 41.67821663 | F199: =D199*(100-AVERAGEIF(E205:E216,">0"))/100 -> 4.739990286 | G199: =100-(E199+F199+H199) -> 42.28224696 | H199: =IF((D201+H201)>100,H201*100/(D201+H201),H201) -> 11.29954613 | I199: =IF((I201+M201)>100,I201*100/(I201+M201),I201) -> 66.57630644 | J199: =I199*AVERAGEIF(J205:J216,">0")/100 -> 64.12719172 | K199: =I199*(100-AVERAGEIF(J205:J216,">0"))/100 -> 2.449114726 | L199: =100-(J199+K199+M199) -> 23.95615214 | M199: =IF((I201+M201)>100,M201*100/(I201+M201),M201) -> 9.46754142 | N199: =IF((N201+R201)>100,N201*100/(N201+R201),N201) -> 89.48581703 | O199: =N199*AVERAGEIF(O205:O216,">0")/100 -> 85.9684498 | P199: =N199*(100-AVERAGEIF(O205:O216,">0"))/100 -> 3.517367233 | Q199: =100-(O199+P199+R199) -> 9.00755738 | R199: =IF((N201+R201)>100,R201*100/(N201+R201),R201) -> 1.506625588 | S199: =IF((S201+W201)>100,S201*100/(S201+W201),S201) -> 94.96925259 | T199: =S199*AVERAGEIF(T205:T216,">0")/100 -> 92.26144378 | U199: =S199*(100-AVERAGEIF(T205:T216,">0"))/100 -> 2.707808816 | V199: =100-(T199+U199+W199) -> 4.403326921 | W199: =IF((S201+W201)>100,W201*100/(S201+W201),W201) -> 0.6274204877 | X199: =IF((X201+AB201)>100,X201*100/(X201+AB201),X201) -> 97.20165765 | Y199: =X199*AVERAGEIF(Y205:Y216,">0")/100 -> 95.82101321 | Z199: =X199*(100-AVERAGEIF(Y205:Y216,">0"))/100 -> 1.380644437 | AA199: =100-(Y199+Z199+AB199) -> 2.53512874 | AB199: =IF((X201+AB201)>100,AB201*100/(X201+AB201),AB201) -> 0.2632136131
C200: =MaxTarget(C205:C216) -> 2020 | D200: =IF((D202+H202)>100,D202*100/(D202+H202),D202) -> 49.50210152 | E200: =D200*AVERAGEIF(E205:E216,">0")/100 -> 44.44719966 | F200: =D200*(100-AVERAGEIF(E205:E216,">0"))/100 -> 5.054901858 | G200: =100-(E200+F200+H200) -> 31.65007979 | H200: =IF((D202+H202)>100,H202*100/(D202+H202),H202) -> 18.84781868 | I200: =IF((I202+M202)>100,I202*100/(I202+M202),I202) -> 79.86956952 | J200: =I200*AVERAGEIF(J205:J216,">0")/100 -> 76.93144109 | K200: =I200*(100-AVERAGEIF(J205:J216,">0"))/100 -> 2.938128432 | L200: =100-(J200+K200+M200) -> 17.74967759 | M200: =IF((I202+M202)>100,M202*100/(I202+M202),M202) -> 2.380752892 | N200: =IF((N202+R202)>100,N202*100/(N202+R202),N202) -> 89.91856578 | O200: =N200*AVERAGEIF(O205:O216,">0")/100 -> 86.38418875 | P200: =N200*(100-AVERAGEIF(O205:O216,">0"))/100 -> 3.534377038 | Q200: =100-(O200+P200+R200) -> 10.08143422 | R200: =IF((N202+R202)>100,R202*100/(N202+R202),R202) -> 0 | S200: =IF((S202+W202)>100,S202*100/(S202+W202),S202) -> 93.5830214 | T200: =S200*AVERAGEIF(T205:T216,">0")/100 -> 90.91473747 | U200: =S200*(100-AVERAGEIF(T205:T216,">0"))/100 -> 2.668283928 | V200: =100-(T200+U200+W200) -> 6.416978597 | W200: =IF((S202+W202)>100,W202*100/(S202+W202),W202) -> 0 | X200: =IF((X202+AB202)>100,X202*100/(X202+AB202),X202) -> 96.13618344 | Y200: =X200*AVERAGEIF(Y205:Y216,">0")/100 -> 94.77067291 | Z200: =X200*(100-AVERAGEIF(Y205:Y216,">0"))/100 -> 1.365510528 | AA200: =100-(Y200+Z200+AB200) -> 3.86381656 | AB200: =IF((X202+AB202)>100,AB202*100/(X202+AB202),AB202) -> 0
A201: Regression period: | C201: =MinRegYear(C199,C205:C216) -> 2002 | D201: =IF(MAX(C205:C216)-MIN(C205:C216)<5,AVERAGEIF(C205:C216,">0",D205:D216), IF(FORECAST($C201,D$205:D$216,$C$205:$C$216)<0,0, IF(FORECAST($C201,D$205:D$216,$C$205:$C$216)>100,100, FORECAST($C201,D$205:D$216,$C$205:$C$216)))) -> 46.41820691 | H201: =IF(MAX(C205:C216)-MIN(C205:C216)<5,AVERAGEIF(C205:C216,">0",H205:H216), IF(FORECAST($C201,H$205:H$216,$C$205:$C$216)<0,0, IF(FORECAST($C201,H$205:H$216,$C$205:$C$216)>100,100, FORECAST($C201,H$205:H$216,$C$205:$C$216)))) -> 11.29954613 | I201: =IF(MAX(C205:C216)-MIN(C205:C216)<5,AVERAGEIF(C205:C216,">0",I205:I216), IF(FORECAST($C201,I$205:I$216,$C$205:$C$216)<0,0, IF(FORECAST($C201,I$205:I$216,$C$205:$C$216)>100,100, FORECAST($C201,I$205:I$216,$C$205:$C$216)))) -> 66.57630644 | M201: =IF(MAX(C205:C216)-MIN(C205:C216)<5,AVERAGEIF(C205:C216,">0",M205:M216), IF(FORECAST($C201,M$205:M$216,$C$205:$C$216)<0,0, IF(FORECAST($C201,M$205:M$216,$C$205:$C$216)>100,100, FORECAST($C201,M$205:M$216,$C$205:$C$216)))) -> 9.46754142 | N201: =IF(MAX(C205:C216)-MIN(C205:C216)<5,AVERAGEIF(C205:C216,">0",N205:N216), IF(FORECAST($C201,N$205:N$216,$C$205:$C$216)<0,0, IF(FORECAST($C201,N$205:N$216,$C$205:$C$216)>100,100, FORECAST($C201,N$205:N$216,$C$205:$C$216)))) -> 89.48581703 | R201: =IF(MAX(C205:C216)-MIN(C205:C216)<5,AVERAGEIF(C205:C216,">0",R205:R216), IF(FORECAST($C201,R$205:R$216,$C$205:$C$216)<0,0, IF(FORECAST($C201,R$205:R$216,$C$205:$C$216)>100,100, FORECAST($C201,R$205:R$216,$C$205:$C$216)))) -> 1.506625588 | S201: =IF(MAX(C205:C216)-MIN(C205:C216)<5,AVERAGEIF(C205:C216,">0",S205:S216), IF(FORECAST($C201,S$205:S$216,$C$205:$C$216)<0,0, IF(FORECAST($C201,S$205:S$216,$C$205:$C$216)>100,100, FORECAST($C201,S$205:S$216,$C$205:$C$216)))) -> 94.96925259 | W201: =IF(MAX(C205:C216)-MIN(C205:C216)<5,AVERAGEIF(C205:C216,">0",W205:W216), IF(FORECAST($C201,W$205:W$216,$C$205:$C$216)<0,0, IF(FORECAST($C201,W$205:W$216,$C$205:$C$216)>100,100, FORECAST($C201,W$205:W$216,$C$205:$C$216)))) -> 0.6274204877 | X201: =IF(MAX(C205:C216)-MIN(C205:C216)<5,AVERAGEIF(C205:C216,">0",X205:X216), IF(FORECAST($C201,X$205:X$216,$C$205:$C$216)<0,0, IF(FORECAST($C201,X$205:X$216,$C$205:$C$216)>100,100, FORECAST($C201,X$205:X$216,$C$205:$C$216)))) -> 97.20165765 | AB201: =IF(MAX(C205:C216)-MIN(C205:C216)<5,AVERAGEIF(C205:C216,">0",AB205:AB216), IF(FORECAST($C201,AB$205:AB$216,$C$205:$C$216)<0,0, IF(FORECAST($C201,AB$205:AB$216,$C$205:$C$216)>100,100, FORECAST($C201,AB$205:AB$216,$C$205:$C$216)))) -> 0.2632136131
C202: =MaxRegYear(C200,C205:C216) -> 2020 | D202: =IF(MAX(C205:C216)-MIN(C205:C216)<5,AVERAGEIF(C205:C216,">0",D205:D216), IF(FORECAST($C202,D$205:D$216,$C$205:$C$216)<0,0, IF(FORECAST($C202,D$205:D$216,$C$205:$C$216)>100,100, FORECAST($C202,D$205:D$216,$C$205:$C$216)))) -> 49.50210152 | H202: =IF(MAX(C205:C216)-MIN(C205:C216)<5,AVERAGEIF(C205:C216,">0",H205:H216), IF(FORECAST($C202,H$205:H$216,$C$205:$C$216)<0,0, IF(FORECAST($C202,H$205:H$216,$C$205:$C$216)>100,100, FORECAST($C202,H$205:H$216,$C$205:$C$216)))) -> 18.84781868 | I202: =IF(MAX(C205:C216)-MIN(C205:C216)<5,AVERAGEIF(C205:C216,">0",I205:I216), IF(FORECAST($C202,I$205:I$216,$C$205:$C$216)<0,0, IF(FORECAST($C202,I$205:I$216,$C$205:$C$216)>100,100, FORECAST($C202,I$205:I$216,$C$205:$C$216)))) -> 79.86956952 | M202: =IF(MAX(C205:C216)-MIN(C205:C216)<5,AVERAGEIF(C205:C216,">0",M205:M216), IF(FORECAST($C202,M$205:M$216,$C$205:$C$216)<0,0, IF(FORECAST($C202,M$205:M$216,$C$205:$C$216)>100,100, FORECAST($C202,M$205:M$216,$C$205:$C$216)))) -> 2.380752892 | N202: =IF(MAX(C205:C216)-MIN(C205:C216)<5,AVERAGEIF(C205:C216,">0",N205:N216), IF(FORECAST($C202,N$205:N$216,$C$205:$C$216)<0,0, IF(FORECAST($C202,N$205:N$216,$C$205:$C$216)>100,100, FORECAST($C202,N$205:N$216,$C$205:$C$216)))) -> 89.91856578 | R202: =IF(MAX(C205:C216)-MIN(C205:C216)<5,AVERAGEIF(C205:C216,">0",R205:R216), IF(FORECAST($C202,R$205:R$216,$C$205:$C$216)<0,0, IF(FORECAST($C202,R$205:R$216,$C$205:$C$216)>100,100, FORECAST($C202,R$205:R$216,$C$205:$C$216)))) -> 0 | S202: =IF(MAX(C205:C216)-MIN(C205:C216)<5,AVERAGEIF(C205:C216,">0",S205:S216), IF(FORECAST($C202,S$205:S$216,$C$205:$C$216)<0,0, IF(FORECAST($C202,S$205:S$216,$C$205:$C$216)>100,100, FORECAST($C202,S$205:S$216,$C$205:$C$216)))) -> 93.5830214 | W202: =IF(MAX(C205:C216)-MIN(C205:C216)<5,AVERAGEIF(C205:C216,">0",W205:W216), IF(FORECAST($C202,W$205:W$216,$C$205:$C$216)<0,0, IF(FORECAST($C202,W$205:W$216,$C$205:$C$216)>100,100, FORECAST($C202,W$205:W$216,$C$205:$C$216)))) -> 0 | X202: =IF(MAX(C205:C216)-MIN(C205:C216)<5,AVERAGEIF(C205:C216,">0",X205:X216), IF(FORECAST($C202,X$205:X$216,$C$205:$C$216)<0,0, IF(FORECAST($C202,X$205:X$216,$C$205:$C$216)>100,100, FORECAST($C202,X$205:X$216,$C$205:$C$216)))) -> 96.13618344 | AB202: =IF(MAX(C205:C216)-MIN(C205:C216)<5,AVERAGEIF(C205:C216,">0",AB205:AB216), IF(FORECAST($C202,AB$205:AB$216,$C$205:$C$216)<0,0, IF(FORECAST($C202,AB$205:AB$216,$C$205:$C$216)>100,100, FORECAST($C202,AB$205:AB$216,$C$205:$C$216)))) -> 0
B204: Survey | C204: Year | D204: Improved | E204: % Improved < = 30min | H204: Surface water | I204: Improved | J204: % Improved < = 30min | M204: Surface water | N204: Improved | O204: % Improved < = 30min | R204: Surface water | S204: Improved | T204: % Improved < = 30min | W204: Surface water | X204: Improved | Y204: % Improved < = 30min | AB204: Surface water
B205: DHS04 | C205: 2004 | D205: =IF(ISERROR(INDIRECT(CONCATENATE($B205,"!H16"))),"",INDIRECT(CONCATENATE($B205,"!H16"))) -> 33.02033783 | E205: =IF(ISERROR(INDIRECT(CONCATENATE($B205,"!H23"))),"",INDIRECT(CONCATENATE($B205,"!H23"))) -> N/A | H205: =IF(ISERROR(INDIRECT(CONCATENATE($B205,"!H21"))),"",INDIRECT(CONCATENATE($B205,"!H21"))) -> 20.4173629 | I205: =IF(ISERROR(INDIRECT(CONCATENATE($B205,"!I16"))),"",INDIRECT(CONCATENATE($B205,"!I16"))) -> 60.00643997 | J205: =IF(ISERROR(INDIRECT(CONCATENATE($B205,"!I23"))),"",INDIRECT(CONCATENATE($B205,"!I23"))) -> N/A | M205: =IF(ISERROR(INDIRECT(CONCATENATE($B205,"!I21"))),"",INDIRECT(CONCATENATE($B205,"!I21"))) -> 11.23327875 | N205: =IF(ISERROR(INDIRECT(CONCATENATE($B205,"!J16"))),"",INDIRECT(CONCATENATE($B205,"!J16"))) -> 89.07953519 | O205: =IF(ISERROR(INDIRECT(CONCATENATE($B205,"!J23"))),"",INDIRECT(CONCATENATE($B205,"!J23"))) -> N/A | R205: =IF(ISERROR(INDIRECT(CONCATENATE($B205,"!J21"))),"",INDIRECT(CONCATENATE($B205,"!J21"))) -> 1.468438346 | S205: =IF(ISERROR(INDIRECT(CONCATENATE($B205,"!K16"))),"",INDIRECT(CONCATENATE($B205,"!K16"))) -> 94.83740779 | T205: =IF(ISERROR(INDIRECT(CONCATENATE($B205,"!K23"))),"",INDIRECT(CONCATENATE($B205,"!K23"))) -> N/A | W205: =IF(ISERROR(INDIRECT(CONCATENATE($B205,"!K21"))),"",INDIRECT(CONCATENATE($B205,"!K21"))) -> 0.7342402817 | X205: =IF(ISERROR(INDIRECT(CONCATENATE($B205,"!L16"))),"",INDIRECT(CONCATENATE($B205,"!L16"))) -> 96.97595216 | Y205: =IF(ISERROR(INDIRECT(CONCATENATE($B205,"!L23"))),"",INDIRECT(CONCATENATE($B205,"!L23"))) -> N/A | AB205: =IF(ISERROR(INDIRECT(CONCATENATE($B205,"!L221"))),"",INDIRECT(CONCATENATE($B205,"!L21"))) -> 0.177018936
B206: DHS09 | D206: 63 | E206: 98.4 | H206: 5.1 | I206: 83.6 | J206: 98 | M206: 0.4 | N206: 95.6 | O206: 97.1 | R206: 0.1 | S206: 97.4 | T206: 96.7 | W206: 0 | X206: 98.6 | Y206: 97.5 | AB206: 0
B207: MIS11 | C207: 2011 | D207: 68.17338281 | E207: N/A | H207: 6.043632222 | I207: 88.46285076 | J207: N/A | M207: 2.062583682 | N207: 89.55022659 | O207: N/A | R207: 0.7918853646 | S207: 94.38536295 | T207: N/A | W207: 0 | X207: 96.22029035 | Y207: N/A | AB207: 0.2623718727
B208: AIS13 | C208: 2013 | D208: 51.65783983 | E208: N/A | H208: 7.680903211 | I208: 73.71893241 | J208: N/A | M208: 3.770334363 | N208: 89.42391735 | O208: N/A | R208: 0.2120997824 | S208: 92.68115705 | T208: N/A | W208: 0 | X208: 97.17586459 | Y208: N/A | AB208: 0.07353524363
B209: MIS16 | C209: 2016 | D209: 65.86658319 | E209: 85.83722074 | H209: 11.40045207 | I209: 82.35667329 | J209: 96.18208778 | M209: 3.014938585 | N209: 94.35072464 | O209: 97.30013943 | R209: 0 | S209: 96.95590141 | T209: 99.29511388 | W209: 0 | X209: 97.13107225 | Y209: 100 | AB209: 0
B210: MICS18 | C210: 2018 | D210: 22.28191978 | E210: 85.12831101 | H210: 32.76150096 | I210: 66.73939579 | J210: 94.78193775 | M210: 6.783627079 | N210: 86.27484445 | O210: 93.80793416 | R210: 0.5708681017 | S210: 91.98176588 | T210: 95.45114244 | W210: 0.2247167257 | X210: 95.42707228 | Y210: 98.23882441 | AB210: 0
B218: =CONCATENATE("Urban use of drinking water sources, ",C199,"–",C200) -> Urban use of drinking water sources, 2000–2020 | S218: Data points used for regression
E253: =IF(ISERROR(INDIRECT(CONCATENATE($B253,"!M18"))),"",INDIRECT(CONCATENATE($B253,"!M18"))) ->  | F253: =IF(ISERROR(INDIRECT(CONCATENATE($B253,"!M19"))),"",INDIRECT(CONCATENATE($B253,"!M19"))) ->  | G253: =IF(ISERROR(INDIRECT(CONCATENATE($B253,"!M20"))),"",INDIRECT(CONCATENATE($B253,"!M20"))) ->  | H253: =IF(ISERROR(INDIRECT(CONCATENATE($B253,"!M21"))),"",INDIRECT(CONCATENATE($B253,"!M21"))) ->  | J253: =IF(ISERROR(INDIRECT(CONCATENATE($B253,"!N18"))),"",INDIRECT(CONCATENATE($B253,"!N18"))) ->  | K253: =IF(ISERROR(INDIRECT(CONCATENATE($B253,"!N19"))),"",INDIRECT(CONCATENATE($B253,"!N19"))) ->  | L253: =IF(ISERROR(INDIRECT(CONCATENATE($B253,"!N20"))),"",INDIRECT(CONCATENATE($B253,"!N20"))) ->  | M253: =IF(ISERROR(INDIRECT(CONCATENATE($B253,"!N21"))),"",INDIRECT(CONCATENATE($B253,"!N21"))) ->  | O253: =IF(ISERROR(INDIRECT(CONCATENATE($B253,"!O18"))),"",INDIRECT(CONCATENATE($B253,"!O18"))) ->  | P253: =IF(ISERROR(INDIRECT(CONCATENATE($B253,"!O19"))),"",INDIRECT(CONCATENATE($B253,"!O19"))) ->  | Q253: =IF(ISERROR(INDIRECT(CONCATENATE($B253,"!O20"))),"",INDIRECT(CONCATENATE($B253,"!O20"))) ->  | R253: =IF(ISERROR(INDIRECT(CONCATENATE($B253,"!O21"))),"",INDIRECT(CONCATENATE($B253,"!O21"))) ->  | T253: =IF(ISERROR(INDIRECT(CONCATENATE($B253,"!P18"))),"",INDIRECT(CONCATENATE($B253,"!P18"))) ->  | U253: =IF(ISERROR(INDIRECT(CONCATENATE($B253,"!P19"))),"",INDIRECT(CONCATENATE($B253,"!P19"))) ->  | V253: =IF(ISERROR(INDIRECT(CONCATENATE($B253,"!P20"))),"",INDIRECT(CONCATENATE($B253,"!P20"))) ->  | W253: =IF(ISERROR(INDIRECT(CONCATENATE($B253,"!P21"))),"",INDIRECT(CONCATENATE($B253,"!P21"))) ->  | Y253: =IF(ISERROR(INDIRECT(CONCATENATE($B253,"!Q18"))),"",INDIRECT(CONCATENATE($B253,"!Q18"))) ->  | Z253: =IF(ISERROR(INDIRECT(CONCATENATE($B253,"!Q19"))),"",INDIRECT(CONCATENATE($B253,"!Q19"))) ->  | AA253: =IF(ISERROR(INDIRECT(CONCATENATE($B253,"!Q20"))),"",INDIRECT(CONCATENATE($B253,"!Q20"))) ->  | AB253: =IF(ISERROR(INDIRECT(CONCATENATE($B253,"!Q21"))),"",INDIRECT(CONCATENATE($B253,"!Q1"))) -> 
E254: =IF(ISERROR(INDIRECT(CONCATENATE($B254,"!M18"))),"",INDIRECT(CONCATENATE($B254,"!M18"))) ->  | F254: =IF(ISERROR(INDIRECT(CONCATENATE($B254,"!M19"))),"",INDIRECT(CONCATENATE($B254,"!M19"))) ->  | G254: =IF(ISERROR(INDIRECT(CONCATENATE($B254,"!M20"))),"",INDIRECT(CONCATENATE($B254,"!M20"))) ->  | H254: =IF(ISERROR(INDIRECT(CONCATENATE($B254,"!M21"))),"",INDIRECT(CONCATENATE($B254,"!M21"))) ->  | J254: =IF(ISERROR(INDIRECT(CONCATENATE($B254,"!N18"))),"",INDIRECT(CONCATENATE($B254,"!N18"))) ->  | K254: =IF(ISERROR(INDIRECT(CONCATENATE($B254,"!N19"))),"",INDIRECT(CONCATENATE($B254,"!N19"))) ->  | L254: =IF(ISERROR(INDIRECT(CONCATENATE($B254,"!N20"))),"",INDIRECT(CONCATENATE($B254,"!N20"))) ->  | M254: =IF(ISERROR(INDIRECT(CONCATENATE($B254,"!N21"))),"",INDIRECT(CONCATENATE($B254,"!N21"))) ->  | O254: =IF(ISERROR(INDIRECT(CONCATENATE($B254,"!O18"))),"",INDIRECT(CONCATENATE($B254,"!O18"))) ->  | P254: =IF(ISERROR(INDIRECT(CONCATENATE($B254,"!O19"))),"",INDIRECT(CONCATENATE($B254,"!O19"))) ->  | Q254: =IF(ISERROR(INDIRECT(CONCATENATE($B254,"!O20"))),"",INDIRECT(CONCATENATE($B254,"!O20"))) ->  | R254: =IF(ISERROR(INDIRECT(CONCATENATE($B254,"!O21"))),"",INDIRECT(CONCATENATE($B254,"!O21"))) ->  | T254: =IF(ISERROR(INDIRECT(CONCATENATE($B254,"!P18"))),"",INDIRECT(CONCATENATE($B254,"!P18"))) ->  | U254: =IF(ISERROR(INDIRECT(CONCATENATE($B254,"!P19"))),"",INDIRECT(CONCATENATE($B254,"!P19"))) ->  | V254: =IF(ISERROR(INDIRECT(CONCATENATE($B254,"!P20"))),"",INDIRECT(CONCATENATE($B254,"!P20"))) ->  | W254: =IF(ISERROR(INDIRECT(CONCATENATE($B254,"!P21"))),"",INDIRECT(CONCATENATE($B254,"!P21"))) ->  | Y254: =IF(ISERROR(INDIRECT(CONCATENATE($B254,"!Q18"))),"",INDIRECT(CONCATENATE($B254,"!Q18"))) ->  | Z254: =IF(ISERROR(INDIRECT(CONCATENATE($B254,"!Q19"))),"",INDIRECT(CONCATENATE($B254,"!Q19"))) ->  | AA254: =IF(ISERROR(INDIRECT(CONCATENATE($B254,"!Q20"))),"",INDIRECT(CONCATENATE($B254,"!Q20"))) ->  | AB254: =IF(ISERROR(INDIRECT(CONCATENATE($B254,"!Q21"))),"",INDIRECT(CONCATENATE($B254,"!Q1"))) -> 
E255: =IF(ISERROR(INDIRECT(CONCATENATE($B255,"!M18"))),"",INDIRECT(CONCATENATE($B255,"!M18"))) ->  | F255: =IF(ISERROR(INDIRECT(CONCATENATE($B255,"!M19"))),"",INDIRECT(CONCATENATE($B255,"!M19"))) ->  | G255: =IF(ISERROR(INDIRECT(CONCATENATE($B255,"!M20"))),"",INDIRECT(CONCATENATE($B255,"!M20"))) ->  | H255: =IF(ISERROR(INDIRECT(CONCATENATE($B255,"!M21"))),"",INDIRECT(CONCATENATE($B255,"!M21"))) ->  | J255: =IF(ISERROR(INDIRECT(CONCATENATE($B255,"!N18"))),"",INDIRECT(CONCATENATE($B255,"!N18"))) ->  | K255: =IF(ISERROR(INDIRECT(CONCATENATE($B255,"!N19"))),"",INDIRECT(CONCATENATE($B255,"!N19"))) ->  | L255: =IF(ISERROR(INDIRECT(CONCATENATE($B255,"!N20"))),"",INDIRECT(CONCATENATE($B255,"!N20"))) ->  | M255: =IF(ISERROR(INDIRECT(CONCATENATE($B255,"!N21"))),"",INDIRECT(CONCATENATE($B255,"!N21"))) ->  | O255: =IF(ISERROR(INDIRECT(CONCATENATE($B255,"!O18"))),"",INDIRECT(CONCATENATE($B255,"!O18"))) ->  | P255: =IF(ISERROR(INDIRECT(CONCATENATE($B255,"!O19"))),"",INDIRECT(CONCATENATE($B255,"!O19"))) ->  | Q255: =IF(ISERROR(INDIRECT(CONCATENATE($B255,"!O20"))),"",INDIRECT(CONCATENATE($B255,"!O20"))) ->  | R255: =IF(ISERROR(INDIRECT(CONCATENATE($B255,"!O21"))),"",INDIRECT(CONCATENATE($B255,"!O21"))) ->  | T255: =IF(ISERROR(INDIRECT(CONCATENATE($B255,"!P18"))),"",INDIRECT(CONCATENATE($B255,"!P18"))) ->  | U255: =IF(ISERROR(INDIRECT(CONCATENATE($B255,"!P19"))),"",INDIRECT(CONCATENATE($B255,"!P19"))) ->  | V255: =IF(ISERROR(INDIRECT(CONCATENATE($B255,"!P20"))),"",INDIRECT(CONCATENATE($B255,"!P20"))) ->  | W255: =IF(ISERROR(INDIRECT(CONCATENATE($B255,"!P21"))),"",INDIRECT(CONCATENATE($B255,"!P21"))) ->  | Y255: =IF(ISERROR(INDIRECT(CONCATENATE($B255,"!Q18"))),"",INDIRECT(CONCATENATE($B255,"!Q18"))) ->  | Z255: =IF(ISERROR(INDIRECT(CONCATENATE($B255,"!Q19"))),"",INDIRECT(CONCATENATE($B255,"!Q19"))) ->  | AA255: =IF(ISERROR(INDIRECT(CONCATENATE($B255,"!Q20"))),"",INDIRECT(CONCATENATE($B255,"!Q20"))) ->  | AB255: =IF(ISERROR(INDIRECT(CONCATENATE($B255,"!Q21"))),"",INDIRECT(CONCATENATE($B255,"!Q1"))) -> 
E256: =IF(ISERROR(INDIRECT(CONCATENATE($B256,"!M18"))),"",INDIRECT(CONCATENATE($B256,"!M18"))) ->  | F256: =IF(ISERROR(INDIRECT(CONCATENATE($B256,"!M19"))),"",INDIRECT(CONCATENATE($B256,"!M19"))) ->  | G256: =IF(ISERROR(INDIRECT(CONCATENATE($B256,"!M20"))),"",INDIRECT(CONCATENATE($B256,"!M20"))) ->  | H256: =IF(ISERROR(INDIRECT(CONCATENATE($B256,"!M21"))),"",INDIRECT(CONCATENATE($B256,"!M21"))) ->  | J256: =IF(ISERROR(INDIRECT(CONCATENATE($B256,"!N18"))),"",INDIRECT(CONCATENATE($B256,"!N18"))) ->  | K256: =IF(ISERROR(INDIRECT(CONCATENATE($B256,"!N19"))),"",INDIRECT(CONCATENATE($B256,"!N19"))) ->  | L256: =IF(ISERROR(INDIRECT(CONCATENATE($B256,"!N20"))),"",INDIRECT(CONCATENATE($B256,"!N20"))) ->  | M256: =IF(ISERROR(INDIRECT(CONCATENATE($B256,"!N21"))),"",INDIRECT(CONCATENATE($B256,"!N21"))) ->  | O256: =IF(ISERROR(INDIRECT(CONCATENATE($B256,"!O18"))),"",INDIRECT(CONCATENATE($B256,"!O18"))) ->  | P256: =IF(ISERROR(INDIRECT(CONCATENATE($B256,"!O19"))),"",INDIRECT(CONCATENATE($B256,"!O19"))) ->  | Q256: =IF(ISERROR(INDIRECT(CONCATENATE($B256,"!O20"))),"",INDIRECT(CONCATENATE($B256,"!O20"))) ->  | R256: =IF(ISERROR(INDIRECT(CONCATENATE($B256,"!O21"))),"",INDIRECT(CONCATENATE($B256,"!O21"))) ->  | T256: =IF(ISERROR(INDIRECT(CONCATENATE($B256,"!P18"))),"",INDIRECT(CONCATENATE($B256,"!P18"))) ->  | U256: =IF(ISERROR(INDIRECT(CONCATENATE($B256,"!P19"))),"",INDIRECT(CONCATENATE($B256,"!P19"))) ->  | V256: =IF(ISERROR(INDIRECT(CONCATENATE($B256,"!P20"))),"",INDIRECT(CONCATENATE($B256,"!P20"))) ->  | W256: =IF(ISERROR(INDIRECT(CONCATENATE($B256,"!P21"))),"",INDIRECT(CONCATENATE($B256,"!P21"))) ->  | Y256: =IF(ISERROR(INDIRECT(CONCATENATE($B256,"!Q18"))),"",INDIRECT(CONCATENATE($B256,"!Q18"))) ->  | Z256: =IF(ISERROR(INDIRECT(CONCATENATE($B256,"!Q19"))),"",INDIRECT(CONCATENATE($B256,"!Q19"))) ->  | AA256: =IF(ISERROR(INDIRECT(CONCATENATE($B256,"!Q20"))),"",INDIRECT(CONCATENATE($B256,"!Q20"))) ->  | AB256: =IF(ISERROR(INDIRECT(CONCATENATE($B256,"!Q21"))),"",INDIRECT(CONCATENATE($B256,"!Q1"))) -> 
E257: =IF(ISERROR(INDIRECT(CONCATENATE($B257,"!M18"))),"",INDIRECT(CONCATENATE($B257,"!M18"))) ->  | F257: =IF(ISERROR(INDIRECT(CONCATENATE($B257,"!M19"))),"",INDIRECT(CONCATENATE($B257,"!M19"))) ->  | G257: =IF(ISERROR(INDIRECT(CONCATENATE($B257,"!M20"))),"",INDIRECT(CONCATENATE($B257,"!M20"))) ->  | H257: =IF(ISERROR(INDIRECT(CONCATENATE($B257,"!M21"))),"",INDIRECT(CONCATENATE($B257,"!M21"))) ->  | J257: =IF(ISERROR(INDIRECT(CONCATENATE($B257,"!N18"))),"",INDIRECT(CONCATENATE($B257,"!N18"))) ->  | K257: =IF(ISERROR(INDIRECT(CONCATENATE($B257,"!N19"))),"",INDIRECT(CONCATENATE($B257,"!N19"))) ->  | L257: =IF(ISERROR(INDIRECT(CONCATENATE($B257,"!N20"))),"",INDIRECT(CONCATENATE($B257,"!N20"))) ->  | M257: =IF(ISERROR(INDIRECT(CONCATENATE($B257,"!N21"))),"",INDIRECT(CONCATENATE($B257,"!N21"))) ->  | O257: =IF(ISERROR(INDIRECT(CONCATENATE($B257,"!O18"))),"",INDIRECT(CONCATENATE($B257,"!O18"))) ->  | P257: =IF(ISERROR(INDIRECT(CONCATENATE($B257,"!O19"))),"",INDIRECT(CONCATENATE($B257,"!O19"))) ->  | Q257: =IF(ISERROR(INDIRECT(CONCATENATE($B257,"!O20"))),"",INDIRECT(CONCATENATE($B257,"!O20"))) ->  | R257: =IF(ISERROR(INDIRECT(CONCATENATE($B257,"!O21"))),"",INDIRECT(CONCATENATE($B257,"!O21"))) ->  | T257: =IF(ISERROR(INDIRECT(CONCATENATE($B257,"!P18"))),"",INDIRECT(CONCATENATE($B257,"!P18"))) ->  | U257: =IF(ISERROR(INDIRECT(CONCATENATE($B257,"!P19"))),"",INDIRECT(CONCATENATE($B257,"!P19"))) ->  | V257: =IF(ISERROR(INDIRECT(CONCATENATE($B257,"!P20"))),"",INDIRECT(CONCATENATE($B257,"!P20"))) ->  | W257: =IF(ISERROR(INDIRECT(CONCATENATE($B257,"!P21"))),"",INDIRECT(CONCATENATE($B257,"!P21"))) ->  | Y257: =IF(ISERROR(INDIRECT(CONCATENATE($B257,"!Q18"))),"",INDIRECT(CONCATENATE($B257,"!Q18"))) ->  | Z257: =IF(ISERROR(INDIRECT(CONCATENATE($B257,"!Q19"))),"",INDIRECT(CONCATENATE($B257,"!Q19"))) ->  | AA257: =IF(ISERROR(INDIRECT(CONCATENATE($B257,"!Q20"))),"",INDIRECT(CONCATENATE($B257,"!Q20"))) ->  | AB257: =IF(ISERROR(INDIRECT(CONCATENATE($B257,"!Q21"))),"",INDIRECT(CONCATENATE($B257,"!Q1"))) -> 
A297: RURAL | D297: Poorest | I297: Poor | N297: Middle | S297: Rich | X297: Richest
D298: Improved | E298: Basic | F298: Limited | G298: Unimproved | H298: Surface water | I298: Improved | J298: Basic | K298: Limited | L298: Unimproved | M298: Surface water | N298: Improved | O298: Basic | P298: Limited | Q298: Unimproved | R298: Surface water | S298: Improved | T298: Basic | U298: Limited | V298: Unimproved | W298: Surface water | X298: Improved | Y298: Basic | Z298: Limited | AA298: Unimproved | AB298: Surface water
A299: Forecast period: | C299: =MinBase(C305:C316) -> 2000 | D299: =IF((D301+H301)>100,D301*100/(D301+H301),D301) -> 10.72566457 | E299: =D299*AVERAGEIF(E305:E316,">0")/100 -> 9.738778498 | F299: =D299*(100-AVERAGEIF(E305:E316,">0"))/100 -> 0.9868860721 | G299: =100-(E299+F299+H299) -> 21.91454257 | H299: =IF((D301+H301)>100,H301*100/(D301+H301),H301) -> 67.35979286 | I299: =IF((I301+M301)>100,I301*100/(I301+M301),I301) -> 11.06658798 | J299: =I299*AVERAGEIF(J305:J316,">0")/100 -> 10.44385385 | K299: =I299*(100-AVERAGEIF(J305:J316,">0"))/100 -> 0.622734135 | L299: =100-(J299+K299+M299) -> 31.32342489 | M299: =IF((I301+M301)>100,M301*100/(I301+M301),M301) -> 57.60998713 | N299: =IF((N301+R301)>100,N301*100/(N301+R301),N301) -> 13.0628047 | O299: =N299*AVERAGEIF(O305:O316,">0")/100 -> 12.59188197 | P299: =N299*(100-AVERAGEIF(O305:O316,">0"))/100 -> 0.4709227242 | Q299: =100-(O299+P299+R299) -> 40.38630761 | R299: =IF((N301+R301)>100,R301*100/(N301+R301),R301) -> 46.5508877 | S299: =IF((S301+W301)>100,S301*100/(S301+W301),S301) -> 20.29878538 | T299: =S299*AVERAGEIF(T305:T316,">0")/100 -> 19.66933254 | U299: =S299*(100-AVERAGEIF(T305:T316,">0"))/100 -> 0.6294528393 | V299: =100-(T299+U299+W299) -> 40.86954276 | W299: =IF((S301+W301)>100,W301*100/(S301+W301),W301) -> 38.83167186 | X299: =IF((X301+AB301)>100,X301*100/(X301+AB301),X301) -> 57.82793185 | Y299: =X299*AVERAGEIF(Y305:Y316,">0")/100 -> 56.70107993 | Z299: =X299*(100-AVERAGEIF(Y305:Y316,">0"))/100 -> 1.126851915 | AA299: =100-(Y299+Z299+AB299) -> 28.11762223 | AB299: =IF((X301+AB301)>100,AB301*100/(X301+AB301),AB301) -> 14.05444592
C300: =MaxTarget(C305:C316) -> 2020 | D300: =IF((D302+H302)>100,D302*100/(D302+H302),D302) -> 24.21247177 | E300: =D300*AVERAGEIF(E305:E316,">0")/100 -> 21.98464234 | F300: =D300*(100-AVERAGEIF(E305:E316,">0"))/100 -> 2.227829428 | G300: =100-(E300+F300+H300) -> 53.26567638 | H300: =IF((D302+H302)>100,H302*100/(D302+H302),H302) -> 22.52185185 | I300: =IF((I302+M302)>100,I302*100/(I302+M302),I302) -> 26.92838714 | J300: =I300*AVERAGEIF(J305:J316,">0")/100 -> 25.41308487 | K300: =I300*(100-AVERAGEIF(J305:J316,">0"))/100 -> 1.515302268 | L300: =100-(J300+K300+M300) -> 51.30451895 | M300: =IF((I302+M302)>100,M302*100/(I302+M302),M302) -> 21.76709391 | N300: =IF((N302+R302)>100,N302*100/(N302+R302),N302) -> 33.2341269 | O300: =N300*AVERAGEIF(O305:O316,">0")/100 -> 32.03601471 | P300: =N300*(100-AVERAGEIF(O305:O316,">0"))/100 -> 1.198112193 | Q300: =100-(O300+P300+R300) -> 46.22105152 | R300: =IF((N302+R302)>100,R302*100/(N302+R302),R302) -> 20.54482158 | S300: =IF((S302+W302)>100,S302*100/(S302+W302),S302) -> 42.16272893 | T300: =S300*AVERAGEIF(T305:T316,">0")/100 -> 40.85528866 | U300: =S300*(100-AVERAGEIF(T305:T316,">0"))/100 -> 1.30744027 | V300: =100-(T300+U300+W300) -> 37.26172402 | W300: =IF((S302+W302)>100,W302*100/(S302+W302),W302) -> 20.57554706 | X300: =IF((X302+AB302)>100,X302*100/(X302+AB302),X302) -> 64.75053771 | Y300: =X300*AVERAGEIF(Y305:Y316,">0")/100 -> 63.48878988 | Z300: =X300*(100-AVERAGEIF(Y305:Y316,">0"))/100 -> 1.261747829 | AA300: =100-(Y300+Z300+AB300) -> 22.28702481 | AB300: =IF((X302+AB302)>100,AB302*100/(X302+AB302),AB302) -> 12.96243748
A301: Regression period: | C301: =MinRegYear(C299,C305:C316) -> 2002 | D301: =IF(MAX(C305:C316)-MIN(C305:C316)<5,AVERAGEIF(C305:C316,">0",D305:D316), IF(FORECAST($C301,D$305:D$316,$C$305:$C$316)<0,0, IF(FORECAST($C301,D$305:D$316,$C$305:$C$316)>100,100, FORECAST($C301,D$305:D$316,$C$305:$C$316)))) -> 10.72566457 | H301: =IF(MAX(C305:C316)-MIN(C305:C316)<5,AVERAGEIF(C305:C316,">0",H305:H316), IF(FORECAST($C301,H$305:H$316,$C$305:$C$316)<0,0, IF(FORECAST($C301,H$305:H$316,$C$305:$C$316)>100,100, FORECAST($C301,H$305:H$316,$C$305:$C$316)))) -> 67.35979286 | I301: =IF(MAX(C305:C316)-MIN(C305:C316)<5,AVERAGEIF(C305:C316,">0",I305:I316), IF(FORECAST($C301,I$305:I$316,$C$305:$C$316)<0,0, IF(FORECAST($C301,I$305:I$316,$C$305:$C$316)>100,100, FORECAST($C301,I$305:I$316,$C$305:$C$316)))) -> 11.06658798 | M301: =IF(MAX(C305:C316)-MIN(C305:C316)<5,AVERAGEIF(C305:C316,">0",M305:M316), IF(FORECAST($C301,M$305:M$316,$C$305:$C$316)<0,0, IF(FORECAST($C301,M$305:M$316,$C$305:$C$316)>100,100, FORECAST($C301,M$305:M$316,$C$305:$C$316)))) -> 57.60998713 | N301: =IF(MAX(C305:C316)-MIN(C305:C316)<5,AVERAGEIF(C305:C316,">0",N305:N316), IF(FORECAST($C301,N$305:N$316,$C$305:$C$316)<0,0, IF(FORECAST($C301,N$305:N$316,$C$305:$C$316)>100,100, FORECAST($C301,N$305:N$316,$C$305:$C$316)))) -> 13.0628047 | R301: =IF(MAX(C305:C316)-MIN(C305:C316)<5,AVERAGEIF(C305:C316,">0",R305:R316), IF(FORECAST($C301,R$305:R$316,$C$305:$C$316)<0,0, IF(FORECAST($C301,R$305:R$316,$C$305:$C$316)>100,100, FORECAST($C301,R$305:R$316,$C$305:$C$316)))) -> 46.5508877 | S301: =IF(MAX(C305:C316)-MIN(C305:C316)<5,AVERAGEIF(C305:C316,">0",S305:S316), IF(FORECAST($C301,S$305:S$316,$C$305:$C$316)<0,0, IF(FORECAST($C301,S$305:S$316,$C$305:$C$316)>100,100, FORECAST($C301,S$305:S$316,$C$305:$C$316)))) -> 20.29878538 | W301: =IF(MAX(C305:C316)-MIN(C305:C316)<5,AVERAGEIF(C305:C316,">0",W305:W316), IF(FORECAST($C301,W$305:W$316,$C$305:$C$316)<0,0, IF(FORECAST($C301,W$305:W$316,$C$305:$C$316)>100,100, FORECAST($C301,W$305:W$316,$C$305:$C$316)))) -> 38.83167186 | X301: =IF(MAX(C305:C316)-MIN(C305:C316)<5,AVERAGEIF(C305:C316,">0",X305:X316), IF(FORECAST($C301,X$305:X$316,$C$305:$C$316)<0,0, IF(FORECAST($C301,X$305:X$316,$C$305:$C$316)>100,100, FORECAST($C301,X$305:X$316,$C$305:$C$316)))) -> 57.82793185 | AB301: =IF(MAX(C305:C316)-MIN(C305:C316)<5,AVERAGEIF(C305:C316,">0",AB305:AB316), IF(FORECAST($C301,AB$305:AB$316,$C$305:$C$316)<0,0, IF(FORECAST($C301,AB$305:AB$316,$C$305:$C$316)>100,100, FORECAST($C301,AB$305:AB$316,$C$305:$C$316)))) -> 14.05444592
C302: =MaxRegYear(C300,C305:C316) -> 2020 | D302: =IF(MAX(C305:C316)-MIN(C305:C316)<5,AVERAGEIF(C305:C316,">0",D305:D316), IF(FORECAST($C302,D$305:D$316,$C$305:$C$316)<0,0, IF(FORECAST($C302,D$305:D$316,$C$305:$C$316)>100,100, FORECAST($C302,D$305:D$316,$C$305:$C$316)))) -> 24.21247177 | H302: =IF(MAX(C305:C316)-MIN(C305:C316)<5,AVERAGEIF(C305:C316,">0",H305:H316), IF(FORECAST($C302,H$305:H$316,$C$305:$C$316)<0,0, IF(FORECAST($C302,H$305:H$316,$C$305:$C$316)>100,100, FORECAST($C302,H$305:H$316,$C$305:$C$316)))) -> 22.52185185 | I302: =IF(MAX(C305:C316)-MIN(C305:C316)<5,AVERAGEIF(C305:C316,">0",I305:I316), IF(FORECAST($C302,I$305:I$316,$C$305:$C$316)<0,0, IF(FORECAST($C302,I$305:I$316,$C$305:$C$316)>100,100, FORECAST($C302,I$305:I$316,$C$305:$C$316)))) -> 26.92838714 | M302: =IF(MAX(C305:C316)-MIN(C305:C316)<5,AVERAGEIF(C305:C316,">0",M305:M316), IF(FORECAST($C302,M$305:M$316,$C$305:$C$316)<0,0, IF(FORECAST($C302,M$305:M$316,$C$305:$C$316)>100,100, FORECAST($C302,M$305:M$316,$C$305:$C$316)))) -> 21.76709391 | N302: =IF(MAX(C305:C316)-MIN(C305:C316)<5,AVERAGEIF(C305:C316,">0",N305:N316), IF(FORECAST($C302,N$305:N$316,$C$305:$C$316)<0,0, IF(FORECAST($C302,N$305:N$316,$C$305:$C$316)>100,100, FORECAST($C302,N$305:N$316,$C$305:$C$316)))) -> 33.2341269 | R302: =IF(MAX(C305:C316)-MIN(C305:C316)<5,AVERAGEIF(C305:C316,">0",R305:R316), IF(FORECAST($C302,R$305:R$316,$C$305:$C$316)<0,0, IF(FORECAST($C302,R$305:R$316,$C$305:$C$316)>100,100, FORECAST($C302,R$305:R$316,$C$305:$C$316)))) -> 20.54482158 | S302: =IF(MAX(C305:C316)-MIN(C305:C316)<5,AVERAGEIF(C305:C316,">0",S305:S316), IF(FORECAST($C302,S$305:S$316,$C$305:$C$316)<0,0, IF(FORECAST($C302,S$305:S$316,$C$305:$C$316)>100,100, FORECAST($C302,S$305:S$316,$C$305:$C$316)))) -> 42.16272893 | W302: =IF(MAX(C305:C316)-MIN(C305:C316)<5,AVERAGEIF(C305:C316,">0",W305:W316), IF(FORECAST($C302,W$305:W$316,$C$305:$C$316)<0,0, IF(FORECAST($C302,W$305:W$316,$C$305:$C$316)>100,100, FORECAST($C302,W$305:W$316,$C$305:$C$316)))) -> 20.57554706 | X302: =IF(MAX(C305:C316)-MIN(C305:C316)<5,AVERAGEIF(C305:C316,">0",X305:X316), IF(FORECAST($C302,X$305:X$316,$C$305:$C$316)<0,0, IF(FORECAST($C302,X$305:X$316,$C$305:$C$316)>100,100, FORECAST($C302,X$305:X$316,$C$305:$C$316)))) -> 64.75053771 | AB302: =IF(MAX(C305:C316)-MIN(C305:C316)<5,AVERAGEIF(C305:C316,">0",AB305:AB316), IF(FORECAST($C302,AB$305:AB$316,$C$305:$C$316)<0,0, IF(FORECAST($C302,AB$305:AB$316,$C$305:$C$316)>100,100, FORECAST($C302,AB$305:AB$316,$C$305:$C$316)))) -> 12.96243748
B304: Survey | C304: Year | D304: Improved | E304: % Improved < = 30min | H304: Surface water | I304: Improved | J304: % Improved < = 30min | M304: Surface water | N304: Improved | O304: % Improved < = 30min | R304: Surface water | S304: Improved | T304: % Improved < = 30min | W304: Surface water | X304: Improved | Y304: % Improved < = 30min | AB304: Surface water
B305: DHS04 | C305: 2004 | D305: =IF(ISERROR(INDIRECT(CONCATENATE($B305,"!M16"))),"",INDIRECT(CONCATENATE($B305,"!M16"))) -> 9.197023847 | E305: =IF(ISERROR(INDIRECT(CONCATENATE($B305,"!M23"))),"",INDIRECT(CONCATENATE($B305,"!M23"))) -> N/A | H305: =IF(ISERROR(INDIRECT(CONCATENATE($B305,"!M21"))),"",INDIRECT(CONCATENATE($B305,"!M21"))) -> 63.61058366 | I305: =IF(ISERROR(INDIRECT(CONCATENATE($B305,"!N16"))),"",INDIRECT(CONCATENATE($B305,"!N16"))) -> 12.04372225 | J305: =IF(ISERROR(INDIRECT(CONCATENATE($B305,"!N23"))),"",INDIRECT(CONCATENATE($B305,"!N23"))) -> N/A | M305: =IF(ISERROR(INDIRECT(CONCATENATE($B305,"!N21"))),"",INDIRECT(CONCATENATE($B305,"!N21"))) -> 54.27508297 | N305: =IF(ISERROR(INDIRECT(CONCATENATE($B305,"!O16"))),"",INDIRECT(CONCATENATE($B305,"!O16"))) -> 14.52152001 | O305: =IF(ISERROR(INDIRECT(CONCATENATE($B305,"!O23"))),"",INDIRECT(CONCATENATE($B305,"!O23"))) -> N/A | R305: =IF(ISERROR(INDIRECT(CONCATENATE($B305,"!O21"))),"",INDIRECT(CONCATENATE($B305,"!O21"))) -> 42.28753223 | S305: =IF(ISERROR(INDIRECT(CONCATENATE($B305,"!P16"))),"",INDIRECT(CONCATENATE($B305,"!P16"))) -> 23.20039563 | T305: =IF(ISERROR(INDIRECT(CONCATENATE($B305,"!P23"))),"",INDIRECT(CONCATENATE($B305,"!P23"))) -> N/A | W305: =IF(ISERROR(INDIRECT(CONCATENATE($B305,"!P21"))),"",INDIRECT(CONCATENATE($B305,"!P21"))) -> 35.66982088 | X305: =IF(ISERROR(INDIRECT(CONCATENATE($B305,"!Q16"))),"",INDIRECT(CONCATENATE($B305,"!Q16"))) -> 60.75598651 | Y305: =IF(ISERROR(INDIRECT(CONCATENATE($B305,"!Q23"))),"",INDIRECT(CONCATENATE($B305,"!Q23"))) -> N/A | AB305: =IF(ISERROR(INDIRECT(CONCATENATE($B305,"!Q221"))),"",INDIRECT(CONCATENATE($B305,"!Q21"))) -> 13.15295507
B306: DHS09 | D306: 15.1 | E306: 95.1 | H306: 37.7 | I306: 18.9 | J306: 96.6 | M306: 32.8 | N306: 27 | O306: 99.1 | R306: 23.5 | S306: 34.1 | T306: 98.8 | W306: 23.7 | X306: 66.8 | Y306: 99.6 | AB306: 8.4
B307: MIS11 | C307: 2011 | D307: 23.31046902 | E307: N/A | H307: 42.59503586 | I307: 19.03504147 | J307: N/A | M307: 42.1328927 | N307: 24.23798119 | O307: N/A | R307: 36.78558046 | S307: 30.93063474 | T307: N/A | W307: 32.27427383 | X307: 58.60801995 | Y307: N/A | AB307: 17.12833116
B308: AIS13 | C308: 2013 | D308: 19.52485153 | E308: N/A | H308: 40.20715691 | I308: 22.12455799 | J308: N/A | M308: 31.62297694 | N308: 24.41281922 | O308: N/A | R308: 32.60063114 | S308: 30.69454498 | T308: N/A | W308: 29.20871886 | X308: 57.24836823 | Y308: N/A | AB308: 12.82418022
B309: MIS16 | C309: 2016 | D309: 20.56760146 | E309: 89.34711731 | H309: 31.44578175 | I309: 25.35749844 | J309: 95.63927408 | M309: 26.85102162 | N309: 32.85836748 | O309: 96.24728534 | R309: 19.75260646 | S309: 42.46236898 | T309: 96.352116 | W309: 19.73496787 | X309: 69.50941154 | Y309: 97.80389525 | AB309: 7.403906943
B310: MICS18 | C310: 2018 | D310: 19.99026446 | E310: 87.94938832 | H310: 29.40857653 | I310: 22.59509509 | J310: 90.87925886 | M310: 29.62182544 | N310: 27.55604418 | O310: 93.83751681 | R310: 26.19945275 | S310: 37.36848614 | T310: 95.54506867 | W310: 24.53066178 | X310: 63.01651216 | Y310: 96.75021741 | AB310: 16.60816515
B318: =CONCATENATE("Rural use of drinking water sources, ",C299,"–",C300) -> Rural use of drinking water sources, 2000–2020 | S318: Data points used for regression

Sheet Sanitation
B4: Summary of trends in use of sanitation facilities by wealth quintile (%)
B5: =IF(ISERROR(INDIRECT(CONCATENATE($B105,"!A2"))),"",INDIRECT(CONCATENATE($B105,"!A2"))) -> Madagascar
B7: =B118 -> National use of sanitation facilities, 2003–2020 | J7: =B218 -> Urban use of sanitation facilities, 2003–2020 | R7: =B318 -> Rural use of sanitation facilities, 2000–2020
B31: =IF(ISERROR(INDIRECT(CONCATENATE($B105,"!A2"))),"",INDIRECT(CONCATENATE($B105,"!A2"))) -> Madagascar | F31: Poorest | J31: Poor | N31: Middle | R31: Rich | V31: Richest
F32: Basic | G32: Limited | H32: Unimproved | I32: Open defecation | J32: Basic | K32: Limited | L32: Unimproved | M32: Open defecation | N32: Basic | O32: Limited | P32: Unimproved | Q32: Open defecation | R32: Basic | S32: Limited | T32: Unimproved | U32: Open defecation | V32: Basic | W32: Limited | X32: Unimproved | Y32: Open defecation
B33: NATIONAL | D33: Estimate | E33: =C99 -> 2003 | F33: =E99 -> 0.4390274705 | G33: =F99 -> 1.096145685 | H33: 12.69778297 | I33: 85.76704388 | J33: =J99 -> 0.5787238448 | K33: =K99 -> 1.328523708 | L33: 23.49563321 | M33: 74.59711923 | N33: =O99 -> 0.8907835851 | O33: =P99 -> 1.839320257 | P33: 35.59856996 | Q33: 61.6713262 | R33: =T99 -> 1.556738566 | S33: =U99 -> 2.596730909 | T33: 51.15071056 | U33: 44.69581996 | V33: =Y99 -> 6.024341833 | W33: =Z99 -> 7.517371804 | X33: 73.91990789 | Y33: 12.53837848
E34: =C100 -> 2020 | F34: =E100 -> 1.091520538 | G34: 2.72526347 | H34: 35.54298447 | I34: 60.64023152 | J34: =J100 -> 2.022814476 | K34: 4.643591259 | L34: 40.74560838 | M34: 52.58798589 | N34: =O100 -> 2.894811687 | O34: 5.977305674 | P34: 45.80083263 | Q34: 45.32705001 | R34: =T100 -> 6.929730974 | S34: 11.55919626 | T34: 53.37682209 | U34: 28.13425067 | V34: =Y100 -> 26.50688247 | W34: 33.07615943 | X34: 32.27096941 | Y34: 8.145988693
B36: URBAN | D36: Estimate | E36: =C199 -> 2003 | F36: =E199 -> 1.891123793 | G36: =F199 -> 7.911950158 | H36: 50.20673891 | I36: 39.99018714 | J36: =J199 -> 3.612932447 | K36: =K199 -> 13.28848021 | L36: 67.38706322 | M36: 15.71152412 | N36: =O199 -> 5.140814808 | O36: =P199 -> 16.26211768 | P36: 68.59934805 | Q36: 9.99771947 | R36: =T199 -> 8.432021025 | S36: =U199 -> 14.88026416 | T36: 72.02019308 | U36: 4.667521738 | V36: =Y199 -> 31.8392476 | W36: =Z199 -> 19.73465074 | X36: 48.34205483 | Y36: 0.08404683066
E37: =C200 -> 2020 | F37: =E200 -> 1.063896596 | G37: 4.451055438 | H37: 25.98003943 | I37: 68.50500853 | J37: =J200 -> 5.872541601 | K37: 21.5993944 | L37: 43.56249576 | M37: 28.96556824 | N37: =O200 -> 10.11089829 | O37: 31.98415502 | P37: 42.87663469 | Q37: 15.028312 | R37: =T200 -> 20.6429762 | S37: 36.42933741 | T37: 33.8727692 | U37: 9.054917193 | V37: =Y200 -> 48.97151262 | W37: 30.35359723 | X37: 17.17408367 | Y37: 3.500806478
B39: RURAL | D39: Estimate | E39: =C299 -> 2000 | F39: =E299 -> 0 | G39: =F299 -> 0 | H39: 16.0804881 | I39: 83.9195119 | J39: =J299 -> 0 | K39: =K299 -> 0 | L39: 21.16792252 | M39: 78.83207748 | N39: =O299 -> 0 | O39: =P299 -> 0 | P39: 35.22295706 | Q39: 64.77704294 | R39: =T299 -> 0.07165326773 | S39: =U299 -> 0.1194823528 | T39: 52.4718889 | U39: 47.33697548 | V39: =Y299 -> 0.429949298 | W39: =Z299 -> 0.5047076171 | X39: 82.47834898 | Y39: 16.58699411
E40: =C300 -> 2020 | F40: =E300 -> 1.331878368 | G40: 2.543862855 | H40: 29.38225833 | I40: 66.74200045 | J40: =J300 -> 1.768407543 | K40: 4.393742534 | L40: 37.31978848 | M40: 56.51806144 | N40: =O300 -> 3.105651469 | O40: 5.920011577 | P40: 40.33358769 | Q40: 50.64074927 | R40: =T300 -> 4.699814769 | S40: 7.836975816 | T40: 48.25957289 | U40: 39.20363653 | V40: =Y300 -> 16.83968094 | W40: 19.76771513 | X40: 44.92530098 | Y40: 18.46730295
A97: NATIONAL | D97: Poorest | I97: Poor | N97: Middle | S97: Rich | X97: Richest
D98: Improved | E98: Basic | F98: Limited | G98: Unimproved | H98: Open defecation | I98: Improved | J98: Basic | K98: Limited | L98: Unimproved | M98: Open defecation | N98: Improved | O98: Basic | P98: Limited | Q98: Unimproved | R98: Open defecation | S98: Improved | T98: Basic | U98: Limited | V98: Unimproved | W98: Open defecation | X98: Improved | Y98: Basic | Z98: Limited | AA98: Unimproved | AB98: Open defecation
A99: Forecast period: | C99: =MinBase(C105:C116) -> 2003 | D99: =IF((D101+H101)>100,D101*100/(D101+H101),D101) -> 1.535173156 | E99: =D99*AVERAGEIF(E105:E116,">0")/100 -> 0.4390274705 | F99: =D99*(100-AVERAGEIF(E105:E116,">0"))/100 -> 1.096145685 | G99: =100-(E99+F99+H99) -> 12.69778297 | H99: =IF((D101+H101)>100,H101*100/(D101+H101),H101) -> 85.76704388 | I99: =IF((I101+M101)>100,I101*100/(I101+M101),I101) -> 1.907247552 | J99: =I99*AVERAGEIF(J105:J116,">0")/100 -> 0.5787238448 | K99: =I99*(100-AVERAGEIF(J105:J116,">0"))/100 -> 1.328523708 | L99: =100-(J99+K99+M99) -> 23.49563321 | M99: =IF((I101+M101)>100,M101*100/(I101+M101),M101) -> 74.59711923 | N99: =IF((N101+R101)>100,N101*100/(N101+R101),N101) -> 2.730103842 | O99: =N99*AVERAGEIF(O105:O116,">0")/100 -> 0.8907835851 | P99: =N99*(100-AVERAGEIF(O105:O116,">0"))/100 -> 1.839320257 | Q99: =100-(O99+P99+R99) -> 35.59856996 | R99: =IF((N101+R101)>100,R101*100/(N101+R101),R101) -> 61.6713262 | S99: =IF((S101+W101)>100,S101*100/(S101+W101),S101) -> 4.153469475 | T99: =S99*AVERAGEIF(T105:T116,">0")/100 -> 1.556738566 | U99: =S99*(100-AVERAGEIF(T105:T116,">0"))/100 -> 2.596730909 | V99: =100-(T99+U99+W99) -> 51.15071056 | W99: =IF((S101+W101)>100,W101*100/(S101+W101),W101) -> 44.69581996 | X99: =IF((X101+AB101)>100,X101*100/(X101+AB101),X101) -> 13.54171364 | Y99: =X99*AVERAGEIF(Y105:Y116,">0")/100 -> 6.024341833 | Z99: =X99*(100-AVERAGEIF(Y105:Y116,">0"))/100 -> 7.517371804 | AA99: =100-(Y99+Z99+AB99) -> 73.91990789 | AB99: =IF((X101+AB101)>100,AB101*100/(X101+AB101),AB101) -> 12.53837848
C100: =MaxTarget(C105:C116) -> 2020 | D100: =IF((D102+H102)>100,D102*100/(D102+H102),D102) -> 3.816784007 | E100: =D100*AVERAGEIF(E105:E116,">0")/100 -> 1.091520538 | F100: =D100*(100-AVERAGEIF(E105:E116,">0"))/100 -> 2.72526347 | G100: =100-(E100+F100+H100) -> 35.54298447 | H100: =IF((D102+H102)>100,H102*100/(D102+H102),H102) -> 60.64023152 | I100: =IF((I102+M102)>100,I102*100/(I102+M102),I102) -> 6.666405734 | J100: =I100*AVERAGEIF(J105:J116,">0")/100 -> 2.022814476 | K100: =I100*(100-AVERAGEIF(J105:J116,">0"))/100 -> 4.643591259 | L100: =100-(J100+K100+M100) -> 40.74560838 | M100: =IF((I102+M102)>100,M102*100/(I102+M102),M102) -> 52.58798589 | N100: =IF((N102+R102)>100,N102*100/(N102+R102),N102) -> 8.872117361 | O100: =N100*AVERAGEIF(O105:O116,">0")/100 -> 2.894811687 | P100: =N100*(100-AVERAGEIF(O105:O116,">0"))/100 -> 5.977305674 | Q100: =100-(O100+P100+R100) -> 45.80083263 | R100: =IF((N102+R102)>100,R102*100/(N102+R102),R102) -> 45.32705001 | S100: =IF((S102+W102)>100,S102*100/(S102+W102),S102) -> 18.48892724 | T100: =S100*AVERAGEIF(T105:T116,">0")/100 -> 6.929730974 | U100: =S100*(100-AVERAGEIF(T105:T116,">0"))/100 -> 11.55919626 | V100: =100-(T100+U100+W100) -> 53.37682209 | W100: =IF((S102+W102)>100,W102*100/(S102+W102),W102) -> 28.13425067 | X100: =IF((X102+AB102)>100,X102*100/(X102+AB102),X102) -> 59.5830419 | Y100: =X100*AVERAGEIF(Y105:Y116,">0")/100 -> 26.50688247 | Z100: =X100*(100-AVERAGEIF(Y105:Y116,">0"))/100 -> 33.07615943 | AA100: =100-(Y100+Z100+AB100) -> 32.27096941 | AB100: =IF((X102+AB102)>100,AB102*100/(X102+AB102),AB102) -> 8.145988693
A101: Regression period: | C101: =MinRegYear(C99,C105:C116) -> 2007 | D101: =IF(MAX(C105:C116)-MIN(C105:C116)<5,AVERAGEIF(C105:C116,">0",D105:D116), IF(FORECAST($C101,D$105:D$116,$C$105:$C$116)<0,0, IF(FORECAST($C101,D$105:D$116,$C$105:$C$116)>100,100, FORECAST($C101,D$105:D$116,$C$105:$C$116)))) -> 1.535173156 | H101: =IF(MAX(C105:C116)-MIN(C105:C116)<5,AVERAGEIF(C105:C116,">0",H105:H116), IF(FORECAST($C101,H$105:H$116,$C$105:$C$116)<0,0, IF(FORECAST($C101,H$105:H$116,$C$105:$C$116)>100,100, FORECAST($C101,H$105:H$116,$C$105:$C$116)))) -> 85.76704388 | I101: =IF(MAX(C105:C116)-MIN(C105:C116)<5,AVERAGEIF(C105:C116,">0",I105:I116), IF(FORECAST($C101,I$105:I$116,$C$105:$C$116)<0,0, IF(FORECAST($C101,I$105:I$116,$C$105:$C$116)>100,100, FORECAST($C101,I$105:I$116,$C$105:$C$116)))) -> 1.907247552 | M101: =IF(MAX(C105:C116)-MIN(C105:C116)<5,AVERAGEIF(C105:C116,">0",M105:M116), IF(FORECAST($C101,M$105:M$116,$C$105:$C$116)<0,0, IF(FORECAST($C101,M$105:M$116,$C$105:$C$116)>100,100, FORECAST($C101,M$105:M$116,$C$105:$C$116)))) -> 74.59711923 | N101: =IF(MAX(C105:C116)-MIN(C105:C116)<5,AVERAGEIF(C105:C116,">0",N105:N116), IF(FORECAST($C101,N$105:N$116,$C$105:$C$116)<0,0, IF(FORECAST($C101,N$105:N$116,$C$105:$C$116)>100,100, FORECAST($C101,N$105:N$116,$C$105:$C$116)))) -> 2.730103842 | R101: =IF(MAX(C105:C116)-MIN(C105:C116)<5,AVERAGEIF(C105:C116,">0",R105:R116), IF(FORECAST($C101,R$105:R$116,$C$105:$C$116)<0,0, IF(FORECAST($C101,R$105:R$116,$C$105:$C$116)>100,100, FORECAST($C101,R$105:R$116,$C$105:$C$116)))) -> 61.6713262 | S101: =IF(MAX(C105:C116)-MIN(C105:C116)<5,AVERAGEIF(C105:C116,">0",S105:S116), IF(FORECAST($C101,S$105:S$116,$C$105:$C$116)<0,0, IF(FORECAST($C101,S$105:S$116,$C$105:$C$116)>100,100, FORECAST($C101,S$105:S$116,$C$105:$C$116)))) -> 4.153469475 | W101: =IF(MAX(C105:C116)-MIN(C105:C116)<5,AVERAGEIF(C105:C116,">0",W105:W116), IF(FORECAST($C101,W$105:W$116,$C$105:$C$116)<0,0, IF(FORECAST($C101,W$105:W$116,$C$105:$C$116)>100,100, FORECAST($C101,W$105:W$116,$C$105:$C$116)))) -> 44.69581996 | X101: =IF(MAX(C105:C116)-MIN(C105:C116)<5,AVERAGEIF(C105:C116,">0",X105:X116), IF(FORECAST($C101,X$105:X$116,$C$105:$C$116)<0,0, IF(FORECAST($C101,X$105:X$116,$C$105:$C$116)>100,100, FORECAST($C101,X$105:X$116,$C$105:$C$116)))) -> 13.54171364 | AB101: =IF(MAX(C105:C116)-MIN(C105:C116)<5,AVERAGEIF(C105:C116,">0",AB105:AB116), IF(FORECAST($C101,AB$105:AB$116,$C$105:$C$116)<0,0, IF(FORECAST($C101,AB$105:AB$116,$C$105:$C$116)>100,100, FORECAST($C101,AB$105:AB$116,$C$105:$C$116)))) -> 12.53837848
C102: =MaxRegYear(C100,C105:C116) -> 2020 | D102: =IF(MAX(C105:C116)-MIN(C105:C116)<5,AVERAGEIF(C105:C116,">0",D105:D116), IF(FORECAST($C102,D$105:D$116,$C$105:$C$116)<0,0, IF(FORECAST($C102,D$105:D$116,$C$105:$C$116)>100,100, FORECAST($C102,D$105:D$116,$C$105:$C$116)))) -> 3.816784007 | H102: =IF(MAX(C105:C116)-MIN(C105:C116)<5,AVERAGEIF(C105:C116,">0",H105:H116), IF(FORECAST($C102,H$105:H$116,$C$105:$C$116)<0,0, IF(FORECAST($C102,H$105:H$116,$C$105:$C$116)>100,100, FORECAST($C102,H$105:H$116,$C$105:$C$116)))) -> 60.64023152 | I102: =IF(MAX(C105:C116)-MIN(C105:C116)<5,AVERAGEIF(C105:C116,">0",I105:I116), IF(FORECAST($C102,I$105:I$116,$C$105:$C$116)<0,0, IF(FORECAST($C102,I$105:I$116,$C$105:$C$116)>100,100, FORECAST($C102,I$105:I$116,$C$105:$C$116)))) -> 6.666405734 | M102: =IF(MAX(C105:C116)-MIN(C105:C116)<5,AVERAGEIF(C105:C116,">0",M105:M116), IF(FORECAST($C102,M$105:M$116,$C$105:$C$116)<0,0, IF(FORECAST($C102,M$105:M$116,$C$105:$C$116)>100,100, FORECAST($C102,M$105:M$116,$C$105:$C$116)))) -> 52.58798589 | N102: =IF(MAX(C105:C116)-MIN(C105:C116)<5,AVERAGEIF(C105:C116,">0",N105:N116), IF(FORECAST($C102,N$105:N$116,$C$105:$C$116)<0,0, IF(FORECAST($C102,N$105:N$116,$C$105:$C$116)>100,100, FORECAST($C102,N$105:N$116,$C$105:$C$116)))) -> 8.872117361 | R102: =IF(MAX(C105:C116)-MIN(C105:C116)<5,AVERAGEIF(C105:C116,">0",R105:R116), IF(FORECAST($C102,R$105:R$116,$C$105:$C$116)<0,0, IF(FORECAST($C102,R$105:R$116,$C$105:$C$116)>100,100, FORECAST($C102,R$105:R$116,$C$105:$C$116)))) -> 45.32705001 | S102: =IF(MAX(C105:C116)-MIN(C105:C116)<5,AVERAGEIF(C105:C116,">0",S105:S116), IF(FORECAST($C102,S$105:S$116,$C$105:$C$116)<0,0, IF(FORECAST($C102,S$105:S$116,$C$105:$C$116)>100,100, FORECAST($C102,S$105:S$116,$C$105:$C$116)))) -> 18.48892724 | W102: =IF(MAX(C105:C116)-MIN(C105:C116)<5,AVERAGEIF(C105:C116,">0",W105:W116), IF(FORECAST($C102,W$105:W$116,$C$105:$C$116)<0,0, IF(FORECAST($C102,W$105:W$116,$C$105:$C$116)>100,100, FORECAST($C102,W$105:W$116,$C$105:$C$116)))) -> 28.13425067 | X102: =IF(MAX(C105:C116)-MIN(C105:C116)<5,AVERAGEIF(C105:C116,">0",X105:X116), IF(FORECAST($C102,X$105:X$116,$C$105:$C$116)<0,0, IF(FORECAST($C102,X$105:X$116,$C$105:$C$116)>100,100, FORECAST($C102,X$105:X$116,$C$105:$C$116)))) -> 59.5830419 | AB102: =IF(MAX(C105:C116)-MIN(C105:C116)<5,AVERAGEIF(C105:C116,">0",AB105:AB116), IF(FORECAST($C102,AB$105:AB$116,$C$105:$C$116)<0,0, IF(FORECAST($C102,AB$105:AB$116,$C$105:$C$116)>100,100, FORECAST($C102,AB$105:AB$116,$C$105:$C$116)))) -> 8.145988693
B104: Survey | C104: Year | D104: Improved | E104: Not shared | H104: Open defecation | I104: Improved | J104: Not shared | M104: Open defecation | N104: Improved | O104: Not shared | R104: Open defecation | S104: Improved | T104: Not shared | W104: Open defecation | X104: Improved | Y104: Not shared | AB104: Open defecation
B105: DHS04 | D105: =IF(ISERROR(INDIRECT(CONCATENATE($B105,"!C122"))),"",INDIRECT(CONCATENATE($B105,"!C122"))) -> 0.257015243 | E105: =IF(ISERROR(INDIRECT(CONCATENATE($B105,"!C129"))),"",INDIRECT(CONCATENATE($B105,"!C129"))) -> N/A | H105: =IF(ISERROR(INDIRECT(CONCATENATE($B105,"!C127"))),"",INDIRECT(CONCATENATE($B105,"!C127"))) -> 74.961523 | I105: =IF(ISERROR(INDIRECT(CONCATENATE($B105,"!D122"))),"",INDIRECT(CONCATENATE($B105,"!D122"))) -> 0.187320791 | J105: =IF(ISERROR(INDIRECT(CONCATENATE($B105,"!D129"))),"",INDIRECT(CONCATENATE($B105,"!D129"))) -> N/A | M105: =IF(ISERROR(INDIRECT(CONCATENATE($B105,"!D127"))),"",INDIRECT(CONCATENATE($B105,"!D127"))) -> 71.09509918 | N105: =IF(ISERROR(INDIRECT(CONCATENATE($B105,"!E122"))),"",INDIRECT(CONCATENATE($B105,"!E122"))) -> 0.5090786173 | O105: =IF(ISERROR(INDIRECT(CONCATENATE($B105,"!E129"))),"",INDIRECT(CONCATENATE($B105,"!E129"))) -> N/A | R105: =IF(ISERROR(INDIRECT(CONCATENATE($B105,"!E127"))),"",INDIRECT(CONCATENATE($B105,"!E127"))) -> 51.19358597 | S105: =IF(ISERROR(INDIRECT(CONCATENATE($B105,"!F122"))),"",INDIRECT(CONCATENATE($B105,"!F122"))) -> 2.197346837 | T105: =IF(ISERROR(INDIRECT(CONCATENATE($B105,"!F129"))),"",INDIRECT(CONCATENATE($B105,"!F129"))) -> N/A | W105: =IF(ISERROR(INDIRECT(CONCATENATE($B105,"!F127"))),"",INDIRECT(CONCATENATE($B105,"!F127"))) -> 34.03365637 | X105: =IF(ISERROR(INDIRECT(CONCATENATE($B105,"!G122"))),"",INDIRECT(CONCATENATE($B105,"!G122"))) -> 19.52908893 | Y105: =IF(ISERROR(INDIRECT(CONCATENATE($B105,"!G129"))),"",INDIRECT(CONCATENATE($B105,"!G129"))) -> N/A | AB105: =IF(ISERROR(INDIRECT(CONCATENATE($B105,"!G2127"))),"",INDIRECT(CONCATENATE($B105,"!G127"))) -> 3.052825008
B106: DHS09 | C106: 2009 | D106: 0.6420605931 | E106: 12.33561085 | H106: 75.08716296 | I106: 0.695271591 | J106: 37.15305693 | M106: 61.21883305 | N106: 1.435214194 | O106: 33.74900565 | R106: 46.24427499 | S106: 3.244750302 | T106: 45.30226129 | W106: 29.88571443 | X106: 22.20441619 | Y106: 53.77316308 | AB106: 5.590115065
B107: MIS11 | C107: 2011 | D107: 2.433324307 | E107: 36.30655889 | H107: 84.99984161 | I107: 3.781899535 | J107: 21.13781705 | M107: 76.02352434 | N107: 4.627180125 | O107: 29.05510653 | R107: 65.94257404 | S107: 10.92974444 | T107: 32.77119965 | W107: 45.98524028 | X107: 30.10716151 | Y107: 42.04822176 | AB107: 15.74520694
B108: AIS13 | C108: 2013 | D108: 3.553222088 | E108: 30.30064503 | H108: 80.02639343 | I108: 5.851248249 | J108: 26.91325086 | M108: 74.41155017 | N108: 8.96892904 | O108: 27.34274399 | R108: 66.8677082 | S108: 13.30371642 | T108: 44.59801227 | W108: 51.53772043 | X108: 31.62725885 | Y108: 45.10416953 | AB108: 14.96645932
B109: MIS16 | C109: 2016 | D109: 5.614429097 | E109: 35.44149493 | H109: 60.02025125 | I109: 8.146042971 | J109: 31.38346928 | M109: 50.69942972 | N109: 8.526018457 | O109: 39.45320865 | R109: 44.06188951 | S109: 13.47831946 | T109: 34.08152158 | W109: 29.84712976 | X109: 37.82373141 | Y109: 40.79901207 | AB109: 10.63128363
B110: MICS18 | C110: 2018 | D110: 1.049102558 | E110: 28.60525108 | H110: 66.85095511 | I110: 2.776626326 | J110: 35.12942974 | M110: 56.45593065 | N110: 5.211979903 | O110: 33.54090648 | R110: 45.00811979 | S110: 15.0980974 | T110: 30.64919693 | W110: 25.45635512 | X110: 59.27850056 | Y110: 40.71189893 | AB110: 4.946791032
B118: =CONCATENATE("National use of sanitation facilities, ",C99,"–",C100) -> National use of sanitation facilities, 2003–2020 | S118: Data points used for regression
A197: URBAN | D197: Poorest | I197: Poor | N197: Middle | S197: Rich | X197: Richest
D198: Improved | E198: Basic | F198: Limited | G198: Unimproved | H198: Open defecation | I198: Improved | J198: Basic | K198: Limited | L198: Unimproved | M198: Open defecation | N198: Improved | O198: Basic | P198: Limited | Q198: Unimproved | R198: Open defecation | S198: Improved | T198: Basic | U198: Limited | V198: Unimproved | W198: Open defecation | X198: Improved | Y198: Basic | Z198: Limited | AA198: Unimproved | AB198: Open defecation
A199: Forecast period: | C199: =MinBase(C205:C216) -> 2003 | D199: =IF((D201+H201)>100,D201*100/(D201+H201),D201) -> 9.803073951 | E199: =D199*AVERAGEIF(E205:E216,">0")/100 -> 1.891123793 | F199: =D199*(100-AVERAGEIF(E205:E216,">0"))/100 -> 7.911950158 | G199: =100-(E199+F199+H199) -> 50.20673891 | H199: =IF((D201+H201)>100,H201*100/(D201+H201),H201) -> 39.99018714 | I199: =IF((I201+M201)>100,I201*100/(I201+M201),I201) -> 16.90141266 | J199: =I199*AVERAGEIF(J205:J216,">0")/100 -> 3.612932447 | K199: =I199*(100-AVERAGEIF(J205:J216,">0"))/100 -> 13.28848021 | L199: =100-(J199+K199+M199) -> 67.38706322 | M199: =IF((I201+M201)>100,M201*100/(I201+M201),M201) -> 15.71152412 | N199: =IF((N201+R201)>100,N201*100/(N201+R201),N201) -> 21.40293248 | O199: =N199*AVERAGEIF(O205:O216,">0")/100 -> 5.140814808 | P199: =N199*(100-AVERAGEIF(O205:O216,">0"))/100 -> 16.26211768 | Q199: =100-(O199+P199+R199) -> 68.59934805 | R199: =IF((N201+R201)>100,R201*100/(N201+R201),R201) -> 9.99771947 | S199: =IF((S201+W201)>100,S201*100/(S201+W201),S201) -> 23.31228519 | T199: =S199*AVERAGEIF(T205:T216,">0")/100 -> 8.432021025 | U199: =S199*(100-AVERAGEIF(T205:T216,">0"))/100 -> 14.88026416 | V199: =100-(T199+U199+W199) -> 72.02019308 | W199: =IF((S201+W201)>100,W201*100/(S201+W201),W201) -> 4.667521738 | X199: =IF((X201+AB201)>100,X201*100/(X201+AB201),X201) -> 51.57389834 | Y199: =X199*AVERAGEIF(Y205:Y216,">0")/100 -> 31.8392476 | Z199: =X199*(100-AVERAGEIF(Y205:Y216,">0"))/100 -> 19.73465074 | AA199: =100-(Y199+Z199+AB199) -> 48.34205483 | AB199: =IF((X201+AB201)>100,AB201*100/(X201+AB201),AB201) -> 0.08404683066
C200: =MaxTarget(C205:C216) -> 2020 | D200: =IF((D202+H202)>100,D202*100/(D202+H202),D202) -> 5.514952035 | E200: =D200*AVERAGEIF(E205:E216,">0")/100 -> 1.063896596 | F200: =D200*(100-AVERAGEIF(E205:E216,">0"))/100 -> 4.451055438 | G200: =100-(E200+F200+H200) -> 25.98003943 | H200: =IF((D202+H202)>100,H202*100/(D202+H202),H202) -> 68.50500853 | I200: =IF((I202+M202)>100,I202*100/(I202+M202),I202) -> 27.471936 | J200: =I200*AVERAGEIF(J205:J216,">0")/100 -> 5.872541601 | K200: =I200*(100-AVERAGEIF(J205:J216,">0"))/100 -> 21.5993944 | L200: =100-(J200+K200+M200) -> 43.56249576 | M200: =IF((I202+M202)>100,M202*100/(I202+M202),M202) -> 28.96556824 | N200: =IF((N202+R202)>100,N202*100/(N202+R202),N202) -> 42.09505331 | O200: =N200*AVERAGEIF(O205:O216,">0")/100 -> 10.11089829 | P200: =N200*(100-AVERAGEIF(O205:O216,">0"))/100 -> 31.98415502 | Q200: =100-(O200+P200+R200) -> 42.87663469 | R200: =IF((N202+R202)>100,R202*100/(N202+R202),R202) -> 15.028312 | S200: =IF((S202+W202)>100,S202*100/(S202+W202),S202) -> 57.07231361 | T200: =S200*AVERAGEIF(T205:T216,">0")/100 -> 20.6429762 | U200: =S200*(100-AVERAGEIF(T205:T216,">0"))/100 -> 36.42933741 | V200: =100-(T200+U200+W200) -> 33.8727692 | W200: =IF((S202+W202)>100,W202*100/(S202+W202),W202) -> 9.054917193 | X200: =IF((X202+AB202)>100,X202*100/(X202+AB202),X202) -> 79.32510985 | Y200: =X200*AVERAGEIF(Y205:Y216,">0")/100 -> 48.97151262 | Z200: =X200*(100-AVERAGEIF(Y205:Y216,">0"))/100 -> 30.35359723 | AA200: =100-(Y200+Z200+AB200) -> 17.17408367 | AB200: =IF((X202+AB202)>100,AB202*100/(X202+AB202),AB202) -> 3.500806478
A201: Regression period: | C201: =MinRegYear(C199,C205:C216) -> 2007 | D201: =IF(MAX(C205:C216)-MIN(C205:C216)<5,AVERAGEIF(C205:C216,">0",D205:D216), IF(FORECAST($C201,D$205:D$216,$C$205:$C$216)<0,0, IF(FORECAST($C201,D$205:D$216,$C$205:$C$216)>100,100, FORECAST($C201,D$205:D$216,$C$205:$C$216)))) -> 9.803073951 | H201: =IF(MAX(C205:C216)-MIN(C205:C216)<5,AVERAGEIF(C205:C216,">0",H205:H216), IF(FORECAST($C201,H$205:H$216,$C$205:$C$216)<0,0, IF(FORECAST($C201,H$205:H$216,$C$205:$C$216)>100,100, FORECAST($C201,H$205:H$216,$C$205:$C$216)))) -> 39.99018714 | I201: =IF(MAX(C205:C216)-MIN(C205:C216)<5,AVERAGEIF(C205:C216,">0",I205:I216), IF(FORECAST($C201,I$205:I$216,$C$205:$C$216)<0,0, IF(FORECAST($C201,I$205:I$216,$C$205:$C$216)>100,100, FORECAST($C201,I$205:I$216,$C$205:$C$216)))) -> 16.90141266 | M201: =IF(MAX(C205:C216)-MIN(C205:C216)<5,AVERAGEIF(C205:C216,">0",M205:M216), IF(FORECAST($C201,M$205:M$216,$C$205:$C$216)<0,0, IF(FORECAST($C201,M$205:M$216,$C$205:$C$216)>100,100, FORECAST($C201,M$205:M$216,$C$205:$C$216)))) -> 15.71152412 | N201: =IF(MAX(C205:C216)-MIN(C205:C216)<5,AVERAGEIF(C205:C216,">0",N205:N216), IF(FORECAST($C201,N$205:N$216,$C$205:$C$216)<0,0, IF(FORECAST($C201,N$205:N$216,$C$205:$C$216)>100,100, FORECAST($C201,N$205:N$216,$C$205:$C$216)))) -> 21.40293248 | R201: =IF(MAX(C205:C216)-MIN(C205:C216)<5,AVERAGEIF(C205:C216,">0",R205:R216), IF(FORECAST($C201,R$205:R$216,$C$205:$C$216)<0,0, IF(FORECAST($C201,R$205:R$216,$C$205:$C$216)>100,100, FORECAST($C201,R$205:R$216,$C$205:$C$216)))) -> 9.99771947 | S201: =IF(MAX(C205:C216)-MIN(C205:C216)<5,AVERAGEIF(C205:C216,">0",S205:S216), IF(FORECAST($C201,S$205:S$216,$C$205:$C$216)<0,0, IF(FORECAST($C201,S$205:S$216,$C$205:$C$216)>100,100, FORECAST($C201,S$205:S$216,$C$205:$C$216)))) -> 23.31228519 | W201: =IF(MAX(C205:C216)-MIN(C205:C216)<5,AVERAGEIF(C205:C216,">0",W205:W216), IF(FORECAST($C201,W$205:W$216,$C$205:$C$216)<0,0, IF(FORECAST($C201,W$205:W$216,$C$205:$C$216)>100,100, FORECAST($C201,W$205:W$216,$C$205:$C$216)))) -> 4.667521738 | X201: =IF(MAX(C205:C216)-MIN(C205:C216)<5,AVERAGEIF(C205:C216,">0",X205:X216), IF(FORECAST($C201,X$205:X$216,$C$205:$C$216)<0,0, IF(FORECAST($C201,X$205:X$216,$C$205:$C$216)>100,100, FORECAST($C201,X$205:X$216,$C$205:$C$216)))) -> 51.57389834 | AB201: =IF(MAX(C205:C216)-MIN(C205:C216)<5,AVERAGEIF(C205:C216,">0",AB205:AB216), IF(FORECAST($C201,AB$205:AB$216,$C$205:$C$216)<0,0, IF(FORECAST($C201,AB$205:AB$216,$C$205:$C$216)>100,100, FORECAST($C201,AB$205:AB$216,$C$205:$C$216)))) -> 0.08404683066
C202: =MaxRegYear(C200,C205:C216) -> 2020 | D202: =IF(MAX(C205:C216)-MIN(C205:C216)<5,AVERAGEIF(C205:C216,">0",D205:D216), IF(FORECAST($C202,D$205:D$216,$C$205:$C$216)<0,0, IF(FORECAST($C202,D$205:D$216,$C$205:$C$216)>100,100, FORECAST($C202,D$205:D$216,$C$205:$C$216)))) -> 5.514952035 | H202: =IF(MAX(C205:C216)-MIN(C205:C216)<5,AVERAGEIF(C205:C216,">0",H205:H216), IF(FORECAST($C202,H$205:H$216,$C$205:$C$216)<0,0, IF(FORECAST($C202,H$205:H$216,$C$205:$C$216)>100,100, FORECAST($C202,H$205:H$216,$C$205:$C$216)))) -> 68.50500853 | I202: =IF(MAX(C205:C216)-MIN(C205:C216)<5,AVERAGEIF(C205:C216,">0",I205:I216), IF(FORECAST($C202,I$205:I$216,$C$205:$C$216)<0,0, IF(FORECAST($C202,I$205:I$216,$C$205:$C$216)>100,100, FORECAST($C202,I$205:I$216,$C$205:$C$216)))) -> 27.471936 | M202: =IF(MAX(C205:C216)-MIN(C205:C216)<5,AVERAGEIF(C205:C216,">0",M205:M216), IF(FORECAST($C202,M$205:M$216,$C$205:$C$216)<0,0, IF(FORECAST($C202,M$205:M$216,$C$205:$C$216)>100,100, FORECAST($C202,M$205:M$216,$C$205:$C$216)))) -> 28.96556824 | N202: =IF(MAX(C205:C216)-MIN(C205:C216)<5,AVERAGEIF(C205:C216,">0",N205:N216), IF(FORECAST($C202,N$205:N$216,$C$205:$C$216)<0,0, IF(FORECAST($C202,N$205:N$216,$C$205:$C$216)>100,100, FORECAST($C202,N$205:N$216,$C$205:$C$216)))) -> 42.09505331 | R202: =IF(MAX(C205:C216)-MIN(C205:C216)<5,AVERAGEIF(C205:C216,">0",R205:R216), IF(FORECAST($C202,R$205:R$216,$C$205:$C$216)<0,0, IF(FORECAST($C202,R$205:R$216,$C$205:$C$216)>100,100, FORECAST($C202,R$205:R$216,$C$205:$C$216)))) -> 15.028312 | S202: =IF(MAX(C205:C216)-MIN(C205:C216)<5,AVERAGEIF(C205:C216,">0",S205:S216), IF(FORECAST($C202,S$205:S$216,$C$205:$C$216)<0,0, IF(FORECAST($C202,S$205:S$216,$C$205:$C$216)>100,100, FORECAST($C202,S$205:S$216,$C$205:$C$216)))) -> 57.07231361 | W202: =IF(MAX(C205:C216)-MIN(C205:C216)<5,AVERAGEIF(C205:C216,">0",W205:W216), IF(FORECAST($C202,W$205:W$216,$C$205:$C$216)<0,0, IF(FORECAST($C202,W$205:W$216,$C$205:$C$216)>100,100, FORECAST($C202,W$205:W$216,$C$205:$C$216)))) -> 9.054917193 | X202: =IF(MAX(C205:C216)-MIN(C205:C216)<5,AVERAGEIF(C205:C216,">0",X205:X216), IF(FORECAST($C202,X$205:X$216,$C$205:$C$216)<0,0, IF(FORECAST($C202,X$205:X$216,$C$205:$C$216)>100,100, FORECAST($C202,X$205:X$216,$C$205:$C$216)))) -> 79.32510985 | AB202: =IF(MAX(C205:C216)-MIN(C205:C216)<5,AVERAGEIF(C205:C216,">0",AB205:AB216), IF(FORECAST($C202,AB$205:AB$216,$C$205:$C$216)<0,0, IF(FORECAST($C202,AB$205:AB$216,$C$205:$C$216)>100,100, FORECAST($C202,AB$205:AB$216,$C$205:$C$216)))) -> 3.500806478
B204: Survey | C204: Year | D204: Improved | E204: Not shared | H204: Open defecation | I204: Improved | J204: Not shared | M204: Open defecation | N204: Improved | O204: Not shared | R204: Open defecation | S204: Improved | T204: Not shared | W204: Open defecation | X204: Improved | Y204: Not shared | AB204: Open defecation
B205: DHS04 | D205: =IF(ISERROR(INDIRECT(CONCATENATE($B205,"!H122"))),"",INDIRECT(CONCATENATE($B205,"!H122"))) -> 3.483174033 | E205: =IF(ISERROR(INDIRECT(CONCATENATE($B205,"!H129"))),"",INDIRECT(CONCATENATE($B205,"!H129"))) -> N/A | H205: =IF(ISERROR(INDIRECT(CONCATENATE($B205,"!H127"))),"",INDIRECT(CONCATENATE($B205,"!H127"))) -> 52.52857314 | I205: =IF(ISERROR(INDIRECT(CONCATENATE($B205,"!I122"))),"",INDIRECT(CONCATENATE($B205,"!I122"))) -> 7.475539772 | J205: =IF(ISERROR(INDIRECT(CONCATENATE($B205,"!I129"))),"",INDIRECT(CONCATENATE($B205,"!I129"))) -> N/A | M205: =IF(ISERROR(INDIRECT(CONCATENATE($B205,"!I127"))),"",INDIRECT(CONCATENATE($B205,"!I127"))) -> 32.11289786 | N205: =IF(ISERROR(INDIRECT(CONCATENATE($B205,"!J122"))),"",INDIRECT(CONCATENATE($B205,"!J122"))) -> 14.96664171 | O205: =IF(ISERROR(INDIRECT(CONCATENATE($B205,"!J129"))),"",INDIRECT(CONCATENATE($B205,"!J129"))) -> N/A | R205: =IF(ISERROR(INDIRECT(CONCATENATE($B205,"!J127"))),"",INDIRECT(CONCATENATE($B205,"!J127"))) -> 10.07647708 | S205: =IF(ISERROR(INDIRECT(CONCATENATE($B205,"!K122"))),"",INDIRECT(CONCATENATE($B205,"!K122"))) -> 16.7257905 | T205: =IF(ISERROR(INDIRECT(CONCATENATE($B205,"!K129"))),"",INDIRECT(CONCATENATE($B205,"!K129"))) -> N/A | W205: =IF(ISERROR(INDIRECT(CONCATENATE($B205,"!K127"))),"",INDIRECT(CONCATENATE($B205,"!K127"))) -> 3.855186124 | X205: =IF(ISERROR(INDIRECT(CONCATENATE($B205,"!L122"))),"",INDIRECT(CONCATENATE($B205,"!L122"))) -> 45.13375843 | Y205: =IF(ISERROR(INDIRECT(CONCATENATE($B205,"!L129"))),"",INDIRECT(CONCATENATE($B205,"!L129"))) -> N/A | AB205: =IF(ISERROR(INDIRECT(CONCATENATE($B205,"!L2127"))),"",INDIRECT(CONCATENATE($B205,"!L127"))) -> 0.9532889987
B206: DHS09 | C206: 2009 | D206: 6.634857937 | E206: 29.04540719 | H206: 34.35278903 | I206: 13.42998853 | J206: 19.91110511 | M206: 11.49402883 | N206: 21.79997175 | O206: 34.27871617 | R206: 4.580192499 | S206: 23.40575711 | T206: 41.45604575 | W206: 1.626108321 | X206: 54.69307815 | Y206: 70.95368635 | AB206: 0.3986797431
B207: MIS11 | C207: 2011 | D207: 9.82379535 | E207: 13.67943888 | H207: 52.40295309 | I207: 23.73362539 | J207: 10.83490452 | M207: 24.76206102 | N207: 30.20260051 | O207: 22.28951663 | R207: 17.29906173 | S207: 41.26329787 | T207: 39.59158857 | W207: 8.295574577 | X207: 64.50478307 | Y207: 52.20825064 | AB207: 0.6954696016
B208: AIS13 | C208: 2013 | D208: 8.210402438 | E208: 12.87484214 | H208: 71.45890056 | I208: 25.5298882 | J208: 27.62367012 | M208: 28.37152321 | N208: 36.72394059 | O208: 21.20683068 | R208: 14.06509634 | S208: 42.15655434 | T208: 36.67449234 | W208: 8.877036157 | X208: 63.41991007 | Y208: 67.37055009 | AB208: 1.929024817
B209: MIS16 | C209: 2016 | D209: 12.4659899 | E209: 12.90736853 | H209: 46.33406086 | I209: 25.25539529 | J209: 25.62583079 | M209: 19.28184328 | N209: 25.32487272 | O209: 19.66366962 | R209: 16.84097759 | S209: 35.0079316 | T209: 36.69556519 | W209: 10.99403316 | X209: 62.99576653 | Y209: 62.32532296 | AB209: 4.268674324
B210: MICS18 | C210: 2018 | D210: 1.324947109 | E210: 27.94859596 | H210: 65.59256175 | I210: 22.57791564 | J210: 22.88704775 | M210: 27.27350365 | N210: 43.89772811 | O210: 22.65730542 | R210: 9.586266191 | S210: 57.82949342 | T210: 26.43161052 | W210: 4.344599137 | X210: 80.56662838 | Y210: 55.8181736 | AB210: 1.538870954
B218: =CONCATENATE("Urban use of sanitation facilities, ",C199,"–",C200) -> Urban use of sanitation facilities, 2003–2020 | S218: Data points used for regression
A297: RURAL | D297: Poorest | I297: Poor | N297: Middle | S297: Rich | X297: Richest
D298: Improved | E298: Basic | F298: Limited | G298: Unimproved | H298: Open defecation | I298: Improved | J298: Basic | K298: Limited | L298: Unimproved | M298: Open defecation | N298: Improved | O298: Basic | P298: Limited | Q298: Unimproved | R298: Open defecation | S298: Improved | T298: Basic | U298: Limited | V298: Unimproved | W298: Open defecation | X298: Improved | Y298: Basic | Z298: Limited | AA298: Unimproved | AB298: Open defecation
A299: Forecast period: | C299: 2000 | D299: =IF((D301+H301)>100,D301*100/(D301+H301),D301) -> 0 | E299: =D299*AVERAGEIF(E305:E316,">0")/100 -> 0 | F299: =D299*(100-AVERAGEIF(E305:E316,">0"))/100 -> 0 | G299: =100-(E299+F299+H299) -> 16.0804881 | H299: =IF((D301+H301)>100,H301*100/(D301+H301),H301) -> 83.9195119 | I299: =IF((I301+M301)>100,I301*100/(I301+M301),I301) -> 0 | J299: =I299*AVERAGEIF(J305:J316,">0")/100 -> 0 | K299: =I299*(100-AVERAGEIF(J305:J316,">0"))/100 -> 0 | L299: =100-(J299+K299+M299) -> 21.16792252 | M299: =IF((I301+M301)>100,M301*100/(I301+M301),M301) -> 78.83207748 | N299: =IF((N301+R301)>100,N301*100/(N301+R301),N301) -> 0 | O299: =N299*AVERAGEIF(O305:O316,">0")/100 -> 0 | P299: =N299*(100-AVERAGEIF(O305:O316,">0"))/100 -> 0 | Q299: =100-(O299+P299+R299) -> 35.22295706 | R299: =IF((N301+R301)>100,R301*100/(N301+R301),R301) -> 64.77704294 | S299: =IF((S301+W301)>100,S301*100/(S301+W301),S301) -> 0.1911356205 | T299: =S299*AVERAGEIF(T305:T316,">0")/100 -> 0.07165326773 | U299: =S299*(100-AVERAGEIF(T305:T316,">0"))/100 -> 0.1194823528 | V299: =100-(T299+U299+W299) -> 52.4718889 | W299: =IF((S301+W301)>100,W301*100/(S301+W301),W301) -> 47.33697548 | X299: =IF((X301+AB301)>100,X301*100/(X301+AB301),X301) -> 0.9346569151 | Y299: =X299*AVERAGEIF(Y305:Y316,">0")/100 -> 0.429949298 | Z299: =X299*(100-AVERAGEIF(Y305:Y316,">0"))/100 -> 0.5047076171 | AA299: =100-(Y299+Z299+AB299) -> 82.47834898 | AB299: =IF((X301+AB301)>100,AB301*100/(X301+AB301),AB301) -> 16.58699411
C300: 2020 | D300: =IF((D302+H302)>100,D302*100/(D302+H302),D302) -> 3.875741223 | E300: =D300*AVERAGEIF(E305:E316,">0")/100 -> 1.331878368 | F300: =D300*(100-AVERAGEIF(E305:E316,">0"))/100 -> 2.543862855 | G300: =100-(E300+F300+H300) -> 29.38225833 | H300: =IF((D302+H302)>100,H302*100/(D302+H302),H302) -> 66.74200045 | I300: =IF((I302+M302)>100,I302*100/(I302+M302),I302) -> 6.162150077 | J300: =I300*AVERAGEIF(J305:J316,">0")/100 -> 1.768407543 | K300: =I300*(100-AVERAGEIF(J305:J316,">0"))/100 -> 4.393742534 | L300: =100-(J300+K300+M300) -> 37.31978848 | M300: =IF((I302+M302)>100,M302*100/(I302+M302),M302) -> 56.51806144 | N300: =IF((N302+R302)>100,N302*100/(N302+R302),N302) -> 9.025663046 | O300: =N300*AVERAGEIF(O305:O316,">0")/100 -> 3.105651469 | P300: =N300*(100-AVERAGEIF(O305:O316,">0"))/100 -> 5.920011577 | Q300: =100-(O300+P300+R300) -> 40.33358769 | R300: =IF((N302+R302)>100,R302*100/(N302+R302),R302) -> 50.64074927 | S300: =IF((S302+W302)>100,S302*100/(S302+W302),S302) -> 12.53679058 | T300: =S300*AVERAGEIF(T305:T316,">0")/100 -> 4.699814769 | U300: =S300*(100-AVERAGEIF(T305:T316,">0"))/100 -> 7.836975816 | V300: =100-(T300+U300+W300) -> 48.25957289 | W300: =IF((S302+W302)>100,W302*100/(S302+W302),W302) -> 39.20363653 | X300: =IF((X302+AB302)>100,X302*100/(X302+AB302),X302) -> 36.60739608 | Y300: =X300*AVERAGEIF(Y305:Y316,">0")/100 -> 16.83968094 | Z300: =X300*(100-AVERAGEIF(Y305:Y316,">0"))/100 -> 19.76771513 | AA300: =100-(Y300+Z300+AB300) -> 44.92530098 | AB300: =IF((X302+AB302)>100,AB302*100/(X302+AB302),AB302) -> 18.46730295
A301: Regression period: | C301: =MinRegYear(C299,C305:C316) -> 2002 | D301: =IF(MAX(C305:C316)-MIN(C305:C316)<5,AVERAGEIF(C305:C316,">0",D305:D316), IF(FORECAST($C301,D$305:D$316,$C$305:$C$316)<0,0, IF(FORECAST($C301,D$305:D$316,$C$305:$C$316)>100,100, FORECAST($C301,D$305:D$316,$C$305:$C$316)))) -> 0 | H301: =IF(MAX(C305:C316)-MIN(C305:C316)<5,AVERAGEIF(C305:C316,">0",H305:H316), IF(FORECAST($C301,H$305:H$316,$C$305:$C$316)<0,0, IF(FORECAST($C301,H$305:H$316,$C$305:$C$316)>100,100, FORECAST($C301,H$305:H$316,$C$305:$C$316)))) -> 83.9195119 | I301: =IF(MAX(C305:C316)-MIN(C305:C316)<5,AVERAGEIF(C305:C316,">0",I305:I316), IF(FORECAST($C301,I$305:I$316,$C$305:$C$316)<0,0, IF(FORECAST($C301,I$305:I$316,$C$305:$C$316)>100,100, FORECAST($C301,I$305:I$316,$C$305:$C$316)))) -> 0 | M301: =IF(MAX(C305:C316)-MIN(C305:C316)<5,AVERAGEIF(C305:C316,">0",M305:M316), IF(FORECAST($C301,M$305:M$316,$C$305:$C$316)<0,0, IF(FORECAST($C301,M$305:M$316,$C$305:$C$316)>100,100, FORECAST($C301,M$305:M$316,$C$305:$C$316)))) -> 78.83207748 | N301: =IF(MAX(C305:C316)-MIN(C305:C316)<5,AVERAGEIF(C305:C316,">0",N305:N316), IF(FORECAST($C301,N$305:N$316,$C$305:$C$316)<0,0, IF(FORECAST($C301,N$305:N$316,$C$305:$C$316)>100,100, FORECAST($C301,N$305:N$316,$C$305:$C$316)))) -> 0 | R301: =IF(MAX(C305:C316)-MIN(C305:C316)<5,AVERAGEIF(C305:C316,">0",R305:R316), IF(FORECAST($C301,R$305:R$316,$C$305:$C$316)<0,0, IF(FORECAST($C301,R$305:R$316,$C$305:$C$316)>100,100, FORECAST($C301,R$305:R$316,$C$305:$C$316)))) -> 64.77704294 | S301: =IF(MAX(C305:C316)-MIN(C305:C316)<5,AVERAGEIF(C305:C316,">0",S305:S316), IF(FORECAST($C301,S$305:S$316,$C$305:$C$316)<0,0, IF(FORECAST($C301,S$305:S$316,$C$305:$C$316)>100,100, FORECAST($C301,S$305:S$316,$C$305:$C$316)))) -> 0.1911356205 | W301: =IF(MAX(C305:C316)-MIN(C305:C316)<5,AVERAGEIF(C305:C316,">0",W305:W316), IF(FORECAST($C301,W$305:W$316,$C$305:$C$316)<0,0, IF(FORECAST($C301,W$305:W$316,$C$305:$C$316)>100,100, FORECAST($C301,W$305:W$316,$C$305:$C$316)))) -> 47.33697548 | X301: =IF(MAX(C305:C316)-MIN(C305:C316)<5,AVERAGEIF(C305:C316,">0",X305:X316), IF(FORECAST($C301,X$305:X$316,$C$305:$C$316)<0,0, IF(FORECAST($C301,X$305:X$316,$C$305:$C$316)>100,100, FORECAST($C301,X$305:X$316,$C$305:$C$316)))) -> 0.9346569151 | AB301: =IF(MAX(C305:C316)-MIN(C305:C316)<5,AVERAGEIF(C305:C316,">0",AB305:AB316), IF(FORECAST($C301,AB$305:AB$316,$C$305:$C$316)<0,0, IF(FORECAST($C301,AB$305:AB$316,$C$305:$C$316)>100,100, FORECAST($C301,AB$305:AB$316,$C$305:$C$316)))) -> 16.58699411
C302: =MaxRegYear(C300,C305:C316) -> 2020 | D302: =IF(MAX(C305:C316)-MIN(C305:C316)<5,AVERAGEIF(C305:C316,">0",D305:D316), IF(FORECAST($C302,D$305:D$316,$C$305:$C$316)<0,0, IF(FORECAST($C302,D$305:D$316,$C$305:$C$316)>100,100, FORECAST($C302,D$305:D$316,$C$305:$C$316)))) -> 3.875741223 | H302: =IF(MAX(C305:C316)-MIN(C305:C316)<5,AVERAGEIF(C305:C316,">0",H305:H316), IF(FORECAST($C302,H$305:H$316,$C$305:$C$316)<0,0, IF(FORECAST($C302,H$305:H$316,$C$305:$C$316)>100,100, FORECAST($C302,H$305:H$316,$C$305:$C$316)))) -> 66.74200045 | I302: =IF(MAX(C305:C316)-MIN(C305:C316)<5,AVERAGEIF(C305:C316,">0",I305:I316), IF(FORECAST($C302,I$305:I$316,$C$305:$C$316)<0,0, IF(FORECAST($C302,I$305:I$316,$C$305:$C$316)>100,100, FORECAST($C302,I$305:I$316,$C$305:$C$316)))) -> 6.162150077 | M302: =IF(MAX(C305:C316)-MIN(C305:C316)<5,AVERAGEIF(C305:C316,">0",M305:M316), IF(FORECAST($C302,M$305:M$316,$C$305:$C$316)<0,0, IF(FORECAST($C302,M$305:M$316,$C$305:$C$316)>100,100, FORECAST($C302,M$305:M$316,$C$305:$C$316)))) -> 56.51806144 | N302: =IF(MAX(C305:C316)-MIN(C305:C316)<5,AVERAGEIF(C305:C316,">0",N305:N316), IF(FORECAST($C302,N$305:N$316,$C$305:$C$316)<0,0, IF(FORECAST($C302,N$305:N$316,$C$305:$C$316)>100,100, FORECAST($C302,N$305:N$316,$C$305:$C$316)))) -> 9.025663046 | R302: =IF(MAX(C305:C316)-MIN(C305:C316)<5,AVERAGEIF(C305:C316,">0",R305:R316), IF(FORECAST($C302,R$305:R$316,$C$305:$C$316)<0,0, IF(FORECAST($C302,R$305:R$316,$C$305:$C$316)>100,100, FORECAST($C302,R$305:R$316,$C$305:$C$316)))) -> 50.64074927 | S302: =IF(MAX(C305:C316)-MIN(C305:C316)<5,AVERAGEIF(C305:C316,">0",S305:S316), IF(FORECAST($C302,S$305:S$316,$C$305:$C$316)<0,0, IF(FORECAST($C302,S$305:S$316,$C$305:$C$316)>100,100, FORECAST($C302,S$305:S$316,$C$305:$C$316)))) -> 12.53679058 | W302: =IF(MAX(C305:C316)-MIN(C305:C316)<5,AVERAGEIF(C305:C316,">0",W305:W316), IF(FORECAST($C302,W$305:W$316,$C$305:$C$316)<0,0, IF(FORECAST($C302,W$305:W$316,$C$305:$C$316)>100,100, FORECAST($C302,W$305:W$316,$C$305:$C$316)))) -> 39.20363653 | X302: =IF(MAX(C305:C316)-MIN(C305:C316)<5,AVERAGEIF(C305:C316,">0",X305:X316), IF(FORECAST($C302,X$305:X$316,$C$305:$C$316)<0,0, IF(FORECAST($C302,X$305:X$316,$C$305:$C$316)>100,100, FORECAST($C302,X$305:X$316,$C$305:$C$316)))) -> 36.60739608 | AB302: =IF(MAX(C305:C316)-MIN(C305:C316)<5,AVERAGEIF(C305:C316,">0",AB305:AB316), IF(FORECAST($C302,AB$305:AB$316,$C$305:$C$316)<0,0, IF(FORECAST($C302,AB$305:AB$316,$C$305:$C$316)>100,100, FORECAST($C302,AB$305:AB$316,$C$305:$C$316)))) -> 18.46730295
B304: Survey | C304: Year | D304: Improved | E304: Not shared | H304: Open defecation | I304: Improved | J304: Not shared | M304: Open defecation | N304: Improved | O304: Not shared | R304: Open defecation | S304: Improved | T304: Not shared | W304: Open defecation | X304: Improved | Y304: Not shared | AB304: Open defecation
B305: DHS04 | C305: 2004 | D305: =IF(ISERROR(INDIRECT(CONCATENATE($B305,"!M122"))),"",INDIRECT(CONCATENATE($B305,"!M122"))) -> 0.1473017811 | E305: =IF(ISERROR(INDIRECT(CONCATENATE($B305,"!M129"))),"",INDIRECT(CONCATENATE($B305,"!M129"))) -> N/A | H305: =IF(ISERROR(INDIRECT(CONCATENATE($B305,"!M127"))),"",INDIRECT(CONCATENATE($B305,"!M127"))) -> 76.42288178 | I305: =IF(ISERROR(INDIRECT(CONCATENATE($B305,"!N122"))),"",INDIRECT(CONCATENATE($B305,"!N122"))) -> 0.131108986 | J305: =IF(ISERROR(INDIRECT(CONCATENATE($B305,"!N129"))),"",INDIRECT(CONCATENATE($B305,"!N129"))) -> N/A | M305: =IF(ISERROR(INDIRECT(CONCATENATE($B305,"!N127"))),"",INDIRECT(CONCATENATE($B305,"!N127"))) -> 72.43748666 | N305: =IF(ISERROR(INDIRECT(CONCATENATE($B305,"!O122"))),"",INDIRECT(CONCATENATE($B305,"!O122"))) -> 0.2355126076 | O305: =IF(ISERROR(INDIRECT(CONCATENATE($B305,"!O129"))),"",INDIRECT(CONCATENATE($B305,"!O129"))) -> N/A | R305: =IF(ISERROR(INDIRECT(CONCATENATE($B305,"!O127"))),"",INDIRECT(CONCATENATE($B305,"!O127"))) -> 61.0430497 | S305: =IF(ISERROR(INDIRECT(CONCATENATE($B305,"!P122"))),"",INDIRECT(CONCATENATE($B305,"!P122"))) -> 1.022365045 | T305: =IF(ISERROR(INDIRECT(CONCATENATE($B305,"!P129"))),"",INDIRECT(CONCATENATE($B305,"!P129"))) -> N/A | W305: =IF(ISERROR(INDIRECT(CONCATENATE($B305,"!P127"))),"",INDIRECT(CONCATENATE($B305,"!P127"))) -> 41.40485839 | X305: =IF(ISERROR(INDIRECT(CONCATENATE($B305,"!Q122"))),"",INDIRECT(CONCATENATE($B305,"!Q122"))) -> 6.47799736 | Y305: =IF(ISERROR(INDIRECT(CONCATENATE($B305,"!Q129"))),"",INDIRECT(CONCATENATE($B305,"!Q129"))) -> N/A | AB305: =IF(ISERROR(INDIRECT(CONCATENATE($B305,"!Q2127"))),"",INDIRECT(CONCATENATE($B305,"!Q127"))) -> 14.16773492
B306: DHS09 | C306: 2009 | D306: 0.5080401242 | E306: 0 | H306: 76.0284836 | I306: 0.7368341907 | J306: 25.93402125 | M306: 64.81734732 | N306: 1.030054779 | O306: 42.33842275 | R306: 50.031777 | S306: 1.867742337 | T306: 46.30015407 | W306: 39.1583791 | X306: 8.910449706 | Y306: 56.96106202 | AB306: 15.38719378
B307: MIS11 | C307: 2011 | D307: 2.149997058 | E307: 33.17667305 | H307: 85.40914166 | I307: 3.345217712 | J307: 30.91207937 | M307: 78.95953782 | N307: 4.999040129 | O307: 25.11903166 | R307: 67.62281669 | S307: 8.249464127 | T307: 30.5285325 | W307: 51.39117554 | X307: 22.06170341 | Y307: 44.64328641 | AB307: 22.76001604
B308: AIS13 | C308: 2013 | D308: 3.334026608 | E308: 33.29349545 | H308: 80.91116752 | I308: 5.384703497 | J308: 24.08454247 | M308: 73.63919718 | N308: 8.813519266 | O308: 28.33759171 | R308: 68.46812803 | S308: 11.74213929 | T308: 43.03837684 | W308: 57.0911434 | X308: 23.82076526 | Y308: 45.90881162 | AB308: 22.51376501
B309: MIS16 | C309: 2016 | D309: 5.459842045 | E309: 36.78949257 | H309: 61.1274232 | I309: 6.74852328 | J309: 31.39474372 | M309: 52.29598294 | N309: 10.01875986 | O309: 36.14009231 | R309: 45.01683808 | S309: 11.02170232 | T309: 34.66513046 | W309: 33.54587736 | X309: 29.92580547 | Y309: 39.87781764 | AB309: 14.87710568
B310: MICS18 | C310: 2018 | D310: 0.9040180662 | E310: 34.19826421 | H310: 67.31390834 | I310: 2.843118545 | J310: 31.16410313 | M310: 57.70252707 | N310: 3.668071019 | O310: 40.11047491 | R310: 50.14401887 | S310: 7.709714093 | T310: 32.90871204 | W310: 34.7711414 | X310: 31.33853198 | Y310: 42.61282961 | AB310: 15.97938373
B318: =CONCATENATE("Rural use of sanitation facilities, ",C299,"–",C300) -> Rural use of sanitation facilities, 2000–2020 | S318: Data points used for regression

Sheet Hygiene
B4: Access to hygiene facilities by wealth quintile (%)
B5: =IF(ISERROR(INDIRECT(CONCATENATE($E$32,"!A2"))),"",INDIRECT(CONCATENATE($E$32,"!A2"))) -> Madagascar
B7: =CONCATENATE("National ",IF(ISERROR(INDIRECT(CONCATENATE($E$32,"!A2"))),"",INDIRECT(CONCATENATE($E$32,"!A210")))) -> National Access to hygiene facilities | K7: =CONCATENATE("Urban ",IF(ISERROR(INDIRECT(CONCATENATE($E$32,"!A2"))),"",INDIRECT(CONCATENATE($E$32,"!A210")))) -> Urban Access to hygiene facilities | S7: =CONCATENATE("Rural ",IF(ISERROR(INDIRECT(CONCATENATE($E$32,"!A2"))),"",INDIRECT(CONCATENATE($E$32,"!A210")))) -> Rural Access to hygiene facilities
E32: =INDEX(B88:B100,A88) -> MICS18 | G32: =IF(ISERROR(INDIRECT(CONCATENATE($E$32,"!A2"))),"",INDIRECT(CONCATENATE($E$32,"!A2"))) -> Madagascar | K32: Poorest | N32: Poor | Q32: Middle | T32: Rich | W32: Richest
K33: Basic | L33: Limited | M33: No facility | N33: Basic | O33: Limited | P33: No facility | Q33: Basic | R33: Limited | S33: No facility | T33: Basic | U33: Limited | V33: No facility | W33: Basic | X33: Limited | Y33: No facility
B34: >>> Select Survey : | G34: NATIONAL | J34: =IF(ISERROR(INDIRECT(CONCATENATE(#REF!,"!A2"))),"",INDIRECT(CONCATENATE(#REF!,"!A210"))) ->  | K34: =IF(ISERROR(INDIRECT(CONCATENATE($E$32,"!C222"))),"",INDIRECT(CONCATENATE($E$32,"!C222"))) -> 4.718403989 | L34: =IF(ISERROR(INDIRECT(CONCATENATE($E$32,"!C223"))),"",INDIRECT(CONCATENATE($E$32,"!C223"))) -> 12.48973255 | M34: =IF(ISERROR(INDIRECT(CONCATENATE($E$32,"!C224"))),"",INDIRECT(CONCATENATE($E$32,"!C224"))) -> 82.79186346 | N34: =IF(ISERROR(INDIRECT(CONCATENATE($E$32,"!D222"))),"",INDIRECT(CONCATENATE($E$32,"!D222"))) -> 7.921671373 | O34: =IF(ISERROR(INDIRECT(CONCATENATE($E$32,"!D223"))),"",INDIRECT(CONCATENATE($E$32,"!D223"))) -> 16.91630984 | P34: =IF(ISERROR(INDIRECT(CONCATENATE($E$32,"!D224"))),"",INDIRECT(CONCATENATE($E$32,"!D224"))) -> 75.16201879 | Q34: =IF(ISERROR(INDIRECT(CONCATENATE($E$32,"!E222"))),"",INDIRECT(CONCATENATE($E$32,"!E222"))) -> 13.61143932 | R34: =IF(ISERROR(INDIRECT(CONCATENATE($E$32,"!E223"))),"",INDIRECT(CONCATENATE($E$32,"!E223"))) -> 18.46929765 | S34: =IF(ISERROR(INDIRECT(CONCATENATE($E$32,"!E224"))),"",INDIRECT(CONCATENATE($E$32,"!E224"))) -> 67.91926303 | T34: =IF(ISERROR(INDIRECT(CONCATENATE($E$32,"!F222"))),"",INDIRECT(CONCATENATE($E$32,"!F222"))) -> 22.08435591 | U34: =IF(ISERROR(INDIRECT(CONCATENATE($E$32,"!F223"))),"",INDIRECT(CONCATENATE($E$32,"!F223"))) -> 19.39242994 | V34: =IF(ISERROR(INDIRECT(CONCATENATE($E$32,"!F224"))),"",INDIRECT(CONCATENATE($E$32,"!F224"))) -> 58.52321415 | W34: =IF(ISERROR(INDIRECT(CONCATENATE($E$32,"!G222"))),"",INDIRECT(CONCATENATE($E$32,"!G222"))) -> 43.21599241 | X34: =IF(ISERROR(INDIRECT(CONCATENATE($E$32,"!G223"))),"",INDIRECT(CONCATENATE($E$32,"!G223"))) -> 19.19638924 | Y34: =IF(ISERROR(INDIRECT(CONCATENATE($E$32,"!G224"))),"",INDIRECT(CONCATENATE($E$32,"!G224"))) -> 37.58761835
G37: URBAN | J37: =IF(ISERROR(INDIRECT(CONCATENATE(#REF!,"!A2"))),"",INDIRECT(CONCATENATE(#REF!,"!A210"))) ->  | K37: =IF(ISERROR(INDIRECT(CONCATENATE($E$32,"!H222"))),"",INDIRECT(CONCATENATE($E$32,"!H222"))) -> 8.170962509 | L37: =IF(ISERROR(INDIRECT(CONCATENATE($E$32,"!H223"))),"",INDIRECT(CONCATENATE($E$32,"!H223"))) -> 14.64186826 | M37: =IF(ISERROR(INDIRECT(CONCATENATE($E$32,"!H224"))),"",INDIRECT(CONCATENATE($E$32,"!H224"))) -> 77.18716923 | N37: =IF(ISERROR(INDIRECT(CONCATENATE($E$32,"!I222"))),"",INDIRECT(CONCATENATE($E$32,"!I222"))) -> 21.92505968 | O37: =IF(ISERROR(INDIRECT(CONCATENATE($E$32,"!I223"))),"",INDIRECT(CONCATENATE($E$32,"!I223"))) -> 22.62599244 | P37: =IF(ISERROR(INDIRECT(CONCATENATE($E$32,"!I224"))),"",INDIRECT(CONCATENATE($E$32,"!I224"))) -> 55.44894788 | Q37: =IF(ISERROR(INDIRECT(CONCATENATE($E$32,"!J222"))),"",INDIRECT(CONCATENATE($E$32,"!J222"))) -> 32.84726935 | R37: =IF(ISERROR(INDIRECT(CONCATENATE($E$32,"!J223"))),"",INDIRECT(CONCATENATE($E$32,"!J223"))) -> 17.84723041 | S37: =IF(ISERROR(INDIRECT(CONCATENATE($E$32,"!J224"))),"",INDIRECT(CONCATENATE($E$32,"!J224"))) -> 49.30550024 | T37: =IF(ISERROR(INDIRECT(CONCATENATE($E$32,"!K222"))),"",INDIRECT(CONCATENATE($E$32,"!K222"))) -> 39.20309884 | U37: =IF(ISERROR(INDIRECT(CONCATENATE($E$32,"!K223"))),"",INDIRECT(CONCATENATE($E$32,"!K223"))) -> 20.5640531 | V37: =IF(ISERROR(INDIRECT(CONCATENATE($E$32,"!K224"))),"",INDIRECT(CONCATENATE($E$32,"!K224"))) -> 40.23284806 | W37: =IF(ISERROR(INDIRECT(CONCATENATE($E$32,"!L222"))),"",INDIRECT(CONCATENATE($E$32,"!L222"))) -> 58.56377112 | X37: =IF(ISERROR(INDIRECT(CONCATENATE($E$32,"!L223"))),"",INDIRECT(CONCATENATE($E$32,"!L223"))) -> 17.83846212 | Y37: =IF(ISERROR(INDIRECT(CONCATENATE($E$32,"!L224"))),"",INDIRECT(CONCATENATE($E$32,"!L224"))) -> 23.59776677
G40: RURAL | J40: =IF(ISERROR(INDIRECT(CONCATENATE(#REF!,"!A2"))),"",INDIRECT(CONCATENATE(#REF!,"!A210"))) ->  | K40: =IF(ISERROR(INDIRECT(CONCATENATE($E$32,"!M222"))),"",INDIRECT(CONCATENATE($E$32,"!M222"))) -> 4.801050055 | L40: =IF(ISERROR(INDIRECT(CONCATENATE($E$32,"!M223"))),"",INDIRECT(CONCATENATE($E$32,"!M223"))) -> 11.96308187 | M40: =IF(ISERROR(INDIRECT(CONCATENATE($E$32,"!M224"))),"",INDIRECT(CONCATENATE($E$32,"!M224"))) -> 83.23586808 | N40: =IF(ISERROR(INDIRECT(CONCATENATE($E$32,"!N222"))),"",INDIRECT(CONCATENATE($E$32,"!N222"))) -> 6.502495355 | O40: =IF(ISERROR(INDIRECT(CONCATENATE($E$32,"!N223"))),"",INDIRECT(CONCATENATE($E$32,"!N223"))) -> 16.12468875 | P40: =IF(ISERROR(INDIRECT(CONCATENATE($E$32,"!N224"))),"",INDIRECT(CONCATENATE($E$32,"!N224"))) -> 77.3728159 | Q40: =IF(ISERROR(INDIRECT(CONCATENATE($E$32,"!O222"))),"",INDIRECT(CONCATENATE($E$32,"!O222"))) -> 12.31157068 | R40: =IF(ISERROR(INDIRECT(CONCATENATE($E$32,"!O223"))),"",INDIRECT(CONCATENATE($E$32,"!O223"))) -> 19.28340227 | S40: =IF(ISERROR(INDIRECT(CONCATENATE($E$32,"!O224"))),"",INDIRECT(CONCATENATE($E$32,"!O224"))) -> 68.40502705 | T40: =IF(ISERROR(INDIRECT(CONCATENATE($E$32,"!P222"))),"",INDIRECT(CONCATENATE($E$32,"!P222"))) -> 15.58915713 | U40: =IF(ISERROR(INDIRECT(CONCATENATE($E$32,"!P223"))),"",INDIRECT(CONCATENATE($E$32,"!P223"))) -> 18.02125032 | V40: =IF(ISERROR(INDIRECT(CONCATENATE($E$32,"!P224"))),"",INDIRECT(CONCATENATE($E$32,"!P224"))) -> 66.38959254 | W40: =IF(ISERROR(INDIRECT(CONCATENATE($E$32,"!Q222"))),"",INDIRECT(CONCATENATE($E$32,"!Q222"))) -> 31.61214115 | X40: =IF(ISERROR(INDIRECT(CONCATENATE($E$32,"!Q223"))),"",INDIRECT(CONCATENATE($E$32,"!Q223"))) -> 18.96313871 | Y40: =IF(ISERROR(INDIRECT(CONCATENATE($E$32,"!Q224"))),"",INDIRECT(CONCATENATE($E$32,"!Q224"))) -> 49.42472015
A88: 6 | B88: DHS04
B89: DHS09
B90: MIS11
B91: AIS13
B92: MIS16
B93: MICS18
B94: Input
B95: Template

Sheet DHS04
A2: =A1026 -> Madagascar
A3: =A1034 -> 2004
A4: Use of drinking water sources
A5: by wealth quintile and sub-national region
A6: Notes:
A7: WHO/UNICEF JMP customised wealth index excludes water,
A8: sanitation and hygiene assets.
A9: Survey used for analysis: | B9: =A1025 -> DHS04
A10: Improved springs based on: | B10: DHS09
A11: Time to source based on: | B11: DHS09
A14: Use of drinking water sources | C14: NATIONAL wealth index quintile | H14: URBAN wealth index quintile | M14: RURAL wealth index quintile | R14: SUB-REGIONS: | BA14: Raw numbers of respondents: | BB14: Use of drinking water sources | BC14: NATIONAL wealth index quintile | BH14: URBAN wealth index quintile | BM14: RURAL wealth index quintile | BR14: SUB-REGIONS:
A15: Weighted percentage (used in graphs) | C15: Poorest | D15: Poor | E15: Middle | F15: Rich | G15: Richest | H15: Poorest | I15: Poor | J15: Middle | K15: Rich | L15: Richest | M15: Poorest | N15: Poor | O15: Middle | P15: Rich | Q15: Richest | R15: Antananarivo | S15: Antsiranana | T15: Fianarantsoa | U15: Mahajanga | V15: Toamasina | W15: Toliary | BA15: Water data, raw numbers (weighted) | BC15: Poorest | BD15: Poor | BE15: Middle | BF15: Rich | BG15: Richest | BH15: Poorest | BI15: Poor | BJ15: Middle | BK15: Rich | BL15: Richest | BM15: Poorest | BN15: Poor | BO15: Middle | BP15: Rich | BQ15: Richest | BR15: Antananarivo | BS15: Antsiranana | BT15: Fianarantsoa | BU15: Mahajanga | BV15: Toamasina | BW15: Toliary
A16: Water | B16: Improved | C16: =C58+C59+C60+C64+C65+C66+C71+C72+C67*'DHS09'!C25/100 -> 10.99713864 | D16: =D58+D59+D60+D64+D65+D66+D71+D72+D67*'DHS09'!D25/100 -> 12.6783264 | E16: =E58+E59+E60+E64+E65+E66+E71+E72+E67*'DHS09'!E25/100 -> 18.08130214 | F16: =F58+F59+F60+F64+F65+F66+F71+F72+F67*'DHS09'!F25/100 -> 41.35975656 | G16: =G58+G59+G60+G64+G65+G66+G71+G72+G67*'DHS09'!G25/100 -> 88.78447199 | H16: =H58+H59+H60+H64+H65+H66+H71+H72+H67*'DHS09'!H25/100 -> 33.02033783 | I16: =I58+I59+I60+I64+I65+I66+I71+I72+I67*'DHS09'!I25/100 -> 60.00643997 | J16: =J58+J59+J60+J64+J65+J66+J71+J72+J67*'DHS09'!J25/100 -> 89.07953519 | K16: =K58+K59+K60+K64+K65+K66+K71+K72+K67*'DHS09'!K25/100 -> 94.83740779 | L16: =L58+L59+L60+L64+L65+L66+L71+L72+L67*'DHS09'!L25/100 -> 96.97595216 | M16: =M58+M59+M60+M64+M65+M66+M71+M72+M67*'DHS09'!M25/100 -> 9.197023847 | N16: =N58+N59+N60+N64+N65+N66+N71+N72+N67*'DHS09'!N25/100 -> 12.04372225 | O16: =O58+O59+O60+O64+O65+O66+O71+O72+O67*'DHS09'!O25/100 -> 14.52152001 | P16: =P58+P59+P60+P64+P65+P66+P71+P72+P67*'DHS09'!P25/100 -> 23.20039563 | Q16: =Q58+Q59+Q60+Q64+Q65+Q66+Q71+Q72+Q67*'DHS09'!Q25/100 -> 60.75598651 | R16: =R58+R59+R60+R64+R65+R66+R71+R72+R67*'DHS09'!R25/100 -> 64.1441865 | S16: =S58+S59+S60+S64+S65+S66+S71+S72+S67*'DHS09'!S25/100 -> 31.76813125 | T16: =T58+T59+T60+T64+T65+T66+T71+T72+T67*'DHS09'!T25/100 -> 19.53213109 | U16: =U58+U59+U60+U64+U65+U66+U71+U72+U67*'DHS09'!U25/100 -> 28.63441705 | V16: =V58+V59+V60+V64+V65+V66+V71+V72+V67*'DHS09'!V25/100 -> 20.62335301 | W16: =W58+W59+W60+W64+W65+W66+W71+W72+W67*'DHS09'!W25/100 -> 29.37615921 | BA16: Water | BB16: Improved | BC16: N/A | BD16: N/A | BE16: N/A | BF16: N/A | BG16: N/A | BH16: N/A | BI16: N/A | BJ16: N/A | BK16: N/A | BL16: N/A | BM16: N/A | BN16: N/A | BO16: N/A | BP16: N/A | BQ16: N/A | BR16: N/A | BS16: N/A | BT16: N/A | BU16: N/A | BV16: N/A | BW16: N/A
B17: Not Improved | C17: =100-C16 -> 89.00286136 | D17: =100-D16 -> 87.3216736 | E17: 81.91869786 | F17: 58.64024344 | G17: 11.21552801 | H17: 66.97966217 | I17: 39.99356003 | J17: 10.92046481 | K17: 5.16259221 | L17: 3.024047845 | M17: 90.80297615 | N17: 87.95627775 | O17: 85.47847999 | P17: 76.79960437 | Q17: 39.24401349 | R17: 35.8558135 | S17: 68.23186875 | T17: 80.46786891 | U17: 71.36558295 | V17: 79.37664699 | W17: 70.62384079 | BB17: Not Improved | BC17: N/A | BD17: N/A | BE17: N/A | BF17: N/A | BG17: N/A | BH17: N/A | BI17: N/A | BJ17: N/A | BK17: N/A | BL17: N/A | BM17: N/A | BN17: N/A | BO17: N/A | BP17: N/A | BQ17: N/A | BR17: N/A | BS17: N/A | BT17: N/A | BU17: N/A | BV17: N/A | BW17: N/A
A18: Water ladder | B18: Basic | C18: =C16*'DHS09'!C23/100 -> 10.53525882 | D18: =D16*'DHS09'!D23/100 -> 12.28529828 | E18: =E16*'DHS09'!E23/100 -> 17.91857042 | F18: =F16*'DHS09'!F23/100 -> 40.946159 | G18: =G16*'DHS09'!G23/100 -> 87.18635149 | H18: =H16*'DHS09'!H23/100 -> 32.49201242 | I18: =I16*'DHS09'!I23/100 -> 58.80631117 | J18: =J16*'DHS09'!J23/100 -> 86.49622867 | K18: =K16*'DHS09'!K23/100 -> 91.70777333 | L18: =L16*'DHS09'!L23/100 -> 94.55155335 | M18: =M16*'DHS09'!M23/100 -> 8.746369679 | N18: =N16*'DHS09'!N23/100 -> 11.63423569 | O18: =O16*'DHS09'!O23/100 -> 14.39082633 | P18: =P16*'DHS09'!P23/100 -> 22.92199088 | Q18: =Q16*'DHS09'!Q23/100 -> 60.51296257 | R18: N/A | S18: N/A | T18: N/A | U18: N/A | V18: N/A | W18: N/A | BA18: Water ladder | BB18: Basic | BC18: N/A | BD18: N/A | BE18: N/A | BF18: N/A | BG18: N/A | BH18: N/A | BI18: N/A | BJ18: N/A | BK18: N/A | BL18: N/A | BM18: N/A | BN18: N/A | BO18: N/A | BP18: N/A | BQ18: N/A | BR18: N/A | BS18: N/A | BT18: N/A | BU18: N/A | BV18: N/A | BW18: N/A
B19: Limited | C19: =C16*'DHS09'!C22/100 -> 0.4618798231 | D19: =D16*'DHS09'!D22/100 -> 0.3930281183 | E19: =E16*'DHS09'!E22/100 -> 0.1627317193 | F19: =F16*'DHS09'!F22/100 -> 0.4135975656 | G19: =G16*'DHS09'!G22/100 -> 1.598120496 | H19: =H16*'DHS09'!H22/100 -> 0.5283254052 | I19: =I16*'DHS09'!I22/100 -> 1.200128799 | J19: =J16*'DHS09'!J22/100 -> 2.583306521 | K19: =K16*'DHS09'!K22/100 -> 3.129634457 | L19: =L16*'DHS09'!L22/100 -> 2.424398804 | M19: =M16*'DHS09'!M22/100 -> 0.4506541685 | N19: =N16*'DHS09'!N22/100 -> 0.4094865565 | O19: =O16*'DHS09'!O22/100 -> 0.1306936801 | P19: =P16*'DHS09'!P22/100 -> 0.2784047476 | Q19: =Q16*'DHS09'!Q22/100 -> 0.243023946 | R19: N/A | S19: N/A | T19: N/A | U19: N/A | V19: N/A | W19: N/A | BB19: Limited | BC19: N/A | BD19: N/A | BE19: N/A | BF19: N/A | BG19: N/A | BH19: N/A | BI19: N/A | BJ19: N/A | BK19: N/A | BL19: N/A | BM19: N/A | BN19: N/A | BO19: N/A | BP19: N/A | BQ19: N/A | BR19: N/A | BS19: N/A | BT19: N/A | BU19: N/A | BV19: N/A | BW19: N/A
B20: Unimproved | C20: =100-(C18+C19+C21) -> 28.91720014 | D20: =100-(D18+D19+D21) -> 30.7823612 | E20: 47.29246225 | F20: 33.23272166 | G20: 10.42676076 | H20: 46.56229928 | I20: 28.76028128 | J20: 9.452026464 | K20: 4.428351928 | L20: 2.847028909 | M20: 27.19239249 | N20: 33.68119478 | O20: 43.19094776 | P20: 41.12978349 | Q20: 26.09105841 | R20: N/A | S20: N/A | T20: N/A | U20: N/A | V20: N/A | W20: N/A | BB20: Unimproved | BC20: N/A | BD20: N/A | BE20: N/A | BF20: N/A | BG20: N/A | BH20: N/A | BI20: N/A | BJ20: N/A | BK20: N/A | BL20: N/A | BM20: N/A | BN20: N/A | BO20: N/A | BP20: N/A | BQ20: N/A | BR20: N/A | BS20: N/A | BT20: N/A | BU20: N/A | BV20: N/A | BW20: N/A
B21: Surface water | C21: =C68+C69+C70 -> 60.08566121 | D21: 56.5393124 | E21: 34.6262356 | F21: 25.40752178 | G21: 0.7887672535 | H21: 20.4173629 | I21: 11.23327875 | J21: 1.468438346 | K21: 0.7342402817 | L21: 0.177018936 | M21: 63.61058366 | N21: 54.27508297 | O21: 42.28753223 | P21: 35.66982088 | Q21: 13.15295507 | R21: N/A | S21: N/A | T21: N/A | U21: N/A | V21: N/A | W21: N/A | BB21: Surface water | BC21: N/A | BD21: N/A | BE21: N/A | BF21: N/A | BG21: N/A | BH21: N/A | BI21: N/A | BJ21: N/A | BK21: N/A | BL21: N/A | BM21: N/A | BN21: N/A | BO21: N/A | BP21: N/A | BQ21: N/A | BR21: N/A | BS21: N/A | BT21: N/A | BU21: N/A | BV21: N/A | BW21: N/A
A22: Improved water point at more than 30 minutes | B22: Yes | C22: N/A | D22: N/A | E22: N/A | F22: N/A | G22: N/A | H22: N/A | I22: N/A | J22: N/A | K22: N/A | L22: N/A | M22: N/A | N22: N/A | O22: N/A | P22: N/A | Q22: N/A | R22: N/A | S22: N/A | T22: N/A | U22: N/A | V22: N/A | W22: N/A | BA22: Improved water point at more than 30 minutes | BB22: Yes | BC22: N/A | BD22: N/A | BE22: N/A | BF22: N/A | BG22: N/A | BH22: N/A | BI22: N/A | BJ22: N/A | BK22: N/A | BL22: N/A | BM22: N/A | BN22: N/A | BO22: N/A | BP22: N/A | BQ22: N/A | BR22: N/A | BS22: N/A | BT22: N/A | BU22: N/A | BV22: N/A | BW22: N/A
B23: No | C23: N/A | D23: N/A | E23: N/A | F23: N/A | G23: N/A | H23: N/A | I23: N/A | J23: N/A | K23: N/A | L23: N/A | M23: N/A | N23: N/A | O23: N/A | P23: N/A | Q23: N/A | R23: N/A | S23: N/A | T23: N/A | U23: N/A | V23: N/A | W23: N/A | BB23: No | BC23: N/A | BD23: N/A | BE23: N/A | BF23: N/A | BG23: N/A | BH23: N/A | BI23: N/A | BJ23: N/A | BK23: N/A | BL23: N/A | BM23: N/A | BN23: N/A | BO23: N/A | BP23: N/A | BQ23: N/A | BR23: N/A | BS23: N/A | BT23: N/A | BU23: N/A | BV23: N/A | BW23: N/A
A24: Manually calculated ratios | B24: Improved wells
B25: Improved springs
B26: Other
C27: NATIONAL wealth index quintile | H27: URBAN wealth index quintile | M27: RURAL wealth index quintile | R27: SUB-REGIONS: | BA27: Raw numbers of respondents: | BB27: Use of drinking water sources | BC27: NATIONAL wealth index quintile | BH27: URBAN wealth index quintile | BM27: RURAL wealth index quintile | BR27: SUB-REGIONS:
A28: Percentage based on weighted population | C28: Poorest | D28: Poor | E28: Middle | F28: Rich | G28: Richest | H28: Poorest | I28: Poor | J28: Middle | K28: Rich | L28: Richest | M28: Poorest | N28: Poor | O28: Middle | P28: Rich | Q28: Richest | R28: Antananarivo | S28: Antsiranana | T28: Fianarantsoa | U28: Mahajanga | V28: Toamasina | W28: Toliary | BA28: Water data, raw numbers (weighted) | BC28: Poorest | BD28: Poor | BE28: Middle | BF28: Rich | BG28: Richest | BH28: Poorest | BI28: Poor | BJ28: Middle | BK28: Rich | BL28: Richest | BM28: Poorest | BN28: Poor | BO28: Middle | BP28: Rich | BQ28: Richest | BR28: Antananarivo | BS28: Antsiranana | BT28: Fianarantsoa | BU28: Mahajanga | BV28: Toamasina | BW28: Toliary
A29: Piped water | B29: Yes | C29: 2.493683071 | D29: 8.219138257 | E29: 7.454918904 | F29: 26.34486609 | G29: 73.89457859 | H29: 18.74137029 | I29: 47.0370255 | J29: 77.28863141 | K29: 87.00410409 | L29: 90.19983103 | M29: 0.8806770949 | N29: 7.692374447 | O29: 5.192665168 | P29: 11.1051994 | Q29: 39.02083706 | R29: 39.00307974 | S29: 20.87135363 | T29: 12.72894223 | U29: 27.56125603 | V29: 14.16188277 | W29: 13.02141841 | BA29: Piped water | BB29: Yes | BC29: N/A | BD29: N/A | BE29: N/A | BF29: N/A | BG29: N/A | BH29: N/A | BI29: N/A | BJ29: N/A | BK29: N/A | BL29: N/A | BM29: N/A | BN29: N/A | BO29: N/A | BP29: N/A | BQ29: N/A | BR29: N/A | BS29: N/A | BT29: N/A | BU29: N/A | BV29: N/A | BW29: N/A
B30: No | C30: 97.50631693 | D30: 91.78086174 | E30: 92.5450811 | F30: 73.65513391 | G30: 26.10542141 | H30: 81.25862971 | I30: 52.9629745 | J30: 22.71136859 | K30: 12.99589591 | L30: 9.800168969 | M30: 99.11932291 | N30: 92.30762555 | O30: 94.80733483 | P30: 88.8948006 | Q30: 60.97916294 | R30: 60.99692026 | S30: 79.12864637 | T30: 87.27105777 | U30: 72.43874397 | V30: 85.83811723 | W30: 86.97858159 | BB30: No | BC30: N/A | BD30: N/A | BE30: N/A | BF30: N/A | BG30: N/A | BH30: N/A | BI30: N/A | BJ30: N/A | BK30: N/A | BL30: N/A | BM30: N/A | BN30: N/A | BO30: N/A | BP30: N/A | BQ30: N/A | BR30: N/A | BS30: N/A | BT30: N/A | BU30: N/A | BV30: N/A | BW30: N/A
A31: Piped water on premises | B31: Yes | C31: 0.00919503172 | D31: 0.2760996818 | E31: 0.05693208353 | F31: 1.801403818 | G31: 24.69177613 | H31: 0.1590830609 | I31: 3.071306365 | J31: 8.47385244 | K31: 21.27017854 | L31: 54.37189293 | M31: 0 | N31: 0 | O31: 0.2791129824 | P31: 0.4719158981 | Q31: 9.744043114 | R31: 10.55793497 | S31: 3.675264337 | T31: 2.296316482 | U31: 4.066935281 | V31: 2.539085193 | W31: 3.817579639 | BA31: Piped water on premises | BB31: Yes | BC31: N/A | BD31: N/A | BE31: N/A | BF31: N/A | BG31: N/A | BH31: N/A | BI31: N/A | BJ31: N/A | BK31: N/A | BL31: N/A | BM31: N/A | BN31: N/A | BO31: N/A | BP31: N/A | BQ31: N/A | BR31: N/A | BS31: N/A | BT31: N/A | BU31: N/A | BV31: N/A | BW31: N/A
B32: No | C32: 99.99080497 | D32: 99.72390032 | E32: 99.94306792 | F32: 98.19859618 | G32: 75.30822387 | H32: 99.84091694 | I32: 96.92869364 | J32: 91.52614756 | K32: 78.72982146 | L32: 45.62810707 | M32: 100 | N32: 100 | O32: 99.72088702 | P32: 99.5280841 | Q32: 90.25595689 | R32: 89.44206503 | S32: 96.32473566 | T32: 97.70368352 | U32: 95.93306472 | V32: 97.46091481 | W32: 96.18242036 | BB32: No | BC32: N/A | BD32: N/A | BE32: N/A | BF32: N/A | BG32: N/A | BH32: N/A | BI32: N/A | BJ32: N/A | BK32: N/A | BL32: N/A | BM32: N/A | BN32: N/A | BO32: N/A | BP32: N/A | BQ32: N/A | BR32: N/A | BS32: N/A | BT32: N/A | BU32: N/A | BV32: N/A | BW32: N/A
A33: Piped water into dwelling | B33: Yes | C33: N/A | D33: N/A | E33: N/A | F33: N/A | G33: N/A | H33: N/A | I33: N/A | J33: N/A | K33: N/A | L33: N/A | M33: N/A | N33: N/A | O33: N/A | P33: N/A | Q33: N/A | R33: N/A | S33: N/A | T33: N/A | U33: N/A | V33: N/A | W33: N/A | BA33: Piped water into dwelling | BB33: Yes | BC33: N/A | BD33: N/A | BE33: N/A | BF33: N/A | BG33: N/A | BH33: N/A | BI33: N/A | BJ33: N/A | BK33: N/A | BL33: N/A | BM33: N/A | BN33: N/A | BO33: N/A | BP33: N/A | BQ33: N/A | BR33: N/A | BS33: N/A | BT33: N/A | BU33: N/A | BV33: N/A | BW33: N/A
B34: No | C34: N/A | D34: N/A | E34: N/A | F34: N/A | G34: N/A | H34: N/A | I34: N/A | J34: N/A | K34: N/A | L34: N/A | M34: N/A | N34: N/A | O34: N/A | P34: N/A | Q34: N/A | R34: N/A | S34: N/A | T34: N/A | U34: N/A | V34: N/A | W34: N/A | BB34: No | BC34: N/A | BD34: N/A | BE34: N/A | BF34: N/A | BG34: N/A | BH34: N/A | BI34: N/A | BJ34: N/A | BK34: N/A | BL34: N/A | BM34: N/A | BN34: N/A | BO34: N/A | BP34: N/A | BQ34: N/A | BR34: N/A | BS34: N/A | BT34: N/A | BU34: N/A | BV34: N/A | BW34: N/A
A35: Water source on premises | B35: Yes | C35: 0.05265132273 | D35: 0.3920436051 | E35: 0.173422394 | F35: 2.068418026 | G35: 24.97151419 | H35: 0.2158058805 | I35: 3.579278248 | J35: 8.958576064 | K35: 21.79662009 | L35: 54.9605339 | M35: 0.03627753689 | N35: 0.1317700065 | O35: 0.3691825427 | P35: 0.4719158981 | Q35: 9.95525476 | R35: 10.83758309 | S35: 4.196274767 | T35: 2.345520012 | U35: 4.180080625 | V35: 2.539085193 | W35: 3.91526921 | BA35: Water source on premises | BB35: Yes | BC35: N/A | BD35: N/A | BE35: N/A | BF35: N/A | BG35: N/A | BH35: N/A | BI35: N/A | BJ35: N/A | BK35: N/A | BL35: N/A | BM35: N/A | BN35: N/A | BO35: N/A | BP35: N/A | BQ35: N/A | BR35: N/A | BS35: N/A | BT35: N/A | BU35: N/A | BV35: N/A | BW35: N/A
B36: No | C36: 99.94734868 | D36: 99.60795639 | E36: 99.82657761 | F36: 97.93158197 | G36: 75.02848581 | H36: 99.78419412 | I36: 96.42072175 | J36: 91.04142394 | K36: 78.20337991 | L36: 45.0394661 | M36: 99.96372246 | N36: 99.86822999 | O36: 99.63081746 | P36: 99.5280841 | Q36: 90.04474524 | R36: 89.16241691 | S36: 95.80372523 | T36: 97.65447999 | U36: 95.81991938 | V36: 97.46091481 | W36: 96.08473079 | BB36: No | BC36: N/A | BD36: N/A | BE36: N/A | BF36: N/A | BG36: N/A | BH36: N/A | BI36: N/A | BJ36: N/A | BK36: N/A | BL36: N/A | BM36: N/A | BN36: N/A | BO36: N/A | BP36: N/A | BQ36: N/A | BR36: N/A | BS36: N/A | BT36: N/A | BU36: N/A | BV36: N/A | BW36: N/A
A37: Improved Water source on premises | B37: Yes | C37: N/A | D37: N/A | E37: N/A | F37: N/A | G37: N/A | H37: N/A | I37: N/A | J37: N/A | K37: N/A | L37: N/A | M37: N/A | N37: N/A | O37: N/A | P37: N/A | Q37: N/A | R37: N/A | S37: N/A | T37: N/A | U37: N/A | V37: N/A | W37: N/A | BA37: Improved water source on premises | BB37: Yes | BC37: N/A | BD37: N/A | BE37: N/A | BF37: N/A | BG37: N/A | BH37: N/A | BI37: N/A | BJ37: N/A | BK37: N/A | BL37: N/A | BM37: N/A | BN37: N/A | BO37: N/A | BP37: N/A | BQ37: N/A | BR37: N/A | BS37: N/A | BT37: N/A | BU37: N/A | BV37: N/A | BW37: N/A
B38: No | C38: N/A | D38: N/A | E38: N/A | F38: N/A | G38: N/A | H38: N/A | I38: N/A | J38: N/A | K38: N/A | L38: N/A | M38: N/A | N38: N/A | O38: N/A | P38: N/A | Q38: N/A | R38: N/A | S38: N/A | T38: N/A | U38: N/A | V38: N/A | W38: N/A | BB38: No | BC38: N/A | BD38: N/A | BE38: N/A | BF38: N/A | BG38: N/A | BH38: N/A | BI38: N/A | BJ38: N/A | BK38: N/A | BL38: N/A | BM38: N/A | BN38: N/A | BO38: N/A | BP38: N/A | BQ38: N/A | BR38: N/A | BS38: N/A | BT38: N/A | BU38: N/A | BV38: N/A | BW38: N/A
A39: Piped water on premises available when needed | B39: Yes | C39: N/A | D39: N/A | E39: N/A | F39: N/A | G39: N/A | H39: N/A | I39: N/A | J39: N/A | K39: N/A | L39: N/A | M39: N/A | N39: N/A | O39: N/A | P39: N/A | Q39: N/A | R39: N/A | S39: N/A | T39: N/A | U39: N/A | V39: N/A | W39: N/A | BA39: Piped water on premises available when needed | BB39: Yes | BC39: N/A | BD39: N/A | BE39: N/A | BF39: N/A | BG39: N/A | BH39: N/A | BI39: N/A | BJ39: N/A | BK39: N/A | BL39: N/A | BM39: N/A | BN39: N/A | BO39: N/A | BP39: N/A | BQ39: N/A | BR39: N/A | BS39: N/A | BT39: N/A | BU39: N/A | BV39: N/A | BW39: N/A
B40: No | C40: N/A | D40: N/A | E40: N/A | F40: N/A | G40: N/A | H40: N/A | I40: N/A | J40: N/A | K40: N/A | L40: N/A | M40: N/A | N40: N/A | O40: N/A | P40: N/A | Q40: N/A | R40: N/A | S40: N/A | T40: N/A | U40: N/A | V40: N/A | W40: N/A | BB40: No | BC40: N/A | BD40: N/A | BE40: N/A | BF40: N/A | BG40: N/A | BH40: N/A | BI40: N/A | BJ40: N/A | BK40: N/A | BL40: N/A | BM40: N/A | BN40: N/A | BO40: N/A | BP40: N/A | BQ40: N/A | BR40: N/A | BS40: N/A | BT40: N/A | BU40: N/A | BV40: N/A | BW40: N/A
A41: Water point at more than 30 minutes | B41: Yes | C41: 7.862073901 | D41: 4.405735852 | E41: 3.72483959 | F41: 5.549032836 | G41: 2.227864261 | H41: 9.37876982 | I41: 4.984294602 | J41: 5.325492608 | K41: 2.771099363 | L41: 1.631366847 | M41: 7.34859089 | N41: 5.018370081 | O41: 3.992884244 | P41: 4.429224391 | Q41: 2.39673816 | R41: 1.667888766 | S41: 2.234883474 | T41: 2.633486623 | U41: 1.72978881 | V41: 1.166139449 | W41: 22.8800596 | BA41: Water point at more than 30 minutes | BB41: Yes | BC41: N/A | BD41: N/A | BE41: N/A | BF41: N/A | BG41: N/A | BH41: N/A | BI41: N/A | BJ41: N/A | BK41: N/A | BL41: N/A | BM41: N/A | BN41: N/A | BO41: N/A | BP41: N/A | BQ41: N/A | BR41: N/A | BS41: N/A | BT41: N/A | BU41: N/A | BV41: N/A | BW41: N/A
B42: No | C42: 92.1379261 | D42: 95.59426415 | E42: 96.27516041 | F42: 94.45096716 | G42: 97.77213574 | H42: 90.62123018 | I42: 95.0157054 | J42: 94.67450739 | K42: 97.22890064 | L42: 98.36863315 | M42: 92.65140911 | N42: 94.98162992 | O42: 96.00711576 | P42: 95.57077561 | Q42: 97.60326184 | R42: 98.33211123 | S42: 97.76511653 | T42: 97.36651338 | U42: 98.27021119 | V42: 98.83386055 | W42: 77.1199404 | BB42: No | BC42: N/A | BD42: N/A | BE42: N/A | BF42: N/A | BG42: N/A | BH42: N/A | BI42: N/A | BJ42: N/A | BK42: N/A | BL42: N/A | BM42: N/A | BN42: N/A | BO42: N/A | BP42: N/A | BQ42: N/A | BR42: N/A | BS42: N/A | BT42: N/A | BU42: N/A | BV42: N/A | BW42: N/A
A43: Water source available when needed | B43: Yes | C43: N/A | D43: N/A | E43: N/A | F43: N/A | G43: N/A | H43: N/A | I43: N/A | J43: N/A | K43: N/A | L43: N/A | M43: N/A | N43: N/A | O43: N/A | P43: N/A | Q43: N/A | R43: N/A | S43: N/A | T43: N/A | U43: N/A | V43: N/A | W43: N/A | BA43: Water source available when needed | BB43: Yes | BC43: N/A | BD43: N/A | BE43: N/A | BF43: N/A | BG43: N/A | BH43: N/A | BI43: N/A | BJ43: N/A | BK43: N/A | BL43: N/A | BM43: N/A | BN43: N/A | BO43: N/A | BP43: N/A | BQ43: N/A | BR43: N/A | BS43: N/A | BT43: N/A | BU43: N/A | BV43: N/A | BW43: N/A
B44: No | C44: N/A | D44: N/A | E44: N/A | F44: N/A | G44: N/A | H44: N/A | I44: N/A | J44: N/A | K44: N/A | L44: N/A | M44: N/A | N44: N/A | O44: N/A | P44: N/A | Q44: N/A | R44: N/A | S44: N/A | T44: N/A | U44: N/A | V44: N/A | W44: N/A | BB44: No | BC44: N/A | BD44: N/A | BE44: N/A | BF44: N/A | BG44: N/A | BH44: N/A | BI44: N/A | BJ44: N/A | BK44: N/A | BL44: N/A | BM44: N/A | BN44: N/A | BO44: N/A | BP44: N/A | BQ44: N/A | BR44: N/A | BS44: N/A | BT44: N/A | BU44: N/A | BV44: N/A | BW44: N/A
A45: Improved water source available when needed | B45: Yes | C45: N/A | D45: N/A | E45: N/A | F45: N/A | G45: N/A | H45: N/A | I45: N/A | J45: N/A | K45: N/A | L45: N/A | M45: N/A | N45: N/A | O45: N/A | P45: N/A | Q45: N/A | R45: N/A | S45: N/A | T45: N/A | U45: N/A | V45: N/A | W45: N/A | BA45: Improved water source available when needed | BB45: Yes | BC45: N/A | BD45: N/A | BE45: N/A | BF45: N/A | BG45: N/A | BH45: N/A | BI45: N/A | BJ45: N/A | BK45: N/A | BL45: N/A | BM45: N/A | BN45: N/A | BO45: N/A | BP45: N/A | BQ45: N/A | BR45: N/A | BS45: N/A | BT45: N/A | BU45: N/A | BV45: N/A | BW45: N/A
B46: No | C46: N/A | D46: N/A | E46: N/A | F46: N/A | G46: N/A | H46: N/A | I46: N/A | J46: N/A | K46: N/A | L46: N/A | M46: N/A | N46: N/A | O46: N/A | P46: N/A | Q46: N/A | R46: N/A | S46: N/A | T46: N/A | U46: N/A | V46: N/A | W46: N/A | BB46: No | BC46: N/A | BD46: N/A | BE46: N/A | BF46: N/A | BG46: N/A | BH46: N/A | BI46: N/A | BJ46: N/A | BK46: N/A | BL46: N/A | BM46: N/A | BN46: N/A | BO46: N/A | BP46: N/A | BQ46: N/A | BR46: N/A | BS46: N/A | BT46: N/A | BU46: N/A | BV46: N/A | BW46: N/A
A47: Microbiological quality at point of collection | B47: Not contaminated (No E. coli in 100 mL) | C47: N/A | D47: N/A | E47: N/A | F47: N/A | G47: N/A | H47: N/A | I47: N/A | J47: N/A | K47: N/A | L47: N/A | M47: N/A | N47: N/A | O47: N/A | P47: N/A | Q47: N/A | R47: N/A | S47: N/A | T47: N/A | U47: N/A | V47: N/A | W47: N/A | BA47: Microbiological quality at point of collection | BB47: Not contaminated (No E. coli in 100 mL) | BC47: N/A | BD47: N/A | BE47: N/A | BF47: N/A | BG47: N/A | BH47: N/A | BI47: N/A | BJ47: N/A | BK47: N/A | BL47: N/A | BM47: N/A | BN47: N/A | BO47: N/A | BP47: N/A | BQ47: N/A | BR47: N/A | BS47: N/A | BT47: N/A | BU47: N/A | BV47: N/A | BW47: N/A
B48: Contaminated (E. coli detected in 100 mL) | C48: N/A | D48: N/A | E48: N/A | F48: N/A | G48: N/A | H48: N/A | I48: N/A | J48: N/A | K48: N/A | L48: N/A | M48: N/A | N48: N/A | O48: N/A | P48: N/A | Q48: N/A | R48: N/A | S48: N/A | T48: N/A | U48: N/A | V48: N/A | W48: N/A | BB48: Contaminated (E. coli detected in 100 mL) | BC48: N/A | BD48: N/A | BE48: N/A | BF48: N/A | BG48: N/A | BH48: N/A | BI48: N/A | BJ48: N/A | BK48: N/A | BL48: N/A | BM48: N/A | BN48: N/A | BO48: N/A | BP48: N/A | BQ48: N/A | BR48: N/A | BS48: N/A | BT48: N/A | BU48: N/A | BV48: N/A | BW48: N/A
B49: Highly contaminated (>100 CFU/100 mL) | C49: N/A | D49: N/A | E49: N/A | F49: N/A | G49: N/A | H49: N/A | I49: N/A | J49: N/A | K49: N/A | L49: N/A | M49: N/A | N49: N/A | O49: N/A | P49: N/A | Q49: N/A | R49: N/A | S49: N/A | T49: N/A | U49: N/A | V49: N/A | W49: N/A | BB49: Highly contaminated (>100 CFU/100 mL) | BC49: N/A | BD49: N/A | BE49: N/A | BF49: N/A | BG49: N/A | BH49: N/A | BI49: N/A | BJ49: N/A | BK49: N/A | BL49: N/A | BM49: N/A | BN49: N/A | BO49: N/A | BP49: N/A | BQ49: N/A | BR49: N/A | BS49: N/A | BT49: N/A | BU49: N/A | BV49: N/A | BW49: N/A
A50: Microbiological quality of improved water sources at point of collection | B50: Not contaminated (No E. coli in 100 mL) | C50: N/A | D50: N/A | E50: N/A | F50: N/A | G50: N/A | H50: N/A | I50: N/A | J50: N/A | K50: N/A | L50: N/A | M50: N/A | N50: N/A | O50: N/A | P50: N/A | Q50: N/A | R50: N/A | S50: N/A | T50: N/A | U50: N/A | V50: N/A | W50: N/A | BA50: Microbiological quality of improved water sources at point of collection | BB50: Not contaminated (No E. coli in 100 mL) | BC50: N/A | BD50: N/A | BE50: N/A | BF50: N/A | BG50: N/A | BH50: N/A | BI50: N/A | BJ50: N/A | BK50: N/A | BL50: N/A | BM50: N/A | BN50: N/A | BO50: N/A | BP50: N/A | BQ50: N/A | BR50: N/A | BS50: N/A | BT50: N/A | BU50: N/A | BV50: N/A | BW50: N/A
B51: Contaminated (E. coli detected in 100 mL) | C51: N/A | D51: N/A | E51: N/A | F51: N/A | G51: N/A | H51: N/A | I51: N/A | J51: N/A | K51: N/A | L51: N/A | M51: N/A | N51: N/A | O51: N/A | P51: N/A | Q51: N/A | R51: N/A | S51: N/A | T51: N/A | U51: N/A | V51: N/A | W51: N/A | BB51: Contaminated (E. coli detected in 100 mL) | BC51: N/A | BD51: N/A | BE51: N/A | BF51: N/A | BG51: N/A | BH51: N/A | BI51: N/A | BJ51: N/A | BK51: N/A | BL51: N/A | BM51: N/A | BN51: N/A | BO51: N/A | BP51: N/A | BQ51: N/A | BR51: N/A | BS51: N/A | BT51: N/A | BU51: N/A | BV51: N/A | BW51: N/A
B52: Highly contaminated (>100 CFU/100 mL) | C52: N/A | D52: N/A | E52: N/A | F52: N/A | G52: N/A | H52: N/A | I52: N/A | J52: N/A | K52: N/A | L52: N/A | M52: N/A | N52: N/A | O52: N/A | P52: N/A | Q52: N/A | R52: N/A | S52: N/A | T52: N/A | U52: N/A | V52: N/A | W52: N/A | BB52: Highly contaminated (>100 CFU/100 mL) | BC52: N/A | BD52: N/A | BE52: N/A | BF52: N/A | BG52: N/A | BH52: N/A | BI52: N/A | BJ52: N/A | BK52: N/A | BL52: N/A | BM52: N/A | BN52: N/A | BO52: N/A | BP52: N/A | BQ52: N/A | BR52: N/A | BS52: N/A | BT52: N/A | BU52: N/A | BV52: N/A | BW52: N/A
A53: Microbiological quality of piped on premises at point of collection | B53: Not contaminated (No E. coli in 100 mL) | C53: N/A | D53: N/A | E53: N/A | F53: N/A | G53: N/A | H53: N/A | I53: N/A | J53: N/A | K53: N/A | L53: N/A | M53: N/A | N53: N/A | O53: N/A | P53: N/A | Q53: N/A | R53: N/A | S53: N/A | T53: N/A | U53: N/A | V53: N/A | W53: N/A | BA53: Microbiological quality of piped on premises at point of collection | BB53: Not contaminated (No E. coli in 100 mL) | BC53: N/A | BD53: N/A | BE53: N/A | BF53: N/A | BG53: N/A | BH53: N/A | BI53: N/A | BJ53: N/A | BK53: N/A | BL53: N/A | BM53: N/A | BN53: N/A | BO53: N/A | BP53: N/A | BQ53: N/A | BR53: N/A | BS53: N/A | BT53: N/A | BU53: N/A | BV53: N/A | BW53: N/A
B54: Contaminated (E. coli detected in 100 mL) | C54: N/A | D54: N/A | E54: N/A | F54: N/A | G54: N/A | H54: N/A | I54: N/A | J54: N/A | K54: N/A | L54: N/A | M54: N/A | N54: N/A | O54: N/A | P54: N/A | Q54: N/A | R54: N/A | S54: N/A | T54: N/A | U54: N/A | V54: N/A | W54: N/A | BB54: Contaminated (E. coli detected in 100 mL) | BC54: N/A | BD54: N/A | BE54: N/A | BF54: N/A | BG54: N/A | BH54: N/A | BI54: N/A | BJ54: N/A | BK54: N/A | BL54: N/A | BM54: N/A | BN54: N/A | BO54: N/A | BP54: N/A | BQ54: N/A | BR54: N/A | BS54: N/A | BT54: N/A | BU54: N/A | BV54: N/A | BW54: N/A
B55: Highly contaminated (>100 CFU/100 mL) | C55: N/A | D55: N/A | E55: N/A | F55: N/A | G55: N/A | H55: N/A | I55: N/A | J55: N/A | K55: N/A | L55: N/A | M55: N/A | N55: N/A | O55: N/A | P55: N/A | Q55: N/A | R55: N/A | S55: N/A | T55: N/A | U55: N/A | V55: N/A | W55: N/A | BB55: Highly contaminated (>100 CFU/100 mL) | BC55: N/A | BD55: N/A | BE55: N/A | BF55: N/A | BG55: N/A | BH55: N/A | BI55: N/A | BJ55: N/A | BK55: N/A | BL55: N/A | BM55: N/A | BN55: N/A | BO55: N/A | BP55: N/A | BQ55: N/A | BR55: N/A | BS55: N/A | BT55: N/A | BU55: N/A | BV55: N/A | BW55: N/A
C56: NATIONAL wealth index quintile | H56: URBAN wealth index quintile | M56: RURAL wealth index quintile | R56: SUB-REGIONS: | BA56: Raw numbers of respondents: | BB56: Use of drinking water sources | BC56: NATIONAL wealth index quintile | BH56: URBAN wealth index quintile | BM56: RURAL wealth index quintile | BR56: SUB-REGIONS:
A57: Percentage based on weighted population | C57: Poorest | D57: Poor | E57: Middle | F57: Rich | G57: Richest | H57: Poorest | I57: Poor | J57: Middle | K57: Rich | L57: Richest | M57: Poorest | N57: Poor | O57: Middle | P57: Rich | Q57: Richest | R57: Antananarivo | S57: Antsiranana | T57: Fianarantsoa | U57: Mahajanga | V57: Toamasina | W57: Toliary | BA57: Water data, raw numbers (weighted) | BC57: Poorest | BD57: Poor | BE57: Middle | BF57: Rich | BG57: Richest | BH57: Poorest | BI57: Poor | BJ57: Middle | BK57: Rich | BL57: Richest | BM57: Poorest | BN57: Poor | BO57: Middle | BP57: Rich | BQ57: Richest | BR57: Antananarivo | BS57: Antsiranana | BT57: Fianarantsoa | BU57: Mahajanga | BV57: Toamasina | BW57: Toliary
A58: Source of drinking water | B58: Piped into dwelling | C58: 0 | D58: 0 | E58: 0.007301408985 | F58: 0.1137177047 | G58: 13.26222566 | H58: 0 | I58: 0.5546047364 | J58: 2.901312251 | K58: 7.600237739 | L58: 37.4333002 | M58: 0 | N58: 0 | O58: 0 | P58: 0 | Q58: 4.050221389 | R58: 5.808033933 | S58: 1.492736628 | T58: 0.9717782901 | U58: 1.365171999 | V58: 1.909734065 | W58: 1.174528438
B59: Piped into yard/plot | C59: 0.00919503172 | D59: 0.2760996818 | E59: 0.04963067454 | F59: 1.687971902 | G59: 11.42955047 | H59: 0.1590830609 | I59: 2.519029395 | J59: 5.57254019 | K59: 13.6699408 | L59: 16.93859273 | M59: 0 | N59: 0 | O59: 0.2791129824 | P59: 0.4719158981 | Q59: 5.693821725 | R59: 4.749901041 | S59: 2.182527709 | T59: 1.324538192 | U59: 2.701763282 | V59: 0.6299007547 | W59: 2.643051201
B60: Public tap | C60: 2.484488039 | D60: 7.943038575 | E60: 7.397986821 | F60: 24.54735603 | G60: 49.20280246 | H60: 18.58228723 | I60: 43.99904109 | J60: 68.81477897 | K60: 65.73392555 | L60: 35.8279381 | M60: 0.8806770949 | N60: 7.692374447 | O60: 4.913552185 | P60: 10.6332835 | Q60: 29.27679395 | R60: 28.44514476 | S60: 17.19608929 | T60: 10.43262575 | U60: 23.49432075 | V60: 11.62531352 | W60: 9.203838767
B61: Open well in dwelling | C61: 0 | D61: 0.2451900799 | E61: 0.4838728313 | F61: 1.121603831 | G61: 0.9436254334 | H61: 0 | I61: 0.3293551885 | J61: 0.4884221921 | K61: 0.08113411496 | L61: 0.3227869727 | M61: 0 | N61: 0.278657971 | O61: 0 | P61: 0.9073613469 | Q61: 2.121022243 | R61: 1.348692522 | S61: 0.2815643843 | T61: 0 | U61: 0.05123582004 | V61: 0.8579021093 | W61: 0
B62: Open well in yard/plot | C62: 0.4431239618 | D62: 0.3406722639 | E62: 0.729993301 | F62: 5.621186961 | G62: 4.388874958 | H62: 0.9817100996 | I62: 2.808188263 | J62: 1.846841461 | K62: 1.301515098 | L62: 1.091273781 | M62: 0.3492585982 | N62: 0.3635952613 | O62: 0.3984337594 | P62: 3.747171227 | Q62: 7.891785999 | R62: 6.27554915 | S62: 1.505432553 | T62: 0.4750402039 | U62: 0.4927002056 | V62: 1.200740073 | W62: 0.06198861076
B63: Open public well | C63: 9.944329489 | D63: 8.527981083 | E63: 14.23157337 | F63: 11.94504799 | G63: 4.353800548 | H63: 19.70200449 | I63: 13.57905871 | J63: 6.067215314 | K63: 2.840560704 | L63: 0.9561278874 | M63: 8.544616617 | N63: 8.99446731 | O63: 16.50579172 | P63: 9.711243705 | Q63: 9.133123961 | R63: 4.636368584 | S63: 8.399947304 | T63: 8.955124143 | U63: 21.22424789 | V63: 0.958422218 | W63: 22.43850568
B64: Protected well in dwelling | C64: 0.2191357279 | D64: 0 | E64: 0.1659855407 | F64: 0.4927984167 | G64: 1.371864334 | H64: 0.589017597 | I64: 0.7075466759 | J64: 0.7843928031 | K64: 0.9340486784 | L64: 0.05959861631 | M64: 0.1253021122 | N64: 0 | O64: 0.1164732125 | P64: 0.4477776293 | Q64: 1.379538017 | R64: 1.096127262 | S64: 0.1774090188 | T64: 0.0167546909 | U64: 0.06831442672 | V64: 0.5367876244 | W64: 0.218011404
B65: Protected well in yard/plot | C65: 0.1260883957 | D65: 0.765290019 | E65: 2.006168197 | F65: 5.551972332 | G65: 10.52044822 | H65: 0.6801700164 | I65: 5.23434612 | J65: 6.801018071 | K65: 5.477928776 | L65: 5.75857239 | M65: 0.06102935271 | N65: 0.8697503748 | O65: 1.292891629 | P65: 3.326668435 | Q65: 12.58655993 | R65: 9.226327723 | S65: 3.850927806 | T65: 0.490256275 | U65: 0.1531618665 | V65: 4.363178294 | W65: 0
B66: Protected public well | C66: 6.798906403 | D66: 1.462256756 | E66: 4.365718662 | F66: 5.897549687 | G66: 2.65037836 | H66: 7.081310696 | I66: 4.63116838 | J66: 3.115734773 | K66: 1.038235633 | L66: 0.838740051 | M66: 6.833269969 | N66: 1.288351467 | O66: 4.213023448 | P66: 4.541100296 | Q66: 5.667776012 | R66: 3.505212785 | S66: 6.215219977 | T66: 4.281892265 | U66: 0.4516426911 | V66: 0.379269582 | W66: 14.79309718
B67: Spring | C67: 19.88907174 | D67: 23.90015914 | E67: 35.81518214 | F67: 17.57764592 | G67: 1.060203834 | H67: 31.7600812 | I67: 14.37883082 | J67: 2.037356906 | K67: 0.5641405332 | L67: 0.5960503344 | M67: 19.5952626 | N67: 26.2377202 | O67: 29.81298991 | P67: 30.54365709 | Q67: 9.006960554 | R67: 32.27147408 | S67: 2.395142999 | T67: 26.65966279 | U67: 2.635979786 | V67: 21.81462959 | W67: 7.627716279
B68: River, stream | C68: 55.31167607 | D68: 53.04721378 | E68: 31.84871758 | F68: 24.00125832 | G68: 0.7646156644 | H68: 19.3332352 | I68: 10.46115333 | J68: 1.468438346 | K68: 0.6400597006 | L68: 0.1640360992 | M68: 58.36710255 | N68: 50.91049741 | O68: 37.91735339 | P68: 34.38411366 | Q68: 12.46436257 | R68: 2.292288472 | S68: 56.28889525 | T68: 45.38644345 | U68: 43.65146739 | V68: 53.75888565 | W68: 31.2866549
B69: Pond, lake | C69: 4.773985141 | D69: 3.492098617 | E69: 2.606953595 | F69: 1.391135371 | G69: 0.02415158916 | H69: 1.03718312 | I69: 0.7721254224 | J69: 0 | K69: 0.09418058103 | L69: 0.01298283682 | M69: 5.243481109 | N69: 3.364585559 | O69: 4.108469917 | P69: 1.285707216 | Q69: 0.6688867096 | R69: 0.3264566238 | S69: 0 | T69: 1.005883951 | U69: 3.419094626 | V69: 1.951356544 | W69: 10.32522648
B70: Dam | C70: 0 | D70: 0 | E70: 0.1705644221 | F70: 0.01512808049 | G70: 0 | H70: 0.04694457295 | I70: 0 | J70: 0 | K70: 0 | L70: 0 | M70: 0 | N70: 0 | O70: 0.2617089232 | P70: 0 | Q70: 0.01970579803 | R70: 0 | S70: 0 | T70: 0 | U70: 0.2761831786 | V70: 0.01387997561 | W70: 0
B71: Rainwater | C71: 0 | D71: 0 | E71: 0.1203514563 | F71: 0.03027884837 | G71: 0 | H71: 0.04697270586 | I71: 0 | J71: 0 | K71: 0 | L71: 0 | M71: 0 | N71: 0 | O71: 0.1801989247 | P71: 0 | Q71: 0.0394411486 | R71: 0 | S71: 0 | T71: 0 | U71: 0.01471608741 | V71: 0 | W71: 0.2273810548
B72: Tanker truck | C72: 0 | D72: 0 | E72: 0 | F72: 0 | G72: 0.02745846834 | H72: 0 | I72: 0 | J72: 0.1019487255 | K72: 0.02409209014 | L72: 0 | M72: 0 | N72: 0 | O72: 0 | P72: 0 | Q72: 0 | R72: 0.0184230609 | S72: 0 | T72: 0 | U72: 0 | V72: 0 | W72: 0
B73: Other | C73: 0 | D73: 0 | E73: 0 | F73: 0.005348599524 | G73: 0 | H73: 0 | I73: 0.02555186544 | J73: 0 | K73: 0 | L73: 0 | M73: 0 | N73: 0 | O73: 0 | P73: 0 | Q73: 0 | R73: 0 | S73: 0.01410708458 | T73: 0 | U73: 0 | V73: 0 | W73: 0
A108: =A1026 -> Madagascar
A109: =A1034 -> 2004
A110: Use of sanitation facilities
A111: by wealth quintile and sub-national region
A112: Notes:
A113: WHO/UNICEF JMP customised wealth index excludes water,
A114: sanitation and hygiene assets.
A115: Survey used for analysis: | B115: =A1025 -> DHS04
A116: =B1030 -> Ratio of Improved latrines based on: | B116: DHS09
A117: =B1029 -> Ratio of Shared improved based on: | B117: DHS09
A120: Use of sanitation facilities | C120: NATIONAL wealth index quintile | H120: URBAN wealth index quintile | M120: RURAL wealth index quintile | R120: SUB-REGIONS: | BA120: Raw numbers of respondents: | BB120: Use of sanitation facilities | BC120: NATIONAL wealth index quintile | BH120: URBAN wealth index quintile | BM120: RURAL wealth index quintile | BR120: SUB-REGIONS:
A121: Weighted percentage (used in graphs) | C121: Poorest | D121: Poor | E121: Middle | F121: Rich | G121: Richest | H121: Poorest | I121: Poor | J121: Middle | K121: Rich | L121: Richest | M121: Poorest | N121: Poor | O121: Middle | P121: Rich | Q121: Richest | R121: Antananarivo | S121: Antsiranana | T121: Fianarantsoa | U121: Mahajanga | V121: Toamasina | W121: Toliary | BA121: Sanitation data, raw numbers (weighted) | BC121: Poorest | BD121: Poor | BE121: Middle | BF121: Rich | BG121: Richest | BH121: Poorest | BI121: Poor | BJ121: Middle | BK121: Rich | BL121: Richest | BM121: Poorest | BN121: Poor | BO121: Middle | BP121: Rich | BQ121: Richest | BR121: Antananarivo | BS121: Antsiranana | BT121: Fianarantsoa | BU121: Mahajanga | BV121: Toamasina | BW121: Toliary
A122: Sanitation | B122: Improved | C122: =C153+C155+(C154+C156)*'DHS09'!C130/100 -> 0.257015243 | D122: =D153+D155+(D154+D156)*'DHS09'!D130/100 -> 0.187320791 | E122: =E153+E155+(E154+E156)*'DHS09'!E130/100 -> 0.5090786173 | F122: =F153+F155+(F154+F156)*'DHS09'!F130/100 -> 2.197346837 | G122: =G153+G155+(G154+G156)*'DHS09'!G130/100 -> 19.52908893 | H122: =H153+H155+(H154+H156)*'DHS09'!H130/100 -> 3.483174033 | I122: =I153+I155+(I154+I156)*'DHS09'!I130/100 -> 7.475539772 | J122: =J153+J155+(J154+J156)*'DHS09'!J130/100 -> 14.96664171 | K122: =K153+K155+(K154+K156)*'DHS09'!K130/100 -> 16.7257905 | L122: =L153+L155+(L154+L156)*'DHS09'!L130/100 -> 45.13375843 | M122: =M153+M155+(M154+M156)*'DHS09'!M130/100 -> 0.1473017811 | N122: =N153+N155+(N154+N156)*'DHS09'!N130/100 -> 0.131108986 | O122: =O153+O155+(O154+O156)*'DHS09'!O130/100 -> 0.2355126076 | P122: =P153+P155+(P154+P156)*'DHS09'!P130/100 -> 1.022365045 | Q122: =Q153+Q155+(Q154+Q156)*'DHS09'!Q130/100 -> 6.47799736 | R122: =R153+R155+(R154+R156)*'DHS09'!R130/100 -> 5.597772029 | S122: =S153+S155+(S154+S156)*'DHS09'!S130/100 -> 4.812637916 | T122: =T153+T155+(T154+T156)*'DHS09'!T130/100 -> 1.242952065 | U122: =U153+U155+(U154+U156)*'DHS09'!U130/100 -> 1.6835718 | V122: =V153+V155+(V154+V156)*'DHS09'!V130/100 -> 4.747186962 | W122: =W153+W155+(W154+W156)*'DHS09'!W130/100 -> 1.759703765 | BA122: Sanitation | BB122: Improved | BC122: N/A | BD122: N/A | BE122: N/A | BF122: N/A | BG122: N/A | BH122: N/A | BI122: N/A | BJ122: N/A | BK122: N/A | BL122: N/A | BM122: N/A | BN122: N/A | BO122: N/A | BP122: N/A | BQ122: N/A | BR122: N/A | BS122: N/A | BT122: N/A | BU122: N/A | BV122: N/A | BW122: N/A
B123: Not Improved | C123: =100-C122 -> 99.74298476 | D123: =100-D122 -> 99.81267921 | E123: 99.49092138 | F123: 97.80265316 | G123: 80.47091107 | H123: 96.51682597 | I123: 92.52446023 | J123: 85.03335829 | K123: 83.2742095 | L123: 54.86624157 | M123: 99.85269822 | N123: 99.86889101 | O123: 99.76448739 | P123: 98.97763496 | Q123: 93.52200264 | R123: 94.40222797 | S123: 95.18736208 | T123: 98.75704794 | U123: 98.3164282 | V123: 95.25281304 | W123: 98.24029624 | BB123: Not Improved | BC123: N/A | BD123: N/A | BE123: N/A | BF123: N/A | BG123: N/A | BH123: N/A | BI123: N/A | BJ123: N/A | BK123: N/A | BL123: N/A | BM123: N/A | BN123: N/A | BO123: N/A | BP123: N/A | BQ123: N/A | BR123: N/A | BS123: N/A | BT123: N/A | BU123: N/A | BV123: N/A | BW123: N/A
A124: Sanitation ladder | B124: Basic | C124: =C122*'DHS09'!C129/100 -> 0.0317044002 | D124: =D122*'DHS09'!D129/100 -> 0.06959540011 | E124: =E122*'DHS09'!E129/100 -> 0.1718089713 | F124: =F122*'DHS09'!F129/100 -> 0.9954478058 | G124: =G122*'DHS09'!G129/100 -> 10.50140884 | H124: =H122*'DHS09'!H129/100 -> 1.011702081 | I124: =I122*'DHS09'!I129/100 -> 1.488462581 | J124: =J122*'DHS09'!J129/100 -> 5.130372632 | K124: =K122*'DHS09'!K129/100 -> 6.933851363 | L124: =L122*'DHS09'!L129/100 -> 32.02406539 | M124: =M122*'DHS09'!M129/100 -> 0 | N124: =N122*'DHS09'!N129/100 -> 0.03400183228 | O124: =O122*'DHS09'!O129/100 -> 0.09971232344 | P124: =P122*'DHS09'!P129/100 -> 0.4733565909 | Q124: =Q122*'DHS09'!Q129/100 -> 3.689936093 | R124: N/A | S124: N/A | T124: N/A | U124: N/A | V124: N/A | W124: N/A | BA124: Sanitation ladder | BB124: Basic | BC124: N/A | BD124: N/A | BE124: N/A | BF124: N/A | BG124: N/A | BH124: N/A | BI124: N/A | BJ124: N/A | BK124: N/A | BL124: N/A | BM124: N/A | BN124: N/A | BO124: N/A | BP124: N/A | BQ124: N/A | BR124: N/A | BS124: N/A | BT124: N/A | BU124: N/A | BV124: N/A | BW124: N/A
B125: Limited | C125: =C122*'DHS09'!C128/100 -> 0.2253108428 | D125: =D122*'DHS09'!D128/100 -> 0.1177253908 | E125: =E122*'DHS09'!E128/100 -> 0.337269646 | F125: =F122*'DHS09'!F128/100 -> 1.201899032 | G125: =G122*'DHS09'!G128/100 -> 9.027680092 | H125: =H122*'DHS09'!H128/100 -> 2.471471952 | I125: =I122*'DHS09'!I128/100 -> 5.987077191 | J125: =J122*'DHS09'!J128/100 -> 9.83626908 | K125: =K122*'DHS09'!K128/100 -> 9.79193914 | L125: =L122*'DHS09'!L128/100 -> 13.10969304 | M125: =M122*'DHS09'!M128/100 -> 0.1473017811 | N125: =N122*'DHS09'!N128/100 -> 0.09710715369 | O125: =O122*'DHS09'!O128/100 -> 0.1358002842 | P125: =P122*'DHS09'!P128/100 -> 0.5490084538 | Q125: =Q122*'DHS09'!Q128/100 -> 2.788061266 | R125: N/A | S125: N/A | T125: N/A | U125: N/A | V125: N/A | W125: N/A | BB125: Limited | BC125: N/A | BD125: N/A | BE125: N/A | BF125: N/A | BG125: N/A | BH125: N/A | BI125: N/A | BJ125: N/A | BK125: N/A | BL125: N/A | BM125: N/A | BN125: N/A | BO125: N/A | BP125: N/A | BQ125: N/A | BR125: N/A | BS125: N/A | BT125: N/A | BU125: N/A | BV125: N/A | BW125: N/A
B126: Unimproved | C126: =100-(C124+C125+C127) -> 24.78146176 | D126: =100-(D124+D125+D127) -> 28.71758003 | E126: 48.29733542 | F126: 63.76899679 | G126: 77.41808606 | H126: 43.98825283 | I126: 60.41156236 | J126: 74.95688121 | K126: 79.41902337 | L126: 53.91295257 | M126: 23.42981644 | N126: 27.43140435 | O126: 38.72143769 | P126: 57.57277657 | Q126: 79.35426772 | R126: N/A | S126: N/A | T126: N/A | U126: N/A | V126: N/A | W126: N/A | BB126: Unimproved | BC126: N/A | BD126: N/A | BE126: N/A | BF126: N/A | BG126: N/A | BH126: N/A | BI126: N/A | BJ126: N/A | BK126: N/A | BL126: N/A | BM126: N/A | BN126: N/A | BO126: N/A | BP126: N/A | BQ126: N/A | BR126: N/A | BS126: N/A | BT126: N/A | BU126: N/A | BV126: N/A | BW126: N/A
B127: Open defecation | C127: =C157 -> 74.961523 | D127: =D157 -> 71.09509918 | E127: 51.19358597 | F127: 34.03365637 | G127: 3.052825008 | H127: 52.52857314 | I127: 32.11289786 | J127: 10.07647708 | K127: 3.855186124 | L127: 0.9532889987 | M127: 76.42288178 | N127: 72.43748666 | O127: 61.0430497 | P127: 41.40485839 | Q127: 14.16773492 | R127: N/A | S127: N/A | T127: N/A | U127: N/A | V127: N/A | W127: N/A | BB127: Open defecation | BC127: N/A | BD127: N/A | BE127: N/A | BF127: N/A | BG127: N/A | BH127: N/A | BI127: N/A | BJ127: N/A | BK127: N/A | BL127: N/A | BM127: N/A | BN127: N/A | BO127: N/A | BP127: N/A | BQ127: N/A | BR127: N/A | BS127: N/A | BT127: N/A | BU127: N/A | BV127: N/A | BW127: N/A
A128: Shared among Improved Sanitation | B128: Yes | C128: N/A | D128: N/A | E128: N/A | F128: N/A | G128: N/A | H128: N/A | I128: N/A | J128: N/A | K128: N/A | L128: N/A | M128: N/A | N128: N/A | O128: N/A | P128: N/A | Q128: N/A | R128: N/A | S128: N/A | T128: N/A | U128: N/A | V128: N/A | W128: N/A | BA128: Shared among improved sanitation facilities | BB128: Yes | BC128: N/A | BD128: N/A | BE128: N/A | BF128: N/A | BG128: N/A | BH128: N/A | BI128: N/A | BJ128: N/A | BK128: N/A | BL128: N/A | BM128: N/A | BN128: N/A | BO128: N/A | BP128: N/A | BQ128: N/A | BR128: N/A | BS128: N/A | BT128: N/A | BU128: N/A | BV128: N/A | BW128: N/A
B129: No | C129: N/A | D129: N/A | E129: N/A | F129: N/A | G129: N/A | H129: N/A | I129: N/A | J129: N/A | K129: N/A | L129: N/A | M129: N/A | N129: N/A | O129: N/A | P129: N/A | Q129: N/A | R129: N/A | S129: N/A | T129: N/A | U129: N/A | V129: N/A | W129: N/A | BB129: No | BC129: N/A | BD129: N/A | BE129: N/A | BF129: N/A | BG129: N/A | BH129: N/A | BI129: N/A | BJ129: N/A | BK129: N/A | BL129: N/A | BM129: N/A | BN129: N/A | BO129: N/A | BP129: N/A | BQ129: N/A | BR129: N/A | BS129: N/A | BT129: N/A | BU129: N/A | BV129: N/A | BW129: N/A
A130: Manually calculated ratios | B130: Improved latrines
B131: Other
B132: Other
C133: NATIONAL wealth index quintile | H133: URBAN wealth index quintile | M133: RURAL wealth index quintile | R133: SUB-REGIONS: | BA133: Raw numbers of respondents: | BB133: Use of sanitation facilities | BC133: NATIONAL wealth index quintile | BH133: URBAN wealth index quintile | BM133: RURAL wealth index quintile | BR133: SUB-REGIONS:
A134: Percentage based on weighted population | C134: Poorest | D134: Poor | E134: Middle | F134: Rich | G134: Richest | H134: Poorest | I134: Poor | J134: Middle | K134: Rich | L134: Richest | M134: Poorest | N134: Poor | O134: Middle | P134: Rich | Q134: Richest | R134: Antananarivo | S134: Antsiranana | T134: Fianarantsoa | U134: Mahajanga | V134: Toamasina | W134: Toliary | BA134: Sanitation data, raw numbers (weighted) | BC134: Poorest | BD134: Poor | BE134: Middle | BF134: Rich | BG134: Richest | BH134: Poorest | BI134: Poor | BJ134: Middle | BK134: Rich | BL134: Richest | BM134: Poorest | BN134: Poor | BO134: Middle | BP134: Rich | BQ134: Richest | BR134: Antananarivo | BS134: Antsiranana | BT134: Fianarantsoa | BU134: Mahajanga | BV134: Toamasina | BW134: Toliary
A135: Sanitation type | B135: Sewer connection | C135: N/A | D135: N/A | E135: N/A | F135: N/A | G135: N/A | H135: N/A | I135: N/A | J135: N/A | K135: N/A | L135: N/A | M135: N/A | N135: N/A | O135: N/A | P135: N/A | Q135: N/A | R135: N/A | S135: N/A | T135: N/A | U135: N/A | V135: N/A | W135: N/A | BA135: Sanitation type | BB135: Sewer connection | BC135: N/A | BD135: N/A | BE135: N/A | BF135: N/A | BG135: N/A | BH135: N/A | BI135: N/A | BJ135: N/A | BK135: N/A | BL135: N/A | BM135: N/A | BN135: N/A | BO135: N/A | BP135: N/A | BQ135: N/A | BR135: N/A | BS135: N/A | BT135: N/A | BU135: N/A | BV135: N/A | BW135: N/A
B136: Septic tank connection | C136: N/A | D136: N/A | E136: N/A | F136: N/A | G136: N/A | H136: N/A | I136: N/A | J136: N/A | K136: N/A | L136: N/A | M136: N/A | N136: N/A | O136: N/A | P136: N/A | Q136: N/A | R136: N/A | S136: N/A | T136: N/A | U136: N/A | V136: N/A | W136: N/A | BB136: Septic tank connection | BC136: N/A | BD136: N/A | BE136: N/A | BF136: N/A | BG136: N/A | BH136: N/A | BI136: N/A | BJ136: N/A | BK136: N/A | BL136: N/A | BM136: N/A | BN136: N/A | BO136: N/A | BP136: N/A | BQ136: N/A | BR136: N/A | BS136: N/A | BT136: N/A | BU136: N/A | BV136: N/A | BW136: N/A
B137: Improved latrines | C137: N/A | D137: N/A | E137: N/A | F137: N/A | G137: N/A | H137: N/A | I137: N/A | J137: N/A | K137: N/A | L137: N/A | M137: N/A | N137: N/A | O137: N/A | P137: N/A | Q137: N/A | R137: N/A | S137: N/A | T137: N/A | U137: N/A | V137: N/A | W137: N/A | BB137: Improved latrines | BC137: N/A | BD137: N/A | BE137: N/A | BF137: N/A | BG137: N/A | BH137: N/A | BI137: N/A | BJ137: N/A | BK137: N/A | BL137: N/A | BM137: N/A | BN137: N/A | BO137: N/A | BP137: N/A | BQ137: N/A | BR137: N/A | BS137: N/A | BT137: N/A | BU137: N/A | BV137: N/A | BW137: N/A
B138: Unimproved facilities | C138: 25.038477 | D138: 28.90490082 | E138: 48.80641403 | F138: 65.96634363 | G138: 96.947535 | H138: 47.47142686 | I138: 67.88710214 | J138: 89.92352292 | K138: 96.14680834 | L138: 99.046711 | M138: 23.57711822 | N138: 27.56251334 | O138: 38.9569503 | P138: 58.59514161 | Q138: 85.83226508 | R138: 84.95818004 | S138: 44.141052 | T138: 39.15396439 | U138: 27.58272733 | V138: 76.67852641 | W138: 12.85102538 | BB138: Unimproved facilities | BC138: N/A | BD138: N/A | BE138: N/A | BF138: N/A | BG138: N/A | BH138: N/A | BI138: N/A | BJ138: N/A | BK138: N/A | BL138: N/A | BM138: N/A | BN138: N/A | BO138: N/A | BP138: N/A | BQ138: N/A | BR138: N/A | BS138: N/A | BT138: N/A | BU138: N/A | BV138: N/A | BW138: N/A
B139: Open defecation | C139: 74.961523 | D139: 71.09509918 | E139: 51.19358597 | F139: 34.03365637 | G139: 3.052464998 | H139: 52.52857314 | I139: 32.11289786 | J139: 10.07647708 | K139: 3.853191661 | L139: 0.9532889987 | M139: 76.42288178 | N139: 72.43748666 | O139: 61.0430497 | P139: 41.40485839 | Q139: 14.16773492 | R139: 15.04181996 | S139: 55.858948 | T139: 60.84603561 | U139: 72.41727267 | V139: 23.32147359 | W139: 87.14897462 | BB139: Open defecation | BC139: N/A | BD139: N/A | BE139: N/A | BF139: N/A | BG139: N/A | BH139: N/A | BI139: N/A | BJ139: N/A | BK139: N/A | BL139: N/A | BM139: N/A | BN139: N/A | BO139: N/A | BP139: N/A | BQ139: N/A | BR139: N/A | BS139: N/A | BT139: N/A | BU139: N/A | BV139: N/A | BW139: N/A
A140: Septic tank emptying practices | B140: Not emptied/treated and disposed in situ | C140: N/A | D140: N/A | E140: N/A | F140: N/A | G140: N/A | H140: N/A | I140: N/A | J140: N/A | K140: N/A | L140: N/A | M140: N/A | N140: N/A | O140: N/A | P140: N/A | Q140: N/A | R140: N/A | S140: N/A | T140: N/A | U140: N/A | V140: N/A | W140: N/A | BA140: Septic tank emptying practices | BB140: Not emptied/treated and disposed in situ | BC140: N/A | BD140: N/A | BE140: N/A | BF140: N/A | BG140: N/A | BH140: N/A | BI140: N/A | BJ140: N/A | BK140: N/A | BL140: N/A | BM140: N/A | BN140: N/A | BO140: N/A | BP140: N/A | BQ140: N/A | BR140: N/A | BS140: N/A | BT140: N/A | BU140: N/A | BV140: N/A | BW140: N/A
B141: Emptied and buried on site | C141: N/A | D141: N/A | E141: N/A | F141: N/A | G141: N/A | H141: N/A | I141: N/A | J141: N/A | K141: N/A | L141: N/A | M141: N/A | N141: N/A | O141: N/A | P141: N/A | Q141: N/A | R141: N/A | S141: N/A | T141: N/A | U141: N/A | V141: N/A | W141: N/A | BB141: Emptied and buried on site | BC141: N/A | BD141: N/A | BE141: N/A | BF141: N/A | BG141: N/A | BH141: N/A | BI141: N/A | BJ141: N/A | BK141: N/A | BL141: N/A | BM141: N/A | BN141: N/A | BO141: N/A | BP141: N/A | BQ141: N/A | BR141: N/A | BS141: N/A | BT141: N/A | BU141: N/A | BV141: N/A | BW141: N/A
B142: Emptied and discharged locally | C142: N/A | D142: N/A | E142: N/A | F142: N/A | G142: N/A | H142: N/A | I142: N/A | J142: N/A | K142: N/A | L142: N/A | M142: N/A | N142: N/A | O142: N/A | P142: N/A | Q142: N/A | R142: N/A | S142: N/A | T142: N/A | U142: N/A | V142: N/A | W142: N/A | BB142: Emptied and discharged locally | BC142: N/A | BD142: N/A | BE142: N/A | BF142: N/A | BG142: N/A | BH142: N/A | BI142: N/A | BJ142: N/A | BK142: N/A | BL142: N/A | BM142: N/A | BN142: N/A | BO142: N/A | BP142: N/A | BQ142: N/A | BR142: N/A | BS142: N/A | BT142: N/A | BU142: N/A | BV142: N/A | BW142: N/A
B143: Emptied and removed offsite | C143: N/A | D143: N/A | E143: N/A | F143: N/A | G143: N/A | H143: N/A | I143: N/A | J143: N/A | K143: N/A | L143: N/A | M143: N/A | N143: N/A | O143: N/A | P143: N/A | Q143: N/A | R143: N/A | S143: N/A | T143: N/A | U143: N/A | V143: N/A | W143: N/A | BB143: Emptied and removed offsite | BC143: N/A | BD143: N/A | BE143: N/A | BF143: N/A | BG143: N/A | BH143: N/A | BI143: N/A | BJ143: N/A | BK143: N/A | BL143: N/A | BM143: N/A | BN143: N/A | BO143: N/A | BP143: N/A | BQ143: N/A | BR143: N/A | BS143: N/A | BT143: N/A | BU143: N/A | BV143: N/A | BW143: N/A
A144: Latrine emptying practices | B144: Not emptied/treated and disposed in situ | C144: N/A | D144: N/A | E144: N/A | F144: N/A | G144: N/A | H144: N/A | I144: N/A | J144: N/A | K144: N/A | L144: N/A | M144: N/A | N144: N/A | O144: N/A | P144: N/A | Q144: N/A | R144: N/A | S144: N/A | T144: N/A | U144: N/A | V144: N/A | W144: N/A | BA144: Latrine emptying practices | BB144: Not emptied/treated and disposed in situ | BC144: N/A | BD144: N/A | BE144: N/A | BF144: N/A | BG144: N/A | BH144: N/A | BI144: N/A | BJ144: N/A | BK144: N/A | BL144: N/A | BM144: N/A | BN144: N/A | BO144: N/A | BP144: N/A | BQ144: N/A | BR144: N/A | BS144: N/A | BT144: N/A | BU144: N/A | BV144: N/A | BW144: N/A
B145: Emptied and buried on site | C145: N/A | D145: N/A | E145: N/A | F145: N/A | G145: N/A | H145: N/A | I145: N/A | J145: N/A | K145: N/A | L145: N/A | M145: N/A | N145: N/A | O145: N/A | P145: N/A | Q145: N/A | R145: N/A | S145: N/A | T145: N/A | U145: N/A | V145: N/A | W145: N/A | BB145: Emptied and buried on site | BC145: N/A | BD145: N/A | BE145: N/A | BF145: N/A | BG145: N/A | BH145: N/A | BI145: N/A | BJ145: N/A | BK145: N/A | BL145: N/A | BM145: N/A | BN145: N/A | BO145: N/A | BP145: N/A | BQ145: N/A | BR145: N/A | BS145: N/A | BT145: N/A | BU145: N/A | BV145: N/A | BW145: N/A
B146: Emptied and discharged locally | C146: N/A | D146: N/A | E146: N/A | F146: N/A | G146: N/A | H146: N/A | I146: N/A | J146: N/A | K146: N/A | L146: N/A | M146: N/A | N146: N/A | O146: N/A | P146: N/A | Q146: N/A | R146: N/A | S146: N/A | T146: N/A | U146: N/A | V146: N/A | W146: N/A | BB146: Emptied and discharged locally | BC146: N/A | BD146: N/A | BE146: N/A | BF146: N/A | BG146: N/A | BH146: N/A | BI146: N/A | BJ146: N/A | BK146: N/A | BL146: N/A | BM146: N/A | BN146: N/A | BO146: N/A | BP146: N/A | BQ146: N/A | BR146: N/A | BS146: N/A | BT146: N/A | BU146: N/A | BV146: N/A | BW146: N/A
B147: Emptied and removed offsite | C147: N/A | D147: N/A | E147: N/A | F147: N/A | G147: N/A | H147: N/A | I147: N/A | J147: N/A | K147: N/A | L147: N/A | M147: N/A | N147: N/A | O147: N/A | P147: N/A | Q147: N/A | R147: N/A | S147: N/A | T147: N/A | U147: N/A | V147: N/A | W147: N/A | BB147: Emptied and removed offsite | BC147: N/A | BD147: N/A | BE147: N/A | BF147: N/A | BG147: N/A | BH147: N/A | BI147: N/A | BJ147: N/A | BK147: N/A | BL147: N/A | BM147: N/A | BN147: N/A | BO147: N/A | BP147: N/A | BQ147: N/A | BR147: N/A | BS147: N/A | BT147: N/A | BU147: N/A | BV147: N/A | BW147: N/A
A148: Shared among improved sanitation facilities | B148: Yes | C148: N/A | D148: N/A | E148: N/A | F148: N/A | G148: N/A | H148: N/A | I148: N/A | J148: N/A | K148: N/A | L148: N/A | M148: N/A | N148: N/A | O148: N/A | P148: N/A | Q148: N/A | R148: N/A | S148: N/A | T148: N/A | U148: N/A | V148: N/A | W148: N/A | BA148: Shared among improved sanitation facilities | BB148: Yes | BC148: N/A | BD148: N/A | BE148: N/A | BF148: N/A | BG148: N/A | BH148: N/A | BI148: N/A | BJ148: N/A | BK148: N/A | BL148: N/A | BM148: N/A | BN148: N/A | BO148: N/A | BP148: N/A | BQ148: N/A | BR148: N/A | BS148: N/A | BT148: N/A | BU148: N/A | BV148: N/A | BW148: N/A
B149: No | C149: N/A | D149: N/A | E149: N/A | F149: N/A | G149: N/A | H149: N/A | I149: N/A | J149: N/A | K149: N/A | L149: N/A | M149: N/A | N149: N/A | O149: N/A | P149: N/A | Q149: N/A | R149: N/A | S149: N/A | T149: N/A | U149: N/A | V149: N/A | W149: N/A | BB149: No | BC149: N/A | BD149: N/A | BE149: N/A | BF149: N/A | BG149: N/A | BH149: N/A | BI149: N/A | BJ149: N/A | BK149: N/A | BL149: N/A | BM149: N/A | BN149: N/A | BO149: N/A | BP149: N/A | BQ149: N/A | BR149: N/A | BS149: N/A | BT149: N/A | BU149: N/A | BV149: N/A | BW149: N/A
B150: DK/missing | C150: N/A | D150: N/A | E150: N/A | F150: N/A | G150: N/A | H150: N/A | I150: N/A | J150: N/A | K150: N/A | L150: N/A | M150: N/A | N150: N/A | O150: N/A | P150: N/A | Q150: N/A | R150: N/A | S150: N/A | T150: N/A | U150: N/A | V150: N/A | W150: N/A | BB150: DK/missing | BC150: N/A | BD150: N/A | BE150: N/A | BF150: N/A | BG150: N/A | BH150: N/A | BI150: N/A | BJ150: N/A | BK150: N/A | BL150: N/A | BM150: N/A | BN150: N/A | BO150: N/A | BP150: N/A | BQ150: N/A | BR150: N/A | BS150: N/A | BT150: N/A | BU150: N/A | BV150: N/A | BW150: N/A
A151: Shared among all sanitation facilities | B151: Yes | C151: 64.3058979 | D151: 60.65386221 | E151: 58.93020151 | F151: 63.31884953 | G151: 67.09329192 | H151: 64.76947602 | I151: 63.84509348 | J151: 73.97734338 | K151: 73.1564601 | L151: 50.19630381 | M151: 63.09148454 | N151: 56.94622721 | O151: 60.91760448 | P151: 59.74590549 | Q151: 67.27876103 | R151: 69.35622181 | S151: 64.28838614 | T151: 56.11452607 | U151: 71.63692706 | V151: 53.80098233 | W151: 61.64597181 | BA151: Shared among all sanitation facilities | BB151: Yes | BC151: N/A | BD151: N/A | BE151: N/A | BF151: N/A | BG151: N/A | BH151: N/A | BI151: N/A | BJ151: N/A | BK151: N/A | BL151: N/A | BM151: N/A | BN151: N/A | BO151: N/A | BP151: N/A | BQ151: N/A | BR151: N/A | BS151: N/A | BT151: N/A | BU151: N/A | BV151: N/A | BW151: N/A
B152: No | C152: 34.23716763 | D152: 39.06679891 | E152: 41.06979849 | F152: 36.07084175 | G152: 32.6197629 | H152: 35.16200819 | I152: 35.29347843 | J152: 25.53986804 | K152: 26.1896486 | L152: 49.47303148 | M152: 35.22445424 | N152: 43.05377279 | O152: 38.87287235 | P152: 39.94102206 | Q152: 32.5470693 | R152: 30.63135215 | S152: 35.71161386 | T152: 42.09099745 | U152: 27.55703694 | V152: 46.05437649 | W152: 35.81376497 | BB152: No | BC152: N/A | BD152: N/A | BE152: N/A | BF152: N/A | BG152: N/A | BH152: N/A | BI152: N/A | BJ152: N/A | BK152: N/A | BL152: N/A | BM152: N/A | BN152: N/A | BO152: N/A | BP152: N/A | BQ152: N/A | BR152: N/A | BS152: N/A | BT152: N/A | BU152: N/A | BV152: N/A | BW152: N/A
A153: Type of toilet facility | B153: Flush toilet | C153: 0.06073143596 | D153: 0 | E153: 0.01218115291 | F153: 0.1913353326 | G153: 9.098929875 | H153: 0.3836959164 | I153: 0.8923580631 | J153: 1.938191291 | K153: 4.835464929 | L153: 27.37187272 | M153: 0 | N153: 0 | O153: 0 | P153: 0 | Q153: 2.457738488 | R153: 4.004262533 | S153: 0.9525565865 | T153: 0.826790697 | U153: 0.7228537412 | V153: 1.752330438 | W153: 0.5915129894 | BA153: Type of toilet facility | BB153: Flush toilet | BC153: 5.63776 | BD153: 0 | BE153: 1.072472 | BF153: 15.444285 | BG153: 719.51628 | BH153: 6.710232 | BI153: 15.086531 | BJ153: 33.028029 | BK153: 87.125814 | BL153: 447.444981 | BM153: 0 | BN153: 0 | BO153: 0 | BP153: 0 | BQ153: 152.27521 | BR153: 471.958949 | BS153: 29.147233 | BT153: 64.757633 | BU153: 40.350973 | BV153: 103.670944 | BW153: 31.785065
B154: Traditional pit toilet | C154: 0.1719552607 | D154: 1.393724889 | E154: 1.023771115 | F154: 2.497434088 | G154: 7.935486748 | H154: 0.7395298966 | I154: 4.869196819 | J154: 8.594695932 | K154: 9.327394056 | L154: 7.951399522 | M154: 0.1557915907 | N154: 1.583965182 | O154: 0.6519347916 | P154: 1.746437518 | Q154: 3.870273635 | R154: 3.752590645 | S154: 1.756546842 | T154: 0.7006112753 | U154: 2.184851464 | V154: 4.785844084 | W154: 1.034865165 | BB154: Traditional pit toilet | BC154: 15.962779 | BD154: 76.426166 | BE154: 90.136448 | BF154: 201.588924 | BG154: 627.514662 | BH154: 12.933203 | BI154: 82.320418 | BJ154: 146.459159 | BK154: 168.061771 | BL154: 129.98065 | BM154: 13.064102 | BN154: 76.426166 | BO154: 35.363484 | BP154: 107.22774 | BQ154: 239.792286 | BR154: 442.295859 | BS154: 53.748492 | BT154: 54.874744 | BU154: 121.962269 | BV154: 283.138935 | BW154: 55.60868
B155: Ventilated improved pit latrine | C155: 0 | D155: 0 | E155: 0.06205851217 | F155: 0.1314763781 | G155: 3.437769485 | H155: 0.312427007 | I155: 0.5276851099 | J155: 1.931489902 | K155: 2.84924882 | L155: 8.918106548 | M155: 0 | N155: 0 | O155: 0 | P155: 0 | Q155: 0.7021715848 | R155: 1.593509496 | S155: 0.7546158186 | T155: 0.1925967357 | U155: 0.7142707631 | V155: 0.06306780457 | W155: 0.3410966216 | BB155: Ventilated improved pit latrine | BC155: 0 | BD155: 0 | BE155: 5.463852 | BF155: 10.612565 | BG155: 271.848574 | BH155: 5.463852 | BI155: 8.921237 | BJ155: 32.913833 | BK155: 51.338005 | BL155: 145.783303 | BM155: 0 | BN155: 0 | BO155: 0 | BP155: 0 | BQ155: 43.504761 | BR155: 187.817622 | BS155: 23.090453 | BT155: 15.084965 | BU155: 39.871856 | BV155: 3.731202 | BW155: 18.328893
B156: Pit latrine with drainage | C156: 24.80579031 | D156: 27.51117594 | E156: 47.70840325 | F156: 63.14609783 | G156: 76.47498888 | H156: 46.03577404 | I156: 61.59786214 | J156: 77.45914579 | K156: 79.13270607 | L156: 54.80533221 | M156: 23.42132663 | N156: 25.97854815 | O156: 38.3050155 | P156: 56.8487041 | Q156: 78.80208137 | R156: 75.60662713 | S156: 40.67733275 | T156: 37.43396568 | U156: 23.96075136 | V156: 70.07728408 | W156: 10.88355061 | BB156: Pit latrine with drainage | BC156: 2302.746348 | BD156: 1508.600238 | BE156: 4200.417403 | BF156: 5097.053002 | BG156: 6047.414396 | BH156: 805.092551 | BI156: 1041.395932 | BJ156: 1319.953776 | BK156: 1425.819757 | BL156: 895.896714 | BM156: 1964.025136 | BN156: 1253.462422 | BO156: 2077.813334 | BP156: 3490.395733 | BQ156: 4882.376032 | BR156: 8911.309882 | BS156: 1244.683741 | BT156: 2931.98148 | BU156: 1337.531476 | BV156: 4145.895109 | BW156: 584.829699
B157: No facility, bush, field | C157: 74.961523 | D157: 71.09509918 | E157: 51.19358597 | F157: 34.03365637 | G157: 3.052825008 | H157: 52.52857314 | I157: 32.11289786 | J157: 10.07647708 | K157: 3.855186124 | L157: 0.9532889987 | M157: 76.42288178 | N157: 72.43748666 | O157: 61.0430497 | P157: 41.40485839 | Q157: 14.16773492 | R157: 15.04301019 | S157: 55.858948 | T157: 60.84603561 | U157: 72.41727267 | V157: 23.32147359 | W157: 87.14897462 | BB157: No facility, bush, field | BC157: 6958.753226 | BD157: 3898.564125 | BE157: 4507.265277 | BF157: 2747.142838 | BG157: 241.408311 | BH157: 918.641292 | BI157: 542.912368 | BJ157: 171.709665 | BK157: 69.463068 | BL157: 15.58331 | BM157: 6408.53796 | BN157: 3495.101687 | BO157: 3311.21293 | BP157: 2542.174766 | BQ157: 877.796731 | BR157: 1773.031419 | BS157: 1709.225253 | BT157: 4765.710666 | BU157: 4042.46011 | BV157: 1379.739306 | BW157: 4682.967023
BB158: Total | BC158: 9283.100113 | BD158: 5483.590529 | BE158: 8804.355452 | BF158: 8071.841614 | BG158: 7907.702223 | BH158: 1748.84113 | BI158: 1690.636486 | BJ158: 1704.064462 | BK158: 1801.808415 | BL158: 1634.688958 | BM158: 8385.627198 | BN158: 4824.990275 | BO158: 5424.389748 | BP158: 6139.798239 | BQ158: 6195.74502 | BR158: 11786.41373 | BS158: 3059.895172 | BT158: 7832.409488 | BU158: 5582.176684 | BV158: 5916.175496 | BW158: 5373.51936
A208: =A1026 -> Madagascar
A209: =A1034 -> 2004
A210: Access to hygiene facilities
A211: by wealth quintile and sub-national region
A212: Notes:
A213: WHO/UNICEF JMP customised wealth index excludes water,
A214: sanitation and hygiene assets.
A215: Survey used for analysis: | B215: =A1025 -> DHS04
A220: Access to handwashing | C220: NATIONAL wealth index quintile | H220: URBAN wealth index quintile | M220: RURAL wealth index quintile | R220: SUB-REGIONS: | BA220: Raw numbers of respondents: | BB220: Access to handwashing | BC220: NATIONAL wealth index quintile | BH220: URBAN wealth index quintile | BM220: RURAL wealth index quintile | BR220: SUB-REGIONS:
A221: Weighted percentage (used in graphs) | C221: Poorest | D221: Poor | E221: Middle | F221: Rich | G221: Richest | H221: Poorest | I221: Poor | J221: Middle | K221: Rich | L221: Richest | M221: Poorest | N221: Poor | O221: Middle | P221: Rich | Q221: Richest | R221: Antananarivo | S221: Antsiranana | T221: Fianarantsoa | U221: Mahajanga | V221: Toamasina | W221: Toliary | BA221: Hygiene data, raw numbers (weighted) | BC221: Poorest | BD221: Poor | BE221: Middle | BF221: Rich | BG221: Richest | BH221: Poorest | BI221: Poor | BJ221: Middle | BK221: Rich | BL221: Richest | BM221: Poorest | BN221: Poor | BO221: Middle | BP221: Rich | BQ221: Richest | BR221: Antananarivo | BS221: Antsiranana | BT221: Fianarantsoa | BU221: Mahajanga | BV221: Toamasina | BW221: Toliary
A222: Hygiene ladder | B222: Basic | C222: 3.725628031 | D222: 5.260189751 | E222: 5.710060614 | F222: 8.191609048 | G222: 35.28955199 | H222: 7.83791996 | I222: 12.94930666 | J222: 29.8850066 | K222: 39.13511683 | L222: 63.94185242 | M222: 3.199770195 | N222: 4.862587542 | O222: 7.512139871 | P222: 4.123538448 | Q222: 13.0765528 | R222: 16.98347329 | S222: 6.01044855 | T222: 5.24648532 | U222: 12.34633263 | V222: 17.25437348 | W222: 5.247673258 | BA222: Hygiene ladder | BB222: Basic | BC222: 345.656593 | BD222: 288.447267 | BE222: 502.734033 | BF222: 661.213708 | BG222: 2790.102236 | BH222: 137.072768 | BI222: 218.925703 | BJ222: 509.259777 | BK222: 705.504818 | BL222: 1043.765395 | BM222: 268.151445 | BN222: 234.619376 | BO222: 407.487745 | BP222: 253.176941 | BQ222: 810.189869 | BR222: 2001.900822 | BS222: 183.913425 | BT222: 410.926214 | BU222: 688.907366 | BV222: 1020.799016 | BW222: 281.706994
B223: Limited | C223: 38.11861475 | D223: 55.74928215 | E223: 59.62195369 | F223: 65.38856397 | G223: 54.07896988 | H223: 51.78800695 | I223: 62.97630785 | J223: 50.94464695 | K223: 48.88676333 | L223: 30.16429994 | M223: 37.21619347 | N223: 55.25249667 | O223: 51.43091728 | P223: 70.36249818 | Q223: 69.23727069 | R223: 68.30844653 | S223: 81.3205027 | T223: 40.19021192 | U223: 67.05887552 | V223: 29.95563903 | W223: 40.88358282 | BB223: Limited | BC223: 3536.571659 | BD223: 3057.062356 | BE223: 5249.32873 | BF223: 5278.061317 | BG223: 4275.652318 | BH223: 905.689966 | BI223: 1064.700438 | BJ223: 868.129624 | BK223: 881.301753 | BL223: 492.391935 | BM223: 3118.841494 | BN223: 2665.927591 | BO223: 2789.813404 | BP223: 4320.115424 | BQ223: 4289.764751 | BR223: 8051.753193 | BS223: 2488.322136 | BT223: 3147.861972 | BU223: 3741.787517 | BV223: 1772.228176 | BW223: 2194.723386
B224: No facility | C224: 58.15575722 | D224: 38.9905281 | E224: 34.6679857 | F224: 26.41982699 | G224: 10.63147813 | H224: 40.37407309 | I224: 24.0743855 | J224: 19.17034644 | K224: 11.97811984 | L224: 5.893847642 | M224: 59.58403634 | N224: 39.88491579 | O224: 41.05694285 | P224: 25.51396338 | Q224: 17.6861765 | R224: 14.70808019 | S224: 12.66904875 | T224: 54.56330276 | U224: 20.59479185 | V224: 52.78998749 | W224: 53.86874392 | BB224: No facility | BC224: 5395.579145 | BD224: 2138.080906 | BE224: 3052.292689 | BF224: 2132.566589 | BG224: 840.557877 | BH224: 706.078396 | BI224: 407.010345 | BJ224: 326.675061 | BK224: 215.934484 | BL224: 96.209196 | BM224: 4993.341543 | BN224: 1924.443308 | BO224: 2227.088599 | BP224: 1566.505874 | BQ224: 1095.7904 | BR224: 1733.692356 | BS224: 387.659611 | BT224: 4273.621302 | BU224: 1149.159369 | BV224: 3123.148304 | BW224: 2891.796264
A225: Place for hand washing | B225: Nowhere | C225: 14.67368404 | D225: 12.30354558 | E225: 10.45440012 | F225: 5.7697604 | G225: 1.722569917 | H225: 9.931891641 | I225: 5.744551818 | J225: 3.693490851 | K225: 2.54583274 | L225: 0.6601833913 | M225: 14.88079872 | N225: 13.61147284 | O225: 13.62415727 | P225: 4.975752478 | Q225: 3.54568008 | R225: 4.116965589 | S225: 0.137584027 | T225: 19.87700238 | U225: 7.70500721 | V225: 7.889136442 | W225: 11.4648821 | BA225: Observed handwashing place | BB225: Fixed | BC225: N/A | BD225: N/A | BE225: N/A | BF225: N/A | BG225: N/A | BH225: N/A | BI225: N/A | BJ225: N/A | BK225: N/A | BL225: N/A | BM225: N/A | BN225: N/A | BO225: N/A | BP225: N/A | BQ225: N/A | BR225: N/A | BS225: N/A | BT225: N/A | BU225: N/A | BV225: N/A | BW225: N/A
B226: In dwelling/yard/plot | C226: 41.82038548 | D226: 61.0094719 | E226: 65.3320143 | F226: 73.58017301 | G226: 89.34227811 | H226: 59.62592691 | I226: 75.9256145 | J226: 80.82965356 | K226: 88.02188016 | L226: 93.97245406 | M226: 40.39045451 | N226: 60.11508421 | O226: 58.94305715 | P226: 74.48603662 | Q226: 82.3138235 | R226: 85.29191981 | S226: 87.33095125 | T226: 45.43669724 | U226: 79.37217207 | V226: 47.21001251 | W226: 46.08581851 | BB226: Mobile | BC226: N/A | BD226: N/A | BE226: N/A | BF226: N/A | BG226: N/A | BH226: N/A | BI226: N/A | BJ226: N/A | BK226: N/A | BL226: N/A | BM226: N/A | BN226: N/A | BO226: N/A | BP226: N/A | BQ226: N/A | BR226: N/A | BS226: N/A | BT226: N/A | BU226: N/A | BV226: N/A | BW226: N/A
B227: Somewhere else | C227: 43.44891594 | D227: 26.68698252 | E227: 24.21358558 | F227: 20.65006659 | G227: 8.905786197 | H227: 30.44218145 | I227: 18.32983368 | J227: 15.47685559 | K227: 9.432287101 | L227: 5.225290755 | M227: 44.66563025 | N227: 26.27344294 | O227: 27.43278559 | P227: 20.5382109 | Q227: 14.14049642 | R227: 10.5911146 | S227: 12.53146472 | T227: 34.68630038 | U227: 12.8812163 | V227: 44.90085104 | W227: 42.35080312 | BA227: Water / Soap | BB227: Water and soap | BC227: N/A | BD227: N/A | BE227: N/A | BF227: N/A | BG227: N/A | BH227: N/A | BI227: N/A | BJ227: N/A | BK227: N/A | BL227: N/A | BM227: N/A | BN227: N/A | BO227: N/A | BP227: N/A | BQ227: N/A | BR227: N/A | BS227: N/A | BT227: N/A | BU227: N/A | BV227: N/A | BW227: N/A
B228: missing | C228: 0.05701453109 | D228: 0 | E228: 0 | F228: 0 | G228: 0.02936577602 | H228: 0 | I228: 0 | J228: 0 | K228: 0 | L228: 0.1420717983 | M228: 0.06311651919 | N228: 0 | O228: 0 | P228: 0 | Q228: 0 | R228: 0 | S228: 0 | T228: 0 | U228: 0.04160441583 | V228: 0 | W228: 0.09849626744 | BB228: Water only | BC228: N/A | BD228: N/A | BE228: N/A | BF228: N/A | BG228: N/A | BH228: N/A | BI228: N/A | BJ228: N/A | BK228: N/A | BL228: N/A | BM228: N/A | BN228: N/A | BO228: N/A | BP228: N/A | BQ228: N/A | BR228: N/A | BS228: N/A | BT228: N/A | BU228: N/A | BV228: N/A | BW228: N/A
BB229: Soap only | BC229: N/A | BD229: N/A | BE229: N/A | BF229: N/A | BG229: N/A | BH229: N/A | BI229: N/A | BJ229: N/A | BK229: N/A | BL229: N/A | BM229: N/A | BN229: N/A | BO229: N/A | BP229: N/A | BQ229: N/A | BR229: N/A | BS229: N/A | BT229: N/A | BU229: N/A | BV229: N/A | BW229: N/A
BB230: Neither | BC230: N/A | BD230: N/A | BE230: N/A | BF230: N/A | BG230: N/A | BH230: N/A | BI230: N/A | BJ230: N/A | BK230: N/A | BL230: N/A | BM230: N/A | BN230: N/A | BO230: N/A | BP230: N/A | BQ230: N/A | BR230: N/A | BS230: N/A | BT230: N/A | BU230: N/A | BV230: N/A | BW230: N/A
BA231: Place for hand washing | BB231: Nowhere | BC231: 1362.17278 | BD231: 674.67606 | BE231: 920.442547 | BF231: 465.725921 | BG231: 136.231765 | BH231: 173.693006 | BI231: 97.119489 | BJ231: 62.939465 | BK231: 45.894772 | BL231: 10.791945 | BM231: 1247.848305 | BN231: 656.752241 | BO231: 739.02739 | BP231: 305.501163 | BQ231: 219.681297 | BR231: 485.280994 | BS231: 4.209927 | BT231: 1556.84822 | BU231: 430.107116 | BV231: 466.735157 | BW231: 616.067659
BB232: In dwelling/yard/plot | BC232: 3882.228252 | BD232: 3345.509623 | BE232: 5752.062763 | BF232: 5939.275025 | BG232: 7065.754554 | BH232: 1042.762734 | BI232: 1283.626141 | BJ232: 1377.389401 | BK232: 1586.806571 | BL232: 1536.15733 | BM232: 3386.992939 | BN232: 2900.546967 | BO232: 3197.301149 | BP232: 4573.292365 | BQ232: 5099.95462 | BR232: 10053.65401 | BS232: 2672.235561 | BT232: 3558.788186 | BU232: 4430.694883 | BV232: 2793.027192 | BW232: 2476.43038
BB233: Somewhere else | BC233: 4033.406365 | BD233: 1463.404846 | BE233: 2131.850142 | BF233: 1666.840668 | BG233: 704.326112 | BH233: 532.38539 | BI233: 309.890856 | BJ233: 263.735596 | BK233: 170.039712 | BL233: 85.417251 | BM233: 3745.493238 | BN233: 1267.691067 | BO233: 1488.061209 | BP233: 1261.004711 | BQ233: 876.109103 | BR233: 1248.411362 | BS233: 383.449684 | BT233: 2716.773082 | BU233: 719.052253 | BV233: 2656.413147 | BW233: 2275.728605
BB234: missing | BC234: 5.292716 | BD234: 0 | BE234: 0 | BF234: 0 | BG234: 2.322432 | BH234: 0 | BI234: 0 | BJ234: 0 | BK234: 0 | BL234: 2.322432 | BM234: 5.292716 | BN234: 0 | BO234: 0 | BP234: 0 | BQ234: 0 | BR234: 0 | BS234: 0 | BT234: 0 | BU234: 2.322432 | BV234: 0 | BW234: 5.292716
BB235: Total | BC235: 9283.100113 | BD235: 5483.590529 | BE235: 8804.355452 | BF235: 8071.841614 | BG235: 7908.634863 | BH235: 1748.84113 | BI235: 1690.636486 | BJ235: 1704.064462 | BK235: 1802.741055 | BL235: 1634.688958 | BM235: 8385.627198 | BN235: 4824.990275 | BO235: 5424.389748 | BP235: 6139.798239 | BQ235: 6195.74502 | BR235: 11787.34637 | BS235: 3059.895172 | BT235: 7832.409488 | BU235: 5582.176684 | BV235: 5916.175496 | BW235: 5373.51936
BA259: Raw numbers of respondents: | BB259: Menstrual health and hygiene | BC259: NATIONAL wealth index quintile | BH259: URBAN wealth index quintile | BM259: RURAL wealth index quintile | BR259: SUB-REGIONS:
BA260: MHH data, raw numbers (weighted) | BC260: Poorest | BD260: Poor | BE260: Middle | BF260: Rich | BG260: Richest | BH260: Poorest | BI260: Poor | BJ260: Middle | BK260: Rich | BL260: Richest | BM260: Poorest | BN260: Poor | BO260: Middle | BP260: Rich | BQ260: Richest | BR260: Antananarivo | BS260: Antsiranana | BT260: Fianarantsoa | BU260: Mahajanga | BV260: Toamasina | BW260: Toliary
BA261: Private place to wash and change | BB261: Yes | BC261: N/A | BD261: N/A | BE261: N/A | BF261: N/A | BG261: N/A | BH261: N/A | BI261: N/A | BJ261: N/A | BK261: N/A | BL261: N/A | BM261: N/A | BN261: N/A | BO261: N/A | BP261: N/A | BQ261: N/A | BR261: N/A | BS261: N/A | BT261: N/A | BU261: N/A | BV261: N/A | BW261: N/A
BB262: No | BC262: N/A | BD262: N/A | BE262: N/A | BF262: N/A | BG262: N/A | BH262: N/A | BI262: N/A | BJ262: N/A | BK262: N/A | BL262: N/A | BM262: N/A | BN262: N/A | BO262: N/A | BP262: N/A | BQ262: N/A | BR262: N/A | BS262: N/A | BT262: N/A | BU262: N/A | BV262: N/A | BW262: N/A
BB263: DK/not sure/missing | BC263: N/A | BD263: N/A | BE263: N/A | BF263: N/A | BG263: N/A | BH263: N/A | BI263: N/A | BJ263: N/A | BK263: N/A | BL263: N/A | BM263: N/A | BN263: N/A | BO263: N/A | BP263: N/A | BQ263: N/A | BR263: N/A | BS263: N/A | BT263: N/A | BU263: N/A | BV263: N/A | BW263: N/A
BA264: Use of menstrual materials | BB264: Materials reusable | BC264: N/A | BD264: N/A | BE264: N/A | BF264: N/A | BG264: N/A | BH264: N/A | BI264: N/A | BJ264: N/A | BK264: N/A | BL264: N/A | BM264: N/A | BN264: N/A | BO264: N/A | BP264: N/A | BQ264: N/A | BR264: N/A | BS264: N/A | BT264: N/A | BU264: N/A | BV264: N/A | BW264: N/A
BB265: Materials not reusable | BC265: N/A | BD265: N/A | BE265: N/A | BF265: N/A | BG265: N/A | BH265: N/A | BI265: N/A | BJ265: N/A | BK265: N/A | BL265: N/A | BM265: N/A | BN265: N/A | BO265: N/A | BP265: N/A | BQ265: N/A | BR265: N/A | BS265: N/A | BT265: N/A | BU265: N/A | BV265: N/A | BW265: N/A
BB266: No materials used | BC266: N/A | BD266: N/A | BE266: N/A | BF266: N/A | BG266: N/A | BH266: N/A | BI266: N/A | BJ266: N/A | BK266: N/A | BL266: N/A | BM266: N/A | BN266: N/A | BO266: N/A | BP266: N/A | BQ266: N/A | BR266: N/A | BS266: N/A | BT266: N/A | BU266: N/A | BV266: N/A | BW266: N/A
BB267: DK/not sure/missing | BC267: N/A | BD267: N/A | BE267: N/A | BF267: N/A | BG267: N/A | BH267: N/A | BI267: N/A | BJ267: N/A | BK267: N/A | BL267: N/A | BM267: N/A | BN267: N/A | BO267: N/A | BP267: N/A | BQ267: N/A | BR267: N/A | BS267: N/A | BT267: N/A | BU267: N/A | BV267: N/A | BW267: N/A
BA268: Use of menstrual materials with private place to wash and change | BB268: Materials reusable | BC268: N/A | BD268: N/A | BE268: N/A | BF268: N/A | BG268: N/A | BH268: N/A | BI268: N/A | BJ268: N/A | BK268: N/A | BL268: N/A | BM268: N/A | BN268: N/A | BO268: N/A | BP268: N/A | BQ268: N/A | BR268: N/A | BS268: N/A | BT268: N/A | BU268: N/A | BV268: N/A | BW268: N/A
BB269: Materials not reusable | BC269: N/A | BD269: N/A | BE269: N/A | BF269: N/A | BG269: N/A | BH269: N/A | BI269: N/A | BJ269: N/A | BK269: N/A | BL269: N/A | BM269: N/A | BN269: N/A | BO269: N/A | BP269: N/A | BQ269: N/A | BR269: N/A | BS269: N/A | BT269: N/A | BU269: N/A | BV269: N/A | BW269: N/A
BB270: No materials used | BC270: N/A | BD270: N/A | BE270: N/A | BF270: N/A | BG270: N/A | BH270: N/A | BI270: N/A | BJ270: N/A | BK270: N/A | BL270: N/A | BM270: N/A | BN270: N/A | BO270: N/A | BP270: N/A | BQ270: N/A | BR270: N/A | BS270: N/A | BT270: N/A | BU270: N/A | BV270: N/A | BW270: N/A
BA271: Awareness of menstruation before menarche | BB271: Yes | BC271: N/A | BD271: N/A | BE271: N/A | BF271: N/A | BG271: N/A | BH271: N/A | BI271: N/A | BJ271: N/A | BK271: N/A | BL271: N/A | BM271: N/A | BN271: N/A | BO271: N/A | BP271: N/A | BQ271: N/A | BR271: N/A | BS271: N/A | BT271: N/A | BU271: N/A | BV271: N/A | BW271: N/A
BB272: No | BC272: N/A | BD272: N/A | BE272: N/A | BF272: N/A | BG272: N/A | BH272: N/A | BI272: N/A | BJ272: N/A | BK272: N/A | BL272: N/A | BM272: N/A | BN272: N/A | BO272: N/A | BP272: N/A | BQ272: N/A | BR272: N/A | BS272: N/A | BT272: N/A | BU272: N/A | BV272: N/A | BW272: N/A
BB273: DK/not sure/missing | BC273: N/A | BD273: N/A | BE273: N/A | BF273: N/A | BG273: N/A | BH273: N/A | BI273: N/A | BJ273: N/A | BK273: N/A | BL273: N/A | BM273: N/A | BN273: N/A | BO273: N/A | BP273: N/A | BQ273: N/A | BR273: N/A | BS273: N/A | BT273: N/A | BU273: N/A | BV273: N/A | BW273: N/A
BA274: Participation in (all) activities during menstruation | BB274: Yes | BC274: N/A | BD274: N/A | BE274: N/A | BF274: N/A | BG274: N/A | BH274: N/A | BI274: N/A | BJ274: N/A | BK274: N/A | BL274: N/A | BM274: N/A | BN274: N/A | BO274: N/A | BP274: N/A | BQ274: N/A | BR274: N/A | BS274: N/A | BT274: N/A | BU274: N/A | BV274: N/A | BW274: N/A
BB275: No | BC275: N/A | BD275: N/A | BE275: N/A | BF275: N/A | BG275: N/A | BH275: N/A | BI275: N/A | BJ275: N/A | BK275: N/A | BL275: N/A | BM275: N/A | BN275: N/A | BO275: N/A | BP275: N/A | BQ275: N/A | BR275: N/A | BS275: N/A | BT275: N/A | BU275: N/A | BV275: N/A | BW275: N/A
BB276: DK/not sure/missing/no such activity | BC276: N/A | BD276: N/A | BE276: N/A | BF276: N/A | BG276: N/A | BH276: N/A | BI276: N/A | BJ276: N/A | BK276: N/A | BL276: N/A | BM276: N/A | BN276: N/A | BO276: N/A | BP276: N/A | BQ276: N/A | BR276: N/A | BS276: N/A | BT276: N/A | BU276: N/A | BV276: N/A | BW276: N/A
BA277: Participation in specific activities during menstruation | BB277: Did not go to school (amongst those usually attending school) | BC277: N/A | BD277: N/A | BE277: N/A | BF277: N/A | BG277: N/A | BH277: N/A | BI277: N/A | BJ277: N/A | BK277: N/A | BL277: N/A | BM277: N/A | BN277: N/A | BO277: N/A | BP277: N/A | BQ277: N/A | BR277: N/A | BS277: N/A | BT277: N/A | BU277: N/A | BV277: N/A | BW277: N/A
BB278: Did not go to work (amongst those who usually work) | BC278: N/A | BD278: N/A | BE278: N/A | BF278: N/A | BG278: N/A | BH278: N/A | BI278: N/A | BJ278: N/A | BK278: N/A | BL278: N/A | BM278: N/A | BN278: N/A | BO278: N/A | BP278: N/A | BQ278: N/A | BR278: N/A | BS278: N/A | BT278: N/A | BU278: N/A | BV278: N/A | BW278: N/A
BB279: Did not participate in social activities | BC279: N/A | BD279: N/A | BE279: N/A | BF279: N/A | BG279: N/A | BH279: N/A | BI279: N/A | BJ279: N/A | BK279: N/A | BL279: N/A | BM279: N/A | BN279: N/A | BO279: N/A | BP279: N/A | BQ279: N/A | BR279: N/A | BS279: N/A | BT279: N/A | BU279: N/A | BV279: N/A | BW279: N/A
BB280: Did not cook food | BC280: N/A | BD280: N/A | BE280: N/A | BF280: N/A | BG280: N/A | BH280: N/A | BI280: N/A | BJ280: N/A | BK280: N/A | BL280: N/A | BM280: N/A | BN280: N/A | BO280: N/A | BP280: N/A | BQ280: N/A | BR280: N/A | BS280: N/A | BT280: N/A | BU280: N/A | BV280: N/A | BW280: N/A
BB281: Did not eat with others | BC281: N/A | BD281: N/A | BE281: N/A | BF281: N/A | BG281: N/A | BH281: N/A | BI281: N/A | BJ281: N/A | BK281: N/A | BL281: N/A | BM281: N/A | BN281: N/A | BO281: N/A | BP281: N/A | BQ281: N/A | BR281: N/A | BS281: N/A | BT281: N/A | BU281: N/A | BV281: N/A | BW281: N/A
BB282: Did not bathe in regular place | BC282: N/A | BD282: N/A | BE282: N/A | BF282: N/A | BG282: N/A | BH282: N/A | BI282: N/A | BJ282: N/A | BK282: N/A | BL282: N/A | BM282: N/A | BN282: N/A | BO282: N/A | BP282: N/A | BQ282: N/A | BR282: N/A | BS282: N/A | BT282: N/A | BU282: N/A | BV282: N/A | BW282: N/A
BB283: Did not participate in other activities | BC283: N/A | BD283: N/A | BE283: N/A | BF283: N/A | BG283: N/A | BH283: N/A | BI283: N/A | BJ283: N/A | BK283: N/A | BL283: N/A | BM283: N/A | BN283: N/A | BO283: N/A | BP283: N/A | BQ283: N/A | BR283: N/A | BS283: N/A | BT283: N/A | BU283: N/A | BV283: N/A | BW283: N/A
BB284: DK/not sure/missing/no such activity | BC284: N/A | BD284: N/A | BE284: N/A | BF284: N/A | BG284: N/A | BH284: N/A | BI284: N/A | BJ284: N/A | BK284: N/A | BL284: N/A | BM284: N/A | BN284: N/A | BO284: N/A | BP284: N/A | BQ284: N/A | BR284: N/A | BS284: N/A | BT284: N/A | BU284: N/A | BV284: N/A | BW284: N/A
BA339: Raw numbers of respondents: | BB339: Basic water, sanitation and hygiene | BC339: NATIONAL wealth index quintile | BH339: URBAN wealth index quintile | BM339: RURAL wealth index quintile | BR339: SUB-REGIONS:
BA340: WatSan data, raw numbers (weighted) | BC340: Poorest | BD340: Poor | BE340: Middle | BF340: Rich | BG340: Richest | BH340: Poorest | BI340: Poor | BJ340: Middle | BK340: Rich | BL340: Richest | BM340: Poorest | BN340: Poor | BO340: Middle | BP340: Rich | BQ340: Richest | BR340: Antananarivo | BS340: Antsiranana | BT340: Fianarantsoa | BU340: Mahajanga | BV340: Toamasina | BW340: Toliary
BA341: Use of Basic Water Sanitation and Hygiene | BB341: Yes | BC341: N/A | BD341: N/A | BE341: N/A | BF341: N/A | BG341: N/A | BH341: N/A | BI341: N/A | BJ341: N/A | BK341: N/A | BL341: N/A | BM341: N/A | BN341: N/A | BO341: N/A | BP341: N/A | BQ341: N/A | BR341: N/A | BS341: N/A | BT341: N/A | BU341: N/A | BV341: N/A | BW341: N/A
BB342: No | BC342: N/A | BD342: N/A | BE342: N/A | BF342: N/A | BG342: N/A | BH342: N/A | BI342: N/A | BJ342: N/A | BK342: N/A | BL342: N/A | BM342: N/A | BN342: N/A | BO342: N/A | BP342: N/A | BQ342: N/A | BR342: N/A | BS342: N/A | BT342: N/A | BU342: N/A | BV342: N/A | BW342: N/A
BA343: Use of Basic Water and Sanitation | BB343: Yes | BC343: N/A | BD343: N/A | BE343: N/A | BF343: N/A | BG343: N/A | BH343: N/A | BI343: N/A | BJ343: N/A | BK343: N/A | BL343: N/A | BM343: N/A | BN343: N/A | BO343: N/A | BP343: N/A | BQ343: N/A | BR343: N/A | BS343: N/A | BT343: N/A | BU343: N/A | BV343: N/A | BW343: N/A
BB344: No | BC344: N/A | BD344: N/A | BE344: N/A | BF344: N/A | BG344: N/A | BH344: N/A | BI344: N/A | BJ344: N/A | BK344: N/A | BL344: N/A | BM344: N/A | BN344: N/A | BO344: N/A | BP344: N/A | BQ344: N/A | BR344: N/A | BS344: N/A | BT344: N/A | BU344: N/A | BV344: N/A | BW344: N/A
BA345: Use of Basic Water and Hygiene | BB345: Yes | BC345: N/A | BD345: N/A | BE345: N/A | BF345: N/A | BG345: N/A | BH345: N/A | BI345: N/A | BJ345: N/A | BK345: N/A | BL345: N/A | BM345: N/A | BN345: N/A | BO345: N/A | BP345: N/A | BQ345: N/A | BR345: N/A | BS345: N/A | BT345: N/A | BU345: N/A | BV345: N/A | BW345: N/A
BB346: No | BC346: N/A | BD346: N/A | BE346: N/A | BF346: N/A | BG346: N/A | BH346: N/A | BI346: N/A | BJ346: N/A | BK346: N/A | BL346: N/A | BM346: N/A | BN346: N/A | BO346: N/A | BP346: N/A | BQ346: N/A | BR346: N/A | BS346: N/A | BT346: N/A | BU346: N/A | BV346: N/A | BW346: N/A
BA347: Use of Basic Sanitation and Hygiene | BB347: Yes | BC347: N/A | BD347: N/A | BE347: N/A | BF347: N/A | BG347: N/A | BH347: N/A | BI347: N/A | BJ347: N/A | BK347: N/A | BL347: N/A | BM347: N/A | BN347: N/A | BO347: N/A | BP347: N/A | BQ347: N/A | BR347: N/A | BS347: N/A | BT347: N/A | BU347: N/A | BV347: N/A | BW347: N/A
BB348: No | BC348: N/A | BD348: N/A | BE348: N/A | BF348: N/A | BG348: N/A | BH348: N/A | BI348: N/A | BJ348: N/A | BK348: N/A | BL348: N/A | BM348: N/A | BN348: N/A | BO348: N/A | BP348: N/A | BQ348: N/A | BR348: N/A | BS348: N/A | BT348: N/A | BU348: N/A | BV348: N/A | BW348: N/A
BA349: Use of Basic Water | BB349: Yes | BC349: N/A | BD349: N/A | BE349: N/A | BF349: N/A | BG349: N/A | BH349: N/A | BI349: N/A | BJ349: N/A | BK349: N/A | BL349: N/A | BM349: N/A | BN349: N/A | BO349: N/A | BP349: N/A | BQ349: N/A | BR349: N/A | BS349: N/A | BT349: N/A | BU349: N/A | BV349: N/A | BW349: N/A
BB350: No | BC350: N/A | BD350: N/A | BE350: N/A | BF350: N/A | BG350: N/A | BH350: N/A | BI350: N/A | BJ350: N/A | BK350: N/A | BL350: N/A | BM350: N/A | BN350: N/A | BO350: N/A | BP350: N/A | BQ350: N/A | BR350: N/A | BS350: N/A | BT350: N/A | BU350: N/A | BV350: N/A | BW350: N/A
BA351: Use of Basic Sanitation | BB351: Yes | BC351: N/A | BD351: N/A | BE351: N/A | BF351: N/A | BG351: N/A | BH351: N/A | BI351: N/A | BJ351: N/A | BK351: N/A | BL351: N/A | BM351: N/A | BN351: N/A | BO351: N/A | BP351: N/A | BQ351: N/A | BR351: N/A | BS351: N/A | BT351: N/A | BU351: N/A | BV351: N/A | BW351: N/A
BB352: No | BC352: N/A | BD352: N/A | BE352: N/A | BF352: N/A | BG352: N/A | BH352: N/A | BI352: N/A | BJ352: N/A | BK352: N/A | BL352: N/A | BM352: N/A | BN352: N/A | BO352: N/A | BP352: N/A | BQ352: N/A | BR352: N/A | BS352: N/A | BT352: N/A | BU352: N/A | BV352: N/A | BW352: N/A
BA353: Access to Basic Hygiene | BB353: Yes | BC353: N/A | BD353: N/A | BE353: N/A | BF353: N/A | BG353: N/A | BH353: N/A | BI353: N/A | BJ353: N/A | BK353: N/A | BL353: N/A | BM353: N/A | BN353: N/A | BO353: N/A | BP353: N/A | BQ353: N/A | BR353: N/A | BS353: N/A | BT353: N/A | BU353: N/A | BV353: N/A | BW353: N/A
BB354: No | BC354: N/A | BD354: N/A | BE354: N/A | BF354: N/A | BG354: N/A | BH354: N/A | BI354: N/A | BJ354: N/A | BK354: N/A | BL354: N/A | BM354: N/A | BN354: N/A | BO354: N/A | BP354: N/A | BQ354: N/A | BR354: N/A | BS354: N/A | BT354: N/A | BU354: N/A | BV354: N/A | BW354: N/A
C399: INITIAL (national) Wealth Index | H399: URBAN Wealth Index | M399: RURAL Wealth Index
C400: Component Matrix | H400: Component Matrix | M400: Component Matrix
E401: Component | J401: Component | O401: Component
B402: Note: The INITIAL (national) Wealth Index is based on the first component of the Principal Component Analysis (PCA) which has been obtained at national level. The final national-level (NATIONAL) Wealth Index is based on the URBAN and RURAL specific wealth indexes. Regression procedures are used to establish the relationships between the two sets of scores (urban and rural) and the initial (national) wealth factors. This allows best use of the available information for each area and a better precision of the FINAL (NATIONAL) Wealth Index. For dependency reasons, all WASH variables (contained in the generic MICS and DHS scripts) have been excluded from the sets of asset variables used in the PCAs. The PCA can extracts as many components as there are asset variables in the input. Only the first of the components is used to represent the Wealth Index. The scores represent the weights of the asset variables on the Wealth Index (correlations between the variables and the component). The communalities are the proportion of each variable's variance that can be explained by the component. Proportion of explained variance is the part of the model's total variance that is explained by the component. For more information on the procedure used: The DHS Wealth Index, DHS Comparative Reports No. 6, Shea Oscar Rutstein, Kiersten Johnson, ORC Macro International Inc., 2004. The DHS Wealth Index: Approaches for Rural and Urban Areas, Shea O. Rutstein, ORC Macro International Inc., 2008. MICS Methodological Paper No. 4, Review of options for reporting water, sanitation and hygiene coverage by wealth quintile, UNICEF, 2016. | E402: 1 | J402: 1 | O402: 1
C403: Has electricity | E403: 0.8576203547 | H403: Has electricity | J403: 0.8265357744 | M403: Has television | O403: 0.8054062717
C404: Has television | E404: 0.8314246083 | H404: Has television | J404: 0.7985724943 | M404: Has electricity | O404: 0.7987797476
C405: Household fuel type: wood, straw | E405: -0.8314202337 | H405: Household fuel type: wood, straw | J405: -0.7646759141 | M405: Household fuel type: wood, straw | O405: -0.7860470373
C406: Household fuel type: charcoal | E406: 0.6929570706 | H406: Has palm/bamboo floor | J406: -0.6011537083 | M406: Household fuel type: charcoal | O406: 0.6881546719
C407: Has palm/bamboo floor | E407: -0.6110876221 | H407: Has telephone | J407: 0.5761896506 | M407: Has telephone | O407: 0.6700796849
C408: Has telephone | E408: 0.6013636393 | H408: Household fuel type: charcoal | J408: 0.5671167771 | M408: Has refrigerator | O408: 0.5547978304
C409: Has radio | E409: 0.5781130299 | H409: Has radio | J409: 0.5544660992 | M409: Has cement floor | O409: 0.5254423459
C410: Has cement floor | E410: 0.5495324956 | H410: Has refrigerator | J410: 0.5234069421 | M410: Has palm/bamboo floor | O410: -0.4337842364
C411: Has refrigerator | E411: 0.5382337148 | H411: Has cement floor | J411: 0.440235796 | M411: Has car/truck | O411: 0.4220690767
C412: Has car/truck | E412: 0.4481723927 | H412: Has car/truck | J412: 0.4391799348 | M412: Household fuel type: LPG, natural gas | O412: 0.4132936538
C413: Has parquet/polished wood floor | E413: 0.3427641407 | H413: Has earth/sand floor | J413: -0.3300723667 | M413: Has radio | O413: 0.4096055976
... 135 more rows

Sheet DHS09
A2: =A1026 -> Madagascar
A3: =A1034 -> 2009
A4: Use of drinking water sources
A5: by wealth quintile and sub-national region
A6: Notes:
A7: WHO/UNICEF JMP customised wealth index excludes water,
A8: sanitation and hygiene assets.
A9: Survey used for analysis: | B9: =A1025 -> DHS09
A10: =B1028 -> 
A11: =B1027 -> 
A14: Use of drinking water sources | C14: NATIONAL wealth index quintile | H14: URBAN wealth index quintile | M14: RURAL wealth index quintile | R14: SUB-REGIONS: | BA14: Raw numbers of respondents: | BB14: Use of drinking water sources | BC14: NATIONAL wealth index quintile | BH14: URBAN wealth index quintile | BM14: RURAL wealth index quintile | BR14: SUB-REGIONS:
A15: Weighted percentage (used in graphs) | C15: Poorest | D15: Poor | E15: Middle | F15: Rich | G15: Richest | H15: Poorest | I15: Poor | J15: Middle | K15: Rich | L15: Richest | M15: Poorest | N15: Poor | O15: Middle | P15: Rich | Q15: Richest | R15: Alaotra Mangoro | S15: Analamanga | T15: Analanjirofo | U15: Anamoroni'i Mania | V15: Androy | W15: Anosy | X15: Atsimo Andrefana | Y15: Atsimo Atsinanana | Z15: Atsinanana | AA15: Betsiboka | AB15: Boeny | AC15: Bongolava | AD15: Diana | AE15: Haute Matsiatra | AF15: Ihorombe | AG15: Itasy | AH15: Melaky | AI15: Menabe | AJ15: Sava | AK15: Sofia | AL15: Vakinankaratra | AM15: Vatovavy Fitovinany | BA15: Water data, raw numbers (weighted) | BC15: Poorest | BD15: Poor | BE15: Middle | BF15: Rich | BG15: Richest | BH15: Poorest | BI15: Poor | BJ15: Middle | BK15: Rich | BL15: Richest | BM15: Poorest | BN15: Poor | BO15: Middle | BP15: Rich | BQ15: Richest | BR15: Alaotra Mangoro | BS15: Analamanga | BT15: Analanjirofo | BU15: Anamoroni'i Mania | BV15: Androy | BW15: Anosy | BX15: Atsimo Andrefana | BY15: Atsimo Atsinanana | BZ15: Atsinanana | CA15: Betsiboka | CB15: Boeny | CC15: Bongolava | CD15: Diana | CE15: Haute Matsiatra | CF15: Ihorombe | CG15: Itasy | CH15: Melaky | CI15: Menabe | CJ15: Sava | CK15: Sofia | CL15: Vakinankaratra | CM15: Vatovavy Fitovinany
A16: Water | B16: Improved | C16: 15.8 | D16: 21.1 | E16: 29.2 | F16: 48.5 | G16: 86.4 | H16: 63 | I16: 83.6 | J16: 95.6 | K16: 97.4 | L16: 98.6 | M16: 15.1 | N16: 18.9 | O16: 27 | P16: 34.1 | Q16: 66.8 | R16: 54.2 | S16: 76.6 | T16: 16.5 | U16: 30 | V16: 19.8 | W16: 27 | X16: 31.6 | Y16: 8.2 | Z16: 36.5 | AA16: 28.4 | AB16: 38.8 | AC16: 69.4 | AD16: 38.2 | AE16: 36.2 | AF16: 46.7 | AG16: 54.3 | AH16: 8.3 | AI16: 41.8 | AJ16: 34.8 | AK16: 28.7 | AL16: 35.7 | AM16: 18.9 | BA16: Water | BB16: Improved | BC16: N/A | BD16: N/A | BE16: N/A | BF16: N/A | BG16: N/A | BH16: N/A | BI16: N/A | BJ16: N/A | BK16: N/A | BL16: N/A | BM16: N/A | BN16: N/A | BO16: N/A | BP16: N/A | BQ16: N/A | BR16: N/A | BS16: N/A | BT16: N/A | BU16: N/A | BV16: N/A | BW16: N/A | BX16: N/A | BY16: N/A | BZ16: N/A | CA16: N/A | CB16: N/A | CC16: N/A | CD16: N/A | CE16: N/A | CF16: N/A | CG16: N/A | CH16: N/A | CI16: N/A | CJ16: N/A | CK16: N/A | CL16: N/A | CM16: N/A
B17: Not Improved | C17: 84.2 | D17: 78.9 | E17: 70.8 | F17: 51.5 | G17: 13.6 | H17: 37 | I17: 16.4 | J17: 4.4 | K17: 2.6 | L17: 1.4 | M17: 84.9 | N17: 81.1 | O17: 73 | P17: 65.9 | Q17: 33.2 | R17: 45.8 | S17: 23.4 | T17: 83.5 | U17: 70 | V17: 80.2 | W17: 73 | X17: 68.4 | Y17: 91.8 | Z17: 63.5 | AA17: 71.6 | AB17: 61.2 | AC17: 30.6 | AD17: 61.8 | AE17: 63.8 | AF17: 53.3 | AG17: 45.7 | AH17: 91.7 | AI17: 58.2 | AJ17: 65.2 | AK17: 71.3 | AL17: 64.3 | AM17: 81.1 | BB17: Not Improved | BC17: N/A | BD17: N/A | BE17: N/A | BF17: N/A | BG17: N/A | BH17: N/A | BI17: N/A | BJ17: N/A | BK17: N/A | BL17: N/A | BM17: N/A | BN17: N/A | BO17: N/A | BP17: N/A | BQ17: N/A | BR17: N/A | BS17: N/A | BT17: N/A | BU17: N/A | BV17: N/A | BW17: N/A | BX17: N/A | BY17: N/A | BZ17: N/A | CA17: N/A | CB17: N/A | CC17: N/A | CD17: N/A | CE17: N/A | CF17: N/A | CG17: N/A | CH17: N/A | CI17: N/A | CJ17: N/A | CK17: N/A | CL17: N/A | CM17: N/A
A18: Water ladder | B18: Basic | C18: 15.1 | D18: 20.5 | E18: 29 | F18: 48 | G18: 84.9 | H18: 62 | I18: 82 | J18: 92.9 | K18: 94.2 | L18: 96.1 | M18: 14.3 | N18: 18.2 | O18: 26.8 | P18: 33.7 | Q18: 66.5 | R18: 53.6 | S18: 75 | T18: 16.3 | U18: 29.1 | V18: 17.2 | W18: 26.8 | X18: 29.3 | Y18: 7.8 | Z18: 36.5 | AA18: 28.4 | AB18: 38.4 | AC18: 69.2 | AD18: 37.7 | AE18: 35.1 | AF18: 43.9 | AG18: 54.3 | AH18: 7.9 | AI18: 41.5 | AJ18: 34.8 | AK18: 28.6 | AL18: 35.5 | AM18: 18.9 | BA18: Water ladder | BB18: Basic | BC18: N/A | BD18: N/A | BE18: N/A | BF18: N/A | BG18: N/A | BH18: N/A | BI18: N/A | BJ18: N/A | BK18: N/A | BL18: N/A | BM18: N/A | BN18: N/A | BO18: N/A | BP18: N/A | BQ18: N/A | BR18: N/A | BS18: N/A | BT18: N/A | BU18: N/A | BV18: N/A | BW18: N/A | BX18: N/A | BY18: N/A | BZ18: N/A | CA18: N/A | CB18: N/A | CC18: N/A | CD18: N/A | CE18: N/A | CF18: N/A | CG18: N/A | CH18: N/A | CI18: N/A | CJ18: N/A | CK18: N/A | CL18: N/A | CM18: N/A
B19: Limited | C19: 0.7 | D19: 0.6 | E19: 0.3 | F19: 0.5 | G19: 1.5 | H19: 1 | I19: 1.6 | J19: 2.8 | K19: 3.2 | L19: 2.4 | M19: 0.7 | N19: 0.7 | O19: 0.2 | P19: 0.4 | Q19: 0.3 | R19: 0.6 | S19: 1.6 | T19: 0.2 | U19: 0.9 | V19: 2.6 | W19: 0.2 | X19: 2.3 | Y19: 0.3 | Z19: 0 | AA19: 0 | AB19: 0.4 | AC19: 0.1 | AD19: 0.5 | AE19: 1.1 | AF19: 2.8 | AG19: 0 | AH19: 0.3 | AI19: 0.3 | AJ19: 0 | AK19: 0.1 | AL19: 0.2 | AM19: 0 | BB19: Limited | BC19: N/A | BD19: N/A | BE19: N/A | BF19: N/A | BG19: N/A | BH19: N/A | BI19: N/A | BJ19: N/A | BK19: N/A | BL19: N/A | BM19: N/A | BN19: N/A | BO19: N/A | BP19: N/A | BQ19: N/A | BR19: N/A | BS19: N/A | BT19: N/A | BU19: N/A | BV19: N/A | BW19: N/A | BX19: N/A | BY19: N/A | BZ19: N/A | CA19: N/A | CB19: N/A | CC19: N/A | CD19: N/A | CE19: N/A | CF19: N/A | CG19: N/A | CH19: N/A | CI19: N/A | CJ19: N/A | CK19: N/A | CL19: N/A | CM19: N/A
B20: Unimproved | C20: 47.2 | D20: 48.4 | E20: 47.8 | F20: 34.8 | G20: 11.7 | H20: 31.9 | I20: 16 | J20: 4.3 | K20: 2.6 | L20: 1.4 | M20: 47.2 | N20: 48.3 | O20: 49.5 | P20: 42.2 | Q20: 24.8 | R20: 24 | S20: 19.4 | T20: 31.8 | U20: 60.3 | V20: 50.7 | W20: 22.2 | X20: 55 | Y20: 62.2 | Z20: 17 | AA20: 29.9 | AB20: 47.6 | AC20: 29.4 | AD20: 34.3 | AE20: 55.8 | AF20: 37.6 | AG20: 42 | AH20: 59.7 | AI20: 37.1 | AJ20: 30.6 | AK20: 27.5 | AL20: 60.4 | AM20: 41 | BB20: Unimproved | BC20: N/A | BD20: N/A | BE20: N/A | BF20: N/A | BG20: N/A | BH20: N/A | BI20: N/A | BJ20: N/A | BK20: N/A | BL20: N/A | BM20: N/A | BN20: N/A | BO20: N/A | BP20: N/A | BQ20: N/A | BR20: N/A | BS20: N/A | BT20: N/A | BU20: N/A | BV20: N/A | BW20: N/A | BX20: N/A | BY20: N/A | BZ20: N/A | CA20: N/A | CB20: N/A | CC20: N/A | CD20: N/A | CE20: N/A | CF20: N/A | CG20: N/A | CH20: N/A | CI20: N/A | CJ20: N/A | CK20: N/A | CL20: N/A | CM20: N/A
B21: Surface water | C21: 37 | D21: 30.5 | E21: 23 | F21: 16.7 | G21: 1.9 | H21: 5.1 | I21: 0.4 | J21: 0.1 | K21: 0 | L21: 0 | M21: 37.7 | N21: 32.8 | O21: 23.5 | P21: 23.7 | Q21: 8.4 | R21: 21.8 | S21: 4.1 | T21: 51.8 | U21: 9.7 | V21: 29.5 | W21: 50.9 | X21: 13.4 | Y21: 29.6 | Z21: 46.5 | AA21: 41.7 | AB21: 13.6 | AC21: 1.2 | AD21: 27.4 | AE21: 8 | AF21: 15.8 | AG21: 3.7 | AH21: 32.2 | AI21: 21.1 | AJ21: 34.6 | AK21: 43.8 | AL21: 3.9 | AM21: 40.1 | BB21: Surface water | BC21: N/A | BD21: N/A | BE21: N/A | BF21: N/A | BG21: N/A | BH21: N/A | BI21: N/A | BJ21: N/A | BK21: N/A | BL21: N/A | BM21: N/A | BN21: N/A | BO21: N/A | BP21: N/A | BQ21: N/A | BR21: N/A | BS21: N/A | BT21: N/A | BU21: N/A | BV21: N/A | BW21: N/A | BX21: N/A | BY21: N/A | BZ21: N/A | CA21: N/A | CB21: N/A | CC21: N/A | CD21: N/A | CE21: N/A | CF21: N/A | CG21: N/A | CH21: N/A | CI21: N/A | CJ21: N/A | CK21: N/A | CL21: N/A | CM21: N/A
A22: Improved water point at more than 30 minutes | B22: Yes | C22: 4.2 | D22: 3.1 | E22: 0.9 | F22: 1 | G22: 1.8 | H22: 1.6 | I22: 2 | J22: 2.9 | K22: 3.3 | L22: 2.5 | M22: 4.9 | N22: 3.4 | O22: 0.9 | P22: 1.2 | Q22: 0.4 | R22: 1.2 | S22: 2.1 | T22: 1.1 | U22: 2.9 | V22: 13 | W22: 0.7 | X22: 7.3 | Y22: 4 | Z22: 0 | AA22: 0.1 | AB22: 0.9 | AC22: 0.2 | AD22: 1.4 | AE22: 3.1 | AF22: 6 | AG22: 0 | AH22: 3.4 | AI22: 0.7 | AJ22: 0 | AK22: 0.3 | AL22: 0.5 | AM22: 0 | BA22: Improved water point at more than 30 minutes | BB22: Yes | BC22: N/A | BD22: N/A | BE22: N/A | BF22: N/A | BG22: N/A | BH22: N/A | BI22: N/A | BJ22: N/A | BK22: N/A | BL22: N/A | BM22: N/A | BN22: N/A | BO22: N/A | BP22: N/A | BQ22: N/A | BR22: N/A | BS22: N/A | BT22: N/A | BU22: N/A | BV22: N/A | BW22: N/A | BX22: N/A | BY22: N/A | BZ22: N/A | CA22: N/A | CB22: N/A | CC22: N/A | CD22: N/A | CE22: N/A | CF22: N/A | CG22: N/A | CH22: N/A | CI22: N/A | CJ22: N/A | CK22: N/A | CL22: N/A | CM22: N/A
B23: No | C23: 95.8 | D23: 96.9 | E23: 99.1 | F23: 99 | G23: 98.2 | H23: 98.4 | I23: 98 | J23: 97.1 | K23: 96.7 | L23: 97.5 | M23: 95.1 | N23: 96.6 | O23: 99.1 | P23: 98.8 | Q23: 99.6 | R23: 98.8 | S23: 97.9 | T23: 98.9 | U23: 97.1 | V23: 87 | W23: 99.3 | X23: 92.7 | Y23: 96 | Z23: 100 | AA23: 99.9 | AB23: 99.1 | AC23: 99.8 | AD23: 98.6 | AE23: 96.9 | AF23: 94 | AG23: 100 | AH23: 96.6 | AI23: 99.3 | AJ23: 100 | AK23: 99.7 | AL23: 99.5 | AM23: 100 | BB23: No | BC23: N/A | BD23: N/A | BE23: N/A | BF23: N/A | BG23: N/A | BH23: N/A | BI23: N/A | BJ23: N/A | BK23: N/A | BL23: N/A | BM23: N/A | BN23: N/A | BO23: N/A | BP23: N/A | BQ23: N/A | BR23: N/A | BS23: N/A | BT23: N/A | BU23: N/A | BV23: N/A | BW23: N/A | BX23: N/A | BY23: N/A | BZ23: N/A | CA23: N/A | CB23: N/A | CC23: N/A | CD23: N/A | CE23: N/A | CF23: N/A | CG23: N/A | CH23: N/A | CI23: N/A | CJ23: N/A | CK23: N/A | CL23: N/A | CM23: N/A
A24: Manually calculated ratios | B24: Improved wells
B25: Improved springs | C25: =C64/(C64+C65)*100 -> 6.834532374 | D25: 9.337349398 | E25: 11.07954545 | F25: 17.28395062 | G25: 30.15873016 | H25: 18.51851852 | I25: 16.41791045 | J25: 48.48484848 | K25: 63.63636364 | L25: 20 | M25: 6.617647059 | N25: 8.359133127 | O25: 11.82795699 | P25: 12.37458194 | Q25: 22.89156627 | R25: 35 | S25: 27.27272727 | T25: 7.555555556 | U25: 14.6179402 | V25: 5.405405405 | W25: 14.63414634 | X25: 9.905660377 | Y25: 5.639097744 | Z25: 0 | AA25: 1.219512195 | AB25: 14.01869159 | AC25: 25.74850299 | AD25: 8.333333333 | AE25: 12.72401434 | AF25: 3.481012658 | AG25: 12.96296296 | AH25: 0 | AI25: 5.921052632 | AJ25: 4.697986577 | AK25: 2.631578947 | AL25: 6.489184692 | AM25: 7.594936709
B26: Other
C27: NATIONAL wealth index quintile | H27: URBAN wealth index quintile | M27: RURAL wealth index quintile | R27: SUB-REGIONS: | BA27: Raw numbers of respondents: | BB27: Use of drinking water sources | BC27: NATIONAL wealth index quintile | BH27: URBAN wealth index quintile | BM27: RURAL wealth index quintile | BR27: SUB-REGIONS:
A28: Percentage based on weighted population | C28: Poorest | D28: Poor | E28: Middle | F28: Rich | G28: Richest | H28: Poorest | I28: Poor | J28: Middle | K28: Rich | L28: Richest | M28: Poorest | N28: Poor | O28: Middle | P28: Rich | Q28: Richest | R28: Alaotra Mangoro | S28: Analamanga | T28: Analanjirofo | U28: Anamoroni'i Mania | V28: Androy | W28: Anosy | X28: Atsimo Andrefana | Y28: Atsimo Atsinanana | Z28: Atsinanana | AA28: Betsiboka | AB28: Boeny | AC28: Bongolava | AD28: Diana | AE28: Haute Matsiatra | AF28: Ihorombe | AG28: Itasy | AH28: Melaky | AI28: Menabe | AJ28: Sava | AK28: Sofia | AL28: Vakinankaratra | AM28: Vatovavy Fitovinany | BA28: Water data, raw numbers (weighted) | BC28: Poorest | BD28: Poor | BE28: Middle | BF28: Rich | BG28: Richest | BH28: Poorest | BI28: Poor | BJ28: Middle | BK28: Rich | BL28: Richest | BM28: Poorest | BN28: Poor | BO28: Middle | BP28: Rich | BQ28: Richest | BR28: Alaotra Mangoro | BS28: Analamanga | BT28: Analanjirofo | BU28: Anamoroni'i Mania | BV28: Androy | BW28: Anosy | BX28: Atsimo Andrefana | BY28: Atsimo Atsinanana | BZ28: Atsinanana | CA28: Betsiboka | CB28: Boeny | CC28: Bongolava | CD28: Diana | CE28: Haute Matsiatra | CF28: Ihorombe | CG28: Itasy | CH28: Melaky | CI28: Menabe | CJ28: Sava | CK28: Sofia | CL28: Vakinankaratra | CM28: Vatovavy Fitovinany
A29: Piped water | B29: Yes | C29: 5.9 | D29: 8.5 | E29: 13.5 | F29: 26 | G29: 66.6 | H29: 47 | I29: 66.9 | J29: 81.9 | K29: 86.3 | L29: 89.2 | M29: 5.2 | N29: 7.8 | O29: 10.5 | P29: 16.4 | Q29: 39.1 | R29: 23.2 | S29: 51.8 | T29: 4.2 | U29: 19.2 | V29: 5.7 | W29: 18 | X29: 17.9 | Y29: 3.8 | Z29: 20.7 | AA29: 17.9 | AB29: 28.2 | AC29: 24.4 | AD29: 15.7 | AE29: 22.1 | AF29: 23.2 | AG29: 39.2 | AH29: 2.7 | AI29: 25.6 | AJ29: 27.7 | AK29: 20.4 | AL29: 22.2 | AM29: 8.6 | BA29: Piped water | BB29: Yes | BC29: N/A | BD29: N/A | BE29: N/A | BF29: N/A | BG29: N/A | BH29: N/A | BI29: N/A | BJ29: N/A | BK29: N/A | BL29: N/A | BM29: N/A | BN29: N/A | BO29: N/A | BP29: N/A | BQ29: N/A | BR29: N/A | BS29: N/A | BT29: N/A | BU29: N/A | BV29: N/A | BW29: N/A | BX29: N/A | BY29: N/A | BZ29: N/A | CA29: N/A | CB29: N/A | CC29: N/A | CD29: N/A | CE29: N/A | CF29: N/A | CG29: N/A | CH29: N/A | CI29: N/A | CJ29: N/A | CK29: N/A | CL29: N/A | CM29: N/A
B30: No | C30: 94.1 | D30: 91.5 | E30: 86.5 | F30: 74 | G30: 33.4 | H30: 53 | I30: 33.1 | J30: 18.1 | K30: 13.7 | L30: 10.8 | M30: 94.8 | N30: 92.2 | O30: 89.5 | P30: 83.6 | Q30: 60.9 | R30: 76.8 | S30: 48.2 | T30: 95.8 | U30: 80.8 | V30: 94.3 | W30: 82 | X30: 82.1 | Y30: 96.2 | Z30: 79.3 | AA30: 82.1 | AB30: 71.8 | AC30: 75.6 | AD30: 84.3 | AE30: 77.9 | AF30: 76.8 | AG30: 60.8 | AH30: 97.3 | AI30: 74.4 | AJ30: 72.3 | AK30: 79.6 | AL30: 77.8 | AM30: 91.4 | BB30: No | BC30: N/A | BD30: N/A | BE30: N/A | BF30: N/A | BG30: N/A | BH30: N/A | BI30: N/A | BJ30: N/A | BK30: N/A | BL30: N/A | BM30: N/A | BN30: N/A | BO30: N/A | BP30: N/A | BQ30: N/A | BR30: N/A | BS30: N/A | BT30: N/A | BU30: N/A | BV30: N/A | BW30: N/A | BX30: N/A | BY30: N/A | BZ30: N/A | CA30: N/A | CB30: N/A | CC30: N/A | CD30: N/A | CE30: N/A | CF30: N/A | CG30: N/A | CH30: N/A | CI30: N/A | CJ30: N/A | CK30: N/A | CL30: N/A | CM30: N/A
A31: Piped water on premises | B31: Yes | C31: 0 | D31: 0 | E31: 0.2 | F31: 0.9 | G31: 21.4 | H31: 3.2 | I31: 6.4 | J31: 14 | K31: 26.5 | L31: 52.6 | M31: 0 | N31: 0 | O31: 0 | P31: 0.2 | Q31: 8.9 | R31: 2.6 | S31: 12 | T31: 0.5 | U31: 5.2 | V31: 0 | W31: 3.9 | X31: 4.4 | Y31: 0.2 | Z31: 4.9 | AA31: 0.5 | AB31: 13.2 | AC31: 1.1 | AD31: 4.7 | AE31: 3.5 | AF31: 0.3 | AG31: 0.4 | AH31: 1.4 | AI31: 6.8 | AJ31: 0.2 | AK31: 2.2 | AL31: 5.5 | AM31: 0.8 | BA31: Piped water on premises | BB31: Yes | BC31: N/A | BD31: N/A | BE31: N/A | BF31: N/A | BG31: N/A | BH31: N/A | BI31: N/A | BJ31: N/A | BK31: N/A | BL31: N/A | BM31: N/A | BN31: N/A | BO31: N/A | BP31: N/A | BQ31: N/A | BR31: N/A | BS31: N/A | BT31: N/A | BU31: N/A | BV31: N/A | BW31: N/A | BX31: N/A | BY31: N/A | BZ31: N/A | CA31: N/A | CB31: N/A | CC31: N/A | CD31: N/A | CE31: N/A | CF31: N/A | CG31: N/A | CH31: N/A | CI31: N/A | CJ31: N/A | CK31: N/A | CL31: N/A | CM31: N/A
B32: No | C32: 100 | D32: 100 | E32: 99.8 | F32: 99.1 | G32: 78.6 | H32: 96.8 | I32: 93.6 | J32: 86 | K32: 73.5 | L32: 47.4 | M32: 100 | N32: 100 | O32: 100 | P32: 99.8 | Q32: 91.1 | R32: 97.4 | S32: 88 | T32: 99.5 | U32: 94.8 | V32: 100 | W32: 96.1 | X32: 95.6 | Y32: 99.8 | Z32: 95.1 | AA32: 99.5 | AB32: 86.8 | AC32: 98.9 | AD32: 95.3 | AE32: 96.5 | AF32: 99.7 | AG32: 99.6 | AH32: 98.6 | AI32: 93.2 | AJ32: 99.8 | AK32: 97.8 | AL32: 94.5 | AM32: 99.2 | BB32: No | BC32: N/A | BD32: N/A | BE32: N/A | BF32: N/A | BG32: N/A | BH32: N/A | BI32: N/A | BJ32: N/A | BK32: N/A | BL32: N/A | BM32: N/A | BN32: N/A | BO32: N/A | BP32: N/A | BQ32: N/A | BR32: N/A | BS32: N/A | BT32: N/A | BU32: N/A | BV32: N/A | BW32: N/A | BX32: N/A | BY32: N/A | BZ32: N/A | CA32: N/A | CB32: N/A | CC32: N/A | CD32: N/A | CE32: N/A | CF32: N/A | CG32: N/A | CH32: N/A | CI32: N/A | CJ32: N/A | CK32: N/A | CL32: N/A | CM32: N/A
A33: Piped water into dwelling | B33: Yes | C33: N/A | D33: N/A | E33: N/A | F33: N/A | G33: N/A | H33: N/A | I33: N/A | J33: N/A | K33: N/A | L33: N/A | M33: N/A | N33: N/A | O33: N/A | P33: N/A | Q33: N/A | R33: N/A | S33: N/A | T33: N/A | U33: N/A | V33: N/A | W33: N/A | X33: N/A | Y33: N/A | Z33: N/A | AA33: N/A | AB33: N/A | AC33: N/A | AD33: N/A | AE33: N/A | AF33: N/A | AG33: N/A | AH33: N/A | AI33: N/A | AJ33: N/A | AK33: N/A | AL33: N/A | AM33: N/A | BA33: Piped water into dwelling | BB33: Yes | BC33: N/A | BD33: N/A | BE33: N/A | BF33: N/A | BG33: N/A | BH33: N/A | BI33: N/A | BJ33: N/A | BK33: N/A | BL33: N/A | BM33: N/A | BN33: N/A | BO33: N/A | BP33: N/A | BQ33: N/A | BR33: N/A | BS33: N/A | BT33: N/A | BU33: N/A | BV33: N/A | BW33: N/A | BX33: N/A | BY33: N/A | BZ33: N/A | CA33: N/A | CB33: N/A | CC33: N/A | CD33: N/A | CE33: N/A | CF33: N/A | CG33: N/A | CH33: N/A | CI33: N/A | CJ33: N/A | CK33: N/A | CL33: N/A | CM33: N/A
B34: No | C34: N/A | D34: N/A | E34: N/A | F34: N/A | G34: N/A | H34: N/A | I34: N/A | J34: N/A | K34: N/A | L34: N/A | M34: N/A | N34: N/A | O34: N/A | P34: N/A | Q34: N/A | R34: N/A | S34: N/A | T34: N/A | U34: N/A | V34: N/A | W34: N/A | X34: N/A | Y34: N/A | Z34: N/A | AA34: N/A | AB34: N/A | AC34: N/A | AD34: N/A | AE34: N/A | AF34: N/A | AG34: N/A | AH34: N/A | AI34: N/A | AJ34: N/A | AK34: N/A | AL34: N/A | AM34: N/A | BB34: No | BC34: N/A | BD34: N/A | BE34: N/A | BF34: N/A | BG34: N/A | BH34: N/A | BI34: N/A | BJ34: N/A | BK34: N/A | BL34: N/A | BM34: N/A | BN34: N/A | BO34: N/A | BP34: N/A | BQ34: N/A | BR34: N/A | BS34: N/A | BT34: N/A | BU34: N/A | BV34: N/A | BW34: N/A | BX34: N/A | BY34: N/A | BZ34: N/A | CA34: N/A | CB34: N/A | CC34: N/A | CD34: N/A | CE34: N/A | CF34: N/A | CG34: N/A | CH34: N/A | CI34: N/A | CJ34: N/A | CK34: N/A | CL34: N/A | CM34: N/A
A35: Water source on premises | B35: Yes | C35: 4 | D35: 6.2 | E35: 9.1 | F35: 16.3 | G35: 38.9 | H35: 13.3 | I35: 22.3 | J35: 25.3 | K35: 37.3 | L35: 63.8 | M35: 3.7 | N35: 5.4 | O35: 8.9 | P35: 11.3 | Q35: 30.7 | R35: 28.5 | S35: 28.9 | T35: 8.3 | U35: 5.7 | V35: 8.6 | W35: 6 | X35: 9.8 | Y35: 1.8 | Z35: 18 | AA35: 3.6 | AB35: 16.9 | AC35: 28.9 | AD35: 30.3 | AE35: 5.2 | AF35: 3.1 | AG35: 13 | AH35: 11.4 | AI35: 12.4 | AJ35: 6.9 | AK35: 5.6 | AL35: 19.8 | AM35: 7.7 | BA35: Water source on premises | BB35: Yes | BC35: N/A | BD35: N/A | BE35: N/A | BF35: N/A | BG35: N/A | BH35: N/A | BI35: N/A | BJ35: N/A | BK35: N/A | BL35: N/A | BM35: N/A | BN35: N/A | BO35: N/A | BP35: N/A | BQ35: N/A | BR35: N/A | BS35: N/A | BT35: N/A | BU35: N/A | BV35: N/A | BW35: N/A | BX35: N/A | BY35: N/A | BZ35: N/A | CA35: N/A | CB35: N/A | CC35: N/A | CD35: N/A | CE35: N/A | CF35: N/A | CG35: N/A | CH35: N/A | CI35: N/A | CJ35: N/A | CK35: N/A | CL35: N/A | CM35: N/A
B36: No | C36: 96 | D36: 93.8 | E36: 90.9 | F36: 83.7 | G36: 61.1 | H36: 86.7 | I36: 77.7 | J36: 74.7 | K36: 62.7 | L36: 36.2 | M36: 96.3 | N36: 94.6 | O36: 91.1 | P36: 88.7 | Q36: 69.3 | R36: 71.5 | S36: 71.1 | T36: 91.7 | U36: 94.3 | V36: 91.4 | W36: 94 | X36: 90.2 | Y36: 98.2 | Z36: 82 | AA36: 96.4 | AB36: 83.1 | AC36: 71.1 | AD36: 69.7 | AE36: 94.8 | AF36: 96.9 | AG36: 87 | AH36: 88.6 | AI36: 87.6 | AJ36: 93.1 | AK36: 94.4 | AL36: 80.2 | AM36: 92.3 | BB36: No | BC36: N/A | BD36: N/A | BE36: N/A | BF36: N/A | BG36: N/A | BH36: N/A | BI36: N/A | BJ36: N/A | BK36: N/A | BL36: N/A | BM36: N/A | BN36: N/A | BO36: N/A | BP36: N/A | BQ36: N/A | BR36: N/A | BS36: N/A | BT36: N/A | BU36: N/A | BV36: N/A | BW36: N/A | BX36: N/A | BY36: N/A | BZ36: N/A | CA36: N/A | CB36: N/A | CC36: N/A | CD36: N/A | CE36: N/A | CF36: N/A | CG36: N/A | CH36: N/A | CI36: N/A | CJ36: N/A | CK36: N/A | CL36: N/A | CM36: N/A
A37: Improved Water source on premises | B37: Yes | C37: 1.9 | D37: 4 | E37: 5.9 | F37: 13.4 | G37: 35.6 | H37: 9.5 | I37: 18.2 | J37: 23.6 | K37: 36.2 | L37: 63 | M37: 1.9 | N37: 3 | O37: 6.1 | P37: 8.1 | Q37: 26.9 | R37: 22 | S37: 26.2 | T37: 3.1 | U37: 5.6 | V37: 5.8 | W37: 5.8 | X37: 7.9 | Y37: 0.5 | Z37: 16.4 | AA37: 2.3 | AB37: 14.9 | AC37: 27.4 | AD37: 16.3 | AE37: 5 | AF37: 2.5 | AG37: 11.9 | AH37: 1.7 | AI37: 10.8 | AJ37: 4 | AK37: 3.9 | AL37: 16.9 | AM37: 4.5 | BA37: Improved water source on premises | BB37: Yes | BC37: N/A | BD37: N/A | BE37: N/A | BF37: N/A | BG37: N/A | BH37: N/A | BI37: N/A | BJ37: N/A | BK37: N/A | BL37: N/A | BM37: N/A | BN37: N/A | BO37: N/A | BP37: N/A | BQ37: N/A | BR37: N/A | BS37: N/A | BT37: N/A | BU37: N/A | BV37: N/A | BW37: N/A | BX37: N/A | BY37: N/A | BZ37: N/A | CA37: N/A | CB37: N/A | CC37: N/A | CD37: N/A | CE37: N/A | CF37: N/A | CG37: N/A | CH37: N/A | CI37: N/A | CJ37: N/A | CK37: N/A | CL37: N/A | CM37: N/A
B38: No | C38: 98.1 | D38: 96 | E38: 94.1 | F38: 86.6 | G38: 64.4 | H38: 90.5 | I38: 81.8 | J38: 76.4 | K38: 63.8 | L38: 37 | M38: 98.1 | N38: 97 | O38: 93.9 | P38: 91.9 | Q38: 73.1 | R38: 78 | S38: 73.8 | T38: 96.9 | U38: 94.4 | V38: 94.2 | W38: 94.2 | X38: 92.1 | Y38: 99.5 | Z38: 83.6 | AA38: 97.7 | AB38: 85.1 | AC38: 72.6 | AD38: 83.7 | AE38: 95 | AF38: 97.5 | AG38: 88.1 | AH38: 98.3 | AI38: 89.2 | AJ38: 96 | AK38: 96.1 | AL38: 83.1 | AM38: 95.5 | BB38: No | BC38: N/A | BD38: N/A | BE38: N/A | BF38: N/A | BG38: N/A | BH38: N/A | BI38: N/A | BJ38: N/A | BK38: N/A | BL38: N/A | BM38: N/A | BN38: N/A | BO38: N/A | BP38: N/A | BQ38: N/A | BR38: N/A | BS38: N/A | BT38: N/A | BU38: N/A | BV38: N/A | BW38: N/A | BX38: N/A | BY38: N/A | BZ38: N/A | CA38: N/A | CB38: N/A | CC38: N/A | CD38: N/A | CE38: N/A | CF38: N/A | CG38: N/A | CH38: N/A | CI38: N/A | CJ38: N/A | CK38: N/A | CL38: N/A | CM38: N/A
A39: Piped water on premises available when needed | B39: Yes | C39: N/A | D39: N/A | E39: N/A | F39: N/A | G39: N/A | H39: N/A | I39: N/A | J39: N/A | K39: N/A | L39: N/A | M39: N/A | N39: N/A | O39: N/A | P39: N/A | Q39: N/A | R39: N/A | S39: N/A | T39: N/A | U39: N/A | V39: N/A | W39: N/A | X39: N/A | Y39: N/A | Z39: N/A | AA39: N/A | AB39: N/A | AC39: N/A | AD39: N/A | AE39: N/A | AF39: N/A | AG39: N/A | AH39: N/A | AI39: N/A | AJ39: N/A | AK39: N/A | AL39: N/A | AM39: N/A | BA39: Piped water on premises available when needed | BB39: Yes | BC39: N/A | BD39: N/A | BE39: N/A | BF39: N/A | BG39: N/A | BH39: N/A | BI39: N/A | BJ39: N/A | BK39: N/A | BL39: N/A | BM39: N/A | BN39: N/A | BO39: N/A | BP39: N/A | BQ39: N/A | BR39: N/A | BS39: N/A | BT39: N/A | BU39: N/A | BV39: N/A | BW39: N/A | BX39: N/A | BY39: N/A | BZ39: N/A | CA39: N/A | CB39: N/A | CC39: N/A | CD39: N/A | CE39: N/A | CF39: N/A | CG39: N/A | CH39: N/A | CI39: N/A | CJ39: N/A | CK39: N/A | CL39: N/A | CM39: N/A
B40: No | C40: N/A | D40: N/A | E40: N/A | F40: N/A | G40: N/A | H40: N/A | I40: N/A | J40: N/A | K40: N/A | L40: N/A | M40: N/A | N40: N/A | O40: N/A | P40: N/A | Q40: N/A | R40: N/A | S40: N/A | T40: N/A | U40: N/A | V40: N/A | W40: N/A | X40: N/A | Y40: N/A | Z40: N/A | AA40: N/A | AB40: N/A | AC40: N/A | AD40: N/A | AE40: N/A | AF40: N/A | AG40: N/A | AH40: N/A | AI40: N/A | AJ40: N/A | AK40: N/A | AL40: N/A | AM40: N/A | BB40: No | BC40: N/A | BD40: N/A | BE40: N/A | BF40: N/A | BG40: N/A | BH40: N/A | BI40: N/A | BJ40: N/A | BK40: N/A | BL40: N/A | BM40: N/A | BN40: N/A | BO40: N/A | BP40: N/A | BQ40: N/A | BR40: N/A | BS40: N/A | BT40: N/A | BU40: N/A | BV40: N/A | BW40: N/A | BX40: N/A | BY40: N/A | BZ40: N/A | CA40: N/A | CB40: N/A | CC40: N/A | CD40: N/A | CE40: N/A | CF40: N/A | CG40: N/A | CH40: N/A | CI40: N/A | CJ40: N/A | CK40: N/A | CL40: N/A | CM40: N/A
A41: Water point at more than 30 minutes | B41: Yes | C41: 7.2 | D41: 6.8 | E41: 3.8 | F41: 2 | G41: 1.9 | H41: 2.4 | I41: 1.7 | J41: 2.8 | K41: 3.2 | L41: 2.4 | M41: 7.5 | N41: 6.8 | O41: 4.2 | P41: 3.3 | Q41: 1.2 | R41: 1.5 | S41: 2.7 | T41: 3.9 | U41: 2.9 | V41: 44.7 | W41: 10.4 | X41: 9.6 | Y41: 2 | Z41: 1.1 | AA41: 2.4 | AB41: 9.1 | AC41: 2 | AD41: 3 | AE41: 1.7 | AF41: 12.8 | AG41: 0.7 | AH41: 1.4 | AI41: 3.8 | AJ41: 1.6 | AK41: 1.1 | AL41: 0.6 | AM41: 1.4 | BA41: Water point at more than 30 minutes | BB41: Yes | BC41: N/A | BD41: N/A | BE41: N/A | BF41: N/A | BG41: N/A | BH41: N/A | BI41: N/A | BJ41: N/A | BK41: N/A | BL41: N/A | BM41: N/A | BN41: N/A | BO41: N/A | BP41: N/A | BQ41: N/A | BR41: N/A | BS41: N/A | BT41: N/A | BU41: N/A | BV41: N/A | BW41: N/A | BX41: N/A | BY41: N/A | BZ41: N/A | CA41: N/A | CB41: N/A | CC41: N/A | CD41: N/A | CE41: N/A | CF41: N/A | CG41: N/A | CH41: N/A | CI41: N/A | CJ41: N/A | CK41: N/A | CL41: N/A | CM41: N/A
B42: No | C42: 92.8 | D42: 93.2 | E42: 96.2 | F42: 98 | G42: 98.1 | H42: 97.6 | I42: 98.3 | J42: 97.2 | K42: 96.8 | L42: 97.6 | M42: 92.5 | N42: 93.2 | O42: 95.8 | P42: 96.7 | Q42: 98.8 | R42: 98.5 | S42: 97.3 | T42: 96.1 | U42: 97.1 | V42: 55.3 | W42: 89.6 | X42: 90.4 | Y42: 98 | Z42: 98.9 | AA42: 97.6 | AB42: 90.9 | AC42: 98 | AD42: 97 | AE42: 98.3 | AF42: 87.2 | AG42: 99.3 | AH42: 98.6 | AI42: 96.2 | AJ42: 98.4 | AK42: 98.9 | AL42: 99.4 | AM42: 98.6 | BB42: No | BC42: N/A | BD42: N/A | BE42: N/A | BF42: N/A | BG42: N/A | BH42: N/A | BI42: N/A | BJ42: N/A | BK42: N/A | BL42: N/A | BM42: N/A | BN42: N/A | BO42: N/A | BP42: N/A | BQ42: N/A | BR42: N/A | BS42: N/A | BT42: N/A | BU42: N/A | BV42: N/A | BW42: N/A | BX42: N/A | BY42: N/A | BZ42: N/A | CA42: N/A | CB42: N/A | CC42: N/A | CD42: N/A | CE42: N/A | CF42: N/A | CG42: N/A | CH42: N/A | CI42: N/A | CJ42: N/A | CK42: N/A | CL42: N/A | CM42: N/A
A43: Water source available when needed | B43: Yes | C43: N/A | D43: N/A | E43: N/A | F43: N/A | G43: N/A | H43: N/A | I43: N/A | J43: N/A | K43: N/A | L43: N/A | M43: N/A | N43: N/A | O43: N/A | P43: N/A | Q43: N/A | R43: N/A | S43: N/A | T43: N/A | U43: N/A | V43: N/A | W43: N/A | X43: N/A | Y43: N/A | Z43: N/A | AA43: N/A | AB43: N/A | AC43: N/A | AD43: N/A | AE43: N/A | AF43: N/A | AG43: N/A | AH43: N/A | AI43: N/A | AJ43: N/A | AK43: N/A | AL43: N/A | AM43: N/A | BA43: Water source available when needed | BB43: Yes | BC43: N/A | BD43: N/A | BE43: N/A | BF43: N/A | BG43: N/A | BH43: N/A | BI43: N/A | BJ43: N/A | BK43: N/A | BL43: N/A | BM43: N/A | BN43: N/A | BO43: N/A | BP43: N/A | BQ43: N/A | BR43: N/A | BS43: N/A | BT43: N/A | BU43: N/A | BV43: N/A | BW43: N/A | BX43: N/A | BY43: N/A | BZ43: N/A | CA43: N/A | CB43: N/A | CC43: N/A | CD43: N/A | CE43: N/A | CF43: N/A | CG43: N/A | CH43: N/A | CI43: N/A | CJ43: N/A | CK43: N/A | CL43: N/A | CM43: N/A
B44: No | C44: N/A | D44: N/A | E44: N/A | F44: N/A | G44: N/A | H44: N/A | I44: N/A | J44: N/A | K44: N/A | L44: N/A | M44: N/A | N44: N/A | O44: N/A | P44: N/A | Q44: N/A | R44: N/A | S44: N/A | T44: N/A | U44: N/A | V44: N/A | W44: N/A | X44: N/A | Y44: N/A | Z44: N/A | AA44: N/A | AB44: N/A | AC44: N/A | AD44: N/A | AE44: N/A | AF44: N/A | AG44: N/A | AH44: N/A | AI44: N/A | AJ44: N/A | AK44: N/A | AL44: N/A | AM44: N/A | BB44: No | BC44: N/A | BD44: N/A | BE44: N/A | BF44: N/A | BG44: N/A | BH44: N/A | BI44: N/A | BJ44: N/A | BK44: N/A | BL44: N/A | BM44: N/A | BN44: N/A | BO44: N/A | BP44: N/A | BQ44: N/A | BR44: N/A | BS44: N/A | BT44: N/A | BU44: N/A | BV44: N/A | BW44: N/A | BX44: N/A | BY44: N/A | BZ44: N/A | CA44: N/A | CB44: N/A | CC44: N/A | CD44: N/A | CE44: N/A | CF44: N/A | CG44: N/A | CH44: N/A | CI44: N/A | CJ44: N/A | CK44: N/A | CL44: N/A | CM44: N/A
A45: Improved water source available when needed | B45: Yes | C45: N/A | D45: N/A | E45: N/A | F45: N/A | G45: N/A | H45: N/A | I45: N/A | J45: N/A | K45: N/A | L45: N/A | M45: N/A | N45: N/A | O45: N/A | P45: N/A | Q45: N/A | R45: N/A | S45: N/A | T45: N/A | U45: N/A | V45: N/A | W45: N/A | X45: N/A | Y45: N/A | Z45: N/A | AA45: N/A | AB45: N/A | AC45: N/A | AD45: N/A | AE45: N/A | AF45: N/A | AG45: N/A | AH45: N/A | AI45: N/A | AJ45: N/A | AK45: N/A | AL45: N/A | AM45: N/A | BA45: Improved water source available when needed | BB45: Yes | BC45: N/A | BD45: N/A | BE45: N/A | BF45: N/A | BG45: N/A | BH45: N/A | BI45: N/A | BJ45: N/A | BK45: N/A | BL45: N/A | BM45: N/A | BN45: N/A | BO45: N/A | BP45: N/A | BQ45: N/A | BR45: N/A | BS45: N/A | BT45: N/A | BU45: N/A | BV45: N/A | BW45: N/A | BX45: N/A | BY45: N/A | BZ45: N/A | CA45: N/A | CB45: N/A | CC45: N/A | CD45: N/A | CE45: N/A | CF45: N/A | CG45: N/A | CH45: N/A | CI45: N/A | CJ45: N/A | CK45: N/A | CL45: N/A | CM45: N/A
B46: No | C46: N/A | D46: N/A | E46: N/A | F46: N/A | G46: N/A | H46: N/A | I46: N/A | J46: N/A | K46: N/A | L46: N/A | M46: N/A | N46: N/A | O46: N/A | P46: N/A | Q46: N/A | R46: N/A | S46: N/A | T46: N/A | U46: N/A | V46: N/A | W46: N/A | X46: N/A | Y46: N/A | Z46: N/A | AA46: N/A | AB46: N/A | AC46: N/A | AD46: N/A | AE46: N/A | AF46: N/A | AG46: N/A | AH46: N/A | AI46: N/A | AJ46: N/A | AK46: N/A | AL46: N/A | AM46: N/A | BB46: No | BC46: N/A | BD46: N/A | BE46: N/A | BF46: N/A | BG46: N/A | BH46: N/A | BI46: N/A | BJ46: N/A | BK46: N/A | BL46: N/A | BM46: N/A | BN46: N/A | BO46: N/A | BP46: N/A | BQ46: N/A | BR46: N/A | BS46: N/A | BT46: N/A | BU46: N/A | BV46: N/A | BW46: N/A | BX46: N/A | BY46: N/A | BZ46: N/A | CA46: N/A | CB46: N/A | CC46: N/A | CD46: N/A | CE46: N/A | CF46: N/A | CG46: N/A | CH46: N/A | CI46: N/A | CJ46: N/A | CK46: N/A | CL46: N/A | CM46: N/A
A47: Microbiological quality at point of collection | B47: Not contaminated (No E. coli in 100 mL) | C47: N/A | D47: N/A | E47: N/A | F47: N/A | G47: N/A | H47: N/A | I47: N/A | J47: N/A | K47: N/A | L47: N/A | M47: N/A | N47: N/A | O47: N/A | P47: N/A | Q47: N/A | R47: N/A | S47: N/A | T47: N/A | U47: N/A | V47: N/A | W47: N/A | X47: N/A | Y47: N/A | Z47: N/A | AA47: N/A | AB47: N/A | AC47: N/A | AD47: N/A | AE47: N/A | AF47: N/A | AG47: N/A | AH47: N/A | AI47: N/A | AJ47: N/A | AK47: N/A | AL47: N/A | AM47: N/A | BA47: Microbiological quality at point of collection | BB47: Not contaminated (No E. coli in 100 mL) | BC47: N/A | BD47: N/A | BE47: N/A | BF47: N/A | BG47: N/A | BH47: N/A | BI47: N/A | BJ47: N/A | BK47: N/A | BL47: N/A | BM47: N/A | BN47: N/A | BO47: N/A | BP47: N/A | BQ47: N/A | BR47: N/A | BS47: N/A | BT47: N/A | BU47: N/A | BV47: N/A | BW47: N/A | BX47: N/A | BY47: N/A | BZ47: N/A | CA47: N/A | CB47: N/A | CC47: N/A | CD47: N/A | CE47: N/A | CF47: N/A | CG47: N/A | CH47: N/A | CI47: N/A | CJ47: N/A | CK47: N/A | CL47: N/A | CM47: N/A
B48: Contaminated (E. coli detected in 100 mL) | C48: N/A | D48: N/A | E48: N/A | F48: N/A | G48: N/A | H48: N/A | I48: N/A | J48: N/A | K48: N/A | L48: N/A | M48: N/A | N48: N/A | O48: N/A | P48: N/A | Q48: N/A | R48: N/A | S48: N/A | T48: N/A | U48: N/A | V48: N/A | W48: N/A | X48: N/A | Y48: N/A | Z48: N/A | AA48: N/A | AB48: N/A | AC48: N/A | AD48: N/A | AE48: N/A | AF48: N/A | AG48: N/A | AH48: N/A | AI48: N/A | AJ48: N/A | AK48: N/A | AL48: N/A | AM48: N/A | BB48: Contaminated (E. coli detected in 100 mL) | BC48: N/A | BD48: N/A | BE48: N/A | BF48: N/A | BG48: N/A | BH48: N/A | BI48: N/A | BJ48: N/A | BK48: N/A | BL48: N/A | BM48: N/A | BN48: N/A | BO48: N/A | BP48: N/A | BQ48: N/A | BR48: N/A | BS48: N/A | BT48: N/A | BU48: N/A | BV48: N/A | BW48: N/A | BX48: N/A | BY48: N/A | BZ48: N/A | CA48: N/A | CB48: N/A | CC48: N/A | CD48: N/A | CE48: N/A | CF48: N/A | CG48: N/A | CH48: N/A | CI48: N/A | CJ48: N/A | CK48: N/A | CL48: N/A | CM48: N/A
B49: Highly contaminated (>100 CFU/100 mL) | C49: N/A | D49: N/A | E49: N/A | F49: N/A | G49: N/A | H49: N/A | I49: N/A | J49: N/A | K49: N/A | L49: N/A | M49: N/A | N49: N/A | O49: N/A | P49: N/A | Q49: N/A | R49: N/A | S49: N/A | T49: N/A | U49: N/A | V49: N/A | W49: N/A | X49: N/A | Y49: N/A | Z49: N/A | AA49: N/A | AB49: N/A | AC49: N/A | AD49: N/A | AE49: N/A | AF49: N/A | AG49: N/A | AH49: N/A | AI49: N/A | AJ49: N/A | AK49: N/A | AL49: N/A | AM49: N/A | BB49: Highly contaminated (>100 CFU/100 mL) | BC49: N/A | BD49: N/A | BE49: N/A | BF49: N/A | BG49: N/A | BH49: N/A | BI49: N/A | BJ49: N/A | BK49: N/A | BL49: N/A | BM49: N/A | BN49: N/A | BO49: N/A | BP49: N/A | BQ49: N/A | BR49: N/A | BS49: N/A | BT49: N/A | BU49: N/A | BV49: N/A | BW49: N/A | BX49: N/A | BY49: N/A | BZ49: N/A | CA49: N/A | CB49: N/A | CC49: N/A | CD49: N/A | CE49: N/A | CF49: N/A | CG49: N/A | CH49: N/A | CI49: N/A | CJ49: N/A | CK49: N/A | CL49: N/A | CM49: N/A
A50: Microbiological quality of improved water sources at point of collection | B50: Not contaminated (No E. coli in 100 mL) | C50: N/A | D50: N/A | E50: N/A | F50: N/A | G50: N/A | H50: N/A | I50: N/A | J50: N/A | K50: N/A | L50: N/A | M50: N/A | N50: N/A | O50: N/A | P50: N/A | Q50: N/A | R50: N/A | S50: N/A | T50: N/A | U50: N/A | V50: N/A | W50: N/A | X50: N/A | Y50: N/A | Z50: N/A | AA50: N/A | AB50: N/A | AC50: N/A | AD50: N/A | AE50: N/A | AF50: N/A | AG50: N/A | AH50: N/A | AI50: N/A | AJ50: N/A | AK50: N/A | AL50: N/A | AM50: N/A | BA50: Microbiological quality of improved water sources at point of collection | BB50: Not contaminated (No E. coli in 100 mL) | BC50: N/A | BD50: N/A | BE50: N/A | BF50: N/A | BG50: N/A | BH50: N/A | BI50: N/A | BJ50: N/A | BK50: N/A | BL50: N/A | BM50: N/A | BN50: N/A | BO50: N/A | BP50: N/A | BQ50: N/A | BR50: N/A | BS50: N/A | BT50: N/A | BU50: N/A | BV50: N/A | BW50: N/A | BX50: N/A | BY50: N/A | BZ50: N/A | CA50: N/A | CB50: N/A | CC50: N/A | CD50: N/A | CE50: N/A | CF50: N/A | CG50: N/A | CH50: N/A | CI50: N/A | CJ50: N/A | CK50: N/A | CL50: N/A | CM50: N/A
B51: Contaminated (E. coli detected in 100 mL) | C51: N/A | D51: N/A | E51: N/A | F51: N/A | G51: N/A | H51: N/A | I51: N/A | J51: N/A | K51: N/A | L51: N/A | M51: N/A | N51: N/A | O51: N/A | P51: N/A | Q51: N/A | R51: N/A | S51: N/A | T51: N/A | U51: N/A | V51: N/A | W51: N/A | X51: N/A | Y51: N/A | Z51: N/A | AA51: N/A | AB51: N/A | AC51: N/A | AD51: N/A | AE51: N/A | AF51: N/A | AG51: N/A | AH51: N/A | AI51: N/A | AJ51: N/A | AK51: N/A | AL51: N/A | AM51: N/A | BB51: Contaminated (E. coli detected in 100 mL) | BC51: N/A | BD51: N/A | BE51: N/A | BF51: N/A | BG51: N/A | BH51: N/A | BI51: N/A | BJ51: N/A | BK51: N/A | BL51: N/A | BM51: N/A | BN51: N/A | BO51: N/A | BP51: N/A | BQ51: N/A | BR51: N/A | BS51: N/A | BT51: N/A | BU51: N/A | BV51: N/A | BW51: N/A | BX51: N/A | BY51: N/A | BZ51: N/A | CA51: N/A | CB51: N/A | CC51: N/A | CD51: N/A | CE51: N/A | CF51: N/A | CG51: N/A | CH51: N/A | CI51: N/A | CJ51: N/A | CK51: N/A | CL51: N/A | CM51: N/A
B52: Highly contaminated (>100 CFU/100 mL) | C52: N/A | D52: N/A | E52: N/A | F52: N/A | G52: N/A | H52: N/A | I52: N/A | J52: N/A | K52: N/A | L52: N/A | M52: N/A | N52: N/A | O52: N/A | P52: N/A | Q52: N/A | R52: N/A | S52: N/A | T52: N/A | U52: N/A | V52: N/A | W52: N/A | X52: N/A | Y52: N/A | Z52: N/A | AA52: N/A | AB52: N/A | AC52: N/A | AD52: N/A | AE52: N/A | AF52: N/A | AG52: N/A | AH52: N/A | AI52: N/A | AJ52: N/A | AK52: N/A | AL52: N/A | AM52: N/A | BB52: Highly contaminated (>100 CFU/100 mL) | BC52: N/A | BD52: N/A | BE52: N/A | BF52: N/A | BG52: N/A | BH52: N/A | BI52: N/A | BJ52: N/A | BK52: N/A | BL52: N/A | BM52: N/A | BN52: N/A | BO52: N/A | BP52: N/A | BQ52: N/A | BR52: N/A | BS52: N/A | BT52: N/A | BU52: N/A | BV52: N/A | BW52: N/A | BX52: N/A | BY52: N/A | BZ52: N/A | CA52: N/A | CB52: N/A | CC52: N/A | CD52: N/A | CE52: N/A | CF52: N/A | CG52: N/A | CH52: N/A | CI52: N/A | CJ52: N/A | CK52: N/A | CL52: N/A | CM52: N/A
A53: Microbiological quality of piped on premises at point of collection | B53: Not contaminated (No E. coli in 100 mL) | C53: N/A | D53: N/A | E53: N/A | F53: N/A | G53: N/A | H53: N/A | I53: N/A | J53: N/A | K53: N/A | L53: N/A | M53: N/A | N53: N/A | O53: N/A | P53: N/A | Q53: N/A | R53: N/A | S53: N/A | T53: N/A | U53: N/A | V53: N/A | W53: N/A | X53: N/A | Y53: N/A | Z53: N/A | AA53: N/A | AB53: N/A | AC53: N/A | AD53: N/A | AE53: N/A | AF53: N/A | AG53: N/A | AH53: N/A | AI53: N/A | AJ53: N/A | AK53: N/A | AL53: N/A | AM53: N/A | BA53: Microbiological quality of piped on premises at point of collection | BB53: Not contaminated (No E. coli in 100 mL) | BC53: N/A | BD53: N/A | BE53: N/A | BF53: N/A | BG53: N/A | BH53: N/A | BI53: N/A | BJ53: N/A | BK53: N/A | BL53: N/A | BM53: N/A | BN53: N/A | BO53: N/A | BP53: N/A | BQ53: N/A | BR53: N/A | BS53: N/A | BT53: N/A | BU53: N/A | BV53: N/A | BW53: N/A | BX53: N/A | BY53: N/A | BZ53: N/A | CA53: N/A | CB53: N/A | CC53: N/A | CD53: N/A | CE53: N/A | CF53: N/A | CG53: N/A | CH53: N/A | CI53: N/A | CJ53: N/A | CK53: N/A | CL53: N/A | CM53: N/A
B54: Contaminated (E. coli detected in 100 mL) | C54: N/A | D54: N/A | E54: N/A | F54: N/A | G54: N/A | H54: N/A | I54: N/A | J54: N/A | K54: N/A | L54: N/A | M54: N/A | N54: N/A | O54: N/A | P54: N/A | Q54: N/A | R54: N/A | S54: N/A | T54: N/A | U54: N/A | V54: N/A | W54: N/A | X54: N/A | Y54: N/A | Z54: N/A | AA54: N/A | AB54: N/A | AC54: N/A | AD54: N/A | AE54: N/A | AF54: N/A | AG54: N/A | AH54: N/A | AI54: N/A | AJ54: N/A | AK54: N/A | AL54: N/A | AM54: N/A | BB54: Contaminated (E. coli detected in 100 mL) | BC54: N/A | BD54: N/A | BE54: N/A | BF54: N/A | BG54: N/A | BH54: N/A | BI54: N/A | BJ54: N/A | BK54: N/A | BL54: N/A | BM54: N/A | BN54: N/A | BO54: N/A | BP54: N/A | BQ54: N/A | BR54: N/A | BS54: N/A | BT54: N/A | BU54: N/A | BV54: N/A | BW54: N/A | BX54: N/A | BY54: N/A | BZ54: N/A | CA54: N/A | CB54: N/A | CC54: N/A | CD54: N/A | CE54: N/A | CF54: N/A | CG54: N/A | CH54: N/A | CI54: N/A | CJ54: N/A | CK54: N/A | CL54: N/A | CM54: N/A
B55: Highly contaminated (>100 CFU/100 mL) | C55: N/A | D55: N/A | E55: N/A | F55: N/A | G55: N/A | H55: N/A | I55: N/A | J55: N/A | K55: N/A | L55: N/A | M55: N/A | N55: N/A | O55: N/A | P55: N/A | Q55: N/A | R55: N/A | S55: N/A | T55: N/A | U55: N/A | V55: N/A | W55: N/A | X55: N/A | Y55: N/A | Z55: N/A | AA55: N/A | AB55: N/A | AC55: N/A | AD55: N/A | AE55: N/A | AF55: N/A | AG55: N/A | AH55: N/A | AI55: N/A | AJ55: N/A | AK55: N/A | AL55: N/A | AM55: N/A | BB55: Highly contaminated (>100 CFU/100 mL) | BC55: N/A | BD55: N/A | BE55: N/A | BF55: N/A | BG55: N/A | BH55: N/A | BI55: N/A | BJ55: N/A | BK55: N/A | BL55: N/A | BM55: N/A | BN55: N/A | BO55: N/A | BP55: N/A | BQ55: N/A | BR55: N/A | BS55: N/A | BT55: N/A | BU55: N/A | BV55: N/A | BW55: N/A | BX55: N/A | BY55: N/A | BZ55: N/A | CA55: N/A | CB55: N/A | CC55: N/A | CD55: N/A | CE55: N/A | CF55: N/A | CG55: N/A | CH55: N/A | CI55: N/A | CJ55: N/A | CK55: N/A | CL55: N/A | CM55: N/A
C56: NATIONAL wealth index quintile | H56: URBAN wealth index quintile | M56: RURAL wealth index quintile | R56: SUB-REGIONS: | BA56: Raw numbers of respondents: | BB56: Use of drinking water sources | BC56: NATIONAL wealth index quintile | BH56: URBAN wealth index quintile | BM56: RURAL wealth index quintile | BR56: SUB-REGIONS:
A57: Percentage based on weighted population | C57: Poorest | D57: Poor | E57: Middle | F57: Rich | G57: Richest | H57: Poorest | I57: Poor | J57: Middle | K57: Rich | L57: Richest | M57: Poorest | N57: Poor | O57: Middle | P57: Rich | Q57: Richest | R57: Alaotra Mangoro | S57: Analamanga | T57: Analanjirofo | U57: Anamoroni'i Mania | V57: Androy | W57: Anosy | X57: Atsimo Andrefana | Y57: Atsimo Atsinanana | Z57: Atsinanana | AA57: Betsiboka | AB57: Boeny | AC57: Bongolava | AD57: Diana | AE57: Haute Matsiatra | AF57: Ihorombe | AG57: Itasy | AH57: Melaky | AI57: Menabe | AJ57: Sava | AK57: Sofia | AL57: Vakinankaratra | AM57: Vatovavy Fitovinany | BA57: Water data, raw numbers (weighted) | BC57: Poorest | BD57: Poor | BE57: Middle | BF57: Rich | BG57: Richest | BH57: Poorest | BI57: Poor | BJ57: Middle | BK57: Rich | BL57: Richest | BM57: Poorest | BN57: Poor | BO57: Middle | BP57: Rich | BQ57: Richest | BR57: Alaotra Mangoro | BS57: Analamanga | BT57: Analanjirofo | BU57: Anamoroni'i Mania | BV57: Androy | BW57: Anosy | BX57: Atsimo Andrefana | BY57: Atsimo Atsinanana | BZ57: Atsinanana | CA57: Betsiboka | CB57: Boeny | CC57: Bongolava | CD57: Diana | CE57: Haute Matsiatra | CF57: Ihorombe | CG57: Itasy | CH57: Melaky | CI57: Menabe | CJ57: Sava | CK57: Sofia | CL57: Vakinankaratra | CM57: Vatovavy Fitovinany
A58: Source of drinking water | B58: Piped into dwelling | C58: 0 | D58: 0 | E58: 0 | F58: 0 | G58: 10.5 | H58: 0.2 | I58: 0.5 | J58: 4.5 | K58: 11.6 | L58: 36.4 | M58: 0 | N58: 0 | O58: 0 | P58: 0 | Q58: 3.5 | R58: 1.6 | S58: 8.4 | T58: 0.2 | U58: 2 | V58: 0 | W58: 0.4 | X58: 1 | Y58: 0 | Z58: 2.6 | AA58: 0.2 | AB58: 2.6 | AC58: 0.6 | AD58: 1.6 | AE58: 1.1 | AF58: 0 | AG58: 0.1 | AH58: 0.6 | AI58: 0.9 | AJ58: 0 | AK58: 0.5 | AL58: 2.1 | AM58: 0.4
B59: Piped to yard/plot | C59: 0 | D59: 0 | E59: 0.2 | F59: 0.8 | G59: 10.8 | H59: 3 | I59: 5.9 | J59: 9.4 | K59: 14.9 | L59: 16.3 | M59: 0 | N59: 0 | O59: 0 | P59: 0.2 | Q59: 5.4 | R59: 1 | S59: 3.6 | T59: 0.3 | U59: 3.2 | V59: 0 | W59: 3.5 | X59: 3.4 | Y59: 0.2 | Z59: 2.3 | AA59: 0.4 | AB59: 10.6 | AC59: 0.5 | AD59: 3.1 | AE59: 2.4 | AF59: 0.3 | AG59: 0.3 | AH59: 0.8 | AI59: 6 | AJ59: 0.2 | AK59: 1.7 | AL59: 3.4 | AM59: 0.5
B60: Public tap/standpipe | C60: 5.9 | D60: 8.5 | E60: 13.3 | F60: 25.2 | G60: 45.2 | H60: 43.8 | I60: 60.5 | J60: 67.9 | K60: 59.7 | L60: 36.6 | M60: 5.2 | N60: 7.8 | O60: 10.5 | P60: 16.2 | Q60: 30.2 | R60: 20.6 | S60: 39.8 | T60: 3.8 | U60: 14 | V60: 5.7 | W60: 14.2 | X60: 13.5 | Y60: 3.6 | Z60: 15.7 | AA60: 17.3 | AB60: 14.9 | AC60: 23.3 | AD60: 11 | AE60: 18.7 | AF60: 22.9 | AG60: 38.7 | AH60: 1.3 | AI60: 18.8 | AJ60: 27.6 | AK60: 18.2 | AL60: 16.7 | AM60: 7.8
B61: Tube well or borehole | C61: 1.9 | D61: 1.5 | E61: 1.4 | F61: 1.5 | G61: 2.9 | H61: 5.1 | I61: 6.6 | J61: 5.6 | K61: 3.9 | L61: 2.3 | M61: 1.8 | N61: 1.7 | O61: 1 | P61: 1.4 | Q61: 0.9 | R61: 0.2 | S61: 0.1 | T61: 5.7 | U61: 0 | V61: 5.3 | W61: 2.8 | X61: 1.7 | Y61: 1.5 | Z61: 9.9 | AA61: 0 | AB61: 0.1 | AC61: 1.2 | AD61: 0.3 | AE61: 0 | AF61: 0.3 | AG61: 1.3 | AH61: 0.8 | AI61: 1.8 | AJ61: 1.4 | AK61: 0.3 | AL61: 0.1 | AM61: 5.9
B62: Protected well | C62: 5.7 | D62: 7.8 | E62: 10 | F62: 16.6 | G62: 14.7 | H62: 7.9 | I62: 8.9 | J62: 6.5 | K62: 6.5 | L62: 5.7 | M62: 5.7 | N62: 6.4 | O62: 10.7 | P62: 12.4 | Q62: 22.8 | R62: 28.1 | S62: 19.7 | T62: 4.3 | U62: 2 | V62: 3.8 | W62: 3.6 | X62: 9.6 | Y62: 1.3 | Z62: 5.9 | AA62: 10.5 | AB62: 9.1 | AC62: 35.3 | AD62: 21.5 | AE62: 7 | AF62: 22.1 | AG62: 8.2 | AH62: 4.8 | AI62: 13.1 | AJ62: 4.9 | AK62: 7.3 | AL62: 9.3 | AM62: 1.7
B63: Unprotected well | C63: 20.9 | D63: 17.5 | E63: 16 | F63: 14.5 | G63: 7.2 | H63: 18.7 | I63: 10.4 | J63: 2.6 | K63: 2.2 | L63: 1.1 | M63: 21.4 | N63: 18 | O63: 16.1 | P63: 15.6 | Q63: 11.8 | R63: 18.8 | S63: 6.6 | T63: 10.9 | U63: 8.9 | V63: 35 | W63: 14.7 | X63: 35.9 | Y63: 37.1 | Z63: 6.3 | AA63: 21.8 | AB63: 38.3 | AC63: 4.6 | AD63: 28.8 | AE63: 7.1 | AF63: 7.1 | AG63: 4.4 | AH63: 52.7 | AI63: 22.7 | AJ63: 16.4 | AK63: 20.2 | AL63: 4.3 | AM63: 11.6
B64: Protected spring | C64: 1.9 | D64: 3.1 | E64: 3.9 | F64: 4.2 | G64: 1.9 | H64: 3 | I64: 1.1 | J64: 1.6 | K64: 0.7 | L64: 0.1 | M64: 1.8 | N64: 2.7 | O64: 4.4 | P64: 3.7 | Q64: 3.8 | R64: 2.8 | S64: 4.8 | T64: 1.7 | U64: 8.8 | V64: 0.2 | W64: 1.2 | X64: 2.1 | Y64: 1.5 | Z64: 0 | AA64: 0.1 | AB64: 1.5 | AC64: 8.6 | AD64: 0.5 | AE64: 7.1 | AF64: 1.1 | AG64: 5.6 | AH64: 0 | AI64: 0.9 | AJ64: 0.7 | AK64: 0.2 | AL64: 3.9 | AM64: 2.4
B65: Unprotected spring | C65: 25.9 | D65: 30.1 | E65: 31.3 | F65: 20.1 | G65: 4.4 | H65: 13.2 | I65: 5.6 | J65: 1.7 | K65: 0.4 | L65: 0.4 | M65: 25.4 | N65: 29.6 | O65: 32.8 | P65: 26.2 | Q65: 12.8 | R65: 5.2 | S65: 12.8 | T65: 20.8 | U65: 51.4 | V65: 3.5 | W65: 7 | X65: 19.1 | Y65: 25.1 | Z65: 10.7 | AA65: 8.1 | AB65: 9.2 | AC65: 24.8 | AD65: 5.5 | AE65: 48.7 | AF65: 30.5 | AG65: 37.6 | AH65: 6.9 | AI65: 14.3 | AJ65: 14.2 | AK65: 7.4 | AL65: 56.2 | AM65: 29.2
B66: River/dam/lake/ponds/stream/canal/irirgation channel | C66: 37 | D66: 30.5 | E66: 23 | F66: 16.7 | G66: 1.9 | H66: 5.1 | I66: 0.4 | J66: 0.1 | K66: 0 | L66: 0 | M66: 37.7 | N66: 32.8 | O66: 23.5 | P66: 23.8 | Q66: 8.5 | R66: 21.8 | S66: 4.1 | T66: 51.8 | U66: 9.7 | V66: 29.5 | W66: 50.9 | X66: 13.4 | Y66: 29.6 | Z66: 46.5 | AA66: 41.7 | AB66: 13.6 | AC66: 1.2 | AD66: 27.4 | AE66: 8 | AF66: 15.8 | AG66: 3.7 | AH66: 32.1 | AI66: 21.1 | AJ66: 34.6 | AK66: 43.8 | AL66: 3.9 | AM66: 40.1
B67: Rainwater | C67: 0.3 | D67: 0.2 | E67: 0.2 | F67: 0.1 | G67: 0.1 | H67: 0 | I67: 0.1 | J67: 0.1 | K67: 0.1 | L67: 0 | M67: 0.3 | N67: 0.3 | O67: 0.2 | P67: 0.1 | Q67: 0.2 | R67: 0 | S67: 0 | T67: 0.3 | U67: 0 | V67: 4.1 | W67: 1 | X67: 0 | Y67: 0 | Z67: 0 | AA67: 0 | AB67: 0 | AC67: 0 | AD67: 0.2 | AE67: 0 | AF67: 0 | AG67: 0 | AH67: 0 | AI67: 0.3 | AJ67: 0 | AK67: 0 | AL67: 0 | AM67: 0
B68: Tanker truck | C68: 0.2 | D68: 0.1 | E68: 0.2 | F68: 0 | G68: 0 | H68: 0 | I68: 0 | J68: 0 | K68: 0 | L68: 0 | M68: 0.2 | N68: 0.1 | O68: 0.2 | P68: 0 | Q68: 0 | R68: 0 | S68: 0 | T68: 0.1 | U68: 0 | V68: 0.7 | W68: 0.4 | X68: 0.3 | Y68: 0 | Z68: 0 | AA68: 0 | AB68: 0 | AC68: 0 | AD68: 0 | AE68: 0 | AF68: 0.1 | AG68: 0 | AH68: 0 | AI68: 0.2 | AJ68: 0 | AK68: 0.4 | AL68: 0 | AM68: 0.2
B69: Bottled water | C69: 0 | D69: 0 | E69: 0 | F69: 0 | G69: 0.2 | H69: 0 | I69: 0 | J69: 0 | K69: 0 | L69: 1.2 | M69: 0 | N69: 0 | O69: 0 | P69: 0 | Q69: 0 | R69: 0 | S69: 0.1 | T69: 0 | U69: 0 | V69: 0 | W69: 0 | X69: 0 | Y69: 0 | Z69: 0 | AA69: 0 | AB69: 0 | AC69: 0 | AD69: 0 | AE69: 0 | AF69: 0 | AG69: 0 | AH69: 0 | AI69: 0 | AJ69: 0 | AK69: 0 | AL69: 0.1 | AM69: 0.1
B70: Other | C70: 0.5 | D70: 0.7 | E70: 0.5 | F70: 0.3 | G70: 0 | H70: 0 | I70: 0 | J70: 0 | K70: 0 | L70: 0 | M70: 0.5 | N70: 0.7 | O70: 0.6 | P70: 0.3 | Q70: 0.1 | R70: 0 | S70: 0 | T70: 0 | U70: 0 | V70: 12.1 | W70: 0.5 | X70: 0 | Y70: 0 | Z70: 0 | AA70: 0 | AB70: 0 | AC70: 0 | AD70: 0 | AE70: 0 | AF70: 0 | AG70: 0 | AH70: 0 | AI70: 0 | AJ70: 0 | AK70: 0 | AL70: 0 | AM70: 0.2
A108: =A1026 -> Madagascar
A109: =A1034 -> 2009
A110: Use of sanitation facilities
A111: by wealth quintile and sub-national region
A112: Notes:
A113: WHO/UNICEF JMP customised wealth index excludes water,
A114: sanitation and hygiene assets.
A115: Survey used for analysis: | B115: =A1025 -> DHS09
A116: =B1030 -> 
A117: =B1029 -> 
A120: Use of sanitation facilities | C120: NATIONAL wealth index quintile | H120: URBAN wealth index quintile | M120: RURAL wealth index quintile | R120: SUB-REGIONS: | BA120: Raw numbers of respondents: | BB120: Use of sanitation facilities | BC120: NATIONAL wealth index quintile | BH120: URBAN wealth index quintile | BM120: RURAL wealth index quintile | BR120: SUB-REGIONS:
A121: Weighted percentage (used in graphs) | C121: Poorest | D121: Poor | E121: Middle | F121: Rich | G121: Richest | H121: Poorest | I121: Poor | J121: Middle | K121: Rich | L121: Richest | M121: Poorest | N121: Poor | O121: Middle | P121: Rich | Q121: Richest | R121: Alaotra Mangoro | S121: Analamanga | T121: Analanjirofo | U121: Anamoroni'i Mania | V121: Androy | W121: Anosy | X121: Atsimo Andrefana | Y121: Atsimo Atsinanana | Z121: Atsinanana | AA121: Betsiboka | AB121: Boeny | AC121: Bongolava | AD121: Diana | AE121: Haute Matsiatra | AF121: Ihorombe | AG121: Itasy | AH121: Melaky | AI121: Menabe | AJ121: Sava | AK121: Sofia | AL121: Vakinankaratra | AM121: Vatovavy Fitovinany | BA121: Sanitation data, raw numbers (weighted) | BC121: Poorest | BD121: Poor | BE121: Middle | BF121: Rich | BG121: Richest | BH121: Poorest | BI121: Poor | BJ121: Middle | BK121: Rich | BL121: Richest | BM121: Poorest | BN121: Poor | BO121: Middle | BP121: Rich | BQ121: Richest | BR121: Alaotra Mangoro | BS121: Analamanga | BT121: Analanjirofo | BU121: Anamoroni'i Mania | BV121: Androy | BW121: Anosy | BX121: Atsimo Andrefana | BY121: Atsimo Atsinanana | BZ121: Atsinanana | CA121: Betsiboka | CB121: Boeny | CC121: Bongolava | CD121: Diana | CE121: Haute Matsiatra | CF121: Ihorombe | CG121: Itasy | CH121: Melaky | CI121: Menabe | CJ121: Sava | CK121: Sofia | CL121: Vakinankaratra | CM121: Vatovavy Fitovinany
A122: Sanitation | B122: Improved | C122: 0.6420605931 | D122: 0.695271591 | E122: 1.435214194 | F122: 3.244750302 | G122: 22.20441619 | H122: 6.634857937 | I122: 13.42998853 | J122: 21.79997175 | K122: 23.40575711 | L122: 54.69307815 | M122: 0.5080401242 | N122: 0.7368341907 | O122: 1.030054779 | P122: 1.867742337 | Q122: 8.910449706 | R122: 1.314481671 | S122: 18.11000251 | T122: 1.886885692 | U122: 7.070289727 | V122: 0.218704285 | W122: 1.230454448 | X122: 2.775626843 | Y122: 1.317668179 | Z122: 8.0116659 | AA122: 0.2714045081 | AB122: 7.274157629 | AC122: 0 | AD122: 8.338812622 | AE122: 9.495125103 | AF122: 0.4304890156 | AG122: 5.218943838 | AH122: 0.6115002073 | AI122: 1.912052935 | AJ122: 5.020988645 | AK122: 1.857043994 | AL122: 2.163005865 | AM122: 0.545446953 | BA122: Sanitation | BB122: Improved | BC122: 109.522359 | BD122: 118.334365 | BE122: 244.64471 | BF122: 552.605256 | BG122: 3783.173755 | BH122: 160.293697 | BI122: 324.032557 | BJ122: 527.927047 | BK122: 565.411396 | BL122: 1321.839868 | BM122: 74.323208 | BN122: 107.670329 | BO122: 150.637168 | BP122: 273.043532 | BQ122: 1303.101643 | BR122: 61.147504 | BS122: 2304.103409 | BT122: 91.090016 | BU122: 226.366645 | BV122: 5.48729 | BW122: 32.036918 | BX122: 131.846712 | BY122: 38.635576 | BZ122: 371.825304 | CA122: 3.258533 | CB122: 213.097728 | CC122: 0 | CD122: 169.882628 | CE122: 437.456183 | CF122: 6.774208 | CG122: 192.911577 | CH122: 5.579892 | CI122: 40.464277 | CJ122: 192.975285 | CK122: 90.497791 | CL122: 168.701184 | CM122: 24.141785
B123: Not Improved | C123: 99.35793941 | D123: 99.30472841 | E123: 98.56478581 | F123: 96.7552497 | G123: 77.79558381 | H123: 93.36514206 | I123: 86.57001147 | J123: 78.20002825 | K123: 76.59424289 | L123: 45.30692185 | M123: 99.49195988 | N123: 99.26316581 | O123: 98.96994522 | P123: 98.13225766 | Q123: 91.08955029 | R123: 98.68551833 | S123: 81.88999749 | T123: 98.11311431 | U123: 92.92971027 | V123: 99.78129571 | W123: 98.76954555 | X123: 97.22437316 | Y123: 98.68233182 | Z123: 91.9883341 | AA123: 99.72859549 | AB123: 92.72584237 | AC123: 100 | AD123: 91.66118738 | AE123: 90.5048749 | AF123: 99.56951098 | AG123: 94.78105616 | AH123: 99.38849979 | AI123: 98.08794707 | AJ123: 94.97901136 | AK123: 98.14295601 | AL123: 97.83699414 | AM123: 99.45455305 | BB123: Not Improved | BC123: 16948.42516 | BD123: 16901.54197 | BE123: 16801.2228 | BF123: 16478.14301 | BG123: 13254.76015 | BH123: 2255.63892 | BI123: 2088.721231 | BJ123: 1893.759793 | BK123: 1850.282287 | BL123: 1094.99223 | BM123: 14555.07405 | BN123: 14504.88842 | BO123: 14473.55283 | BP123: 14345.86437 | BQ123: 13321.31896 | BR123: 4590.686399 | BS123: 10418.71873 | BT123: 4736.442272 | BU123: 2975.293453 | BV123: 2503.512476 | BW123: 2571.628585 | BX123: 4618.313142 | BY123: 2893.481676 | BZ123: 4269.223245 | CA123: 1197.360065 | CB123: 2716.419872 | CC123: 2337.202625 | CD123: 1867.369385 | CE123: 4169.709897 | CF123: 1566.833423 | CG123: 3503.46039 | CH123: 906.912358 | CI123: 2075.809612 | CJ123: 3650.39698 | CK123: 4782.719607 | CL123: 7630.685159 | CM123: 4401.91374
A124: Sanitation ladder | B124: Basic | C124: =C122*C129/100 -> 0.07920209618 | D124: =D122*D129/100 -> 0.25831465 | E124: =E122*E129/100 -> 0.4843705196 | F124: 1.46994526 | G124: 11.94001693 | H124: 1.927121505 | I124: 2.674059132 | J124: 7.47275044 | K124: 9.703101376 | L124: 38.80675512 | M124: 0 | N124: 0.1910907356 | O124: 0.436108947 | P124: 0.8647675795 | Q124: 5.075486783 | R124: 1.16380602 | S124: 9.291710628 | T124: 1.812010045 | U124: 2.676489833 | V124: 0 | W124: 0.2598632195 | X124: 1.019666737 | Y124: 0.5074410646 | Z124: 4.11801066 | AA124: 0.2714045081 | AB124: 3.270378304 | AC124: 0 | AD124: 4.165842736 | AE124: 3.000842548 | AF124: 0.4304890156 | AG124: 3.875944501 | AH124: 0.592286455 | AI124: 0.7424884407 | AJ124: 2.756414333 | AK124: 0.8252477514 | AL124: 1.192843115 | AM124: 0.4858437694 | BA124: Sanitation ladder | BB124: Basic | BC124: 13.510252 | BD124: 43.964834 | BE124: 82.565157 | BF124: 250.342677 | BG124: 2034.332193 | BH124: 46.557957 | BI124: 64.518463 | BJ124: 180.966614 | BK124: 234.397207 | BL124: 937.894114 | BM124: 0 | BN124: 27.923246 | BO124: 63.777401 | BP124: 126.419576 | BQ124: 742.260535 | BR124: 54.138323 | BS124: 1182.167817 | BT124: 87.47537 | BU124: 85.692107 | BV124: 0 | BW124: 6.765969 | BX124: 48.4358 | BY124: 14.878767 | BZ124: 191.118874 | CA124: 3.258533 | CB124: 95.806308 | CC124: 0 | CD124: 84.868715 | CE124: 138.2538 | CF124: 6.774208 | CG124: 143.269326 | CH124: 5.404568 | CI124: 15.713089 | CJ124: 105.939264 | CK124: 40.216117 | CL124: 93.034443 | CM124: 21.503715
B125: Limited | C125: =C122*C128/100 -> 0.5628584969 | D125: =D122*D128/100 -> 0.4369569409 | E125: =E122*E128/100 -> 0.9508436749 | F125: 1.774805042 | G125: 10.26439926 | H125: 4.707736433 | I125: 10.7559294 | J125: 14.32722131 | K125: 13.70265574 | L125: 15.88632302 | M125: 0.5080401242 | N125: 0.5457434551 | O125: 0.5939458323 | P125: 1.002974757 | Q125: 3.834962923 | R125: 0.1506756506 | S125: 8.818291883 | T125: 0.07487564628 | U125: 4.393799894 | V125: 0.218704285 | W125: 0.9705912288 | X125: 1.755960106 | Y125: 0.8102271143 | Z125: 3.89365524 | AA125: 0 | AB125: 4.003779325 | AC125: 0 | AD125: 4.172969886 | AE125: 6.494282555 | AF125: 0 | AG125: 1.342999337 | AH125: 0.01921375223 | AI125: 1.169564494 | AJ125: 2.264574311 | AK125: 1.031796242 | AL125: 0.9701627496 | AM125: 0.05960318358 | BB125: Limited | BC125: 96.012107 | BD125: 74.369531 | BE125: 162.079553 | BF125: 302.262579 | BG125: 1748.841562 | BH125: 113.73574 | BI125: 259.514094 | BJ125: 346.960433 | BK125: 331.014189 | BL125: 383.945754 | BM125: 74.323208 | BN125: 79.747083 | BO125: 86.859767 | BP125: 146.623956 | BQ125: 560.841108 | BR125: 7.009181 | BS125: 1121.935592 | BT125: 3.614646 | BU125: 140.674538 | BV125: 5.48729 | BW125: 25.270949 | BX125: 83.410912 | BY125: 23.756809 | BZ125: 180.70643 | CA125: 0 | CB125: 117.29142 | CC125: 0 | CD125: 85.013913 | CE125: 299.202383 | CF125: 0 | CG125: 49.642251 | CH125: 0.175324 | CI125: 24.751188 | CJ125: 87.036021 | CK125: 50.281674 | CL125: 75.666741 | CM125: 2.63807
B126: Unimproved | C126: =100-C124-C125-C127 -> 24.27077645 | D126: =100-D124-D125-D127 -> 38.08589535 | E126: =100-E124-E125-E127 -> 52.32051082 | F126: 66.86953526 | G126: 72.20546874 | H126: 59.01235303 | I126: 75.07598264 | J126: 73.61983575 | K126: 74.96813457 | L126: 44.90824211 | M126: 23.46347627 | N126: 34.44581849 | O126: 48.93816822 | P126: 58.97387856 | Q126: 75.70235652 | R126: 74.2499342 | S126: 78.23001333 | T126: 89.15719438 | U126: 53.40131606 | V126: 5.365902414 | W126: 14.28327666 | X126: 11.26258537 | Y126: 4.036394927 | Z126: 83.51752446 | AA126: 17.76623112 | AB126: 24.65976508 | AC126: 75.27677516 | AD126: 13.7913539 | AE126: 54.33838704 | AF126: 10.18681149 | AG126: 77.42553827 | AH126: 7.667819425 | AI126: 18.69476253 | AJ126: 54.03571538 | AK126: 15.02442016 | AL126: 81.82236693 | AM126: 13.93288531 | BB126: Unimproved | BC126: 4140.096309 | BD126: 6482.172292 | BE126: 8918.484952 | BF126: 11388.38222 | BG126: 12302.32004 | BH126: 1425.698685 | BI126: 1811.398615 | BJ126: 1782.841874 | BK126: 1811.000491 | BL126: 1085.35681 | BM126: 3432.565154 | BN126: 5033.415464 | BO126: 7156.810701 | BP126: 8621.336992 | BQ126: 11071.03103 | BR126: 3453.983612 | BS126: 9953.065456 | BT126: 4304.092346 | BU126: 1709.728628 | BV126: 134.630479 | BW126: 371.888747 | BX126: 534.990809 | BY126: 118.351832 | BZ126: 3876.088857 | CA126: 213.304675 | CB126: 722.412158 | CC126: 1759.370765 | CD126: 280.964635 | CE126: 2503.459736 | CF126: 160.300443 | CG126: 2861.935892 | CH126: 69.968258 | CI126: 395.632378 | CJ126: 2076.793698 | CK126: 732.172657 | CL126: 6381.642512 | CM126: 616.67724
B127: Open defecation | C127: 75.08716296 | D127: 61.21883305 | E127: 46.24427499 | F127: 29.88571443 | G127: 5.590115065 | H127: 34.35278903 | I127: 11.49402883 | J127: 4.580192499 | K127: 1.626108321 | L127: 0.3986797431 | M127: 76.0284836 | N127: 64.81734732 | O127: 50.031777 | P127: 39.1583791 | Q127: 15.38719378 | R127: 24.43558413 | S127: 3.65998416 | T127: 8.955919924 | U127: 39.52839422 | V127: 94.4153933 | W127: 84.4862689 | X127: 85.96178778 | Y127: 94.64593689 | Z127: 8.470809642 | AA127: 81.96236437 | AB127: 68.0660773 | AC127: 24.72322484 | AD127: 77.86983348 | AE127: 36.16648786 | AF127: 89.38269949 | AG127: 17.35551789 | AH127: 91.72068037 | AI127: 79.39318454 | AJ127: 40.94329598 | AK127: 83.11853585 | AL127: 16.0146272 | AM127: 85.52166774 | BB127: Open defecation | BC127: 12808.32885 | BD127: 10419.36968 | BE127: 7882.737843 | BF127: 5089.760794 | BG127: 952.44011 | BH127: 829.940235 | BI127: 277.322616 | BJ127: 110.917919 | BK127: 39.281796 | BL127: 9.63542 | BM127: 11122.5089 | BN127: 9471.472956 | BO127: 7316.742128 | BP127: 5724.527376 | BQ127: 2250.287938 | BR127: 1136.702787 | BS127: 465.653275 | BT127: 432.349926 | BU127: 1265.564825 | BV127: 2368.881997 | BW127: 2199.739838 | BX127: 4083.322333 | BY127: 2775.129844 | BZ127: 393.134388 | CA127: 984.05539 | CB127: 1994.007714 | CC127: 577.83186 | CD127: 1586.40475 | CE127: 1666.250161 | CF127: 1406.53298 | CG127: 641.524498 | CH127: 836.9441 | CI127: 1680.177234 | CJ127: 1573.603282 | CK127: 4050.54695 | CL127: 1249.042647 | CM127: 3785.2365
A128: Shared among Improved Sanitation | B128: Yes | C128: 87.66438915 | D128: 62.84694307 | E128: 66.25099435 | F128: 54.69773871 | G128: 46.22683692 | H128: 70.95459281 | I128: 80.08889489 | J128: 65.72128383 | K128: 58.54395425 | L128: 29.04631365 | M128: 100 | N128: 74.06597875 | O128: 57.66157725 | P128: 53.69984593 | Q128: 43.03893798 | R128: 11.46274262 | S128: 48.69293573 | T128: 3.968213157 | U128: 62.14455226 | V128: 100 | W128: 78.88071193 | X128: 63.26355108 | Y128: 61.48946505 | Z128: 48.59982041 | AA128: 0 | AB128: 55.04114056 | AC128: 0 | AD128: 50.0427348 | AE128: 68.39596619 | AF128: 0 | AG128: 25.73316323 | AH128: 3.142067983 | AI128: 61.16799764 | AJ128: 45.10215958 | AK128: 55.56121696 | AL128: 44.85252516 | AM128: 10.92740243 | BA128: Shared among improved sanitation facilities | BB128: Yes | BC128: N/A | BD128: N/A | BE128: N/A | BF128: N/A | BG128: N/A | BH128: N/A | BI128: N/A | BJ128: N/A | BK128: N/A | BL128: N/A | BM128: N/A | BN128: N/A | BO128: N/A | BP128: N/A | BQ128: N/A | BR128: N/A | BS128: N/A | BT128: N/A | BU128: N/A | BV128: N/A | BW128: N/A | BX128: N/A | BY128: N/A | BZ128: N/A | CA128: N/A | CB128: N/A | CC128: N/A | CD128: N/A | CE128: N/A | CF128: N/A | CG128: N/A | CH128: N/A | CI128: N/A | CJ128: N/A | CK128: N/A | CL128: N/A | CM128: N/A
B129: No | C129: 12.33561085 | D129: 37.15305693 | E129: 33.74900565 | F129: 45.30226129 | G129: 53.77316308 | H129: 29.04540719 | I129: 19.91110511 | J129: 34.27871617 | K129: 41.45604575 | L129: 70.95368635 | M129: 0 | N129: 25.93402125 | O129: 42.33842275 | P129: 46.30015407 | Q129: 56.96106202 | R129: 88.53725738 | S129: 51.30706427 | T129: 96.03178684 | U129: 37.85544774 | V129: 0 | W129: 21.11928807 | X129: 36.73644892 | Y129: 38.51053495 | Z129: 51.40017959 | AA129: 100 | AB129: 44.95885944 | AC129: 0 | AD129: 49.9572652 | AE129: 31.60403381 | AF129: 100 | AG129: 74.26683677 | AH129: 96.85793202 | AI129: 38.83200236 | AJ129: 54.89784042 | AK129: 44.43878304 | AL129: 55.14747484 | AM129: 89.07259757 | BB129: No | BC129: N/A | BD129: N/A | BE129: N/A | BF129: N/A | BG129: N/A | BH129: N/A | BI129: N/A | BJ129: N/A | BK129: N/A | BL129: N/A | BM129: N/A | BN129: N/A | BO129: N/A | BP129: N/A | BQ129: N/A | BR129: N/A | BS129: N/A | BT129: N/A | BU129: N/A | BV129: N/A | BW129: N/A | BX129: N/A | BY129: N/A | BZ129: N/A | CA129: N/A | CB129: N/A | CC129: N/A | CD129: N/A | CE129: N/A | CF129: N/A | CG129: N/A | CH129: N/A | CI129: N/A | CJ129: N/A | CK129: N/A | CL129: N/A | CM129: N/A
A130: Manually calculated ratios | B130: Improved latrines | C130: =(C158+C159)/(C158+C159+C160)*100 -> 0.7858347603 | D130: =(D158+D159)/(D158+D159+D160)*100 -> 0.6480589298 | E130: 0.8923036123 | F130: 2.855628075 | G130: 8.283793593 | H130: 5.958381613 | I130: 9.110522857 | J130: 12.8953691 | K130: 10.22051381 | L130: 14.09216018 | M130: 0.6247658418 | N130: 0.4756786305 | O130: 0.6045458021 | P130: 1.744794904 | Q130: 4.013539092 | R130: 0 | S130: 7.318363395 | T130: 0.5862517684 | U130: 0.9425955777 | V130: 3.916198523 | W130: 6.939631656 | X130: 3.463955918 | Y130: 19.59046851 | Z130: 0.7013449749 | AA130: 0 | AB130: 9.485586215 | AC130: 0 | AD130: 12.71987505 | AE130: 0.03402644199 | AF130: 0 | AG130: 5.233903173 | AH130: 3.263462936 | AI130: 4.463899998 | AJ130: 7.945842277 | AK130: 9.810062977 | AL130: 1.014426732 | AM130: 0
B131: Other
B132: Other
C133: NATIONAL wealth index quintile | H133: URBAN wealth index quintile | M133: RURAL wealth index quintile | R133: SUB-REGIONS: | BA133: Raw numbers of respondents: | BB133: Use of sanitation facilities | BC133: NATIONAL wealth index quintile | BH133: URBAN wealth index quintile | BM133: RURAL wealth index quintile | BR133: SUB-REGIONS:
A134: Percentage based on weighted population | C134: Poorest | D134: Poor | E134: Middle | F134: Rich | G134: Richest | H134: Poorest | I134: Poor | J134: Middle | K134: Rich | L134: Richest | M134: Poorest | N134: Poor | O134: Middle | P134: Rich | Q134: Richest | R134: Alaotra Mangoro | S134: Analamanga | T134: Analanjirofo | U134: Anamoroni'i Mania | V134: Androy | W134: Anosy | X134: Atsimo Andrefana | Y134: Atsimo Atsinanana | Z134: Atsinanana | AA134: Betsiboka | AB134: Boeny | AC134: Bongolava | AD134: Diana | AE134: Haute Matsiatra | AF134: Ihorombe | AG134: Itasy | AH134: Melaky | AI134: Menabe | AJ134: Sava | AK134: Sofia | AL134: Vakinankaratra | AM134: Vatovavy Fitovinany | BA134: Sanitation data, raw numbers (weighted) | BC134: Poorest | BD134: Poor | BE134: Middle | BF134: Rich | BG134: Richest | BH134: Poorest | BI134: Poor | BJ134: Middle | BK134: Rich | BL134: Richest | BM134: Poorest | BN134: Poor | BO134: Middle | BP134: Rich | BQ134: Richest | BR134: Alaotra Mangoro | BS134: Analamanga | BT134: Analanjirofo | BU134: Anamoroni'i Mania | BV134: Androy | BW134: Anosy | BX134: Atsimo Andrefana | BY134: Atsimo Atsinanana | BZ134: Atsinanana | CA134: Betsiboka | CB134: Boeny | CC134: Bongolava | CD134: Diana | CE134: Haute Matsiatra | CF134: Ihorombe | CG134: Itasy | CH134: Melaky | CI134: Menabe | CJ134: Sava | CK134: Sofia | CL134: Vakinankaratra | CM134: Vatovavy Fitovinany
A135: Sanitation type | B135: Sewer connection | C135: 0.03581156522 | D135: 0 | E135: 0 | F135: 0 | G135: 0.3762510722 | H135: 0 | I135: 0.06263278945 | J135: 0.4036061079 | K135: 0.6044887687 | L135: 1.211550568 | M135: 0.04175645717 | N135: 0 | O135: 0 | P135: 0 | Q135: 0.06110613363 | R135: 0.03494488483 | S135: 0.3565083792 | T135: 0 | U135: 0.1091534358 | V135: 0 | W135: 0 | X135: 0 | Y135: 0.2083381214 | Z135: 0.1760820193 | AA135: 0 | AB135: 0.1062234274 | AC135: 0 | AD135: 0.1150223922 | AE135: 0 | AF135: 0 | AG135: 0 | AH135: 0 | AI135: 0 | AJ135: 0 | AK135: 0 | AL135: 0 | AM135: 0 | BA135: Sanitation type | BB135: Sewer connection | BC135: N/A | BD135: N/A | BE135: N/A | BF135: N/A | BG135: N/A | BH135: N/A | BI135: N/A | BJ135: N/A | BK135: N/A | BL135: N/A | BM135: N/A | BN135: N/A | BO135: N/A | BP135: N/A | BQ135: N/A | BR135: N/A | BS135: N/A | BT135: N/A | BU135: N/A | BV135: N/A | BW135: N/A | BX135: N/A | BY135: N/A | BZ135: N/A | CA135: N/A | CB135: N/A | CC135: N/A | CD135: N/A | CE135: N/A | CF135: N/A | CG135: N/A | CH135: N/A | CI135: N/A | CJ135: N/A | CK135: N/A | CL135: N/A | CM135: N/A
B136: Septic tank connection | C136: 0 | D136: 0 | E136: 0.01807926759 | F136: 0.2966104847 | G136: 13.41432581 | H136: 0.9293174752 | I136: 3.231114314 | J136: 8.376053445 | K136: 11.97138557 | L136: 43.56987322 | M136: 0 | N136: 0 | O136: 0 | P136: 0 | Q136: 4.743201455 | R136: 1.279536786 | S136: 9.811788291 | T136: 1.362310205 | U136: 1.812672402 | V136: 0 | W136: 0.180646016 | X136: 1.009277045 | Y136: 0.1385903649 | Z136: 7.130796489 | AA136: 0.2714045081 | AB136: 4.616141306 | AC136: 0 | AD136: 6.246421709 | AE136: 1.197084478 | AF136: 0.4304890156 | AG136: 0.5270852656 | AH136: 0.3746681684 | AI136: 1.047677908 | AJ136: 0.3692747676 | AK136: 0.2246111779 | AL136: 1.324471586 | AM136: 0.4207973645 | BB136: Septic tank connection | BC136: N/A | BD136: N/A | BE136: N/A | BF136: N/A | BG136: N/A | BH136: N/A | BI136: N/A | BJ136: N/A | BK136: N/A | BL136: N/A | BM136: N/A | BN136: N/A | BO136: N/A | BP136: N/A | BQ136: N/A | BR136: N/A | BS136: N/A | BT136: N/A | BU136: N/A | BV136: N/A | BW136: N/A | BX136: N/A | BY136: N/A | BZ136: N/A | CA136: N/A | CB136: N/A | CC136: N/A | CD136: N/A | CE136: N/A | CF136: N/A | CG136: N/A | CH136: N/A | CI136: N/A | CJ136: N/A | CK136: N/A | CL136: N/A | CM136: N/A
B137: Improved latrines | C137: 0.6062490279 | D137: 0.695271591 | E137: 1.417134927 | F137: 2.948139818 | G137: 8.413839313 | H137: 5.705540462 | I137: 10.13624143 | J137: 13.0203122 | K137: 10.82988277 | L137: 9.911654359 | M137: 0.4662836671 | N137: 0.7368341907 | O137: 1.030054779 | P137: 1.867742337 | Q137: 4.106142117 | R137: 0 | S137: 7.941705841 | T137: 0.5245754868 | U137: 5.148463889 | V137: 0.218704285 | W137: 1.049808432 | X137: 1.766349798 | Y137: 0.9707396926 | Z137: 0.7047873914 | AA137: 0 | AB137: 2.551792896 | AC137: 0 | AD137: 1.977368521 | AE137: 8.298040625 | AF137: 0 | AG137: 4.691858572 | AH137: 0.2368320388 | AI137: 0.864375027 | AJ137: 4.651713877 | AK137: 1.632432816 | AL137: 0.8385342785 | AM137: 0.1246495885 | BB137: Improved latrines | BC137: N/A | BD137: N/A | BE137: N/A | BF137: N/A | BG137: N/A | BH137: N/A | BI137: N/A | BJ137: N/A | BK137: N/A | BL137: N/A | BM137: N/A | BN137: N/A | BO137: N/A | BP137: N/A | BQ137: N/A | BR137: N/A | BS137: N/A | BT137: N/A | BU137: N/A | BV137: N/A | BW137: N/A | BX137: N/A | BY137: N/A | BZ137: N/A | CA137: N/A | CB137: N/A | CC137: N/A | CD137: N/A | CE137: N/A | CF137: N/A | CG137: N/A | CH137: N/A | CI137: N/A | CJ137: N/A | CK137: N/A | CL137: N/A | CM137: N/A
B138: Unimproved facilities | C138: 24.27077645 | D138: 38.08589535 | E138: 52.32051082 | F138: 66.86953526 | G138: 72.20546874 | H138: 59.01235303 | I138: 75.07598264 | J138: 73.61983575 | K138: 74.96813457 | L138: 44.90824211 | M138: 23.46347627 | N138: 34.44581849 | O138: 48.93816822 | P138: 58.97387856 | Q138: 75.70235652 | R138: 74.2499342 | S138: 78.23001333 | T138: 89.15719438 | U138: 53.40131606 | V138: 5.365902414 | W138: 14.28327666 | X138: 11.26258537 | Y138: 4.036394927 | Z138: 83.51752446 | AA138: 17.76623112 | AB138: 24.65976508 | AC138: 75.27677516 | AD138: 13.7913539 | AE138: 54.33838704 | AF138: 10.18681149 | AG138: 77.42553827 | AH138: 7.667819425 | AI138: 18.69476253 | AJ138: 54.03571538 | AK138: 15.02442016 | AL138: 81.82236693 | AM138: 13.93288531 | BB138: Unimproved facilities | BC138: N/A | BD138: N/A | BE138: N/A | BF138: N/A | BG138: N/A | BH138: N/A | BI138: N/A | BJ138: N/A | BK138: N/A | BL138: N/A | BM138: N/A | BN138: N/A | BO138: N/A | BP138: N/A | BQ138: N/A | BR138: N/A | BS138: N/A | BT138: N/A | BU138: N/A | BV138: N/A | BW138: N/A | BX138: N/A | BY138: N/A | BZ138: N/A | CA138: N/A | CB138: N/A | CC138: N/A | CD138: N/A | CE138: N/A | CF138: N/A | CG138: N/A | CH138: N/A | CI138: N/A | CJ138: N/A | CK138: N/A | CL138: N/A | CM138: N/A
B139: Open defecation | C139: 75.08716296 | D139: 61.21883305 | E139: 46.24427499 | F139: 29.88571443 | G139: 5.590115065 | H139: 34.35278903 | I139: 11.49402883 | J139: 4.580192499 | K139: 1.626108321 | L139: 0.3986797431 | M139: 76.0284836 | N139: 64.81734732 | O139: 50.031777 | P139: 39.1583791 | Q139: 15.38719378 | R139: 24.43558413 | S139: 3.65998416 | T139: 8.955919924 | U139: 39.52839422 | V139: 94.4153933 | W139: 84.4862689 | X139: 85.96178778 | Y139: 94.64593689 | Z139: 8.470809642 | AA139: 81.96236437 | AB139: 68.0660773 | AC139: 24.72322484 | AD139: 77.86983348 | AE139: 36.16648786 | AF139: 89.38269949 | AG139: 17.35551789 | AH139: 91.72068037 | AI139: 79.39318454 | AJ139: 40.94329598 | AK139: 83.11853585 | AL139: 16.0146272 | AM139: 85.52166774 | BB139: Open defecation | BC139: N/A | BD139: N/A | BE139: N/A | BF139: N/A | BG139: N/A | BH139: N/A | BI139: N/A | BJ139: N/A | BK139: N/A | BL139: N/A | BM139: N/A | BN139: N/A | BO139: N/A | BP139: N/A | BQ139: N/A | BR139: N/A | BS139: N/A | BT139: N/A | BU139: N/A | BV139: N/A | BW139: N/A | BX139: N/A | BY139: N/A | BZ139: N/A | CA139: N/A | CB139: N/A | CC139: N/A | CD139: N/A | CE139: N/A | CF139: N/A | CG139: N/A | CH139: N/A | CI139: N/A | CJ139: N/A | CK139: N/A | CL139: N/A | CM139: N/A
A140: Septic tank emptying practices | B140: Not emptied/treated and disposed in situ | C140: N/A | D140: N/A | E140: N/A | F140: N/A | G140: N/A | H140: N/A | I140: N/A | J140: N/A | K140: N/A | L140: N/A | M140: N/A | N140: N/A | O140: N/A | P140: N/A | Q140: N/A | R140: N/A | S140: N/A | T140: N/A | U140: N/A | V140: N/A | W140: N/A | X140: N/A | Y140: N/A | Z140: N/A | AA140: N/A | AB140: N/A | AC140: N/A | AD140: N/A | AE140: N/A | AF140: N/A | AG140: N/A | AH140: N/A | AI140: N/A | AJ140: N/A | AK140: N/A | AL140: N/A | AM140: N/A | BA140: Septic tank emptying practices | BB140: Not emptied/treated and disposed in situ | BC140: N/A | BD140: N/A | BE140: N/A | BF140: N/A | BG140: N/A | BH140: N/A | BI140: N/A | BJ140: N/A | BK140: N/A | BL140: N/A | BM140: N/A | BN140: N/A | BO140: N/A | BP140: N/A | BQ140: N/A | BR140: N/A | BS140: N/A | BT140: N/A | BU140: N/A | BV140: N/A | BW140: N/A | BX140: N/A | BY140: N/A | BZ140: N/A | CA140: N/A | CB140: N/A | CC140: N/A | CD140: N/A | CE140: N/A | CF140: N/A | CG140: N/A | CH140: N/A | CI140: N/A | CJ140: N/A | CK140: N/A | CL140: N/A | CM140: N/A
B141: Emptied and buried on site | C141: N/A | D141: N/A | E141: N/A | F141: N/A | G141: N/A | H141: N/A | I141: N/A | J141: N/A | K141: N/A | L141: N/A | M141: N/A | N141: N/A | O141: N/A | P141: N/A | Q141: N/A | R141: N/A | S141: N/A | T141: N/A | U141: N/A | V141: N/A | W141: N/A | X141: N/A | Y141: N/A | Z141: N/A | AA141: N/A | AB141: N/A | AC141: N/A | AD141: N/A | AE141: N/A | AF141: N/A | AG141: N/A | AH141: N/A | AI141: N/A | AJ141: N/A | AK141: N/A | AL141: N/A | AM141: N/A | BB141: Emptied and buried on site | BC141: N/A | BD141: N/A | BE141: N/A | BF141: N/A | BG141: N/A | BH141: N/A | BI141: N/A | BJ141: N/A | BK141: N/A | BL141: N/A | BM141: N/A | BN141: N/A | BO141: N/A | BP141: N/A | BQ141: N/A | BR141: N/A | BS141: N/A | BT141: N/A | BU141: N/A | BV141: N/A | BW141: N/A | BX141: N/A | BY141: N/A | BZ141: N/A | CA141: N/A | CB141: N/A | CC141: N/A | CD141: N/A | CE141: N/A | CF141: N/A | CG141: N/A | CH141: N/A | CI141: N/A | CJ141: N/A | CK141: N/A | CL141: N/A | CM141: N/A
B142: Emptied and discharged locally | C142: N/A | D142: N/A | E142: N/A | F142: N/A | G142: N/A | H142: N/A | I142: N/A | J142: N/A | K142: N/A | L142: N/A | M142: N/A | N142: N/A | O142: N/A | P142: N/A | Q142: N/A | R142: N/A | S142: N/A | T142: N/A | U142: N/A | V142: N/A | W142: N/A | X142: N/A | Y142: N/A | Z142: N/A | AA142: N/A | AB142: N/A | AC142: N/A | AD142: N/A | AE142: N/A | AF142: N/A | AG142: N/A | AH142: N/A | AI142: N/A | AJ142: N/A | AK142: N/A | AL142: N/A | AM142: N/A | BB142: Emptied and discharged locally | BC142: N/A | BD142: N/A | BE142: N/A | BF142: N/A | BG142: N/A | BH142: N/A | BI142: N/A | BJ142: N/A | BK142: N/A | BL142: N/A | BM142: N/A | BN142: N/A | BO142: N/A | BP142: N/A | BQ142: N/A | BR142: N/A | BS142: N/A | BT142: N/A | BU142: N/A | BV142: N/A | BW142: N/A | BX142: N/A | BY142: N/A | BZ142: N/A | CA142: N/A | CB142: N/A | CC142: N/A | CD142: N/A | CE142: N/A | CF142: N/A | CG142: N/A | CH142: N/A | CI142: N/A | CJ142: N/A | CK142: N/A | CL142: N/A | CM142: N/A
B143: Emptied and removed offsite | C143: N/A | D143: N/A | E143: N/A | F143: N/A | G143: N/A | H143: N/A | I143: N/A | J143: N/A | K143: N/A | L143: N/A | M143: N/A | N143: N/A | O143: N/A | P143: N/A | Q143: N/A | R143: N/A | S143: N/A | T143: N/A | U143: N/A | V143: N/A | W143: N/A | X143: N/A | Y143: N/A | Z143: N/A | AA143: N/A | AB143: N/A | AC143: N/A | AD143: N/A | AE143: N/A | AF143: N/A | AG143: N/A | AH143: N/A | AI143: N/A | AJ143: N/A | AK143: N/A | AL143: N/A | AM143: N/A | BB143: Emptied and removed offsite | BC143: N/A | BD143: N/A | BE143: N/A | BF143: N/A | BG143: N/A | BH143: N/A | BI143: N/A | BJ143: N/A | BK143: N/A | BL143: N/A | BM143: N/A | BN143: N/A | BO143: N/A | BP143: N/A | BQ143: N/A | BR143: N/A | BS143: N/A | BT143: N/A | BU143: N/A | BV143: N/A | BW143: N/A | BX143: N/A | BY143: N/A | BZ143: N/A | CA143: N/A | CB143: N/A | CC143: N/A | CD143: N/A | CE143: N/A | CF143: N/A | CG143: N/A | CH143: N/A | CI143: N/A | CJ143: N/A | CK143: N/A | CL143: N/A | CM143: N/A
A144: Latrine emptying practices | B144: Not emptied/treated and disposed in situ | C144: N/A | D144: N/A | E144: N/A | F144: N/A | G144: N/A | H144: N/A | I144: N/A | J144: N/A | K144: N/A | L144: N/A | M144: N/A | N144: N/A | O144: N/A | P144: N/A | Q144: N/A | R144: N/A | S144: N/A | T144: N/A | U144: N/A | V144: N/A | W144: N/A | X144: N/A | Y144: N/A | Z144: N/A | AA144: N/A | AB144: N/A | AC144: N/A | AD144: N/A | AE144: N/A | AF144: N/A | AG144: N/A | AH144: N/A | AI144: N/A | AJ144: N/A | AK144: N/A | AL144: N/A | AM144: N/A | BA144: Latrine emptying practices | BB144: Not emptied/treated and disposed in situ | BC144: N/A | BD144: N/A | BE144: N/A | BF144: N/A | BG144: N/A | BH144: N/A | BI144: N/A | BJ144: N/A | BK144: N/A | BL144: N/A | BM144: N/A | BN144: N/A | BO144: N/A | BP144: N/A | BQ144: N/A | BR144: N/A | BS144: N/A | BT144: N/A | BU144: N/A | BV144: N/A | BW144: N/A | BX144: N/A | BY144: N/A | BZ144: N/A | CA144: N/A | CB144: N/A | CC144: N/A | CD144: N/A | CE144: N/A | CF144: N/A | CG144: N/A | CH144: N/A | CI144: N/A | CJ144: N/A | CK144: N/A | CL144: N/A | CM144: N/A
B145: Emptied and buried on site | C145: N/A | D145: N/A | E145: N/A | F145: N/A | G145: N/A | H145: N/A | I145: N/A | J145: N/A | K145: N/A | L145: N/A | M145: N/A | N145: N/A | O145: N/A | P145: N/A | Q145: N/A | R145: N/A | S145: N/A | T145: N/A | U145: N/A | V145: N/A | W145: N/A | X145: N/A | Y145: N/A | Z145: N/A | AA145: N/A | AB145: N/A | AC145: N/A | AD145: N/A | AE145: N/A | AF145: N/A | AG145: N/A | AH145: N/A | AI145: N/A | AJ145: N/A | AK145: N/A | AL145: N/A | AM145: N/A | BB145: Emptied and buried on site | BC145: N/A | BD145: N/A | BE145: N/A | BF145: N/A | BG145: N/A | BH145: N/A | BI145: N/A | BJ145: N/A | BK145: N/A | BL145: N/A | BM145: N/A | BN145: N/A | BO145: N/A | BP145: N/A | BQ145: N/A | BR145: N/A | BS145: N/A | BT145: N/A | BU145: N/A | BV145: N/A | BW145: N/A | BX145: N/A | BY145: N/A | BZ145: N/A | CA145: N/A | CB145: N/A | CC145: N/A | CD145: N/A | CE145: N/A | CF145: N/A | CG145: N/A | CH145: N/A | CI145: N/A | CJ145: N/A | CK145: N/A | CL145: N/A | CM145: N/A
B146: Emptied and discharged locally | C146: N/A | D146: N/A | E146: N/A | F146: N/A | G146: N/A | H146: N/A | I146: N/A | J146: N/A | K146: N/A | L146: N/A | M146: N/A | N146: N/A | O146: N/A | P146: N/A | Q146: N/A | R146: N/A | S146: N/A | T146: N/A | U146: N/A | V146: N/A | W146: N/A | X146: N/A | Y146: N/A | Z146: N/A | AA146: N/A | AB146: N/A | AC146: N/A | AD146: N/A | AE146: N/A | AF146: N/A | AG146: N/A | AH146: N/A | AI146: N/A | AJ146: N/A | AK146: N/A | AL146: N/A | AM146: N/A | BB146: Emptied and discharged locally | BC146: N/A | BD146: N/A | BE146: N/A | BF146: N/A | BG146: N/A | BH146: N/A | BI146: N/A | BJ146: N/A | BK146: N/A | BL146: N/A | BM146: N/A | BN146: N/A | BO146: N/A | BP146: N/A | BQ146: N/A | BR146: N/A | BS146: N/A | BT146: N/A | BU146: N/A | BV146: N/A | BW146: N/A | BX146: N/A | BY146: N/A | BZ146: N/A | CA146: N/A | CB146: N/A | CC146: N/A | CD146: N/A | CE146: N/A | CF146: N/A | CG146: N/A | CH146: N/A | CI146: N/A | CJ146: N/A | CK146: N/A | CL146: N/A | CM146: N/A
B147: Emptied and removed offsite | C147: N/A | D147: N/A | E147: N/A | F147: N/A | G147: N/A | H147: N/A | I147: N/A | J147: N/A | K147: N/A | L147: N/A | M147: N/A | N147: N/A | O147: N/A | P147: N/A | Q147: N/A | R147: N/A | S147: N/A | T147: N/A | U147: N/A | V147: N/A | W147: N/A | X147: N/A | Y147: N/A | Z147: N/A | AA147: N/A | AB147: N/A | AC147: N/A | AD147: N/A | AE147: N/A | AF147: N/A | AG147: N/A | AH147: N/A | AI147: N/A | AJ147: N/A | AK147: N/A | AL147: N/A | AM147: N/A | BB147: Emptied and removed offsite | BC147: N/A | BD147: N/A | BE147: N/A | BF147: N/A | BG147: N/A | BH147: N/A | BI147: N/A | BJ147: N/A | BK147: N/A | BL147: N/A | BM147: N/A | BN147: N/A | BO147: N/A | BP147: N/A | BQ147: N/A | BR147: N/A | BS147: N/A | BT147: N/A | BU147: N/A | BV147: N/A | BW147: N/A | BX147: N/A | BY147: N/A | BZ147: N/A | CA147: N/A | CB147: N/A | CC147: N/A | CD147: N/A | CE147: N/A | CF147: N/A | CG147: N/A | CH147: N/A | CI147: N/A | CJ147: N/A | CK147: N/A | CL147: N/A | CM147: N/A
A148: Shared among improved sanitation facilities | B148: Yes | C148: 0.5628584969 | D148: 0.4369569409 | E148: 0.9508436749 | F148: 1.774805042 | G148: 10.26439926 | H148: 4.707736433 | I148: 10.7559294 | J148: 14.32722131 | K148: 13.70265574 | L148: 15.88632302 | M148: 0.5080401242 | N148: 0.5457434551 | O148: 0.5939458323 | P148: 1.002974757 | Q148: 3.834962923 | R148: 0.1506756506 | S148: 8.818291883 | T148: 0.07487564628 | U148: 4.393799894 | V148: 0.218704285 | W148: 0.9705912288 | X148: 1.755960106 | Y148: 0.8102271143 | Z148: 3.89365524 | AA148: 0 | AB148: 4.003779325 | AC148: 0 | AD148: 4.172969886 | AE148: 6.494282555 | AF148: 0 | AG148: 1.342999337 | AH148: 0.01921375223 | AI148: 1.169564494 | AJ148: 2.264574311 | AK148: 1.031796242 | AL148: 0.9701627496 | AM148: 0.05960318358 | BA148: Shared among improved sanitation facilities | BB148: Yes | BC148: N/A | BD148: N/A | BE148: N/A | BF148: N/A | BG148: N/A | BH148: N/A | BI148: N/A | BJ148: N/A | BK148: N/A | BL148: N/A | BM148: N/A | BN148: N/A | BO148: N/A | BP148: N/A | BQ148: N/A | BR148: N/A | BS148: N/A | BT148: N/A | BU148: N/A | BV148: N/A | BW148: N/A | BX148: N/A | BY148: N/A | BZ148: N/A | CA148: N/A | CB148: N/A | CC148: N/A | CD148: N/A | CE148: N/A | CF148: N/A | CG148: N/A | CH148: N/A | CI148: N/A | CJ148: N/A | CK148: N/A | CL148: N/A | CM148: N/A
B149: No | C149: 0.07920209618 | D149: 0.25831465 | E149: 0.4843705196 | F149: 1.46994526 | G149: 11.94001693 | H149: 1.927121505 | I149: 2.674059132 | J149: 7.47275044 | K149: 9.703101376 | L149: 38.80675512 | M149: 0 | N149: 0.1910907356 | O149: 0.436108947 | P149: 0.8647675795 | Q149: 5.075486783 | R149: 1.16380602 | S149: 9.291710628 | T149: 1.812010045 | U149: 2.676489833 | V149: 0 | W149: 0.2598632195 | X149: 1.019666737 | Y149: 0.5074410646 | Z149: 4.11801066 | AA149: 0.2714045081 | AB149: 3.270378304 | AC149: 0 | AD149: 4.165842736 | AE149: 3.000842548 | AF149: 0.4304890156 | AG149: 3.875944501 | AH149: 0.592286455 | AI149: 0.7424884407 | AJ149: 2.756414333 | AK149: 0.8252477514 | AL149: 1.192843115 | AM149: 0.4858437694 | BB149: No | BC149: N/A | BD149: N/A | BE149: N/A | BF149: N/A | BG149: N/A | BH149: N/A | BI149: N/A | BJ149: N/A | BK149: N/A | BL149: N/A | BM149: N/A | BN149: N/A | BO149: N/A | BP149: N/A | BQ149: N/A | BR149: N/A | BS149: N/A | BT149: N/A | BU149: N/A | BV149: N/A | BW149: N/A | BX149: N/A | BY149: N/A | BZ149: N/A | CA149: N/A | CB149: N/A | CC149: N/A | CD149: N/A | CE149: N/A | CF149: N/A | CG149: N/A | CH149: N/A | CI149: N/A | CJ149: N/A | CK149: N/A | CL149: N/A | CM149: N/A
B150: DK/missing | C150: 99.35793941 | D150: 99.30472841 | E150: 98.56478581 | F150: 96.7552497 | G150: 77.79558381 | H150: 93.36514206 | I150: 86.57001147 | J150: 78.20002825 | K150: 76.59424289 | L150: 45.30692185 | M150: 99.49195988 | N150: 99.26316581 | O150: 98.96994522 | P150: 98.13225766 | Q150: 91.08955029 | R150: 98.68551833 | S150: 81.88999749 | T150: 98.11311431 | U150: 92.92971027 | V150: 99.78129571 | W150: 98.76954555 | X150: 97.22437316 | Y150: 98.68233182 | Z150: 91.9883341 | AA150: 99.72859549 | AB150: 92.72584237 | AC150: 100 | AD150: 91.66118738 | AE150: 90.5048749 | AF150: 99.56951098 | AG150: 94.78105616 | AH150: 99.38849979 | AI150: 98.08794707 | AJ150: 94.97901136 | AK150: 98.14295601 | AL150: 97.83699414 | AM150: 99.45455305 | BB150: DK/missing | BC150: N/A | BD150: N/A | BE150: N/A | BF150: N/A | BG150: N/A | BH150: N/A | BI150: N/A | BJ150: N/A | BK150: N/A | BL150: N/A | BM150: N/A | BN150: N/A | BO150: N/A | BP150: N/A | BQ150: N/A | BR150: N/A | BS150: N/A | BT150: N/A | BU150: N/A | BV150: N/A | BW150: N/A | BX150: N/A | BY150: N/A | BZ150: N/A | CA150: N/A | CB150: N/A | CC150: N/A | CD150: N/A | CE150: N/A | CF150: N/A | CG150: N/A | CH150: N/A | CI150: N/A | CJ150: N/A | CK150: N/A | CL150: N/A | CM150: N/A
A151: Shared among all sanitation facilities | B151: Yes | C151: 56.67770899 | D151: 58.35651081 | E151: 58.44957587 | F151: 56.93731661 | G151: 62.7298246 | H151: 68.77392895 | I151: 77.35089506 | J151: 77.4660691 | K151: 71.74447672 | L151: 43.76487283 | M151: 56.33516109 | N151: 58.02237016 | O151: 59.82198028 | P151: 53.71823823 | Q151: 57.43036479 | R151: 60.6836202 | S151: 65.74359561 | T151: 45.21393954 | U151: 59.26461905 | V151: 60.80658978 | W151: 72.76388689 | X151: 69.95242879 | Y151: 51.75888502 | Z151: 52.31056829 | AA151: 61.09168045 | AB151: 66.99206148 | AC151: 72.86324318 | AD151: 70.48586607 | AE151: 69.24734008 | AF151: 66.07549759 | AG151: 51.70365912 | AH151: 36.68208288 | AI151: 63.97835544 | AJ151: 56.8148107 | AK151: 69.3731522 | AL151: 53.04344844 | AM151: 47.41708628 | BA151: Shared among all sanitation facilities | BB151: Yes | BC151: N/A | BD151: N/A | BE151: N/A | BF151: N/A | BG151: N/A | BH151: N/A | BI151: N/A | BJ151: N/A | BK151: N/A | BL151: N/A | BM151: N/A | BN151: N/A | BO151: N/A | BP151: N/A | BQ151: N/A | BR151: N/A | BS151: N/A | BT151: N/A | BU151: N/A | BV151: N/A | BW151: N/A | BX151: N/A | BY151: N/A | BZ151: N/A | CA151: N/A | CB151: N/A | CC151: N/A | CD151: N/A | CE151: N/A | CF151: N/A | CG151: N/A | CH151: N/A | CI151: N/A | CJ151: N/A | CK151: N/A | CL151: N/A | CM151: N/A
B152: No | C152: 43.32229101 | D152: 41.64348919 | E152: 41.52594961 | F152: 42.89713661 | G152: 37.25378796 | H152: 31.22607105 | I152: 22.64910494 | J152: 22.41985628 | K152: 28.25552328 | L152: 56.23512717 | M152: 43.66483891 | N152: 41.97762984 | O152: 40.17801972 | P152: 46.03429595 | Q152: 42.56963521 | R152: 39.3163798 | S152: 34.2348986 | T152: 54.78606046 | U152: 40.73538095 | V152: 39.19341022 | W152: 27.23611311 | X152: 30.04757121 | Y152: 48.24111498 | Z152: 47.68943171 | AA152: 38.90831955 | AB152: 33.00793852 | AC152: 27.13675682 | AD152: 29.51413393 | AE152: 30.75265992 | AF152: 33.92450241 | AG152: 48.29634088 | AH152: 63.31791712 | AI152: 35.50739342 | AJ152: 42.31426719 | AK152: 30.6268478 | AL152: 46.95655156 | AM152: 52.58291372 | BB152: No | BC152: N/A | BD152: N/A | BE152: N/A | BF152: N/A | BG152: N/A | BH152: N/A | BI152: N/A | BJ152: N/A | BK152: N/A | BL152: N/A | BM152: N/A | BN152: N/A | BO152: N/A | BP152: N/A | BQ152: N/A | BR152: N/A | BS152: N/A | BT152: N/A | BU152: N/A | BV152: N/A | BW152: N/A | BX152: N/A | BY152: N/A | BZ152: N/A | CA152: N/A | CB152: N/A | CC152: N/A | CD152: N/A | CE152: N/A | CF152: N/A | CG152: N/A | CH152: N/A | CI152: N/A | CJ152: N/A | CK152: N/A | CL152: N/A | CM152: N/A
A153: Type of toilet facility | B153: Flush to piped sewer system | C153: 0.03583749774 | D153: 0 | E153: 0 | F153: 0 | G153: 0.3763515232 | H153: 0 | I153: 0.0626748305 | J153: 0.4036061079 | K153: 0.6044887687 | L153: 1.213020708 | M153: 0.0417741693 | N153: 0 | O153: 0 | P153: 0 | Q153: 0.06111134911 | R153: 0.03495292076 | S153: 0.3576994808 | T153: 0 | U153: 0.1091534358 | V153: 0 | W153: 0 | X153: 0 | Y153: 0.2083381214 | Z153: 0.1760820193 | AA153: 0 | AB153: 0.1062234274 | AC153: 0 | AD153: 0.1152797192 | AE153: 0 | AF153: 0 | AG153: 0 | AH153: 0 | AI153: 0 | AJ153: 0 | AK153: 0 | AL153: 0 | AM153: 0 | BA153: Type of toilet facility | BB153: Flush to piped sewer system | BC153: 6.108718 | BD153: 0 | BE153: 0 | BF153: 0 | BG153: 64.105409 | BH153: 0 | BI153: 1.511175 | BJ153: 9.774076 | BK153: 14.602597 | BL153: 29.281143 | BM153: 6.108718 | BN153: 0 | BO153: 0 | BP153: 0 | BQ153: 8.936418 | BR153: 1.625578 | BS153: 45.357927 | BT153: 0 | BU153: 3.494722 | BV153: 0 | BW153: 0 | BX153: 0 | BY153: 6.108718 | BZ153: 8.172052 | CA153: 0 | CB153: 3.111834 | CC153: 0 | CD153: 2.343296 | CE153: 0 | CF153: 0 | CG153: 0 | CH153: 0 | CI153: 0 | CJ153: 0 | CK153: 0 | CL153: 0 | CM153: 0
B154: Flush to septic tank | C154: 0 | D154: 0 | E154: 0.01810681264 | F154: 0.2967377306 | G154: 13.41790714 | H154: 0.9294997731 | I154: 3.233283137 | J154: 8.376053445 | K154: 11.97138557 | L154: 43.62274253 | M154: 0 | N154: 0 | O154: 0 | P154: 0 | Q154: 4.743606292 | R154: 1.279831028 | S154: 9.844569672 | T154: 1.362593525 | U154: 1.812672402 | V154: 0 | W154: 0.1810177531 | X154: 1.009277045 | Y154: 0.1385903649 | Z154: 7.130796489 | AA154: 0.2714045081 | AB154: 4.616141306 | AC154: 0 | AD154: 6.260396147 | AE154: 1.197084478 | AF154: 0.4304890156 | AG154: 0.5270852656 | AH154: 0.3763691541 | AI154: 1.053288756 | AJ154: 0.3692747676 | AK154: 0.2246111779 | AL154: 1.324471586 | AM154: 0.4207973645 | BB154: Flush to septic tank | BC154: 0 | BD154: 0 | BE154: 3.081768 | BF154: 50.514985 | BG154: 2285.523965 | BH154: 22.451684 | BI154: 77.958833 | BJ154: 202.841784 | BK154: 289.192005 | BL154: 1053.010681 | BM154: 0 | BN154: 0 | BO154: 0 | BP154: 0 | BQ154: 693.665731 | BR154: 59.521926 | BS154: 1248.336373 | BT154: 65.765965 | BU154: 58.035609 | BV154: 0 | BW154: 4.703418 | BX154: 47.942273 | BY154: 4.063632 | BZ154: 330.943727 | CA154: 3.258533 | CB154: 135.230672 | CC154: 0 | CD154: 127.255352 | CE154: 55.15167 | CF154: 6.774208 | CG154: 19.483032 | CH154: 3.418818 | CI154: 22.171734 | CJ154: 14.192604 | CK154: 10.945791 | CL154: 103.300656 | CM154: 18.624725
B155: Flush to pit latrine | C155: 0.4154740507 | D155: 0.4483769137 | E155: 0.881791872 | F155: 0.9987523844 | G155: 1.305271127 | H155: 1.900648031 | I155: 2.56111992 | J155: 1.671584878 | K155: 0.894246988 | L155: 1.272870504 | M155: 0.3194794695 | N155: 0.5732891433 | O155: 0.6873749687 | P155: 0.8229514719 | Q155: 0.9442891066 | R155: 0 | S155: 1.00872494 | T155: 0 | U155: 4.640315663 | V155: 0 | W155: 0 | X155: 0 | Y155: 0 | Z155: 0.2104238061 | AA155: 0 | AB155: 0 | AC155: 0 | AD155: 0 | AE155: 8.279585376 | AF155: 0 | AG155: 0.4156692599 | AH155: 0 | AI155: 0.042479134 | AJ155: 0 | AK155: 0 | AL155: 0 | AM155: 0.1246495885 | BB155: Flush to pit latrine | BC155: 70.820062 | BD155: 76.219693 | BE155: 150.080416 | BF155: 170.022065 | BG155: 222.331874 | BH155: 45.90937 | BI155: 61.752068 | BJ155: 40.480551 | BK155: 21.602268 | BL155: 30.725859 | BM155: 46.718104 | BN155: 83.71252 | BO155: 100.246213 | BP155: 120.242132 | BQ155: 138.085025 | BR155: 0 | BS155: 127.910927 | BT155: 0 | BU155: 148.567135 | BV155: 0 | BW155: 0 | BX155: 0 | BY155: 0 | BZ155: 9.765871 | CA155: 0 | CB155: 0 | CC155: 0 | CD155: 0 | CE155: 381.454249 | CF155: 0 | CG155: 15.364682 | CH155: 0 | CI155: 0.894186 | CJ155: 0 | CK155: 0 | CL155: 0 | CM155: 5.51706
B156: Flush to somewhere else | C156: 0 | D156: 0 | E156: 0 | F156: 0.05144731216 | G156: 0.02616042933 | H156: 0 | I156: 0 | J156: 0.1508770226 | K156: 0.03320942575 | L156: 0 | M156: 0 | N156: 0 | O156: 0 | P156: 0.05994151368 | Q156: 0 | R156: 0 | S156: 0 | T156: 0.1814576455 | U156: 0 | V156: 0 | W156: 0 | X156: 0 | Y156: 0 | Z156: 0.07872723074 | AA156: 0 | AB156: 0 | AC156: 0 | AD156: 0 | AE156: 0 | AF156: 0 | AG156: 0 | AH156: 0 | AI156: 0 | AJ156: 0 | AK156: 0.0164621837 | AL156: 0 | AM156: 0 | BB156: Flush to somewhere else | BC156: 0 | BD156: 0 | BE156: 0 | BF156: 8.758105 | BG156: 4.456007 | BH156: 0 | BI156: 0 | BJ156: 3.653769 | BK156: 0.802238 | BL156: 0 | BM156: 0 | BN156: 0 | BO156: 0 | BP156: 8.758105 | BQ156: 0 | BR156: 0 | BS156: 0 | BT156: 8.758105 | BU156: 0 | BV156: 0 | BW156: 0 | BX156: 0 | BY156: 0 | BZ156: 3.653769 | CA156: 0 | CB156: 0 | CC156: 0 | CD156: 0 | CE156: 0 | CF156: 0 | CG156: 0 | CH156: 0 | CI156: 0 | CJ156: 0 | CK156: 0.802238 | CL156: 0 | CM156: 0
B157: Ventilated improved pit latrine (LAA) | C157: 0 | D157: 0 | E157: 0.0255074102 | F157: 0 | G157: 0.9022003128 | H157: 0.1797316937 | I157: 0.9440109576 | J157: 1.553325615 | K157: 2.154805651 | L157: 1.708589673 | M157: 0 | N157: 0 | O157: 0 | P157: 0 | Q157: 0 | R157: 0 | S157: 0.7358487933 | T157: 0 | U157: 0 | V157: 0 | W157: 0 | X157: 1.362219925 | Y157: 0 | Z157: 0 | AA157: 0 | AB157: 0 | AC157: 0 | AD157: 0 | AE157: 0 | AF157: 0 | AG157: 0 | AH157: 0 | AI157: 0 | AJ157: 0 | AK157: 0 | AL157: 0 | AM157: 0 | BB157: Ventilated improved pit latrine (LAA) | BC157: 0 | BD157: 0 | BE157: 4.341345 | BF157: 0 | BG157: 153.675265 | BH157: 4.341345 | BI157: 22.761382 | BJ157: 37.616682 | BK157: 52.053504 | BL157: 41.243697 | BM157: 0 | BN157: 0 | BO157: 0 | BP157: 0 | BQ157: 0 | BR157: 0 | BS157: 93.308986 | BT157: 0 | BU157: 0 | BV157: 0 | BW157: 0 | BX157: 64.707624 | BY157: 0 | BZ157: 0 | CA157: 0 | CB157: 0 | CC157: 0 | CD157: 0 | CE157: 0 | CF157: 0 | CG157: 0 | CH157: 0 | CI157: 0 | CJ157: 0 | CK157: 0 | CL157: 0 | CM157: 0
B158: Pit latrine with washable slab | C158: 0 | D158: 0.01086778952 | E158: 0.006959837984 | F158: 0.1076621317 | G158: 1.924828417 | H158: 0.3981707752 | I158: 1.176002164 | J158: 2.830091359 | K158: 3.265546106 | L158: 3.043861152 | M158: 0 | N158: 0 | O158: 0 | P158: 0.07071341113 | Q158: 0.5472218561 | R158: 0 | S158: 1.718598911 | T158: 0.07026903478 | U158: 0.4883021471 | V158: 0 | W158: 0.3777903485 | X158: 0.2431201761 | Y158: 0 | Z158: 0.2032987567 | AA158: 0 | AB158: 0.6694765036 | AC158: 0 | AD158: 0.2620620996 | AE158: 0 | AF158: 0 | AG158: 0 | AH158: 0.1462501536 | AI158: 0.7332170566 | AJ158: 0 | AK158: 0.4046937042 | AL158: 0.2570463895 | AM158: 0 | BB158: Pit latrine with washable slab | BC158: 0 | BD158: 1.847418 | BE158: 1.18456 | BF158: 18.327804 | BG158: 327.863461 | BH158: 9.617651 | BI158: 28.355004 | BJ158: 68.53595 | BK158: 78.885591 | BL158: 73.475855 | BM158: 0 | BN158: 0 | BO158: 0 | BP158: 10.331996 | BQ158: 80.021196 | BR158: 0 | BS158: 217.926187 | BT158: 3.391555 | BU158: 15.633775 | BV158: 0 | BW158: 9.816197 | BX158: 11.548597 | BY158: 0 | BZ158: 9.435194 | CA158: 0 | CB158: 19.612432 | CC158: 0 | CD158: 5.326948 | CE158: 0 | CF158: 0 | CG158: 0 | CH158: 1.32849 | CI158: 15.434223 | CJ158: 0 | CK158: 19.721604 | CL158: 20.048041 | CM158: 0
B159: Pit latrine with slab that can not be washed | C159: 0.1912139853 | D159: 0.2368798188 | E159: 0.4632807317 | F159: 1.842990053 | G159: 4.283785771 | H159: 3.228109179 | I159: 5.461912143 | J159: 6.965310345 | K159: 4.515284027 | L159: 3.898360202 | M159: 0.1470019844 | N159: 0.1640704616 | O159: 0.2967955193 | P159: 0.9750775686 | Q159: 2.614981618 | R159: 0 | S159: 4.449023384 | T159: 0.4544155481 | U159: 0.01984607924 | V159: 0.218704285 | W159: 0.6741784018 | X159: 0.1610096973 | Y159: 0.9707396926 | Z159: 0.2910648285 | AA159: 0 | AB159: 1.882316392 | AC159: 0 | AD159: 1.719730172 | AE159: 0.01845524961 | AF159: 0 | AG159: 4.276189312 | AH159: 0.0916570978 | AI159: 0.09330800457 | AJ159: 4.651713877 | AK159: 1.227739112 | AL159: 0.581487889 | AM159: 0 | BB159: Pit latrine with slab that can not be washed | BC159: 32.593579 | BD159: 40.267254 | BE159: 78.850086 | BF159: 313.740402 | BG159: 729.673781 | BH159: 77.973647 | BI159: 131.694095 | BJ159: 168.678004 | BK159: 109.075431 | BL159: 94.102633 | BM159: 21.496386 | BN159: 23.957809 | BO159: 43.28442 | BP159: 142.469404 | BQ159: 382.393273 | BR159: 0 | BS159: 564.156474 | BT159: 21.932496 | BU159: 0.635404 | BV159: 5.48729 | BW159: 17.517303 | BX159: 7.648218 | BY159: 28.463226 | BZ159: 13.50846 | CA159: 0 | CB159: 55.14279 | CC159: 0 | CD159: 34.957032 | CE159: 0.850264 | CF159: 0 | CG159: 158.063863 | CH159: 0.832584 | CI159: 1.964134 | CJ159: 178.782681 | CK159: 59.830396 | CL159: 45.352487 | CM159: 0
B160: Pit latrine without slab/open pit | C160: 24.14138047 | D160: 37.9814314 | E160: 52.22937459 | F160: 66.35838994 | G160: 68.74031009 | H160: 57.23386948 | I160: 66.22194687 | J160: 66.1652135 | K160: 68.34870967 | L160: 42.32078208 | M160: 23.38213078 | N160: 34.32780095 | O160: 48.79717192 | P160: 58.8919689 | Q160: 75.62620252 | R160: 74.24401271 | S160: 78.10835529 | T160: 88.97348176 | U160: 53.40131606 | V160: 5.365902414 | W160: 14.10688697 | X160: 11.26258537 | Y160: 3.98442354 | Z160: 69.99357074 | AA160: 17.76623112 | AB160: 24.35000145 | AC160: 75.15273608 | AD160: 13.5984887 | AE160: 54.21950949 | AF160: 10.18681149 | AG160: 77.42553827 | AH160: 7.052117365 | AI160: 17.68923608 | AJ160: 53.89102729 | AK160: 15.00795797 | AL160: 81.82236693 | AM160: 13.64279602 | BB160: Pit latrine without slab/open pit | BC160: 4115.044149 | BD160: 6456.472117 | BE160: 8889.406349 | BF160: 11296.48416 | BG160: 11708.8026 | BH160: 1382.460533 | BI160: 1596.700777 | BJ160: 1602.314268 | BK160: 1651.095462 | BL160: 1021.582619 | BM160: 3419.214447 | BN160: 5012.595751 | BO160: 7116.540336 | BP160: 8604.755129 | BQ160: 11058.95005 | BR160: 3452.914122 | BS160: 9904.496001 | BT160: 4294.330467 | BU160: 1709.728628 | BV160: 134.630479 | BW160: 366.541872 | BX160: 534.990809 | BY160: 116.82797 | BZ160: 3248.435599 | CA160: 213.304675 | CB160: 713.337578 | CC160: 1755.533736 | CD160: 276.417087 | CE160: 2497.98285 | CF160: 160.300443 | CG160: 2861.935892 | CH160: 64.059197 | CI160: 372.358515 | CJ160: 2071.232796 | CK160: 731.370419 | CL160: 6381.642512 | CM160: 603.837727
B161: No facility/bush/field | C161: 75.14153644 | D161: 61.29393384 | E161: 46.31473142 | F161: 29.8985354 | G161: 5.591607506 | H161: 34.35952778 | I161: 11.50174398 | J161: 4.580192499 | K161: 1.626108321 | L161: 0.399163516 | M161: 76.06073314 | N161: 64.86356661 | O161: 50.16992902 | P161: 39.17934713 | Q161: 15.38850709 | R161: 24.44120334 | S161: 3.67221224 | T161: 8.957782488 | U161: 39.52839422 | V161: 94.4153933 | W161: 84.66012653 | X161: 85.96178778 | Y161: 94.64593689 | Z161: 8.470809642 | AA161: 81.96236437 | AB161: 68.0660773 | AC161: 24.7364345 | AD161: 78.04404316 | AE161: 36.16648786 | AF161: 89.38269949 | AG161: 17.35551789 | AH161: 92.13709034 | AI161: 79.81837544 | AJ161: 40.94329598 | AK161: 83.11853585 | AL161: 16.0146272 | AM161: 85.52166774 | BB161: No facility/bush/field | BC161: 12808.32885 | BD161: 10419.36968 | BE161: 7882.737843 | BF161: 5089.760794 | BG161: 952.44011 | BH161: 829.940235 | BI161: 277.322616 | BJ161: 110.917919 | BK161: 39.281796 | BL161: 9.63542 | BM161: 11122.5089 | BN161: 9471.472956 | BO161: 7316.742128 | BP161: 5724.527376 | BQ161: 2250.287938 | BR161: 1136.702787 | BS161: 465.653275 | BT161: 432.349926 | BU161: 1265.564825 | BV161: 2368.881997 | BW161: 2199.739838 | BX161: 4083.322333 | BY161: 2775.129844 | BZ161: 393.134388 | CA161: 984.05539 | CB161: 1994.007714 | CC161: 577.83186 | CD161: 1586.40475 | CE161: 1666.250161 | CF161: 1406.53298 | CG161: 641.524498 | CH161: 836.9441 | CI161: 1680.177234 | CJ161: 1573.603282 | CK161: 4050.54695 | CL161: 1249.042647 | CM161: 3785.2365
B162: Composting toilet | C162: 0 | D162: 0 | E162: 0.04175418065 | F162: 0 | G162: 0 | H162: 0 | I162: 0 | J162: 0 | K162: 0 | L162: 0 | M162: 0 | N162: 0 | O162: 0.04872856666 | P162: 0 | Q162: 0 | R162: 0 | S162: 0.05604321115 | T162: 0 | U162: 0 | V162: 0 | W162: 0 | X162: 0 | Y162: 0 | Z162: 0 | AA162: 0 | AB162: 0 | AC162: 0 | AD162: 0 | AE162: 0 | AF162: 0 | AG162: 0 | AH162: 0 | AI162: 0 | AJ162: 0 | AK162: 0 | AL162: 0 | AM162: 0 | BB162: Composting toilet | BC162: 0 | BD162: 0 | BE162: 7.106535 | BF162: 0 | BG162: 0 | BH162: 0 | BI162: 0 | BJ162: 0 | BK162: 0 | BL162: 0 | BM162: 0 | BN162: 0 | BO162: 7.106535 | BP162: 0 | BQ162: 0 | BR162: 0 | BS162: 7.106535 | BT162: 0 | BU162: 0 | BV162: 0 | BW162: 0 | BX162: 0 | BY162: 0 | BZ162: 0 | CA162: 0 | CB162: 0 | CC162: 0 | CD162: 0 | CE162: 0 | CF162: 0 | CG162: 0 | CH162: 0 | CI162: 0 | CJ162: 0 | CK162: 0 | CL162: 0 | CM162: 0
B163: Bucket toilet | C163: 0 | D163: 0 | E163: 0.01478910342 | F163: 0.3708863758 | G163: 3.371346055 | H163: 1.667075014 | I163: 8.837306007 | J163: 6.938099643 | K163: 6.586215468 | L163: 2.462417816 | M163: 0 | N163: 0 | O163: 0 | P163: 0 | Q163: 0 | R163: 0 | S163: 0.04892407469 | T163: 0 | U163: 0 | V163: 0 | W163: 0 | X163: 0 | Y163: 0.05197138685 | Z163: 13.44522649 | AA163: 0 | AB163: 0 | AC163: 0 | AD163: 0 | AE163: 0 | AF163: 0 | AG163: 0 | AH163: 0 | AI163: 0.112980161 | AJ163: 0 | AK163: 0 | AL163: 0 | AM163: 0.1311270039 | BB163: Bucket toilet | BC163: 0 | BD163: 0 | BE163: 2.517096 | BF163: 63.137639 | BG163: 574.254399 | BH163: 40.26751 | BI163: 213.07941 | BJ163: 168.019046 | BK163: 159.102791 | BL163: 59.440377 | BM163: 0 | BN163: 0 | BO163: 0 | BP163: 0 | BQ163: 0 | BR163: 0 | BS163: 6.203796 | BT163: 0 | BU163: 0 | BV163: 0 | BW163: 0 | BX163: 0 | BY163: 1.523862 | BZ163: 623.999489 | CA163: 0 | CB163: 0 | CC163: 0 | CD163: 0 | CE163: 0 | CF163: 0 | CG163: 0 | CH163: 0 | CI163: 2.378233 | CJ163: 0 | CK163: 0 | CL163: 0 | CM163: 5.803754
B164: Hanging toilet/latrine | C164: 0.07455755685 | D164: 0.02851023325 | E164: 0.003704038513 | F164: 0.07459867165 | G164: 0.06023162268 | H164: 0.1033682714 | I164: 0 | J164: 0.3656455845 | K164: 0 | L164: 0.05819181685 | M164: 0.04888045517 | N164: 0.07127283014 | O164: 0 | P164: 0 | Q164: 0.07408016966 | R164: 0 | S164: 0 | T164: 0 | U164: 0 | V164: 0 | W164: 0 | X164: 0 | Y164: 0 | Z164: 0 | AA164: 0 | AB164: 0.309763628 | AC164: 0.1108294265 | AD164: 0 | AE164: 0.1188775465 | AF164: 0 | AG164: 0 | AH164: 0.1965158896 | AI164: 0.4571153697 | AJ164: 0.144688092 | AK164: 0 | AL164: 0 | AM164: 0.158962285 | BB164: Hanging toilet/latrine | BC164: 12.708786 | BD164: 4.846461 | BE164: 0.630425 | BF164: 12.699264 | BG164: 10.259485 | BH164: 2.496818 | BI164: 0 | BJ164: 8.854791 | BK164: 0 | BL164: 1.404694 | BM164: 7.147884 | BN164: 10.407363 | BO164: 0 | BP164: 0 | BQ164: 10.832871 | BR164: 0 | BS164: 0 | BT164: 0 | BU164: 0 | BV164: 0 | BW164: 0 | BX164: 0 | BY164: 0 | BZ164: 0 | CA164: 0 | CB164: 9.07458 | CC164: 2.588925 | CD164: 0 | CE164: 5.476886 | CF164: 0 | CG164: 0 | CH164: 1.785088 | CI164: 9.622281 | CJ164: 5.560902 | CK164: 0 | CL164: 0 | CM164: 7.035759
BB165: Total | BC165: 17045.60414 | BD165: 16999.02263 | BE165: 17019.93642 | BF165: 17023.44522 | BG165: 17033.38636 | BH165: 2415.458793 | BI165: 2411.13536 | BJ165: 2421.68684 | BK165: 2415.693683 | BL165: 2413.902978 | BM165: 14623.19443 | BN165: 14602.1464 | BO165: 14583.91963 | BP165: 14611.08414 | BQ165: 14623.1725 | BR165: 4650.764413 | BS165: 12680.45648 | BT165: 4826.528514 | BU165: 3201.660098 | BV165: 2508.999766 | BW165: 2598.318628 | BX165: 4750.159854 | BY165: 2932.117252 | BZ165: 4641.048549 | CA165: 1200.618598 | CB165: 2929.5176 | CC165: 2335.954521 | CD165: 2032.704465 | CE165: 4607.16608 | CF165: 1573.607631 | CG165: 3696.371967 | CH165: 908.368277 | CI165: 2105.00054 | CJ165: 3843.372265 | CK165: 4873.217398 | CL165: 7799.386343 | CM165: 4426.055525
A208: =A1026 -> Madagascar
A209: =A1034 -> 2009
A210: Access to hygiene facilities
A211: by wealth quintile and sub-national region
A212: Notes:
A213: WHO/UNICEF JMP customised wealth index excludes water,
A214: sanitation and hygiene assets.
A215: Survey used for analysis: | B215: =A1025 -> DHS09
A220: Access to handwashing | C220: NATIONAL wealth index quintile | H220: URBAN wealth index quintile | M220: RURAL wealth index quintile | R220: SUB-REGIONS: | BA220: Raw numbers of respondents: | BB220: Access to handwashing | BC220: NATIONAL wealth index quintile | BH220: URBAN wealth index quintile | BM220: RURAL wealth index quintile | BR220: SUB-REGIONS:
A221: Weighted percentage (used in graphs) | C221: Poorest | D221: Poor | E221: Middle | F221: Rich | G221: Richest | H221: Poorest | I221: Poor | J221: Middle | K221: Rich | L221: Richest | M221: Poorest | N221: Poor | O221: Middle | P221: Rich | Q221: Richest | R221: Alaotra Mangoro | S221: Analamanga | T221: Analanjirofo | U221: Anamoroni'i Mania | V221: Androy | W221: Anosy | X221: Atsimo Andrefana | Y221: Atsimo Atsinanana | Z221: Atsinanana | AA221: Betsiboka | AB221: Boeny | AC221: Bongolava | AD221: Diana | AE221: Haute Matsiatra | AF221: Ihorombe | AG221: Itasy | AH221: Melaky | AI221: Menabe | AJ221: Sava | AK221: Sofia | AL221: Vakinankaratra | AM221: Vatovavy Fitovinany | BA221: Hygiene data, raw numbers (weighted) | BC221: Poorest | BD221: Poor | BE221: Middle | BF221: Rich | BG221: Richest | BH221: Poorest | BI221: Poor | BJ221: Middle | BK221: Rich | BL221: Richest | BM221: Poorest | BN221: Poor | BO221: Middle | BP221: Rich | BQ221: Richest | BR221: Alaotra Mangoro | BS221: Analamanga | BT221: Analanjirofo | BU221: Anamoroni'i Mania | BV221: Androy | BW221: Anosy | BX221: Atsimo Andrefana | BY221: Atsimo Atsinanana | BZ221: Atsinanana | CA221: Betsiboka | CB221: Boeny | CC221: Bongolava | CD221: Diana | CE221: Haute Matsiatra | CF221: Ihorombe | CG221: Itasy | CH221: Melaky | CI221: Menabe | CJ221: Sava | CK221: Sofia | CL221: Vakinankaratra | CM221: Vatovavy Fitovinany
A222: Hygiene ladder | B222: Basic | C222: 11.68415498 | D222: 20.13765622 | E222: 28.66326171 | F222: 43.06682934 | G222: 69.40749419 | H222: 27.39881837 | I222: 50.28717369 | J222: 61.60572079 | K222: 71.27972115 | L222: 81.46302043 | M222: 11.22680748 | N222: 17.87038465 | O222: 26.05222976 | P222: 35.24542548 | Q222: 62.86403639 | R222: 41.71203993 | S222: 68.83113074 | T222: 30.51089944 | U222: 23.12939017 | V222: 9.208817479 | W222: 27.09541082 | X222: 10.19027187 | Y222: 2.284509528 | Z222: 47.34365077 | AA222: 35.46656783 | AB222: 49.25664273 | AC222: 27.5886218 | AD222: 25.39069358 | AE222: 21.26565045 | AF222: 9.895593281 | AG222: 40.38130092 | AH222: 15.11031102 | AI222: 4.963790305 | AJ222: 20.23732682 | AK222: 43.12444491 | AL222: 50.02162145 | AM222: 4.210906233 | BA222: Hygiene ladder | BB222: Basic | BC222: 1993.077025 | BD222: 3427.404186 | BE222: 4884.988361 | BF222: 7332.240275 | BG222: 11820.96567 | BH222: 661.678478 | BI222: 1213.305688 | BJ222: 1491.897633 | BK222: 1721.899721 | BL222: 1968.166132 | BM222: 1642.414266 | BN222: 2611.320456 | BO222: 3809.927579 | BP222: 5151.705864 | BQ222: 9186.359698 | BR222: 1940.374815 | BS222: 8752.014102 | BT222: 1472.923522 | BU222: 740.524456 | BV222: 231.049209 | BW222: 705.131741 | BX222: 483.919032 | BY222: 66.984498 | BZ222: 2197.241817 | CA222: 425.539128 | CB222: 1442.982018 | CC222: 644.801993 | CD222: 517.272416 | CE222: 979.743834 | CF222: 155.717811 | CG222: 1492.643087 | CH222: 137.880417 | CI222: 104.831301 | CJ222: 777.795806 | CK222: 2101.547952 | CL222: 3901.379512 | CM222: 186.377048
B223: Limited | C223: 35.54299067 | D223: 39.44821026 | E223: 40.56509984 | F223: 33.31108007 | G223: 19.70493989 | H223: 36.86199362 | I223: 30.83322611 | J223: 25.27395503 | K223: 17.63172608 | L223: 14.34740771 | M223: 36.0037798 | N223: 37.67763708 | O223: 43.80461918 | P223: 35.23907099 | Q223: 23.05611217 | R223: 53.85929881 | S223: 22.32804613 | T223: 18.10350274 | U223: 38.22670304 | V223: 86.13177248 | W223: 54.28938002 | X223: 9.89607987 | Y223: 15.14674878 | Z223: 18.48202929 | AA223: 59.63364394 | AB223: 40.15771566 | AC223: 41.41707029 | AD223: 40.15284677 | AE223: 54.17372158 | AF223: 45.75997331 | AG223: 48.61271736 | AH223: 40.16015259 | AI223: 34.12572962 | AJ223: 21.39326072 | AK223: 49.33210517 | AL223: 32.69964593 | AM223: 8.471272036 | BB223: Limited | BC223: 6062.904695 | BD223: 6714.036605 | BE223: 6913.380708 | BF223: 5671.298459 | BG223: 3355.99809 | BH223: 890.213129 | BI223: 743.929831 | BJ223: 612.056043 | BK223: 425.928493 | BL223: 346.636815 | BM223: 5267.135975 | BN223: 5505.666854 | BO223: 6406.070736 | BP223: 5150.77705 | BQ223: 3369.203631 | BR223: 2505.445122 | BS223: 2839.055127 | BT223: 873.95244 | BU223: 1223.889098 | BV223: 2161.04597 | BW223: 1412.828368 | BX223: 469.948344 | BY223: 444.120434 | BZ223: 857.759952 | CA223: 715.503371 | CB223: 1176.427348 | CC223: 968.000854 | CD223: 818.014679 | CE223: 2495.873325 | CF223: 720.082432 | CG223: 1796.906857 | CH223: 366.45828 | CI223: 720.708252 | CJ223: 822.222649 | CK223: 2404.060732 | CL223: 2550.371719 | CM223: 374.943204
B224: No facility | C224: 52.77285435 | D224: 40.41413352 | E224: 30.77163845 | F224: 23.6220906 | G224: 10.88756592 | H224: 35.73918801 | I224: 18.8796002 | J224: 13.12032418 | K224: 11.08855278 | L224: 4.18957186 | M224: 52.76941271 | N224: 44.45197826 | O224: 30.14315106 | P224: 29.51550354 | Q224: 14.07985144 | R224: 4.428661261 | S224: 8.840823122 | T224: 51.38559782 | U224: 38.64390679 | V224: 4.65941004 | W224: 18.61520916 | X224: 79.91364826 | Y224: 82.5687417 | Z224: 34.17431995 | AA224: 4.89978823 | AB224: 10.58564161 | AC224: 30.99430791 | AD224: 34.45645966 | AE224: 24.56062797 | AF224: 44.34443341 | AG224: 11.00598172 | AH224: 44.72953639 | AI224: 60.91048007 | AJ224: 58.36941247 | AK224: 7.543449922 | AL224: 17.27873262 | AM224: 87.31782173 | BB224: No facility | BC224: 9001.965798 | BD224: 6878.435548 | BE224: 5244.31229 | BF224: 4021.722674 | BG224: 1854.288856 | BH224: 863.097496 | BI224: 455.518269 | BJ224: 317.733164 | BK224: 267.865469 | BL224: 101.221062 | BM224: 7719.847016 | BN224: 6495.571439 | BO224: 4408.191682 | BP224: 4314.182354 | BQ224: 2057.497215 | BR224: 206.013966 | BS224: 1124.128106 | BT224: 2480.656326 | BU224: 1237.246544 | BV224: 116.904587 | BW224: 484.442732 | BX224: 3794.966002 | BY224: 2421.01232 | BZ224: 1586.04678 | CA224: 58.789213 | CB224: 310.108234 | CC224: 724.399778 | CD224: 701.964918 | CE224: 1131.548921 | CF224: 697.807388 | CG224: 406.822023 | CH224: 408.153553 | CI224: 1286.380866 | CJ224: 2243.35381 | CK224: 367.608714 | CL224: 1347.635112 | CM224: 3864.735273
A225: Usual place for handwashing | B225: In dwelling/yard/plot | C225: 47.22714565 | D225: 59.58586648 | E225: 69.21542166 | F225: 76.35330244 | G225: 89.07748934 | H225: 64.23571569 | I225: 81.1203998 | J225: 86.87967582 | K225: 88.91144722 | L225: 95.77839308 | M225: 47.23058729 | N225: 55.54802174 | O225: 69.85684894 | P225: 70.4736837 | Q225: 85.85340688 | R225: 95.57133874 | S225: 91.10454506 | T225: 48.61440218 | U225: 61.35609321 | V225: 95.34058996 | W225: 81.34532284 | X225: 20.08074266 | Y225: 17.4312583 | Z225: 65.82568005 | AA225: 95.03788305 | AB225: 89.41435839 | AC225: 69.00569209 | AD225: 65.54354034 | AE225: 75.43937203 | AF225: 55.65556659 | AG225: 88.99401828 | AH225: 55.27046361 | AI225: 39.00910734 | AJ225: 41.63058753 | AK225: 92.45655008 | AL225: 82.72126738 | AM225: 12.68217827 | BA225: Observed handwashing place | BB225: Fixed | BC225: N/A | BD225: N/A | BE225: N/A | BF225: N/A | BG225: N/A | BH225: N/A | BI225: N/A | BJ225: N/A | BK225: N/A | BL225: N/A | BM225: N/A | BN225: N/A | BO225: N/A | BP225: N/A | BQ225: N/A | BR225: N/A | BS225: N/A | BT225: N/A | BU225: N/A | BV225: N/A | BW225: N/A | BX225: N/A | BY225: N/A | BZ225: N/A | CA225: N/A | CB225: N/A | CC225: N/A | CD225: N/A | CE225: N/A | CF225: N/A | CG225: N/A | CH225: N/A | CI225: N/A | CJ225: N/A | CK225: N/A | CL225: N/A | CM225: N/A
B226: Somewhere else | C226: 7.830396726 | D226: 7.285803435 | E226: 7.828052128 | F226: 6.592562418 | G226: 3.843807663 | H226: 6.006808716 | I226: 5.516541956 | J226: 5.535409318 | K226: 4.431876308 | L226: 1.814332201 | M226: 7.597915085 | N226: 7.50226219 | O226: 7.379891654 | P226: 7.633746998 | Q226: 4.933969942 | R226: 3.254234032 | S226: 4.265563214 | T226: 14.10766666 | U226: 5.914792739 | V226: 1.450953025 | W226: 11.42713039 | X226: 6.714079248 | Y226: 2.026833203 | Z226: 8.514092232 | AA226: 3.628238066 | AB226: 2.474396945 | AC226: 26.0332775 | AD226: 9.742731912 | AE226: 6.651268625 | AF226: 13.19283543 | AG226: 4.336777262 | AH226: 14.23065149 | AI226: 4.645619573 | AJ226: 13.88431516 | AK226: 1.024165144 | AL226: 4.596382398 | AM226: 5.61025481 | BB226: Mobile | BC226: N/A | BD226: N/A | BE226: N/A | BF226: N/A | BG226: N/A | BH226: N/A | BI226: N/A | BJ226: N/A | BK226: N/A | BL226: N/A | BM226: N/A | BN226: N/A | BO226: N/A | BP226: N/A | BQ226: N/A | BR226: N/A | BS226: N/A | BT226: N/A | BU226: N/A | BV226: N/A | BW226: N/A | BX226: N/A | BY226: N/A | BZ226: N/A | CA226: N/A | CB226: N/A | CC226: N/A | CD226: N/A | CE226: N/A | CF226: N/A | CG226: N/A | CH226: N/A | CI226: N/A | CJ226: N/A | CK226: N/A | CL226: N/A | CM226: N/A
